Workbook

Sheet Guidance
C1: THE CONTENTS OF THE WORKBOOK INCLUDE ESTIMATES
C2: BASED ON SMALL SAMPLE SIZES WHICH MAY BE UNRELIABLE
C3: THEY ARE PROVIDED ON A CAVEAT EMPTOR BASIS
G5: Users should follow the guidelines set out in general terms below
G6: and in more detail in the Working Futures technical documentation available on line at:
G7: https://www.gov.uk/government/publications/working-futures-2012-to-2022
G9: If in doubt about what to do please contact:
G11: UKCES: Peter Glover, UK Commission for Employment and Skills, email: peter.glover@ukces.org.uk, tel: 01709 774942
G12: All other enquiries: Rob Wilson, IER, University of Warwick, email: r.a.wilson@warwick.ac.uk, tel: 024 7652 3530
G14: Copyright: Warwick Institute for Employment Research / Cambridge Econometrics, 2013
G17: REPORTING
G18: The projections presented in this Workbook are calculated from a number of different data sources, using
G19: a variety of econometric and statistical techniques. As a result, precise margins of error cannot be assigned
G20: to the estimates. For further details, see the Working Futures Technical Report.
G22: However, as a general rule of thumb, it is not advisable to use any statistics or analyses in published reports etc which are not
G23: based on data for at least 10,000 individuals. This should provide a reasonable degree of statistical robustness to
G24: the estimates whether historic or forecast.
G26: For unpublished analyses, a more lenient criterion can be used. However, the uncertainties associated with
G27: projections involving fewer than 1,000 individuals are probably too great to make such estimates useful.
G28: However, there is inevitably some degree of judgement required on the part of the researcher.
G30: For cases in between 1,000 and 10,000 individuals, it is difficult to prescribe general rules, and an element of
G31: judgement by on behalf of the user is needed.
G33: Thus, in summary, CE/IER advise:
G35: PUBLISHED ANALYSIS: Ideally, a minimum of 10,000 individuals per cell
G36: UNPUBLISHED ANALYSIS: A minimum of 1,000 individuals per cell

Sheet Info
A1: United Kingdom
A2: c132 | B2: <-MDM forecast identifier
A3: Occupational forecast: Friday, 9 October 2013 at 17:09

Sheet Table 6.x.2a CD
A1: Table 6.x.2a | B1: Employment Status
A2: =names!A3 -> All industries | E2: 000s | I2: Labels for graphs (DO NOT REMOVE!) | M2: - for :- | N2: Figure 6.x.7
A3: =All!N7 -> 2002 | N3: Figure 6.x.8
A4: Employment by Gender | B4: FT | C4: =I4 -> PT 2002 | D4: SE | E4: Total | I4: =CONCATENATE(" PT ",A3) -> PT 2002 | K4: =CONCATENATE(" PT ",All!I7,"-",RIGHT(TEXT(A3,"0"),2)) -> PT 1997-02 | N4: Figure 6.x.9
A5: Male employment | B5: =MalesFT!$N$8/1000 -> 11404.676 | C5: =MalesPT!$N$8/1000 -> 2002.793 | D5: =MalesSE!$N$8/1000 -> 2366.338 | E5: =Males!$N$8/1000 -> 15773.807
A6: Female employment | B6: =FemalesFT!$N$8/1000 -> 6878.614 | C6: =FemalesPT!$N$8/1000 -> 6412.929 | D6: =FemalesSE!$N$8/1000 -> 903.64 | E6: =Females!$N$8/1000 -> 14195.183
A7: Total employment | B7: =FT!$N$8/1000 -> 18283.29 | C7: =PT!$N$8/1000 -> 8415.722 | D7: =SE!$N$8/1000 -> 3269.978 | E7: =All!$N$8/1000 -> 29968.99
A9: =All!S7 -> 2007
A10: Employment by Gender | B10: FT | C10: =I10 -> PT 2007 | D10: SE | E10: Total | I10: =CONCATENATE(" PT ",A9) -> PT 2007 | K10: =CONCATENATE(" PT ",A3,"-",RIGHT(TEXT(A9,"0"),2)) -> PT 2002-07
A11: Male employment | B11: =MalesFT!$S$8/1000 -> 11760.027 | C11: =MalesPT!$S$8/1000 -> 2323.673 | D11: =MalesSE!$S$8/1000 -> 2626.024 | E11: =Males!$S$8/1000 -> 16709.724
A12: Female employment | B12: =FemalesFT!$S$8/1000 -> 7337.493 | C12: =FemalesPT!$S$8/1000 -> 6527.784 | D12: =FemalesSE!$S$8/1000 -> 1051.972 | E12: =Females!$S$8/1000 -> 14917.249
A13: Total employment | B13: =FT!$S$8/1000 -> 19097.52 | C13: =PT!$S$8/1000 -> 8851.457 | D13: =SE!$S$8/1000 -> 3677.996 | E13: =All!$S$8/1000 -> 31626.973
A15: =All!X7 -> 2012
A16: Employment by Gender | B16: FT | C16: =I16 -> PT 2012 | D16: SE | E16: Total | I16: =CONCATENATE(" PT ",A15) -> PT 2012 | K16: =CONCATENATE(" PT ",A9,"-",RIGHT(TEXT(A15,"0"),2)) -> PT 2007-12
A17: Male employment | B17: =MalesFT!$X$8/1000 -> 11586.026 | C17: =MalesPT!$X$8/1000 -> 2411.737 | D17: =MalesSE!$X$8/1000 -> 2842.204 | E17: =Males!$X$8/1000 -> 16839.967
A18: Female employment | B18: =FemalesFT!$X$8/1000 -> 7103.668 | C18: =FemalesPT!$X$8/1000 -> 6638.568 | D18: =FemalesSE!$X$8/1000 -> 1343.785 | E18: =Females!$X$8/1000 -> 15086.021
A19: Total employment | B19: =FT!$X$8/1000 -> 18689.694 | C19: =PT!$X$8/1000 -> 9050.305 | D19: =SE!$X$8/1000 -> 4185.989 | E19: =All!$X$8/1000 -> 31925.988
A21: =All!AC7 -> 2017
A22: Employment by Gender | B22: FT | C22: =I22 -> PT 2017 | D22: SE | E22: Total | I22: =CONCATENATE(" PT ",A21) -> PT 2017 | K22: =CONCATENATE(" PT ",A15,"-",RIGHT(TEXT(A21,"0"),2)) -> PT 2012-17
A23: Male employment | B23: =MalesFT!$AC$8/1000 -> 11707.836 | C23: =MalesPT!$AC$8/1000 -> 2625.185 | D23: =MalesSE!$AC$8/1000 -> 2831.235 | E23: =Males!$AC$8/1000 -> 17164.256
A24: Female employment | B24: =FemalesFT!$AC$8/1000 -> 7337.205 | C24: =FemalesPT!$AC$8/1000 -> 6780.12 | D24: =FemalesSE!$AC$8/1000 -> 1347.998 | E24: =Females!$AC$8/1000 -> 15465.323
A25: Total employment | B25: =FT!$AC$8/1000 -> 19045.041 | C25: =PT!$AC$8/1000 -> 9405.305 | D25: =SE!$AC$8/1000 -> 4179.233 | E25: =All!$AC$8/1000 -> 32629.579
A27: =All!AH7 -> 2022
A28: Employment by Gender | B28: FT | C28: =I28 -> PT 2022 | D28: SE | E28: Total | I28: =CONCATENATE(" PT ",A27) -> PT 2022 | K28: =CONCATENATE(" PT ",A21,"-",RIGHT(TEXT(A27,"0"),2)) -> PT 2017-22
A29: Male employment | B29: =MalesFT!$AH$8/1000 -> 11917.11 | C29: =MalesPT!$AH$8/1000 -> 2890.003 | D29: =MalesSE!$AH$8/1000 -> 2838.96 | E29: =Males!$AH$8/1000 -> 17646.073
A30: Female employment | B30: =FemalesFT!$AH$8/1000 -> 7692.982 | C30: =FemalesPT!$AH$8/1000 -> 7076.427 | D30: =FemalesSE!$AH$8/1000 -> 1365.317 | E30: =Females!$AH$8/1000 -> 16134.726
A31: Total employment | B31: =FT!$AH$8/1000 -> 19610.092 | C31: =PT!$AH$8/1000 -> 9966.43 | D31: =SE!$AH$8/1000 -> 4204.277 | E31: =All!$AH$8/1000 -> 33780.799
A34: Table 6.x.2a | B34: Employment Status
A35: =names!A4 -> Agriculture | E35: 000s
A36: =A$3 -> 2002
A37: Employment by Gender | B37: FT | C37: PT | D37: SE | E37: Total
A38: Male employment | B38: =MalesFT!$N$36/1000 -> 153.386 | C38: =MalesPT!$N$36/1000 -> 23.058 | D38: =MalesSE!$N$36/1000 -> 98.218 | E38: =Males!$N$36/1000 -> 274.662
A39: Female employment | B39: =FemalesFT!$N$36/1000 -> 28.138 | C39: =FemalesPT!$N$36/1000 -> 36.021 | D39: =FemalesSE!$N$36/1000 -> 26.877 | E39: =Females!$N$36/1000 -> 91.036
A40: Total employment | B40: =FT!$N$36/1000 -> 181.524 | C40: =PT!$N$36/1000 -> 59.079 | D40: =SE!$N$36/1000 -> 125.095 | E40: =All!$N$36/1000 -> 365.698
A42: =A$9 -> 2007
A43: Employment by Gender | B43: FT | C43: PT | D43: SE | E43: Total
A44: Male employment | B44: =MalesFT!$S$36/1000 -> 132.791 | C44: =MalesPT!$S$36/1000 -> 38.561 | D44: =MalesSE!$S$36/1000 -> 107.99 | E44: =Males!$S$36/1000 -> 279.342
A45: Female employment | B45: =FemalesFT!$S$36/1000 -> 30.875 | C45: =FemalesPT!$S$36/1000 -> 30.25 | D45: =FemalesSE!$S$36/1000 -> 36.385 | E45: =Females!$S$36/1000 -> 97.51
A46: Total employment | B46: =FT!$S$36/1000 -> 163.666 | C46: =PT!$S$36/1000 -> 68.811 | D46: =SE!$S$36/1000 -> 144.375 | E46: =All!$S$36/1000 -> 376.852
A48: =A$15 -> 2012
A49: Employment by Gender | B49: FT | C49: PT | D49: SE | E49: Total
A50: Male employment | B50: =MalesFT!$X$36/1000 -> 134.836 | C50: =MalesPT!$X$36/1000 -> 20.041 | D50: =MalesSE!$X$36/1000 -> 151.277 | E50: =Males!$X$36/1000 -> 306.154
A51: Female employment | B51: =FemalesFT!$X$36/1000 -> 37.902 | C51: =FemalesPT!$X$36/1000 -> 35.51 | D51: =FemalesSE!$X$36/1000 -> 48.248 | E51: =Females!$X$36/1000 -> 121.66
A52: Total employment | B52: =FT!$X$36/1000 -> 172.738 | C52: =PT!$X$36/1000 -> 55.551 | D52: =SE!$X$36/1000 -> 199.525 | E52: =All!$X$36/1000 -> 427.814
A54: =A$21 -> 2017
A55: Employment by Gender | B55: FT | C55: PT | D55: SE | E55: Total
A56: Male employment | B56: =MalesFT!$AC$36/1000 -> 110.378 | C56: =MalesPT!$AC$36/1000 -> 17.163 | D56: =MalesSE!$AC$36/1000 -> 123.874 | E56: =Males!$AC$36/1000 -> 251.415
A57: Female employment | B57: =FemalesFT!$AC$36/1000 -> 34.119 | C57: =FemalesPT!$AC$36/1000 -> 34.226 | D57: =FemalesSE!$AC$36/1000 -> 40.359 | E57: =Females!$AC$36/1000 -> 108.704
A58: Total employment | B58: =FT!$AC$36/1000 -> 144.497 | C58: =PT!$AC$36/1000 -> 51.389 | D58: =SE!$AC$36/1000 -> 164.233 | E58: =All!$AC$36/1000 -> 360.119
A60: =A$27 -> 2022
A61: Employment by Gender | B61: FT | C61: PT | D61: SE | E61: Total
A62: Male employment | B62: =MalesFT!$AH$36/1000 -> 102.619 | C62: =MalesPT!$AH$36/1000 -> 17.155 | D62: =MalesSE!$AH$36/1000 -> 115.505 | E62: =Males!$AH$36/1000 -> 235.279
A63: Female employment | B63: =FemalesFT!$AH$36/1000 -> 36.041 | C63: =FemalesPT!$AH$36/1000 -> 38.645 | D63: =FemalesSE!$AH$36/1000 -> 40.156 | E63: =Females!$AH$36/1000 -> 114.842
A64: Total employment | B64: =FT!$AH$36/1000 -> 138.66 | C64: =PT!$AH$36/1000 -> 55.8 | D64: =SE!$AH$36/1000 -> 155.661 | E64: =All!$AH$36/1000 -> 350.121
A67: Table 6.x.2a | B67: Employment Status
A68: =names!A5 -> Mining and quarrying | E68: 000s
A69: =A$3 -> 2002
A70: Employment by Gender | B70: FT | C70: PT | D70: SE | E70: Total
A71: Male employment | B71: =MalesFT!$N$64/1000 -> 53.964 | C71: =MalesPT!$N$64/1000 -> 1.32 | D71: =MalesSE!$N$64/1000 -> 3.084 | E71: =Males!$N$64/1000 -> 58.368
A72: Female employment | B72: =FemalesFT!$N$64/1000 -> 7.96 | C72: =FemalesPT!$N$64/1000 -> 1.908 | D72: =FemalesSE!$N$64/1000 -> 1.008 | E72: =Females!$N$64/1000 -> 10.876
A73: Total employment | B73: =FT!$N$64/1000 -> 61.924 | C73: =PT!$N$64/1000 -> 3.228 | D73: =SE!$N$64/1000 -> 4.092 | E73: =All!$N$64/1000 -> 69.244
A75: =A$9 -> 2007
A76: Employment by Gender | B76: FT | C76: PT | D76: SE | E76: Total
A77: Male employment | B77: =MalesFT!$S$64/1000 -> 50.887 | C77: =MalesPT!$S$64/1000 -> 1.344 | D77: =MalesSE!$S$64/1000 -> 6.082 | E77: =Males!$S$64/1000 -> 58.313
A78: Female employment | B78: =FemalesFT!$S$64/1000 -> 6.175 | C78: =FemalesPT!$S$64/1000 -> 1.722 | D78: =FemalesSE!$S$64/1000 -> 2.11 | E78: =Females!$S$64/1000 -> 10.007
A79: Total employment | B79: =FT!$S$64/1000 -> 57.062 | C79: =PT!$S$64/1000 -> 3.066 | D79: =SE!$S$64/1000 -> 8.192 | E79: =All!$S$64/1000 -> 68.32
A81: =A$15 -> 2012
A82: Employment by Gender | B82: FT | C82: PT | D82: SE | E82: Total
A83: Male employment | B83: =MalesFT!$X$64/1000 -> 49.587 | C83: =MalesPT!$X$64/1000 -> 1.332 | D83: =MalesSE!$X$64/1000 -> 11.292 | E83: =Males!$X$64/1000 -> 62.211
A84: Female employment | B84: =FemalesFT!$X$64/1000 -> 7.393 | C84: =FemalesPT!$X$64/1000 -> 1.769 | D84: =FemalesSE!$X$64/1000 -> 1.804 | E84: =Females!$X$64/1000 -> 10.966
A85: Total employment | B85: =FT!$X$64/1000 -> 56.98 | C85: =PT!$X$64/1000 -> 3.101 | D85: =SE!$X$64/1000 -> 13.096 | E85: =All!$X$64/1000 -> 73.177
A87: =A$21 -> 2017
A88: Employment by Gender | B88: FT | C88: PT | D88: SE | E88: Total
A89: Male employment | B89: =MalesFT!$AC$64/1000 -> 44.893 | C89: =MalesPT!$AC$64/1000 -> 1.508 | D89: =MalesSE!$AC$64/1000 -> 9.693 | E89: =Males!$AC$64/1000 -> 56.094
A90: Female employment | B90: =FemalesFT!$AC$64/1000 -> 7.007 | C90: =FemalesPT!$AC$64/1000 -> 1.699 | D90: =FemalesSE!$AC$64/1000 -> 1.675 | E90: =Females!$AC$64/1000 -> 10.381
A91: Total employment | B91: =FT!$AC$64/1000 -> 51.9 | C91: =PT!$AC$64/1000 -> 3.207 | D91: =SE!$AC$64/1000 -> 11.368 | E91: =All!$AC$64/1000 -> 66.475
A93: =A$27 -> 2022
A94: Employment by Gender | B94: FT | C94: PT | D94: SE | E94: Total
A95: Male employment | B95: =MalesFT!$AH$64/1000 -> 43.146 | C95: =MalesPT!$AH$64/1000 -> 1.711 | D95: =MalesSE!$AH$64/1000 -> 9.182 | E95: =Males!$AH$64/1000 -> 54.039
A96: Female employment | B96: =FemalesFT!$AH$64/1000 -> 6.848 | C96: =FemalesPT!$AH$64/1000 -> 1.636 | D96: =FemalesSE!$AH$64/1000 -> 1.661 | E96: =Females!$AH$64/1000 -> 10.145
A97: Total employment | B97: =FT!$AH$64/1000 -> 49.994 | C97: =PT!$AH$64/1000 -> 3.347 | D97: =SE!$AH$64/1000 -> 10.843 | E97: =All!$AH$64/1000 -> 64.184
A100: Table 6.x.2a | B100: Employment Status
A101: =names!A6 -> Food drink and tobacco | E101: 000s
A102: =A$3 -> 2002
A103: Employment by Gender | B103: FT | C103: PT | D103: SE | E103: Total
A104: Male employment | B104: =MalesFT!$N$92/1000 -> 290.845 | C104: =MalesPT!$N$92/1000 -> 17.021 | D104: =MalesSE!$N$92/1000 -> 5.357 | E104: =Males!$N$92/1000 -> 313.223
A105: Female employment | B105: =FemalesFT!$N$92/1000 -> 116.669 | C105: =FemalesPT!$N$92/1000 -> 42.775 | D105: =FemalesSE!$N$92/1000 -> 4.059 | E105: =Females!$N$92/1000 -> 163.503
A106: Total employment | B106: =FT!$N$92/1000 -> 407.514 | C106: =PT!$N$92/1000 -> 59.796 | D106: =SE!$N$92/1000 -> 9.416 | E106: =All!$N$92/1000 -> 476.726
A108: =A$9 -> 2007
A109: Employment by Gender | B109: FT | C109: PT | D109: SE | E109: Total
A110: Male employment | B110: =MalesFT!$S$92/1000 -> 268.462 | C110: =MalesPT!$S$92/1000 -> 12.02 | D110: =MalesSE!$S$92/1000 -> 9.203 | E110: =Males!$S$92/1000 -> 289.685
A111: Female employment | B111: =FemalesFT!$S$92/1000 -> 108.227 | C111: =FemalesPT!$S$92/1000 -> 31.015 | D111: =FemalesSE!$S$92/1000 -> 4.6 | E111: =Females!$S$92/1000 -> 143.842
A112: Total employment | B112: =FT!$S$92/1000 -> 376.689 | C112: =PT!$S$92/1000 -> 43.035 | D112: =SE!$S$92/1000 -> 13.803 | E112: =All!$S$92/1000 -> 433.527
A114: =A$15 -> 2012
A115: Employment by Gender | B115: FT | C115: PT | D115: SE | E115: Total
A116: Male employment | B116: =MalesFT!$X$92/1000 -> 251.044 | C116: =MalesPT!$X$92/1000 -> 12.048 | D116: =MalesSE!$X$92/1000 -> 3.698 | E116: =Males!$X$92/1000 -> 266.79
A117: Female employment | B117: =FemalesFT!$X$92/1000 -> 106.706 | C117: =FemalesPT!$X$92/1000 -> 31.88 | D117: =FemalesSE!$X$92/1000 -> 10.336 | E117: =Females!$X$92/1000 -> 148.922
A118: Total employment | B118: =FT!$X$92/1000 -> 357.75 | C118: =PT!$X$92/1000 -> 43.928 | D118: =SE!$X$92/1000 -> 14.034 | E118: =All!$X$92/1000 -> 415.712
A120: =A$21 -> 2017
A121: Employment by Gender | B121: FT | C121: PT | D121: SE | E121: Total
A122: Male employment | B122: =MalesFT!$AC$92/1000 -> 243.846 | C122: =MalesPT!$AC$92/1000 -> 14.316 | D122: =MalesSE!$AC$92/1000 -> 3.656 | E122: =Males!$AC$92/1000 -> 261.818
A123: Female employment | B123: =FemalesFT!$AC$92/1000 -> 105.831 | C123: =FemalesPT!$AC$92/1000 -> 32.143 | D123: =FemalesSE!$AC$92/1000 -> 10.003 | E123: =Females!$AC$92/1000 -> 147.977
A124: Total employment | B124: =FT!$AC$92/1000 -> 349.677 | C124: =PT!$AC$92/1000 -> 46.459 | D124: =SE!$AC$92/1000 -> 13.659 | E124: =All!$AC$92/1000 -> 409.795
A126: =A$27 -> 2022
A127: Employment by Gender | B127: FT | C127: PT | D127: SE | E127: Total
A128: Male employment | B128: =MalesFT!$AH$92/1000 -> 228.314 | C128: =MalesPT!$AH$92/1000 -> 15.778 | D128: =MalesSE!$AH$92/1000 -> 3.465 | E128: =Males!$AH$92/1000 -> 247.557
A129: Female employment | B129: =FemalesFT!$AH$92/1000 -> 100.813 | C129: =FemalesPT!$AH$92/1000 -> 31.067 | D129: =FemalesSE!$AH$92/1000 -> 9.308 | E129: =Females!$AH$92/1000 -> 141.188
A130: Total employment | B130: =FT!$AH$92/1000 -> 329.127 | C130: =PT!$AH$92/1000 -> 46.845 | D130: =SE!$AH$92/1000 -> 12.773 | E130: =All!$AH$92/1000 -> 388.745
A133: Table 6.x.2a | B133: Employment Status
A134: =names!A7 -> Engineering | E134: 000s
A135: =A$3 -> 2002
A136: Employment by Gender | B136: FT | C136: PT | D136: SE | E136: Total
A137: Male employment | B137: =MalesFT!$N$120/1000 -> 436.201 | C137: =MalesPT!$N$120/1000 -> 9.047 | D137: =MalesSE!$N$120/1000 -> 20.162 | E137: =Males!$N$120/1000 -> 465.41
A138: Female employment | B138: =FemalesFT!$N$120/1000 -> 125.352 | C138: =FemalesPT!$N$120/1000 -> 26.072 | D138: =FemalesSE!$N$120/1000 -> 3.754 | E138: =Females!$N$120/1000 -> 155.178
A139: Total employment | B139: =FT!$N$120/1000 -> 561.553 | C139: =PT!$N$120/1000 -> 35.119 | D139: =SE!$N$120/1000 -> 23.916 | E139: =All!$N$120/1000 -> 620.588
A141: =A$9 -> 2007
A142: Employment by Gender | B142: FT | C142: PT | D142: SE | E142: Total
A143: Male employment | B143: =MalesFT!$S$120/1000 -> 354.89 | C143: =MalesPT!$S$120/1000 -> 7.012 | D143: =MalesSE!$S$120/1000 -> 20.012 | E143: =Males!$S$120/1000 -> 381.914
A144: Female employment | B144: =FemalesFT!$S$120/1000 -> 86.662 | C144: =FemalesPT!$S$120/1000 -> 23.244 | D144: =FemalesSE!$S$120/1000 -> 4.639 | E144: =Females!$S$120/1000 -> 114.545
A145: Total employment | B145: =FT!$S$120/1000 -> 441.552 | C145: =PT!$S$120/1000 -> 30.256 | D145: =SE!$S$120/1000 -> 24.651 | E145: =All!$S$120/1000 -> 496.459
A147: =A$15 -> 2012
A148: Employment by Gender | B148: FT | C148: PT | D148: SE | E148: Total
A149: Male employment | B149: =MalesFT!$X$120/1000 -> 317.262 | C149: =MalesPT!$X$120/1000 -> 8.03 | D149: =MalesSE!$X$120/1000 -> 8.809 | E149: =Males!$X$120/1000 -> 334.101
A150: Female employment | B150: =FemalesFT!$X$120/1000 -> 75.551 | C150: =FemalesPT!$X$120/1000 -> 18.873 | D150: =FemalesSE!$X$120/1000 -> 2.221 | E150: =Females!$X$120/1000 -> 96.645
A151: Total employment | B151: =FT!$X$120/1000 -> 392.813 | C151: =PT!$X$120/1000 -> 26.903 | D151: =SE!$X$120/1000 -> 11.03 | E151: =All!$X$120/1000 -> 430.746
A153: =A$21 -> 2017
A154: Employment by Gender | B154: FT | C154: PT | D154: SE | E154: Total
A155: Male employment | B155: =MalesFT!$AC$120/1000 -> 290.812 | C155: =MalesPT!$AC$120/1000 -> 10.096 | D155: =MalesSE!$AC$120/1000 -> 8.83 | E155: =Males!$AC$120/1000 -> 309.738
A156: Female employment | B156: =FemalesFT!$AC$120/1000 -> 73.325 | C156: =FemalesPT!$AC$120/1000 -> 20.015 | D156: =FemalesSE!$AC$120/1000 -> 2.404 | E156: =Females!$AC$120/1000 -> 95.744
A157: Total employment | B157: =FT!$AC$120/1000 -> 364.137 | C157: =PT!$AC$120/1000 -> 30.111 | D157: =SE!$AC$120/1000 -> 11.234 | E157: =All!$AC$120/1000 -> 405.482
A159: =A$27 -> 2022
A160: Employment by Gender | B160: FT | C160: PT | D160: SE | E160: Total
A161: Male employment | B161: =MalesFT!$AH$120/1000 -> 270.595 | C161: =MalesPT!$AH$120/1000 -> 12.674 | D161: =MalesSE!$AH$120/1000 -> 9.117 | E161: =Males!$AH$120/1000 -> 292.386
A162: Female employment | B162: =FemalesFT!$AH$120/1000 -> 72.197 | C162: =FemalesPT!$AH$120/1000 -> 21.927 | D162: =FemalesSE!$AH$120/1000 -> 2.633 | E162: =Females!$AH$120/1000 -> 96.757
A163: Total employment | B163: =FT!$AH$120/1000 -> 342.792 | C163: =PT!$AH$120/1000 -> 34.601 | D163: =SE!$AH$120/1000 -> 11.75 | E163: =All!$AH$120/1000 -> 389.143
A166: Table 6.x.2a | B166: Employment Status
A167: =names!A8 -> Rest of manufacturing | E167: 000s
A168: =A$3 -> 2002
A169: Employment by Gender | B169: FT | C169: PT | D169: SE | E169: Total
A170: Male employment | B170: =MalesFT!$N$148/1000 -> 1672.1 | C170: =MalesPT!$N$148/1000 -> 74.466 | D170: =MalesSE!$N$148/1000 -> 136.095 | E170: =Males!$N$148/1000 -> 1882.661
A171: Female employment | B171: =FemalesFT!$N$148/1000 -> 453.703 | C171: =FemalesPT!$N$148/1000 -> 149.317 | D171: =FemalesSE!$N$148/1000 -> 43.857 | E171: =Females!$N$148/1000 -> 646.877
A172: Total employment | B172: =FT!$N$148/1000 -> 2125.803 | C172: =PT!$N$148/1000 -> 223.783 | D172: =SE!$N$148/1000 -> 179.952 | E172: =All!$N$148/1000 -> 2529.538
A174: =A$9 -> 2007
A175: Employment by Gender | B175: FT | C175: PT | D175: SE | E175: Total
A176: Male employment | B176: =MalesFT!$S$148/1000 -> 1400.846 | C176: =MalesPT!$S$148/1000 -> 44.308 | D176: =MalesSE!$S$148/1000 -> 126.81 | E176: =Males!$S$148/1000 -> 1571.964
A177: Female employment | B177: =FemalesFT!$S$148/1000 -> 323.201 | C177: =FemalesPT!$S$148/1000 -> 111.854 | D177: =FemalesSE!$S$148/1000 -> 42.603 | E177: =Females!$S$148/1000 -> 477.658
A178: Total employment | B178: =FT!$S$148/1000 -> 1724.047 | C178: =PT!$S$148/1000 -> 156.162 | D178: =SE!$S$148/1000 -> 169.413 | E178: =All!$S$148/1000 -> 2049.622
A180: =A$15 -> 2012
A181: Employment by Gender | B181: FT | C181: PT | D181: SE | E181: Total
A182: Male employment | B182: =MalesFT!$X$148/1000 -> 1252.174 | C182: =MalesPT!$X$148/1000 -> 41.743 | D182: =MalesSE!$X$148/1000 -> 115.663 | E182: =Males!$X$148/1000 -> 1409.58
A183: Female employment | B183: =FemalesFT!$X$148/1000 -> 256.525 | C183: =FemalesPT!$X$148/1000 -> 82.35 | D183: =FemalesSE!$X$148/1000 -> 50.73 | E183: =Females!$X$148/1000 -> 389.605
A184: Total employment | B184: =FT!$X$148/1000 -> 1508.699 | C184: =PT!$X$148/1000 -> 124.093 | D184: =SE!$X$148/1000 -> 166.393 | E184: =All!$X$148/1000 -> 1799.185
A186: =A$21 -> 2017
A187: Employment by Gender | B187: FT | C187: PT | D187: SE | E187: Total
A188: Male employment | B188: =MalesFT!$AC$148/1000 -> 1184.468 | C188: =MalesPT!$AC$148/1000 -> 45.481 | D188: =MalesSE!$AC$148/1000 -> 115.04 | E188: =Males!$AC$148/1000 -> 1344.989
A189: Female employment | B189: =FemalesFT!$AC$148/1000 -> 252.91 | C189: =FemalesPT!$AC$148/1000 -> 84.162 | D189: =FemalesSE!$AC$148/1000 -> 44.665 | E189: =Females!$AC$148/1000 -> 381.737
A190: Total employment | B190: =FT!$AC$148/1000 -> 1437.378 | C190: =PT!$AC$148/1000 -> 129.643 | D190: =SE!$AC$148/1000 -> 159.705 | E190: =All!$AC$148/1000 -> 1726.726
A192: =A$27 -> 2022
A193: Employment by Gender | B193: FT | C193: PT | D193: SE | E193: Total
A194: Male employment | B194: =MalesFT!$AH$148/1000 -> 1098.597 | C194: =MalesPT!$AH$148/1000 -> 48.809 | D194: =MalesSE!$AH$148/1000 -> 112.182 | E194: =Males!$AH$148/1000 -> 1259.588
A195: Female employment | B195: =FemalesFT!$AH$148/1000 -> 253.246 | C195: =FemalesPT!$AH$148/1000 -> 86.394 | D195: =FemalesSE!$AH$148/1000 -> 40.842 | E195: =Females!$AH$148/1000 -> 380.482
A196: Total employment | B196: =FT!$AH$148/1000 -> 1351.843 | C196: =PT!$AH$148/1000 -> 135.203 | D196: =SE!$AH$148/1000 -> 153.024 | E196: =All!$AH$148/1000 -> 1640.07
A199: Table 6.x.2a | B199: Employment Status
A200: =names!A9 -> Electricity and gas | E200: 000s
A201: =A$3 -> 2002
A202: Employment by Gender | B202: FT | C202: PT | D202: SE | E202: Total
A203: Male employment | B203: =MalesFT!$N$176/1000 -> 65.164 | C203: =MalesPT!$N$176/1000 -> 0.997 | D203: =MalesSE!$N$176/1000 -> 3.072 | E203: =Males!$N$176/1000 -> 69.233
A204: Female employment | B204: =FemalesFT!$N$176/1000 -> 26.071 | C204: =FemalesPT!$N$176/1000 -> 3.008 | D204: =FemalesSE!$N$176/1000 -> 1.02 | E204: =Females!$N$176/1000 -> 30.099
A205: Total employment | B205: =FT!$N$176/1000 -> 91.235 | C205: =PT!$N$176/1000 -> 4.005 | D205: =SE!$N$176/1000 -> 4.092 | E205: =All!$N$176/1000 -> 99.332
A207: =A$9 -> 2007
A208: Employment by Gender | B208: FT | C208: PT | D208: SE | E208: Total
A209: Male employment | B209: =MalesFT!$S$176/1000 -> 58.403 | C209: =MalesPT!$S$176/1000 -> 1.008 | D209: =MalesSE!$S$176/1000 -> 1.668 | E209: =Males!$S$176/1000 -> 61.079
A210: Female employment | B210: =FemalesFT!$S$176/1000 -> 19.64 | C210: =FemalesPT!$S$176/1000 -> 4.12 | D210: =FemalesSE!$S$176/1000 -> 0.372 | E210: =Females!$S$176/1000 -> 24.132
A211: Total employment | B211: =FT!$S$176/1000 -> 78.043 | C211: =PT!$S$176/1000 -> 5.128 | D211: =SE!$S$176/1000 -> 2.04 | E211: =All!$S$176/1000 -> 85.211
A213: =A$15 -> 2012
A214: Employment by Gender | B214: FT | C214: PT | D214: SE | E214: Total
A215: Male employment | B215: =MalesFT!$X$176/1000 -> 76.103 | C215: =MalesPT!$X$176/1000 -> 2.001 | D215: =MalesSE!$X$176/1000 -> 5.544 | E215: =Males!$X$176/1000 -> 83.648
A216: Female employment | B216: =FemalesFT!$X$176/1000 -> 24.825 | C216: =FemalesPT!$X$176/1000 -> 7.218 | D216: =FemalesSE!$X$176/1000 -> 0.504 | E216: =Females!$X$176/1000 -> 32.547
A217: Total employment | B217: =FT!$X$176/1000 -> 100.928 | C217: =PT!$X$176/1000 -> 9.219 | D217: =SE!$X$176/1000 -> 6.048 | E217: =All!$X$176/1000 -> 116.195
A219: =A$21 -> 2017
A220: Employment by Gender | B220: FT | C220: PT | D220: SE | E220: Total
A221: Male employment | B221: =MalesFT!$AC$176/1000 -> 88.668 | C221: =MalesPT!$AC$176/1000 -> 2.055 | D221: =MalesSE!$AC$176/1000 -> 6.073 | E221: =Males!$AC$176/1000 -> 96.796
A222: Female employment | B222: =FemalesFT!$AC$176/1000 -> 24.743 | C222: =FemalesPT!$AC$176/1000 -> 8.044 | D222: =FemalesSE!$AC$176/1000 -> 0.558 | E222: =Females!$AC$176/1000 -> 33.345
A223: Total employment | B223: =FT!$AC$176/1000 -> 113.411 | C223: =PT!$AC$176/1000 -> 10.099 | D223: =SE!$AC$176/1000 -> 6.631 | E223: =All!$AC$176/1000 -> 130.141
A225: =A$27 -> 2022
A226: Employment by Gender | B226: FT | C226: PT | D226: SE | E226: Total
A227: Male employment | B227: =MalesFT!$AH$176/1000 -> 95.438 | C227: =MalesPT!$AH$176/1000 -> 1.89 | D227: =MalesSE!$AH$176/1000 -> 6.22 | E227: =Males!$AH$176/1000 -> 103.548
A228: Female employment | B228: =FemalesFT!$AH$176/1000 -> 22.105 | C228: =FemalesPT!$AH$176/1000 -> 8.241 | D228: =FemalesSE!$AH$176/1000 -> 0.582 | E228: =Females!$AH$176/1000 -> 30.928
A229: Total employment | B229: =FT!$AH$176/1000 -> 117.543 | C229: =PT!$AH$176/1000 -> 10.131 | D229: =SE!$AH$176/1000 -> 6.802 | E229: =All!$AH$176/1000 -> 134.476
A232: Table 6.x.2a | B232: Employment Status
A233: =names!A10 -> Water and sewerage | E233: 000s
A234: =A$3 -> 2002
A235: Employment by Gender | B235: FT | C235: PT | D235: SE | E235: Total
A236: Male employment | B236: =MalesFT!$N$204/1000 -> 96.423 | C236: =MalesPT!$N$204/1000 -> 10.846 | D236: =MalesSE!$N$204/1000 -> 2.268 | E236: =Males!$N$204/1000 -> 109.537
A237: Female employment | B237: =FemalesFT!$N$204/1000 -> 25.053 | C237: =FemalesPT!$N$204/1000 -> 28.08 | D237: =FemalesSE!$N$204/1000 -> 0.802 | E237: =Females!$N$204/1000 -> 53.935
A238: Total employment | B238: =FT!$N$204/1000 -> 121.476 | C238: =PT!$N$204/1000 -> 38.926 | D238: =SE!$N$204/1000 -> 3.07 | E238: =All!$N$204/1000 -> 163.472
A240: =A$9 -> 2007
A241: Employment by Gender | B241: FT | C241: PT | D241: SE | E241: Total
A242: Male employment | B242: =MalesFT!$S$204/1000 -> 123.017 | C242: =MalesPT!$S$204/1000 -> 5.078 | D242: =MalesSE!$S$204/1000 -> 4.412 | E242: =Males!$S$204/1000 -> 132.507
A243: Female employment | B243: =FemalesFT!$S$204/1000 -> 18.043 | C243: =FemalesPT!$S$204/1000 -> 7.177 | D243: =FemalesSE!$S$204/1000 -> 1.725 | E243: =Females!$S$204/1000 -> 26.945
... 265 more rows

Sheet Table 6.x.2b CD
A1: Table 6.x.2b | B1: Employment Shares
A2: ='Table 6.x.2a CD'!A2 -> All industries | E2: per cent
A3: ='Table 6.x.2a CD'!A3 -> 2002
A4: Employment by Gender | B4: FT | C4: PT | D4: SE | E4: Total
A5: Male employment | B5: ='Table 6.x.2a CD'!B5/'Table 6.x.2a CD'!E7*100 -> 38.05492277 | C5: ='Table 6.x.2a CD'!C5/'Table 6.x.2a CD'!E7*100 -> 6.682884542 | D5: ='Table 6.x.2a CD'!D5/'Table 6.x.2a CD'!E7*100 -> 7.895955119 | E5: ='Table 6.x.2a CD'!E5/'Table 6.x.2a CD'!E7*100 -> 52.63376243
A6: Female employment | B6: ='Table 6.x.2a CD'!B6/'Table 6.x.2a CD'!E7*100 -> 22.9524385 | C6: ='Table 6.x.2a CD'!C6/'Table 6.x.2a CD'!E7*100 -> 21.39854897 | D6: ='Table 6.x.2a CD'!D6/'Table 6.x.2a CD'!E7*100 -> 3.015250097 | E6: ='Table 6.x.2a CD'!E6/'Table 6.x.2a CD'!E7*100 -> 47.36623757
A7: Total employment | B7: ='Table 6.x.2a CD'!B7/'Table 6.x.2a CD'!E7*100 -> 61.00736128 | C7: ='Table 6.x.2a CD'!C7/'Table 6.x.2a CD'!E7*100 -> 28.08143351 | D7: ='Table 6.x.2a CD'!D7/'Table 6.x.2a CD'!E7*100 -> 10.91120522 | E7: ='Table 6.x.2a CD'!E7/'Table 6.x.2a CD'!E7*100 -> 100
A9: ='Table 6.x.2a CD'!A9 -> 2007
A10: Employment by Gender | B10: FT | C10: PT | D10: SE | E10: Total
A11: Male employment | B11: ='Table 6.x.2a CD'!B11/'Table 6.x.2a CD'!E13*100 -> 37.18353634 | C11: ='Table 6.x.2a CD'!C11/'Table 6.x.2a CD'!E13*100 -> 7.347124241 | D11: ='Table 6.x.2a CD'!D11/'Table 6.x.2a CD'!E13*100 -> 8.303115192 | E11: ='Table 6.x.2a CD'!E11/'Table 6.x.2a CD'!E13*100 -> 52.83377578
A12: Female employment | B12: ='Table 6.x.2a CD'!B12/'Table 6.x.2a CD'!E13*100 -> 23.2001115 | C12: ='Table 6.x.2a CD'!C12/'Table 6.x.2a CD'!E13*100 -> 20.63992656 | D12: ='Table 6.x.2a CD'!D12/'Table 6.x.2a CD'!E13*100 -> 3.326186164 | E12: ='Table 6.x.2a CD'!E12/'Table 6.x.2a CD'!E13*100 -> 47.16622422
A13: Total employment | B13: ='Table 6.x.2a CD'!B13/'Table 6.x.2a CD'!E13*100 -> 60.38364784 | C13: ='Table 6.x.2a CD'!C13/'Table 6.x.2a CD'!E13*100 -> 27.9870508 | D13: ='Table 6.x.2a CD'!D13/'Table 6.x.2a CD'!E13*100 -> 11.62930136 | E13: ='Table 6.x.2a CD'!E13/'Table 6.x.2a CD'!E13*100 -> 100
A15: ='Table 6.x.2a CD'!A15 -> 2012
A16: Employment by Gender | B16: FT | C16: PT | D16: SE | E16: Total
A17: Male employment | B17: ='Table 6.x.2a CD'!B17/'Table 6.x.2a CD'!E19*100 -> 36.2902661 | C17: ='Table 6.x.2a CD'!C17/'Table 6.x.2a CD'!E19*100 -> 7.55414993 | D17: ='Table 6.x.2a CD'!D17/'Table 6.x.2a CD'!E19*100 -> 8.902477818 | E17: ='Table 6.x.2a CD'!E17/'Table 6.x.2a CD'!E19*100 -> 52.74689385
A18: Female employment | B18: ='Table 6.x.2a CD'!B18/'Table 6.x.2a CD'!E19*100 -> 22.25042495 | C18: ='Table 6.x.2a CD'!C18/'Table 6.x.2a CD'!E19*100 -> 20.79361804 | D18: ='Table 6.x.2a CD'!D18/'Table 6.x.2a CD'!E19*100 -> 4.209063162 | E18: ='Table 6.x.2a CD'!E18/'Table 6.x.2a CD'!E19*100 -> 47.25310615
A19: Total employment | B19: ='Table 6.x.2a CD'!B19/'Table 6.x.2a CD'!E19*100 -> 58.54069105 | C19: ='Table 6.x.2a CD'!C19/'Table 6.x.2a CD'!E19*100 -> 28.34776797 | D19: ='Table 6.x.2a CD'!D19/'Table 6.x.2a CD'!E19*100 -> 13.11154098 | E19: ='Table 6.x.2a CD'!E19/'Table 6.x.2a CD'!E19*100 -> 100
A21: ='Table 6.x.2a CD'!A21 -> 2017
A22: Employment by Gender | B22: FT | C22: PT | D22: SE | E22: Total
A23: Male employment | B23: ='Table 6.x.2a CD'!B23/'Table 6.x.2a CD'!E25*100 -> 35.88105136 | C23: ='Table 6.x.2a CD'!C23/'Table 6.x.2a CD'!E25*100 -> 8.045414867 | D23: ='Table 6.x.2a CD'!D23/'Table 6.x.2a CD'!E25*100 -> 8.676897118 | E23: ='Table 6.x.2a CD'!E23/'Table 6.x.2a CD'!E25*100 -> 52.60336335
A24: Female employment | B24: ='Table 6.x.2a CD'!B24/'Table 6.x.2a CD'!E25*100 -> 22.48636122 | C24: ='Table 6.x.2a CD'!C24/'Table 6.x.2a CD'!E25*100 -> 20.77906062 | D24: ='Table 6.x.2a CD'!D24/'Table 6.x.2a CD'!E25*100 -> 4.13121481 | E24: ='Table 6.x.2a CD'!E24/'Table 6.x.2a CD'!E25*100 -> 47.39663665
A25: Total employment | B25: ='Table 6.x.2a CD'!B25/'Table 6.x.2a CD'!E25*100 -> 58.36741259 | C25: ='Table 6.x.2a CD'!C25/'Table 6.x.2a CD'!E25*100 -> 28.82447549 | D25: ='Table 6.x.2a CD'!D25/'Table 6.x.2a CD'!E25*100 -> 12.80811193 | E25: ='Table 6.x.2a CD'!E25/'Table 6.x.2a CD'!E25*100 -> 100
A27: ='Table 6.x.2a CD'!A27 -> 2022
A28: Employment by Gender | B28: FT | C28: PT | D28: SE | E28: Total
A29: Male employment | B29: ='Table 6.x.2a CD'!B29/'Table 6.x.2a CD'!E31*100 -> 35.27776238 | C29: ='Table 6.x.2a CD'!C29/'Table 6.x.2a CD'!E31*100 -> 8.555164725 | D29: ='Table 6.x.2a CD'!D29/'Table 6.x.2a CD'!E31*100 -> 8.404064096 | E29: ='Table 6.x.2a CD'!E29/'Table 6.x.2a CD'!E31*100 -> 52.2369912
A30: Female employment | B30: ='Table 6.x.2a CD'!B30/'Table 6.x.2a CD'!E31*100 -> 22.77323873 | C30: ='Table 6.x.2a CD'!C30/'Table 6.x.2a CD'!E31*100 -> 20.94807467 | D30: ='Table 6.x.2a CD'!D30/'Table 6.x.2a CD'!E31*100 -> 4.041695402 | E30: ='Table 6.x.2a CD'!E30/'Table 6.x.2a CD'!E31*100 -> 47.7630088
A31: Total employment | B31: ='Table 6.x.2a CD'!B31/'Table 6.x.2a CD'!E31*100 -> 58.0510011 | C31: ='Table 6.x.2a CD'!C31/'Table 6.x.2a CD'!E31*100 -> 29.5032394 | D31: ='Table 6.x.2a CD'!D31/'Table 6.x.2a CD'!E31*100 -> 12.4457595 | E31: ='Table 6.x.2a CD'!E31/'Table 6.x.2a CD'!E31*100 -> 100
A34: Table 6.x.2b | B34: Employment Status
A35: ='Table 6.x.2a CD'!A35 -> Agriculture | E35: per cent
A36: ='Table 6.x.2a CD'!A36 -> 2002
A37: Employment by Gender | B37: FT | C37: PT | D37: SE | E37: Total
A38: Male employment | B38: ='Table 6.x.2a CD'!B38/'Table 6.x.2a CD'!E40*100 -> 41.94335216 | C38: ='Table 6.x.2a CD'!C38/'Table 6.x.2a CD'!E40*100 -> 6.305202654 | D38: ='Table 6.x.2a CD'!D38/'Table 6.x.2a CD'!E40*100 -> 26.85768038 | E38: ='Table 6.x.2a CD'!E38/'Table 6.x.2a CD'!E40*100 -> 75.1062352
A39: Female employment | B39: ='Table 6.x.2a CD'!B39/'Table 6.x.2a CD'!E40*100 -> 7.694327013 | C39: ='Table 6.x.2a CD'!C39/'Table 6.x.2a CD'!E40*100 -> 9.849930817 | D39: ='Table 6.x.2a CD'!D39/'Table 6.x.2a CD'!E40*100 -> 7.34950697 | E39: ='Table 6.x.2a CD'!E39/'Table 6.x.2a CD'!E40*100 -> 24.8937648
A40: Total employment | B40: ='Table 6.x.2a CD'!B40/'Table 6.x.2a CD'!E40*100 -> 49.63767918 | C40: ='Table 6.x.2a CD'!C40/'Table 6.x.2a CD'!E40*100 -> 16.15513347 | D40: ='Table 6.x.2a CD'!D40/'Table 6.x.2a CD'!E40*100 -> 34.20718735 | E40: ='Table 6.x.2a CD'!E40/'Table 6.x.2a CD'!E40*100 -> 100
A42: ='Table 6.x.2a CD'!A42 -> 2007
A43: Employment by Gender | B43: FT | C43: PT | D43: SE | E43: Total
A44: Male employment | B44: ='Table 6.x.2a CD'!B44/'Table 6.x.2a CD'!E46*100 -> 35.23690998 | C44: ='Table 6.x.2a CD'!C44/'Table 6.x.2a CD'!E46*100 -> 10.23239893 | D44: ='Table 6.x.2a CD'!D44/'Table 6.x.2a CD'!E46*100 -> 28.65581183 | E44: ='Table 6.x.2a CD'!E44/'Table 6.x.2a CD'!E46*100 -> 74.12512074
A45: Female employment | B45: ='Table 6.x.2a CD'!B45/'Table 6.x.2a CD'!E46*100 -> 8.192871472 | C45: ='Table 6.x.2a CD'!C45/'Table 6.x.2a CD'!E46*100 -> 8.027023871 | D45: ='Table 6.x.2a CD'!D45/'Table 6.x.2a CD'!E46*100 -> 9.654983919 | E45: ='Table 6.x.2a CD'!E45/'Table 6.x.2a CD'!E46*100 -> 25.87487926
A46: Total employment | B46: ='Table 6.x.2a CD'!B46/'Table 6.x.2a CD'!E46*100 -> 43.42978145 | C46: ='Table 6.x.2a CD'!C46/'Table 6.x.2a CD'!E46*100 -> 18.2594228 | D46: ='Table 6.x.2a CD'!D46/'Table 6.x.2a CD'!E46*100 -> 38.31079575 | E46: ='Table 6.x.2a CD'!E46/'Table 6.x.2a CD'!E46*100 -> 100
A48: ='Table 6.x.2a CD'!A48 -> 2012
A49: Employment by Gender | B49: FT | C49: PT | D49: SE | E49: Total
A50: Male employment | B50: ='Table 6.x.2a CD'!B50/'Table 6.x.2a CD'!E52*100 -> 31.51743515 | C50: ='Table 6.x.2a CD'!C50/'Table 6.x.2a CD'!E52*100 -> 4.684512428 | D50: ='Table 6.x.2a CD'!D50/'Table 6.x.2a CD'!E52*100 -> 35.36046039 | E50: ='Table 6.x.2a CD'!E50/'Table 6.x.2a CD'!E52*100 -> 71.56240796
A51: Female employment | B51: ='Table 6.x.2a CD'!B51/'Table 6.x.2a CD'!E52*100 -> 8.859457615 | C51: ='Table 6.x.2a CD'!C51/'Table 6.x.2a CD'!E52*100 -> 8.300336127 | D51: ='Table 6.x.2a CD'!D51/'Table 6.x.2a CD'!E52*100 -> 11.2777983 | E51: ='Table 6.x.2a CD'!E51/'Table 6.x.2a CD'!E52*100 -> 28.43759204
A52: Total employment | B52: ='Table 6.x.2a CD'!B52/'Table 6.x.2a CD'!E52*100 -> 40.37689276 | C52: ='Table 6.x.2a CD'!C52/'Table 6.x.2a CD'!E52*100 -> 12.98484856 | D52: ='Table 6.x.2a CD'!D52/'Table 6.x.2a CD'!E52*100 -> 46.63825868 | E52: ='Table 6.x.2a CD'!E52/'Table 6.x.2a CD'!E52*100 -> 100
A54: ='Table 6.x.2a CD'!A54 -> 2017
A55: Employment by Gender | B55: FT | C55: PT | D55: SE | E55: Total
A56: Male employment | B56: ='Table 6.x.2a CD'!B56/'Table 6.x.2a CD'!E58*100 -> 30.65042389 | C56: ='Table 6.x.2a CD'!C56/'Table 6.x.2a CD'!E58*100 -> 4.765924597 | D56: ='Table 6.x.2a CD'!D56/'Table 6.x.2a CD'!E58*100 -> 34.39807397 | E56: ='Table 6.x.2a CD'!E56/'Table 6.x.2a CD'!E58*100 -> 69.81442245
A57: Female employment | B57: ='Table 6.x.2a CD'!B57/'Table 6.x.2a CD'!E58*100 -> 9.474368195 | C57: ='Table 6.x.2a CD'!C57/'Table 6.x.2a CD'!E58*100 -> 9.504080596 | D57: ='Table 6.x.2a CD'!D57/'Table 6.x.2a CD'!E58*100 -> 11.20712875 | E57: ='Table 6.x.2a CD'!E57/'Table 6.x.2a CD'!E58*100 -> 30.18557755
A58: Total employment | B58: ='Table 6.x.2a CD'!B58/'Table 6.x.2a CD'!E58*100 -> 40.12479208 | C58: ='Table 6.x.2a CD'!C58/'Table 6.x.2a CD'!E58*100 -> 14.27000519 | D58: ='Table 6.x.2a CD'!D58/'Table 6.x.2a CD'!E58*100 -> 45.60520272 | E58: ='Table 6.x.2a CD'!E58/'Table 6.x.2a CD'!E58*100 -> 100
A60: ='Table 6.x.2a CD'!A60 -> 2022
A61: Employment by Gender | B61: FT | C61: PT | D61: SE | E61: Total
A62: Male employment | B62: ='Table 6.x.2a CD'!B62/'Table 6.x.2a CD'!E64*100 -> 29.30958154 | C62: ='Table 6.x.2a CD'!C62/'Table 6.x.2a CD'!E64*100 -> 4.899734663 | D62: ='Table 6.x.2a CD'!D62/'Table 6.x.2a CD'!E64*100 -> 32.99002345 | E62: ='Table 6.x.2a CD'!E62/'Table 6.x.2a CD'!E64*100 -> 67.19933966
A63: Female employment | B63: ='Table 6.x.2a CD'!B63/'Table 6.x.2a CD'!E64*100 -> 10.29386983 | C63: ='Table 6.x.2a CD'!C63/'Table 6.x.2a CD'!E64*100 -> 11.03761271 | D63: ='Table 6.x.2a CD'!D63/'Table 6.x.2a CD'!E64*100 -> 11.4691778 | E63: ='Table 6.x.2a CD'!E63/'Table 6.x.2a CD'!E64*100 -> 32.80066034
A64: Total employment | B64: ='Table 6.x.2a CD'!B64/'Table 6.x.2a CD'!E64*100 -> 39.60345138 | C64: ='Table 6.x.2a CD'!C64/'Table 6.x.2a CD'!E64*100 -> 15.93734737 | D64: ='Table 6.x.2a CD'!D64/'Table 6.x.2a CD'!E64*100 -> 44.45920125 | E64: ='Table 6.x.2a CD'!E64/'Table 6.x.2a CD'!E64*100 -> 100
A67: Table 6.x.2b | B67: Employment Status
A68: ='Table 6.x.2a CD'!A68 -> Mining and quarrying | E68: per cent
A69: ='Table 6.x.2a CD'!A69 -> 2002
A70: Employment by Gender | B70: FT | C70: PT | D70: SE | E70: Total
A71: Male employment | B71: ='Table 6.x.2a CD'!B71/'Table 6.x.2a CD'!E73*100 -> 77.93310612 | C71: ='Table 6.x.2a CD'!C71/'Table 6.x.2a CD'!E73*100 -> 1.906302351 | D71: ='Table 6.x.2a CD'!D71/'Table 6.x.2a CD'!E73*100 -> 4.453815493 | E71: ='Table 6.x.2a CD'!E71/'Table 6.x.2a CD'!E73*100 -> 84.29322396
A72: Female employment | B72: ='Table 6.x.2a CD'!B72/'Table 6.x.2a CD'!E73*100 -> 11.49558084 | C72: ='Table 6.x.2a CD'!C72/'Table 6.x.2a CD'!E73*100 -> 2.755473398 | D72: ='Table 6.x.2a CD'!D72/'Table 6.x.2a CD'!E73*100 -> 1.455721795 | E72: ='Table 6.x.2a CD'!E72/'Table 6.x.2a CD'!E73*100 -> 15.70677604
A73: Total employment | B73: ='Table 6.x.2a CD'!B73/'Table 6.x.2a CD'!E73*100 -> 89.42868696 | C73: ='Table 6.x.2a CD'!C73/'Table 6.x.2a CD'!E73*100 -> 4.66177575 | D73: ='Table 6.x.2a CD'!D73/'Table 6.x.2a CD'!E73*100 -> 5.909537288 | E73: ='Table 6.x.2a CD'!E73/'Table 6.x.2a CD'!E73*100 -> 100
A75: ='Table 6.x.2a CD'!A75 -> 2007
A76: Employment by Gender | B76: FT | C76: PT | D76: SE | E76: Total
A77: Male employment | B77: ='Table 6.x.2a CD'!B77/'Table 6.x.2a CD'!E79*100 -> 74.48331382 | C77: ='Table 6.x.2a CD'!C77/'Table 6.x.2a CD'!E79*100 -> 1.967213115 | D77: ='Table 6.x.2a CD'!D77/'Table 6.x.2a CD'!E79*100 -> 8.902224824 | E77: ='Table 6.x.2a CD'!E77/'Table 6.x.2a CD'!E79*100 -> 85.35275176
A78: Female employment | B78: ='Table 6.x.2a CD'!B78/'Table 6.x.2a CD'!E79*100 -> 9.038348946 | C78: ='Table 6.x.2a CD'!C78/'Table 6.x.2a CD'!E79*100 -> 2.520491803 | D78: ='Table 6.x.2a CD'!D78/'Table 6.x.2a CD'!E79*100 -> 3.088407494 | E78: ='Table 6.x.2a CD'!E78/'Table 6.x.2a CD'!E79*100 -> 14.64724824
A79: Total employment | B79: ='Table 6.x.2a CD'!B79/'Table 6.x.2a CD'!E79*100 -> 83.52166276 | C79: ='Table 6.x.2a CD'!C79/'Table 6.x.2a CD'!E79*100 -> 4.487704918 | D79: ='Table 6.x.2a CD'!D79/'Table 6.x.2a CD'!E79*100 -> 11.99063232 | E79: ='Table 6.x.2a CD'!E79/'Table 6.x.2a CD'!E79*100 -> 100
A81: ='Table 6.x.2a CD'!A81 -> 2012
A82: Employment by Gender | B82: FT | C82: PT | D82: SE | E82: Total
A83: Male employment | B83: ='Table 6.x.2a CD'!B83/'Table 6.x.2a CD'!E85*100 -> 67.76309496 | C83: ='Table 6.x.2a CD'!C83/'Table 6.x.2a CD'!E85*100 -> 1.820244066 | D83: ='Table 6.x.2a CD'!D83/'Table 6.x.2a CD'!E85*100 -> 15.43107807 | E83: ='Table 6.x.2a CD'!E83/'Table 6.x.2a CD'!E85*100 -> 85.0144171
A84: Female employment | B84: ='Table 6.x.2a CD'!B84/'Table 6.x.2a CD'!E85*100 -> 10.10290118 | C84: ='Table 6.x.2a CD'!C84/'Table 6.x.2a CD'!E85*100 -> 2.41742624 | D84: ='Table 6.x.2a CD'!D84/'Table 6.x.2a CD'!E85*100 -> 2.465255476 | E84: ='Table 6.x.2a CD'!E84/'Table 6.x.2a CD'!E85*100 -> 14.9855829
A85: Total employment | B85: ='Table 6.x.2a CD'!B85/'Table 6.x.2a CD'!E85*100 -> 77.86599615 | C85: ='Table 6.x.2a CD'!C85/'Table 6.x.2a CD'!E85*100 -> 4.237670306 | D85: ='Table 6.x.2a CD'!D85/'Table 6.x.2a CD'!E85*100 -> 17.89633355 | E85: ='Table 6.x.2a CD'!E85/'Table 6.x.2a CD'!E85*100 -> 100
A87: ='Table 6.x.2a CD'!A87 -> 2017
A88: Employment by Gender | B88: FT | C88: PT | D88: SE | E88: Total
A89: Male employment | B89: ='Table 6.x.2a CD'!B89/'Table 6.x.2a CD'!E91*100 -> 67.53365927 | C89: ='Table 6.x.2a CD'!C89/'Table 6.x.2a CD'!E91*100 -> 2.268522001 | D89: ='Table 6.x.2a CD'!D89/'Table 6.x.2a CD'!E91*100 -> 14.58142159 | E89: ='Table 6.x.2a CD'!E89/'Table 6.x.2a CD'!E91*100 -> 84.38360286
A90: Female employment | B90: ='Table 6.x.2a CD'!B90/'Table 6.x.2a CD'!E91*100 -> 10.54080481 | C90: ='Table 6.x.2a CD'!C90/'Table 6.x.2a CD'!E91*100 -> 2.555848063 | D90: ='Table 6.x.2a CD'!D90/'Table 6.x.2a CD'!E91*100 -> 2.519744265 | E90: ='Table 6.x.2a CD'!E90/'Table 6.x.2a CD'!E91*100 -> 15.61639714
A91: Total employment | B91: ='Table 6.x.2a CD'!B91/'Table 6.x.2a CD'!E91*100 -> 78.07446408 | C91: ='Table 6.x.2a CD'!C91/'Table 6.x.2a CD'!E91*100 -> 4.824370064 | D91: ='Table 6.x.2a CD'!D91/'Table 6.x.2a CD'!E91*100 -> 17.10116585 | E91: ='Table 6.x.2a CD'!E91/'Table 6.x.2a CD'!E91*100 -> 100
A93: ='Table 6.x.2a CD'!A93 -> 2022
A94: Employment by Gender | B94: FT | C94: PT | D94: SE | E94: Total
A95: Male employment | B95: ='Table 6.x.2a CD'!B95/'Table 6.x.2a CD'!E97*100 -> 67.22236071 | C95: ='Table 6.x.2a CD'!C95/'Table 6.x.2a CD'!E97*100 -> 2.665773401 | D95: ='Table 6.x.2a CD'!D95/'Table 6.x.2a CD'!E97*100 -> 14.30574598 | E95: ='Table 6.x.2a CD'!E95/'Table 6.x.2a CD'!E97*100 -> 84.19388009
A96: Female employment | B96: ='Table 6.x.2a CD'!B96/'Table 6.x.2a CD'!E97*100 -> 10.66932569 | C96: ='Table 6.x.2a CD'!C96/'Table 6.x.2a CD'!E97*100 -> 2.54892185 | D96: ='Table 6.x.2a CD'!D96/'Table 6.x.2a CD'!E97*100 -> 2.587872367 | E96: ='Table 6.x.2a CD'!E96/'Table 6.x.2a CD'!E97*100 -> 15.80611991
A97: Total employment | B97: ='Table 6.x.2a CD'!B97/'Table 6.x.2a CD'!E97*100 -> 77.8916864 | C97: ='Table 6.x.2a CD'!C97/'Table 6.x.2a CD'!E97*100 -> 5.214695251 | D97: ='Table 6.x.2a CD'!D97/'Table 6.x.2a CD'!E97*100 -> 16.89361835 | E97: ='Table 6.x.2a CD'!E97/'Table 6.x.2a CD'!E97*100 -> 100
A100: Table 6.x.2b | B100: Employment Status
A101: ='Table 6.x.2a CD'!A101 -> Food drink and tobacco | E101: per cent
A102: ='Table 6.x.2a CD'!A102 -> 2002
A103: Employment by Gender | B103: FT | C103: PT | D103: SE | E103: Total
A104: Male employment | B104: ='Table 6.x.2a CD'!B104/'Table 6.x.2a CD'!E106*100 -> 61.00883946 | C104: ='Table 6.x.2a CD'!C104/'Table 6.x.2a CD'!E106*100 -> 3.570394734 | D104: ='Table 6.x.2a CD'!D104/'Table 6.x.2a CD'!E106*100 -> 1.12370628 | E104: ='Table 6.x.2a CD'!E104/'Table 6.x.2a CD'!E106*100 -> 65.70294047
A105: Female employment | B105: ='Table 6.x.2a CD'!B105/'Table 6.x.2a CD'!E106*100 -> 24.4729677 | C105: ='Table 6.x.2a CD'!C105/'Table 6.x.2a CD'!E106*100 -> 8.972659347 | D105: ='Table 6.x.2a CD'!D105/'Table 6.x.2a CD'!E106*100 -> 0.851432479 | E105: ='Table 6.x.2a CD'!E105/'Table 6.x.2a CD'!E106*100 -> 34.29705953
A106: Total employment | B106: ='Table 6.x.2a CD'!B106/'Table 6.x.2a CD'!E106*100 -> 85.48180716 | C106: ='Table 6.x.2a CD'!C106/'Table 6.x.2a CD'!E106*100 -> 12.54305408 | D106: ='Table 6.x.2a CD'!D106/'Table 6.x.2a CD'!E106*100 -> 1.975138759 | E106: ='Table 6.x.2a CD'!E106/'Table 6.x.2a CD'!E106*100 -> 100
A108: ='Table 6.x.2a CD'!A108 -> 2007
A109: Employment by Gender | B109: FT | C109: PT | D109: SE | E109: Total
A110: Male employment | B110: ='Table 6.x.2a CD'!B110/'Table 6.x.2a CD'!E112*100 -> 61.92509348 | C110: ='Table 6.x.2a CD'!C110/'Table 6.x.2a CD'!E112*100 -> 2.772607012 | D110: ='Table 6.x.2a CD'!D110/'Table 6.x.2a CD'!E112*100 -> 2.122820493 | E110: ='Table 6.x.2a CD'!E110/'Table 6.x.2a CD'!E112*100 -> 66.82052098
A111: Female employment | B111: ='Table 6.x.2a CD'!B111/'Table 6.x.2a CD'!E112*100 -> 24.96430441 | C111: ='Table 6.x.2a CD'!C111/'Table 6.x.2a CD'!E112*100 -> 7.154110355 | D111: ='Table 6.x.2a CD'!D111/'Table 6.x.2a CD'!E112*100 -> 1.061064247 | E111: ='Table 6.x.2a CD'!E111/'Table 6.x.2a CD'!E112*100 -> 33.17947902
A112: Total employment | B112: ='Table 6.x.2a CD'!B112/'Table 6.x.2a CD'!E112*100 -> 86.88939789 | C112: ='Table 6.x.2a CD'!C112/'Table 6.x.2a CD'!E112*100 -> 9.926717367 | D112: ='Table 6.x.2a CD'!D112/'Table 6.x.2a CD'!E112*100 -> 3.183884741 | E112: ='Table 6.x.2a CD'!E112/'Table 6.x.2a CD'!E112*100 -> 100
A114: ='Table 6.x.2a CD'!A114 -> 2012
A115: Employment by Gender | B115: FT | C115: PT | D115: SE | E115: Total
A116: Male employment | B116: ='Table 6.x.2a CD'!B116/'Table 6.x.2a CD'!E118*100 -> 60.3889231 | C116: ='Table 6.x.2a CD'!C116/'Table 6.x.2a CD'!E118*100 -> 2.898160265 | D116: ='Table 6.x.2a CD'!D116/'Table 6.x.2a CD'!E118*100 -> 0.8895581556 | E116: ='Table 6.x.2a CD'!E116/'Table 6.x.2a CD'!E118*100 -> 64.17664152
A117: Female employment | B117: ='Table 6.x.2a CD'!B117/'Table 6.x.2a CD'!E118*100 -> 25.6682511 | C117: ='Table 6.x.2a CD'!C117/'Table 6.x.2a CD'!E118*100 -> 7.668770687 | D117: ='Table 6.x.2a CD'!D117/'Table 6.x.2a CD'!E118*100 -> 2.486336695 | E117: ='Table 6.x.2a CD'!E117/'Table 6.x.2a CD'!E118*100 -> 35.82335848
A118: Total employment | B118: ='Table 6.x.2a CD'!B118/'Table 6.x.2a CD'!E118*100 -> 86.0571742 | C118: ='Table 6.x.2a CD'!C118/'Table 6.x.2a CD'!E118*100 -> 10.56693095 | D118: ='Table 6.x.2a CD'!D118/'Table 6.x.2a CD'!E118*100 -> 3.37589485 | E118: ='Table 6.x.2a CD'!E118/'Table 6.x.2a CD'!E118*100 -> 100
A120: ='Table 6.x.2a CD'!A120 -> 2017
A121: Employment by Gender | B121: FT | C121: PT | D121: SE | E121: Total
A122: Male employment | B122: ='Table 6.x.2a CD'!B122/'Table 6.x.2a CD'!E124*100 -> 59.50438634 | C122: ='Table 6.x.2a CD'!C122/'Table 6.x.2a CD'!E124*100 -> 3.493454044 | D122: ='Table 6.x.2a CD'!D122/'Table 6.x.2a CD'!E124*100 -> 0.8921533938 | E122: ='Table 6.x.2a CD'!E122/'Table 6.x.2a CD'!E124*100 -> 63.88999378
A123: Female employment | B123: ='Table 6.x.2a CD'!B123/'Table 6.x.2a CD'!E124*100 -> 25.8253517 | C123: ='Table 6.x.2a CD'!C123/'Table 6.x.2a CD'!E124*100 -> 7.843677937 | D123: ='Table 6.x.2a CD'!D123/'Table 6.x.2a CD'!E124*100 -> 2.440976586 | E123: ='Table 6.x.2a CD'!E123/'Table 6.x.2a CD'!E124*100 -> 36.11000622
A124: Total employment | B124: ='Table 6.x.2a CD'!B124/'Table 6.x.2a CD'!E124*100 -> 85.32973804 | C124: ='Table 6.x.2a CD'!C124/'Table 6.x.2a CD'!E124*100 -> 11.33713198 | D124: ='Table 6.x.2a CD'!D124/'Table 6.x.2a CD'!E124*100 -> 3.33312998 | E124: ='Table 6.x.2a CD'!E124/'Table 6.x.2a CD'!E124*100 -> 100
A126: ='Table 6.x.2a CD'!A126 -> 2022
A127: Employment by Gender | B127: FT | C127: PT | D127: SE | E127: Total
A128: Male employment | B128: ='Table 6.x.2a CD'!B128/'Table 6.x.2a CD'!E130*100 -> 58.73104477 | C128: ='Table 6.x.2a CD'!C128/'Table 6.x.2a CD'!E130*100 -> 4.05870172 | D128: ='Table 6.x.2a CD'!D128/'Table 6.x.2a CD'!E130*100 -> 0.891329792 | E128: ='Table 6.x.2a CD'!E128/'Table 6.x.2a CD'!E130*100 -> 63.68107628
A129: Female employment | B129: ='Table 6.x.2a CD'!B129/'Table 6.x.2a CD'!E130*100 -> 25.93293804 | C129: ='Table 6.x.2a CD'!C129/'Table 6.x.2a CD'!E130*100 -> 7.99161404 | D129: ='Table 6.x.2a CD'!D129/'Table 6.x.2a CD'!E130*100 -> 2.394371632 | E129: ='Table 6.x.2a CD'!E129/'Table 6.x.2a CD'!E130*100 -> 36.31892372
A130: Total employment | B130: ='Table 6.x.2a CD'!B130/'Table 6.x.2a CD'!E130*100 -> 84.66398282 | C130: ='Table 6.x.2a CD'!C130/'Table 6.x.2a CD'!E130*100 -> 12.05031576 | D130: ='Table 6.x.2a CD'!D130/'Table 6.x.2a CD'!E130*100 -> 3.285701424 | E130: ='Table 6.x.2a CD'!E130/'Table 6.x.2a CD'!E130*100 -> 100
A133: Table 6.x.2b | B133: Employment Status
A134: ='Table 6.x.2a CD'!A134 -> Engineering | E134: per cent
A135: ='Table 6.x.2a CD'!A135 -> 2002
A136: Employment by Gender | B136: FT | C136: PT | D136: SE | E136: Total
A137: Male employment | B137: ='Table 6.x.2a CD'!B137/'Table 6.x.2a CD'!E139*100 -> 70.28833945 | C137: ='Table 6.x.2a CD'!C137/'Table 6.x.2a CD'!E139*100 -> 1.457810979 | D137: ='Table 6.x.2a CD'!D137/'Table 6.x.2a CD'!E139*100 -> 3.248854312 | E137: ='Table 6.x.2a CD'!E137/'Table 6.x.2a CD'!E139*100 -> 74.99500474
A138: Female employment | B138: ='Table 6.x.2a CD'!B138/'Table 6.x.2a CD'!E139*100 -> 20.19890813 | C138: ='Table 6.x.2a CD'!C138/'Table 6.x.2a CD'!E139*100 -> 4.201176948 | D138: ='Table 6.x.2a CD'!D138/'Table 6.x.2a CD'!E139*100 -> 0.604910182 | E138: ='Table 6.x.2a CD'!E138/'Table 6.x.2a CD'!E139*100 -> 25.00499526
A139: Total employment | B139: ='Table 6.x.2a CD'!B139/'Table 6.x.2a CD'!E139*100 -> 90.48724758 | C139: ='Table 6.x.2a CD'!C139/'Table 6.x.2a CD'!E139*100 -> 5.658987928 | D139: ='Table 6.x.2a CD'!D139/'Table 6.x.2a CD'!E139*100 -> 3.853764494 | E139: ='Table 6.x.2a CD'!E139/'Table 6.x.2a CD'!E139*100 -> 100
A141: ='Table 6.x.2a CD'!A141 -> 2007
A142: Employment by Gender | B142: FT | C142: PT | D142: SE | E142: Total
A143: Male employment | B143: ='Table 6.x.2a CD'!B143/'Table 6.x.2a CD'!E145*100 -> 71.48425147 | C143: ='Table 6.x.2a CD'!C143/'Table 6.x.2a CD'!E145*100 -> 1.412402635 | D143: ='Table 6.x.2a CD'!D143/'Table 6.x.2a CD'!E145*100 -> 4.030947168 | E143: ='Table 6.x.2a CD'!E143/'Table 6.x.2a CD'!E145*100 -> 76.92760127
A144: Female employment | B144: ='Table 6.x.2a CD'!B144/'Table 6.x.2a CD'!E145*100 -> 17.45602356 | C144: ='Table 6.x.2a CD'!C144/'Table 6.x.2a CD'!E145*100 -> 4.681957624 | D144: ='Table 6.x.2a CD'!D144/'Table 6.x.2a CD'!E145*100 -> 0.9344175451 | E144: ='Table 6.x.2a CD'!E144/'Table 6.x.2a CD'!E145*100 -> 23.07239873
A145: Total employment | B145: ='Table 6.x.2a CD'!B145/'Table 6.x.2a CD'!E145*100 -> 88.94027503 | C145: ='Table 6.x.2a CD'!C145/'Table 6.x.2a CD'!E145*100 -> 6.094360259 | D145: ='Table 6.x.2a CD'!D145/'Table 6.x.2a CD'!E145*100 -> 4.965364713 | E145: ='Table 6.x.2a CD'!E145/'Table 6.x.2a CD'!E145*100 -> 100
A147: ='Table 6.x.2a CD'!A147 -> 2012
A148: Employment by Gender | B148: FT | C148: PT | D148: SE | E148: Total
A149: Male employment | B149: ='Table 6.x.2a CD'!B149/'Table 6.x.2a CD'!E151*100 -> 73.6540792 | C149: ='Table 6.x.2a CD'!C149/'Table 6.x.2a CD'!E151*100 -> 1.864207677 | D149: ='Table 6.x.2a CD'!D149/'Table 6.x.2a CD'!E151*100 -> 2.045056716 | E149: ='Table 6.x.2a CD'!E149/'Table 6.x.2a CD'!E151*100 -> 77.56334359
A150: Female employment | B150: ='Table 6.x.2a CD'!B150/'Table 6.x.2a CD'!E151*100 -> 17.53957088 | C150: ='Table 6.x.2a CD'!C150/'Table 6.x.2a CD'!E151*100 -> 4.381468429 | D150: ='Table 6.x.2a CD'!D150/'Table 6.x.2a CD'!E151*100 -> 0.5156170922 | E150: ='Table 6.x.2a CD'!E150/'Table 6.x.2a CD'!E151*100 -> 22.43665641
A151: Total employment | B151: ='Table 6.x.2a CD'!B151/'Table 6.x.2a CD'!E151*100 -> 91.19365009 | C151: ='Table 6.x.2a CD'!C151/'Table 6.x.2a CD'!E151*100 -> 6.245676106 | D151: ='Table 6.x.2a CD'!D151/'Table 6.x.2a CD'!E151*100 -> 2.560673808 | E151: ='Table 6.x.2a CD'!E151/'Table 6.x.2a CD'!E151*100 -> 100
A153: ='Table 6.x.2a CD'!A153 -> 2017
A154: Employment by Gender | B154: FT | C154: PT | D154: SE | E154: Total
A155: Male employment | B155: ='Table 6.x.2a CD'!B155/'Table 6.x.2a CD'!E157*100 -> 71.72007635 | C155: ='Table 6.x.2a CD'!C155/'Table 6.x.2a CD'!E157*100 -> 2.489876246 | D155: ='Table 6.x.2a CD'!D155/'Table 6.x.2a CD'!E157*100 -> 2.177655235 | E155: ='Table 6.x.2a CD'!E155/'Table 6.x.2a CD'!E157*100 -> 76.38760783
A156: Female employment | B156: ='Table 6.x.2a CD'!B156/'Table 6.x.2a CD'!E157*100 -> 18.08341677 | C156: ='Table 6.x.2a CD'!C156/'Table 6.x.2a CD'!E157*100 -> 4.936100739 | D156: ='Table 6.x.2a CD'!D156/'Table 6.x.2a CD'!E157*100 -> 0.5928746529 | E156: ='Table 6.x.2a CD'!E156/'Table 6.x.2a CD'!E157*100 -> 23.61239217
A157: Total employment | B157: ='Table 6.x.2a CD'!B157/'Table 6.x.2a CD'!E157*100 -> 89.80349313 | C157: ='Table 6.x.2a CD'!C157/'Table 6.x.2a CD'!E157*100 -> 7.425976985 | D157: ='Table 6.x.2a CD'!D157/'Table 6.x.2a CD'!E157*100 -> 2.770529888 | E157: ='Table 6.x.2a CD'!E157/'Table 6.x.2a CD'!E157*100 -> 100
A159: ='Table 6.x.2a CD'!A159 -> 2022
A160: Employment by Gender | B160: FT | C160: PT | D160: SE | E160: Total
A161: Male employment | B161: ='Table 6.x.2a CD'!B161/'Table 6.x.2a CD'!E163*100 -> 69.53613453 | C161: ='Table 6.x.2a CD'!C161/'Table 6.x.2a CD'!E163*100 -> 3.25690042 | D161: ='Table 6.x.2a CD'!D161/'Table 6.x.2a CD'!E163*100 -> 2.34284055 | E161: ='Table 6.x.2a CD'!E161/'Table 6.x.2a CD'!E163*100 -> 75.1358755
A162: Female employment | B162: ='Table 6.x.2a CD'!B162/'Table 6.x.2a CD'!E163*100 -> 18.55281991 | C162: ='Table 6.x.2a CD'!C162/'Table 6.x.2a CD'!E163*100 -> 5.634689561 | D162: ='Table 6.x.2a CD'!D162/'Table 6.x.2a CD'!E163*100 -> 0.6766150233 | E162: ='Table 6.x.2a CD'!E162/'Table 6.x.2a CD'!E163*100 -> 24.8641245
A163: Total employment | B163: ='Table 6.x.2a CD'!B163/'Table 6.x.2a CD'!E163*100 -> 88.08895445 | C163: ='Table 6.x.2a CD'!C163/'Table 6.x.2a CD'!E163*100 -> 8.891589981 | D163: ='Table 6.x.2a CD'!D163/'Table 6.x.2a CD'!E163*100 -> 3.019455573 | E163: ='Table 6.x.2a CD'!E163/'Table 6.x.2a CD'!E163*100 -> 100
A166: Table 6.x.2b | B166: Employment Status
A167: ='Table 6.x.2a CD'!A167 -> Rest of manufacturing | E167: per cent
A168: ='Table 6.x.2a CD'!A168 -> 2002
A169: Employment by Gender | B169: FT | C169: PT | D169: SE | E169: Total
A170: Male employment | B170: ='Table 6.x.2a CD'!B170/'Table 6.x.2a CD'!E172*100 -> 66.10298007 | C170: ='Table 6.x.2a CD'!C170/'Table 6.x.2a CD'!E172*100 -> 2.943857732 | D170: ='Table 6.x.2a CD'!D170/'Table 6.x.2a CD'!E172*100 -> 5.380231489 | E170: ='Table 6.x.2a CD'!E170/'Table 6.x.2a CD'!E172*100 -> 74.42706929
A171: Female employment | B171: ='Table 6.x.2a CD'!B171/'Table 6.x.2a CD'!E172*100 -> 17.93620021 | C171: ='Table 6.x.2a CD'!C171/'Table 6.x.2a CD'!E172*100 -> 5.902935635 | D171: ='Table 6.x.2a CD'!D171/'Table 6.x.2a CD'!E172*100 -> 1.733794867 | E171: ='Table 6.x.2a CD'!E171/'Table 6.x.2a CD'!E172*100 -> 25.57293071
A172: Total employment | B172: ='Table 6.x.2a CD'!B172/'Table 6.x.2a CD'!E172*100 -> 84.03918028 | C172: ='Table 6.x.2a CD'!C172/'Table 6.x.2a CD'!E172*100 -> 8.846793367 | D172: ='Table 6.x.2a CD'!D172/'Table 6.x.2a CD'!E172*100 -> 7.114026356 | E172: ='Table 6.x.2a CD'!E172/'Table 6.x.2a CD'!E172*100 -> 100
A174: ='Table 6.x.2a CD'!A174 -> 2007
A175: Employment by Gender | B175: FT | C175: PT | D175: SE | E175: Total
A176: Male employment | B176: ='Table 6.x.2a CD'!B176/'Table 6.x.2a CD'!E178*100 -> 68.34655366 | C176: ='Table 6.x.2a CD'!C176/'Table 6.x.2a CD'!E178*100 -> 2.161764462 | D176: ='Table 6.x.2a CD'!D176/'Table 6.x.2a CD'!E178*100 -> 6.18699448 | E176: ='Table 6.x.2a CD'!E176/'Table 6.x.2a CD'!E178*100 -> 76.6953126
A177: Female employment | B177: ='Table 6.x.2a CD'!B177/'Table 6.x.2a CD'!E178*100 -> 15.76881005 | C177: ='Table 6.x.2a CD'!C177/'Table 6.x.2a CD'!E178*100 -> 5.457298956 | D177: ='Table 6.x.2a CD'!D177/'Table 6.x.2a CD'!E178*100 -> 2.078578392 | E177: ='Table 6.x.2a CD'!E177/'Table 6.x.2a CD'!E178*100 -> 23.3046874
A178: Total employment | B178: ='Table 6.x.2a CD'!B178/'Table 6.x.2a CD'!E178*100 -> 84.11536371 | C178: ='Table 6.x.2a CD'!C178/'Table 6.x.2a CD'!E178*100 -> 7.619063418 | D178: ='Table 6.x.2a CD'!D178/'Table 6.x.2a CD'!E178*100 -> 8.265572871 | E178: ='Table 6.x.2a CD'!E178/'Table 6.x.2a CD'!E178*100 -> 100
A180: ='Table 6.x.2a CD'!A180 -> 2012
A181: Employment by Gender | B181: FT | C181: PT | D181: SE | E181: Total
A182: Male employment | B182: ='Table 6.x.2a CD'!B182/'Table 6.x.2a CD'!E184*100 -> 69.59673408 | C182: ='Table 6.x.2a CD'!C182/'Table 6.x.2a CD'!E184*100 -> 2.320106048 | D182: ='Table 6.x.2a CD'!D182/'Table 6.x.2a CD'!E184*100 -> 6.428632964 | E182: ='Table 6.x.2a CD'!E182/'Table 6.x.2a CD'!E184*100 -> 78.34547309
A183: Female employment | B183: ='Table 6.x.2a CD'!B183/'Table 6.x.2a CD'!E184*100 -> 14.25784452 | C183: ='Table 6.x.2a CD'!C183/'Table 6.x.2a CD'!E184*100 -> 4.577072397 | D183: ='Table 6.x.2a CD'!D183/'Table 6.x.2a CD'!E184*100 -> 2.81960999 | E183: ='Table 6.x.2a CD'!E183/'Table 6.x.2a CD'!E184*100 -> 21.65452691
A184: Total employment | B184: ='Table 6.x.2a CD'!B184/'Table 6.x.2a CD'!E184*100 -> 83.8545786 | C184: ='Table 6.x.2a CD'!C184/'Table 6.x.2a CD'!E184*100 -> 6.897178445 | D184: ='Table 6.x.2a CD'!D184/'Table 6.x.2a CD'!E184*100 -> 9.248242954 | E184: ='Table 6.x.2a CD'!E184/'Table 6.x.2a CD'!E184*100 -> 100
A186: ='Table 6.x.2a CD'!A186 -> 2017
A187: Employment by Gender | B187: FT | C187: PT | D187: SE | E187: Total
A188: Male employment | B188: ='Table 6.x.2a CD'!B188/'Table 6.x.2a CD'!E190*100 -> 68.59617565 | C188: ='Table 6.x.2a CD'!C188/'Table 6.x.2a CD'!E190*100 -> 2.633944239 | D188: ='Table 6.x.2a CD'!D188/'Table 6.x.2a CD'!E190*100 -> 6.662319326 | E188: ='Table 6.x.2a CD'!E188/'Table 6.x.2a CD'!E190*100 -> 77.89243922
A189: Female employment | B189: ='Table 6.x.2a CD'!B189/'Table 6.x.2a CD'!E190*100 -> 14.64679399 | C189: ='Table 6.x.2a CD'!C189/'Table 6.x.2a CD'!E190*100 -> 4.874079617 | D189: ='Table 6.x.2a CD'!D189/'Table 6.x.2a CD'!E190*100 -> 2.586687176 | E189: ='Table 6.x.2a CD'!E189/'Table 6.x.2a CD'!E190*100 -> 22.10756078
A190: Total employment | B190: ='Table 6.x.2a CD'!B190/'Table 6.x.2a CD'!E190*100 -> 83.24296964 | C190: ='Table 6.x.2a CD'!C190/'Table 6.x.2a CD'!E190*100 -> 7.508023856 | D190: ='Table 6.x.2a CD'!D190/'Table 6.x.2a CD'!E190*100 -> 9.249006501 | E190: ='Table 6.x.2a CD'!E190/'Table 6.x.2a CD'!E190*100 -> 100
A192: ='Table 6.x.2a CD'!A192 -> 2022
A193: Employment by Gender | B193: FT | C193: PT | D193: SE | E193: Total
A194: Male employment | B194: ='Table 6.x.2a CD'!B194/'Table 6.x.2a CD'!E196*100 -> 66.98476285 | C194: ='Table 6.x.2a CD'!C194/'Table 6.x.2a CD'!E196*100 -> 2.976031511 | D194: ='Table 6.x.2a CD'!D194/'Table 6.x.2a CD'!E196*100 -> 6.840073899 | E194: ='Table 6.x.2a CD'!E194/'Table 6.x.2a CD'!E196*100 -> 76.80086826
A195: Female employment | B195: ='Table 6.x.2a CD'!B195/'Table 6.x.2a CD'!E196*100 -> 15.44117019 | C195: ='Table 6.x.2a CD'!C195/'Table 6.x.2a CD'!E196*100 -> 5.267701988 | D195: ='Table 6.x.2a CD'!D195/'Table 6.x.2a CD'!E196*100 -> 2.490259562 | E195: ='Table 6.x.2a CD'!E195/'Table 6.x.2a CD'!E196*100 -> 23.19913174
A196: Total employment | B196: ='Table 6.x.2a CD'!B196/'Table 6.x.2a CD'!E196*100 -> 82.42593304 | C196: ='Table 6.x.2a CD'!C196/'Table 6.x.2a CD'!E196*100 -> 8.243733499 | D196: ='Table 6.x.2a CD'!D196/'Table 6.x.2a CD'!E196*100 -> 9.330333461 | E196: ='Table 6.x.2a CD'!E196/'Table 6.x.2a CD'!E196*100 -> 100
A199: Table 6.x.2b | B199: Employment Status
A200: ='Table 6.x.2a CD'!A200 -> Electricity and gas | E200: per cent
A201: ='Table 6.x.2a CD'!A201 -> 2002
A202: Employment by Gender | B202: FT | C202: PT | D202: SE | E202: Total
A203: Male employment | B203: ='Table 6.x.2a CD'!B203/'Table 6.x.2a CD'!E205*100 -> 65.60222285 | C203: ='Table 6.x.2a CD'!C203/'Table 6.x.2a CD'!E205*100 -> 1.003704748 | D203: ='Table 6.x.2a CD'!D203/'Table 6.x.2a CD'!E205*100 -> 3.092658962 | E203: ='Table 6.x.2a CD'!E203/'Table 6.x.2a CD'!E205*100 -> 69.69858656
A204: Female employment | B204: ='Table 6.x.2a CD'!B204/'Table 6.x.2a CD'!E205*100 -> 26.24632545 | C204: ='Table 6.x.2a CD'!C204/'Table 6.x.2a CD'!E205*100 -> 3.028228567 | D204: ='Table 6.x.2a CD'!D204/'Table 6.x.2a CD'!E205*100 -> 1.026859421 | E204: ='Table 6.x.2a CD'!E204/'Table 6.x.2a CD'!E205*100 -> 30.30141344
A205: Total employment | B205: ='Table 6.x.2a CD'!B205/'Table 6.x.2a CD'!E205*100 -> 91.8485483 | C205: ='Table 6.x.2a CD'!C205/'Table 6.x.2a CD'!E205*100 -> 4.031933315 | D205: ='Table 6.x.2a CD'!D205/'Table 6.x.2a CD'!E205*100 -> 4.119518383 | E205: ='Table 6.x.2a CD'!E205/'Table 6.x.2a CD'!E205*100 -> 100
A207: ='Table 6.x.2a CD'!A207 -> 2007
A208: Employment by Gender | B208: FT | C208: PT | D208: SE | E208: Total
A209: Male employment | B209: ='Table 6.x.2a CD'!B209/'Table 6.x.2a CD'!E211*100 -> 68.5392731 | C209: ='Table 6.x.2a CD'!C209/'Table 6.x.2a CD'!E211*100 -> 1.182945864 | D209: ='Table 6.x.2a CD'!D209/'Table 6.x.2a CD'!E211*100 -> 1.957493751 | E209: ='Table 6.x.2a CD'!E209/'Table 6.x.2a CD'!E211*100 -> 71.67971271
A210: Female employment | B210: ='Table 6.x.2a CD'!B210/'Table 6.x.2a CD'!E211*100 -> 23.04866743 | C210: ='Table 6.x.2a CD'!C210/'Table 6.x.2a CD'!E211*100 -> 4.835056507 | D210: ='Table 6.x.2a CD'!D210/'Table 6.x.2a CD'!E211*100 -> 0.4365633545 | E210: ='Table 6.x.2a CD'!E210/'Table 6.x.2a CD'!E211*100 -> 28.32028729
A211: Total employment | B211: ='Table 6.x.2a CD'!B211/'Table 6.x.2a CD'!E211*100 -> 91.58794052 | C211: ='Table 6.x.2a CD'!C211/'Table 6.x.2a CD'!E211*100 -> 6.018002371 | D211: ='Table 6.x.2a CD'!D211/'Table 6.x.2a CD'!E211*100 -> 2.394057105 | E211: ='Table 6.x.2a CD'!E211/'Table 6.x.2a CD'!E211*100 -> 100
A213: ='Table 6.x.2a CD'!A213 -> 2012
A214: Employment by Gender | B214: FT | C214: PT | D214: SE | E214: Total
A215: Male employment | B215: ='Table 6.x.2a CD'!B215/'Table 6.x.2a CD'!E217*100 -> 65.49593356 | C215: ='Table 6.x.2a CD'!C215/'Table 6.x.2a CD'!E217*100 -> 1.722105082 | D215: ='Table 6.x.2a CD'!D215/'Table 6.x.2a CD'!E217*100 -> 4.771289642 | E215: ='Table 6.x.2a CD'!E215/'Table 6.x.2a CD'!E217*100 -> 71.98932828
A216: Female employment | B216: ='Table 6.x.2a CD'!B216/'Table 6.x.2a CD'!E217*100 -> 21.36494686 | C216: ='Table 6.x.2a CD'!C216/'Table 6.x.2a CD'!E217*100 -> 6.211971255 | D216: ='Table 6.x.2a CD'!D216/'Table 6.x.2a CD'!E217*100 -> 0.4337536039 | E216: ='Table 6.x.2a CD'!E216/'Table 6.x.2a CD'!E217*100 -> 28.01067172
A217: Total employment | B217: ='Table 6.x.2a CD'!B217/'Table 6.x.2a CD'!E217*100 -> 86.86088042 | C217: ='Table 6.x.2a CD'!C217/'Table 6.x.2a CD'!E217*100 -> 7.934076337 | D217: ='Table 6.x.2a CD'!D217/'Table 6.x.2a CD'!E217*100 -> 5.205043246 | E217: ='Table 6.x.2a CD'!E217/'Table 6.x.2a CD'!E217*100 -> 100
A219: ='Table 6.x.2a CD'!A219 -> 2017
A220: Employment by Gender | B220: FT | C220: PT | D220: SE | E220: Total
A221: Male employment | B221: ='Table 6.x.2a CD'!B221/'Table 6.x.2a CD'!E223*100 -> 68.13225655 | C221: ='Table 6.x.2a CD'!C221/'Table 6.x.2a CD'!E223*100 -> 1.579056562 | D221: ='Table 6.x.2a CD'!D221/'Table 6.x.2a CD'!E223*100 -> 4.666477129 | E221: ='Table 6.x.2a CD'!E221/'Table 6.x.2a CD'!E223*100 -> 74.37779024
A222: Female employment | B222: ='Table 6.x.2a CD'!B222/'Table 6.x.2a CD'!E223*100 -> 19.01245572 | C222: ='Table 6.x.2a CD'!C222/'Table 6.x.2a CD'!E223*100 -> 6.180988313 | D222: ='Table 6.x.2a CD'!D222/'Table 6.x.2a CD'!E223*100 -> 0.4287657233 | E222: ='Table 6.x.2a CD'!E222/'Table 6.x.2a CD'!E223*100 -> 25.62220976
A223: Total employment | B223: ='Table 6.x.2a CD'!B223/'Table 6.x.2a CD'!E223*100 -> 87.14471227 | C223: ='Table 6.x.2a CD'!C223/'Table 6.x.2a CD'!E223*100 -> 7.760044874 | D223: ='Table 6.x.2a CD'!D223/'Table 6.x.2a CD'!E223*100 -> 5.095242852 | E223: ='Table 6.x.2a CD'!E223/'Table 6.x.2a CD'!E223*100 -> 100
A225: ='Table 6.x.2a CD'!A225 -> 2022
A226: Employment by Gender | B226: FT | C226: PT | D226: SE | E226: Total
A227: Male employment | B227: ='Table 6.x.2a CD'!B227/'Table 6.x.2a CD'!E229*100 -> 70.97028466 | C227: ='Table 6.x.2a CD'!C227/'Table 6.x.2a CD'!E229*100 -> 1.405455249 | D227: ='Table 6.x.2a CD'!D227/'Table 6.x.2a CD'!E229*100 -> 4.625360659 | E227: ='Table 6.x.2a CD'!E227/'Table 6.x.2a CD'!E229*100 -> 77.00110057
A228: Female employment | B228: ='Table 6.x.2a CD'!B228/'Table 6.x.2a CD'!E229*100 -> 16.43787739 | C228: ='Table 6.x.2a CD'!C228/'Table 6.x.2a CD'!E229*100 -> 6.12823106 | D228: ='Table 6.x.2a CD'!D228/'Table 6.x.2a CD'!E229*100 -> 0.4327909813 | E228: ='Table 6.x.2a CD'!E228/'Table 6.x.2a CD'!E229*100 -> 22.99889943
A229: Total employment | B229: ='Table 6.x.2a CD'!B229/'Table 6.x.2a CD'!E229*100 -> 87.40816205 | C229: ='Table 6.x.2a CD'!C229/'Table 6.x.2a CD'!E229*100 -> 7.533686308 | D229: ='Table 6.x.2a CD'!D229/'Table 6.x.2a CD'!E229*100 -> 5.05815164 | E229: ='Table 6.x.2a CD'!E229/'Table 6.x.2a CD'!E229*100 -> 100
A232: Table 6.x.2b | B232: Employment Status
A233: ='Table 6.x.2a CD'!A233 -> Water and sewerage | E233: per cent
A234: ='Table 6.x.2a CD'!A234 -> 2002
A235: Employment by Gender | B235: FT | C235: PT | D235: SE | E235: Total
A236: Male employment | B236: ='Table 6.x.2a CD'!B236/'Table 6.x.2a CD'!E238*100 -> 58.98441323 | C236: ='Table 6.x.2a CD'!C236/'Table 6.x.2a CD'!E238*100 -> 6.634775374 | D236: ='Table 6.x.2a CD'!D236/'Table 6.x.2a CD'!E238*100 -> 1.38739356 | E236: ='Table 6.x.2a CD'!E236/'Table 6.x.2a CD'!E238*100 -> 67.00658217
A237: Female employment | B237: ='Table 6.x.2a CD'!B237/'Table 6.x.2a CD'!E238*100 -> 15.32556034 | C237: ='Table 6.x.2a CD'!C237/'Table 6.x.2a CD'!E238*100 -> 17.1772536 | D237: ='Table 6.x.2a CD'!D237/'Table 6.x.2a CD'!E238*100 -> 0.4906038955 | E237: ='Table 6.x.2a CD'!E237/'Table 6.x.2a CD'!E238*100 -> 32.99341783
A238: Total employment | B238: ='Table 6.x.2a CD'!B238/'Table 6.x.2a CD'!E238*100 -> 74.30997357 | C238: ='Table 6.x.2a CD'!C238/'Table 6.x.2a CD'!E238*100 -> 23.81202897 | D238: ='Table 6.x.2a CD'!D238/'Table 6.x.2a CD'!E238*100 -> 1.877997455 | E238: ='Table 6.x.2a CD'!E238/'Table 6.x.2a CD'!E238*100 -> 100
A240: ='Table 6.x.2a CD'!A240 -> 2007
A241: Employment by Gender | B241: FT | C241: PT | D241: SE | E241: Total
A242: Male employment | B242: ='Table 6.x.2a CD'!B242/'Table 6.x.2a CD'!E244*100 -> 77.14986328 | C242: ='Table 6.x.2a CD'!C242/'Table 6.x.2a CD'!E244*100 -> 3.184657452 | D242: ='Table 6.x.2a CD'!D242/'Table 6.x.2a CD'!E244*100 -> 2.766976896 | E242: ='Table 6.x.2a CD'!E242/'Table 6.x.2a CD'!E244*100 -> 83.10149763
A243: Female employment | B243: ='Table 6.x.2a CD'!B243/'Table 6.x.2a CD'!E244*100 -> 11.31563104 | C243: ='Table 6.x.2a CD'!C243/'Table 6.x.2a CD'!E244*100 -> 4.501041066 | D243: ='Table 6.x.2a CD'!D243/'Table 6.x.2a CD'!E244*100 -> 1.081830269 | E243: ='Table 6.x.2a CD'!E243/'Table 6.x.2a CD'!E244*100 -> 16.89850237
... 265 more rows

Sheet Table 6.x.2c CD
A1: Table 6.x.2c | B1: Employment changes
A2: ='Table 6.x.2a CD'!A2 -> All industries | E2: 000s | I2: Labels for graphs (DO NOT REMOVE!)
A3: =CONCATENATE(All!I7,"-",All!N7) -> 1997-2002
A4: Employment by Gender | B4: FT | C4: =I4 -> PT 1997 | D4: =K4 -> SE -02 | E4: Total | I4: =CONCATENATE(" PT ",LEFT(A3,4)) -> PT 1997 | K4: =CONCATENATE(" SE -",RIGHT(A3,2)) -> SE -02
A5: Male employment | B5: =(MalesFT!$N$8-MalesFT!$I$8)/1000 -> 676.347 | C5: =(MalesPT!$N$8-MalesPT!$I$8)/1000 -> 444.238 | D5: =(MalesSE!$N$8-MalesSE!$I$8)/1000 -> -103.004 | E5: =(Males!$N$8-Males!$I$8)/1000 -> 1017.581
A6: Female employment | B6: =(FemalesFT!$N$8-FemalesFT!$I$8)/1000 -> 530.925 | C6: =(FemalesPT!$N$8-FemalesPT!$I$8)/1000 -> 208.531 | D6: =(FemalesSE!$N$8-FemalesSE!$I$8)/1000 -> -33.011 | E6: =(Females!$N$8-Females!$I$8)/1000 -> 706.445
A7: Total employment | B7: =(FT!$N$8-FT!$I$8)/1000 -> 1207.272 | C7: =(PT!$N$8-PT!$I$8)/1000 -> 652.769 | D7: =(SE!$N$8-SE!$I$8)/1000 -> -136.015 | E7: =(All!$N$8-All!$I$8)/1000 -> 1724.026
A9: =CONCATENATE(All!N7,"-",All!S7) -> 2002-2007
A10: Employment by Gender | B10: FT | C10: =I10 -> PT 2002 | D10: =K10 -> SE -07 | E10: Total | I10: =CONCATENATE(" PT ",LEFT(A9,4)) -> PT 2002 | K10: =CONCATENATE(" SE -",RIGHT(A9,2)) -> SE -07
A11: Male employment | B11: =(MalesFT!$S$8-MalesFT!$N$8)/1000 -> 355.351 | C11: =(MalesPT!$S$8-MalesPT!$N$8)/1000 -> 320.88 | D11: =(MalesSE!$S$8-MalesSE!$N$8)/1000 -> 259.686 | E11: =(Males!$S$8-Males!$N$8)/1000 -> 935.917
A12: Female employment | B12: =(FemalesFT!$S$8-FemalesFT!$N$8)/1000 -> 458.879 | C12: =(FemalesPT!$S$8-FemalesPT!$N$8)/1000 -> 114.855 | D12: =(FemalesSE!$S$8-FemalesSE!$N$8)/1000 -> 148.332 | E12: =(Females!$S$8-Females!$N$8)/1000 -> 722.066
A13: Total employment | B13: =(FT!$S$8-FT!$N$8)/1000 -> 814.23 | C13: =(PT!$S$8-PT!$N$8)/1000 -> 435.735 | D13: =(SE!$S$8-SE!$N$8)/1000 -> 408.018 | E13: =(All!$S$8-All!$N$8)/1000 -> 1657.983
A15: =CONCATENATE(All!S7,,"-",All!X7) -> 2007-2012
A16: Employment by Gender | B16: FT | C16: =I16 -> PT 2007 | D16: =K16 -> SE -12 | E16: Total | I16: =CONCATENATE(" PT ",LEFT(A15,4)) -> PT 2007 | K16: =CONCATENATE(" SE -",RIGHT(A15,2)) -> SE -12
A17: Male employment | B17: =(MalesFT!$X$8-MalesFT!$S$8)/1000 -> -174.001 | C17: =(MalesPT!$X$8-MalesPT!$S$8)/1000 -> 88.064 | D17: =(MalesSE!$X$8-MalesSE!$S$8)/1000 -> 216.18 | E17: =(Males!$X$8-Males!$S$8)/1000 -> 130.243
A18: Female employment | B18: =(FemalesFT!$X$8-FemalesFT!$S$8)/1000 -> -233.825 | C18: =(FemalesPT!$X$8-FemalesPT!$S$8)/1000 -> 110.784 | D18: =(FemalesSE!$X$8-FemalesSE!$S$8)/1000 -> 291.813 | E18: =(Females!$X$8-Females!$S$8)/1000 -> 168.772
A19: Total employment | B19: =(FT!$X$8-FT!$S$8)/1000 -> -407.826 | C19: =(PT!$X$8-PT!$S$8)/1000 -> 198.848 | D19: =(SE!$X$8-SE!$S$8)/1000 -> 507.993 | E19: =(All!$X$8-All!$S$8)/1000 -> 299.015
A21: =CONCATENATE(All!X7,"-",All!AC7) -> 2012-2017
A22: Employment by Gender | B22: FT | C22: =I22 -> PT 2012 | D22: =K22 -> SE -17 | E22: Total | I22: =CONCATENATE(" PT ",LEFT(A21,4)) -> PT 2012 | K22: =CONCATENATE(" SE -",RIGHT(A21,2)) -> SE -17
A23: Male employment | B23: =(MalesFT!$AC$8-MalesFT!$X$8)/1000 -> 121.81 | C23: =(MalesPT!$AC$8-MalesPT!$X$8)/1000 -> 213.448 | D23: =(MalesSE!$AC$8-MalesSE!$X$8)/1000 -> -10.969 | E23: =(Males!$AC$8-Males!$X$8)/1000 -> 324.289
A24: Female employment | B24: =(FemalesFT!$AC$8-FemalesFT!$X$8)/1000 -> 233.537 | C24: =(FemalesPT!$AC$8-FemalesPT!$X$8)/1000 -> 141.552 | D24: =(FemalesSE!$AC$8-FemalesSE!$X$8)/1000 -> 4.213 | E24: =(Females!$AC$8-Females!$X$8)/1000 -> 379.302
A25: Total employment | B25: =(FT!$AC$8-FT!$X$8)/1000 -> 355.347 | C25: =(PT!$AC$8-PT!$X$8)/1000 -> 355 | D25: =(SE!$AC$8-SE!$X$8)/1000 -> -6.756 | E25: =(All!$AC$8-All!$X$8)/1000 -> 703.591
A27: =CONCATENATE(All!AC7,"-",All!AH7) -> 2017-2022
A28: Employment by Gender | B28: FT | C28: =I28 -> PT 2017 | D28: =K28 -> SE -22 | E28: Total | I28: =CONCATENATE(" PT ",LEFT(A27,4)) -> PT 2017 | K28: =CONCATENATE(" SE -",RIGHT(A27,2)) -> SE -22
A29: Male employment | B29: =(MalesFT!$AH$8-MalesFT!$AC$8)/1000 -> 209.274 | C29: =(MalesPT!$AH$8-MalesPT!$AC$8)/1000 -> 264.818 | D29: =(MalesSE!$AH$8-MalesSE!$AC$8)/1000 -> 7.725 | E29: =(Males!$AH$8-Males!$AC$8)/1000 -> 481.817
A30: Female employment | B30: =(FemalesFT!$AH$8-FemalesFT!$AC$8)/1000 -> 355.777 | C30: =(FemalesPT!$AH$8-FemalesPT!$AC$8)/1000 -> 296.307 | D30: =(FemalesSE!$AH$8-FemalesSE!$AC$8)/1000 -> 17.319 | E30: =(Females!$AH$8-Females!$AC$8)/1000 -> 669.403
A31: Total employment | B31: =(FT!$AH$8-FT!$AC$8)/1000 -> 565.051 | C31: =(PT!$AH$8-PT!$AC$8)/1000 -> 561.125 | D31: =(SE!$AH$8-SE!$AC$8)/1000 -> 25.044 | E31: =(All!$AH$8-All!$AC$8)/1000 -> 1151.22
A34: Table 6.x.2c | B34: Employment changes
A35: ='Table 6.x.2a CD'!A35 -> Agriculture | E35: 000s
A36: =A$3 -> 1997-2002
A37: Employment by Gender | B37: FT | C37: PT | D37: SE | E37: Total
A38: Male employment | B38: =(MalesFT!$N$36-MalesFT!$I$36)/1000 -> -23.607 | C38: =(MalesPT!$N$36-MalesPT!$I$36)/1000 -> -21.94 | D38: =(MalesSE!$N$36-MalesSE!$I$36)/1000 -> -73.521 | E38: =(Males!$N$36-Males!$I$36)/1000 -> -119.068
A39: Female employment | B39: =(FemalesFT!$N$36-FemalesFT!$I$36)/1000 -> -5.862 | C39: =(FemalesPT!$N$36-FemalesPT!$I$36)/1000 -> 9.025 | D39: =(FemalesSE!$N$36-FemalesSE!$I$36)/1000 -> -20.229 | E39: =(Females!$N$36-Females!$I$36)/1000 -> -17.066
A40: Total employment | B40: =(FT!$N$36-FT!$I$36)/1000 -> -29.469 | C40: =(PT!$N$36-PT!$I$36)/1000 -> -12.915 | D40: =(SE!$N$36-SE!$I$36)/1000 -> -93.75 | E40: =(All!$N$36-All!$I$36)/1000 -> -136.134
A42: =A$9 -> 2002-2007
A43: Employment by Gender | B43: FT | C43: PT | D43: SE | E43: Total
A44: Male employment | B44: =(MalesFT!$S$36-MalesFT!$N$36)/1000 -> -20.595 | C44: =(MalesPT!$S$36-MalesPT!$N$36)/1000 -> 15.503 | D44: =(MalesSE!$S$36-MalesSE!$N$36)/1000 -> 9.772 | E44: =(Males!$S$36-Males!$N$36)/1000 -> 4.68
A45: Female employment | B45: =(FemalesFT!$S$36-FemalesFT!$N$36)/1000 -> 2.737 | C45: =(FemalesPT!$S$36-FemalesPT!$N$36)/1000 -> -5.771 | D45: =(FemalesSE!$S$36-FemalesSE!$N$36)/1000 -> 9.508 | E45: =(Females!$S$36-Females!$N$36)/1000 -> 6.474
A46: Total employment | B46: =(FT!$S$36-FT!$N$36)/1000 -> -17.858 | C46: =(PT!$S$36-PT!$N$36)/1000 -> 9.732 | D46: =(SE!$S$36-SE!$N$36)/1000 -> 19.28 | E46: =(All!$S$36-All!$N$36)/1000 -> 11.154
A48: =A$15 -> 2007-2012
A49: Employment by Gender | B49: FT | C49: PT | D49: SE | E49: Total
A50: Male employment | B50: =(MalesFT!$X$36-MalesFT!$S$36)/1000 -> 2.045 | C50: =(MalesPT!$X$36-MalesPT!$S$36)/1000 -> -18.52 | D50: =(MalesSE!$X$36-MalesSE!$S$36)/1000 -> 43.287 | E50: =(Males!$X$36-Males!$S$36)/1000 -> 26.812
A51: Female employment | B51: =(FemalesFT!$X$36-FemalesFT!$S$36)/1000 -> 7.027 | C51: =(FemalesPT!$X$36-FemalesPT!$S$36)/1000 -> 5.26 | D51: =(FemalesSE!$X$36-FemalesSE!$S$36)/1000 -> 11.863 | E51: =(Females!$X$36-Females!$S$36)/1000 -> 24.15
A52: Total employment | B52: =(FT!$X$36-FT!$S$36)/1000 -> 9.072 | C52: =(PT!$X$36-PT!$S$36)/1000 -> -13.26 | D52: =(SE!$X$36-SE!$S$36)/1000 -> 55.15 | E52: =(All!$X$36-All!$S$36)/1000 -> 50.962
A54: =A$21 -> 2012-2017
A55: Employment by Gender | B55: FT | C55: PT | D55: SE | E55: Total
A56: Male employment | B56: =(MalesFT!$AC$36-MalesFT!$X$36)/1000 -> -24.458 | C56: =(MalesPT!$AC$36-MalesPT!$X$36)/1000 -> -2.878 | D56: =(MalesSE!$AC$36-MalesSE!$X$36)/1000 -> -27.403 | E56: =(Males!$AC$36-Males!$X$36)/1000 -> -54.739
A57: Female employment | B57: =(FemalesFT!$AC$36-FemalesFT!$X$36)/1000 -> -3.783 | C57: =(FemalesPT!$AC$36-FemalesPT!$X$36)/1000 -> -1.284 | D57: =(FemalesSE!$AC$36-FemalesSE!$X$36)/1000 -> -7.889 | E57: =(Females!$AC$36-Females!$X$36)/1000 -> -12.956
A58: Total employment | B58: =(FT!$AC$36-FT!$X$36)/1000 -> -28.241 | C58: =(PT!$AC$36-PT!$X$36)/1000 -> -4.162 | D58: =(SE!$AC$36-SE!$X$36)/1000 -> -35.292 | E58: =(All!$AC$36-All!$X$36)/1000 -> -67.695
A60: =A$27 -> 2017-2022
A61: Employment by Gender | B61: FT | C61: PT | D61: SE | E61: Total
A62: Male employment | B62: =(MalesFT!$AH$36-MalesFT!$AC$36)/1000 -> -7.759 | C62: =(MalesPT!$AH$36-MalesPT!$AC$36)/1000 -> -0.008 | D62: =(MalesSE!$AH$36-MalesSE!$AC$36)/1000 -> -8.369 | E62: =(Males!$AH$36-Males!$AC$36)/1000 -> -16.136
A63: Female employment | B63: =(FemalesFT!$AH$36-FemalesFT!$AC$36)/1000 -> 1.922 | C63: =(FemalesPT!$AH$36-FemalesPT!$AC$36)/1000 -> 4.419 | D63: =(FemalesSE!$AH$36-FemalesSE!$AC$36)/1000 -> -0.203 | E63: =(Females!$AH$36-Females!$AC$36)/1000 -> 6.138
A64: Total employment | B64: =(FT!$AH$36-FT!$AC$36)/1000 -> -5.837 | C64: =(PT!$AH$36-PT!$AC$36)/1000 -> 4.411 | D64: =(SE!$AH$36-SE!$AC$36)/1000 -> -8.572 | E64: =(All!$AH$36-All!$AC$36)/1000 -> -9.998
A67: Table 6.x.2c | B67: Employment changes
A68: ='Table 6.x.2a CD'!A68 -> Mining and quarrying | E68: 000s
A69: =A$3 -> 1997-2002
A70: Employment by Gender | B70: FT | C70: PT | D70: SE | E70: Total
A71: Male employment | B71: =(MalesFT!$N$64-MalesFT!$I$64)/1000 -> -14.716 | C71: =(MalesPT!$N$64-MalesPT!$I$64)/1000 -> 0 | D71: =(MalesSE!$N$64-MalesSE!$I$64)/1000 -> 0.357 | E71: =(Males!$N$64-Males!$I$64)/1000 -> -14.359
A72: Female employment | B72: =(FemalesFT!$N$64-FemalesFT!$I$64)/1000 -> 3.306 | C72: =(FemalesPT!$N$64-FemalesPT!$I$64)/1000 -> 0.552 | D72: =(FemalesSE!$N$64-FemalesSE!$I$64)/1000 -> -0.372 | E72: =(Females!$N$64-Females!$I$64)/1000 -> 3.486
A73: Total employment | B73: =(FT!$N$64-FT!$I$64)/1000 -> -11.41 | C73: =(PT!$N$64-PT!$I$64)/1000 -> 0.552 | D73: =(SE!$N$64-SE!$I$64)/1000 -> -0.015 | E73: =(All!$N$64-All!$I$64)/1000 -> -10.873
A75: =A$9 -> 2002-2007
A76: Employment by Gender | B76: FT | C76: PT | D76: SE | E76: Total
A77: Male employment | B77: =(MalesFT!$S$64-MalesFT!$N$64)/1000 -> -3.077 | C77: =(MalesPT!$S$64-MalesPT!$N$64)/1000 -> 0.024 | D77: =(MalesSE!$S$64-MalesSE!$N$64)/1000 -> 2.998 | E77: =(Males!$S$64-Males!$N$64)/1000 -> -0.055
A78: Female employment | B78: =(FemalesFT!$S$64-FemalesFT!$N$64)/1000 -> -1.785 | C78: =(FemalesPT!$S$64-FemalesPT!$N$64)/1000 -> -0.186 | D78: =(FemalesSE!$S$64-FemalesSE!$N$64)/1000 -> 1.102 | E78: =(Females!$S$64-Females!$N$64)/1000 -> -0.869
A79: Total employment | B79: =(FT!$S$64-FT!$N$64)/1000 -> -4.862 | C79: =(PT!$S$64-PT!$N$64)/1000 -> -0.162 | D79: =(SE!$S$64-SE!$N$64)/1000 -> 4.1 | E79: =(All!$S$64-All!$N$64)/1000 -> -0.924
A81: =A$15 -> 2007-2012
A82: Employment by Gender | B82: FT | C82: PT | D82: SE | E82: Total
A83: Male employment | B83: =(MalesFT!$X$64-MalesFT!$S$64)/1000 -> -1.3 | C83: =(MalesPT!$X$64-MalesPT!$S$64)/1000 -> -0.012 | D83: =(MalesSE!$X$64-MalesSE!$S$64)/1000 -> 5.21 | E83: =(Males!$X$64-Males!$S$64)/1000 -> 3.898
A84: Female employment | B84: =(FemalesFT!$X$64-FemalesFT!$S$64)/1000 -> 1.218 | C84: =(FemalesPT!$X$64-FemalesPT!$S$64)/1000 -> 0.047 | D84: =(FemalesSE!$X$64-FemalesSE!$S$64)/1000 -> -0.306 | E84: =(Females!$X$64-Females!$S$64)/1000 -> 0.959
A85: Total employment | B85: =(FT!$X$64-FT!$S$64)/1000 -> -0.082 | C85: =(PT!$X$64-PT!$S$64)/1000 -> 0.035 | D85: =(SE!$X$64-SE!$S$64)/1000 -> 4.904 | E85: =(All!$X$64-All!$S$64)/1000 -> 4.857
A87: =A$21 -> 2012-2017
A88: Employment by Gender | B88: FT | C88: PT | D88: SE | E88: Total
A89: Male employment | B89: =(MalesFT!$AC$64-MalesFT!$X$64)/1000 -> -4.694 | C89: =(MalesPT!$AC$64-MalesPT!$X$64)/1000 -> 0.176 | D89: =(MalesSE!$AC$64-MalesSE!$X$64)/1000 -> -1.599 | E89: =(Males!$AC$64-Males!$X$64)/1000 -> -6.117
A90: Female employment | B90: =(FemalesFT!$AC$64-FemalesFT!$X$64)/1000 -> -0.386 | C90: =(FemalesPT!$AC$64-FemalesPT!$X$64)/1000 -> -0.07 | D90: =(FemalesSE!$AC$64-FemalesSE!$X$64)/1000 -> -0.129 | E90: =(Females!$AC$64-Females!$X$64)/1000 -> -0.585
A91: Total employment | B91: =(FT!$AC$64-FT!$X$64)/1000 -> -5.08 | C91: =(PT!$AC$64-PT!$X$64)/1000 -> 0.106 | D91: =(SE!$AC$64-SE!$X$64)/1000 -> -1.728 | E91: =(All!$AC$64-All!$X$64)/1000 -> -6.702
A93: =A$27 -> 2017-2022
A94: Employment by Gender | B94: FT | C94: PT | D94: SE | E94: Total
A95: Male employment | B95: =(MalesFT!$AH$64-MalesFT!$AC$64)/1000 -> -1.747 | C95: =(MalesPT!$AH$64-MalesPT!$AC$64)/1000 -> 0.203 | D95: =(MalesSE!$AH$64-MalesSE!$AC$64)/1000 -> -0.511 | E95: =(Males!$AH$64-Males!$AC$64)/1000 -> -2.055
A96: Female employment | B96: =(FemalesFT!$AH$64-FemalesFT!$AC$64)/1000 -> -0.159 | C96: =(FemalesPT!$AH$64-FemalesPT!$AC$64)/1000 -> -0.063 | D96: =(FemalesSE!$AH$64-FemalesSE!$AC$64)/1000 -> -0.014 | E96: =(Females!$AH$64-Females!$AC$64)/1000 -> -0.236
A97: Total employment | B97: =(FT!$AH$64-FT!$AC$64)/1000 -> -1.906 | C97: =(PT!$AH$64-PT!$AC$64)/1000 -> 0.14 | D97: =(SE!$AH$64-SE!$AC$64)/1000 -> -0.525 | E97: =(All!$AH$64-All!$AC$64)/1000 -> -2.291
A100: Table 6.x.2c | B100: Employment changes
A101: ='Table 6.x.2a CD'!A101 -> Food drink and tobacco | E101: 000s
A102: =A$3 -> 1997-2002
A103: Employment by Gender | B103: FT | C103: PT | D103: SE | E103: Total
A104: Male employment | B104: =(MalesFT!$N$92-MalesFT!$I$92)/1000 -> 60.129 | C104: =(MalesPT!$N$92-MalesPT!$I$92)/1000 -> -11.968 | D104: =(MalesSE!$N$92-MalesSE!$I$92)/1000 -> -4.95 | E104: =(Males!$N$92-Males!$I$92)/1000 -> 43.211
A105: Female employment | B105: =(FemalesFT!$N$92-FemalesFT!$I$92)/1000 -> -9.774 | C105: =(FemalesPT!$N$92-FemalesPT!$I$92)/1000 -> -64.055 | D105: =(FemalesSE!$N$92-FemalesSE!$I$92)/1000 -> -2.499 | E105: =(Females!$N$92-Females!$I$92)/1000 -> -76.328
A106: Total employment | B106: =(FT!$N$92-FT!$I$92)/1000 -> 50.355 | C106: =(PT!$N$92-PT!$I$92)/1000 -> -76.023 | D106: =(SE!$N$92-SE!$I$92)/1000 -> -7.449 | E106: =(All!$N$92-All!$I$92)/1000 -> -33.117
A108: =A$9 -> 2002-2007
A109: Employment by Gender | B109: FT | C109: PT | D109: SE | E109: Total
A110: Male employment | B110: =(MalesFT!$S$92-MalesFT!$N$92)/1000 -> -22.383 | C110: =(MalesPT!$S$92-MalesPT!$N$92)/1000 -> -5.001 | D110: =(MalesSE!$S$92-MalesSE!$N$92)/1000 -> 3.846 | E110: =(Males!$S$92-Males!$N$92)/1000 -> -23.538
A111: Female employment | B111: =(FemalesFT!$S$92-FemalesFT!$N$92)/1000 -> -8.442 | C111: =(FemalesPT!$S$92-FemalesPT!$N$92)/1000 -> -11.76 | D111: =(FemalesSE!$S$92-FemalesSE!$N$92)/1000 -> 0.541 | E111: =(Females!$S$92-Females!$N$92)/1000 -> -19.661
A112: Total employment | B112: =(FT!$S$92-FT!$N$92)/1000 -> -30.825 | C112: =(PT!$S$92-PT!$N$92)/1000 -> -16.761 | D112: =(SE!$S$92-SE!$N$92)/1000 -> 4.387 | E112: =(All!$S$92-All!$N$92)/1000 -> -43.199
A114: =A$15 -> 2007-2012
A115: Employment by Gender | B115: FT | C115: PT | D115: SE | E115: Total
A116: Male employment | B116: =(MalesFT!$X$92-MalesFT!$S$92)/1000 -> -17.418 | C116: =(MalesPT!$X$92-MalesPT!$S$92)/1000 -> 0.028 | D116: =(MalesSE!$X$92-MalesSE!$S$92)/1000 -> -5.505 | E116: =(Males!$X$92-Males!$S$92)/1000 -> -22.895
A117: Female employment | B117: =(FemalesFT!$X$92-FemalesFT!$S$92)/1000 -> -1.521 | C117: =(FemalesPT!$X$92-FemalesPT!$S$92)/1000 -> 0.865 | D117: =(FemalesSE!$X$92-FemalesSE!$S$92)/1000 -> 5.736 | E117: =(Females!$X$92-Females!$S$92)/1000 -> 5.08
A118: Total employment | B118: =(FT!$X$92-FT!$S$92)/1000 -> -18.939 | C118: =(PT!$X$92-PT!$S$92)/1000 -> 0.893 | D118: =(SE!$X$92-SE!$S$92)/1000 -> 0.231 | E118: =(All!$X$92-All!$S$92)/1000 -> -17.815
A120: =A$21 -> 2012-2017
A121: Employment by Gender | B121: FT | C121: PT | D121: SE | E121: Total
A122: Male employment | B122: =(MalesFT!$AC$92-MalesFT!$X$92)/1000 -> -7.198 | C122: =(MalesPT!$AC$92-MalesPT!$X$92)/1000 -> 2.268 | D122: =(MalesSE!$AC$92-MalesSE!$X$92)/1000 -> -0.042 | E122: =(Males!$AC$92-Males!$X$92)/1000 -> -4.972
A123: Female employment | B123: =(FemalesFT!$AC$92-FemalesFT!$X$92)/1000 -> -0.875 | C123: =(FemalesPT!$AC$92-FemalesPT!$X$92)/1000 -> 0.263 | D123: =(FemalesSE!$AC$92-FemalesSE!$X$92)/1000 -> -0.333 | E123: =(Females!$AC$92-Females!$X$92)/1000 -> -0.945
A124: Total employment | B124: =(FT!$AC$92-FT!$X$92)/1000 -> -8.073 | C124: =(PT!$AC$92-PT!$X$92)/1000 -> 2.531 | D124: =(SE!$AC$92-SE!$X$92)/1000 -> -0.375 | E124: =(All!$AC$92-All!$X$92)/1000 -> -5.917
A126: =A$27 -> 2017-2022
A127: Employment by Gender | B127: FT | C127: PT | D127: SE | E127: Total
A128: Male employment | B128: =(MalesFT!$AH$92-MalesFT!$AC$92)/1000 -> -15.532 | C128: =(MalesPT!$AH$92-MalesPT!$AC$92)/1000 -> 1.462 | D128: =(MalesSE!$AH$92-MalesSE!$AC$92)/1000 -> -0.191 | E128: =(Males!$AH$92-Males!$AC$92)/1000 -> -14.261
A129: Female employment | B129: =(FemalesFT!$AH$92-FemalesFT!$AC$92)/1000 -> -5.018 | C129: =(FemalesPT!$AH$92-FemalesPT!$AC$92)/1000 -> -1.076 | D129: =(FemalesSE!$AH$92-FemalesSE!$AC$92)/1000 -> -0.695 | E129: =(Females!$AH$92-Females!$AC$92)/1000 -> -6.789
A130: Total employment | B130: =(FT!$AH$92-FT!$AC$92)/1000 -> -20.55 | C130: =(PT!$AH$92-PT!$AC$92)/1000 -> 0.386 | D130: =(SE!$AH$92-SE!$AC$92)/1000 -> -0.886 | E130: =(All!$AH$92-All!$AC$92)/1000 -> -21.05
A133: Table 6.x.2c | B133: Employment changes
A134: ='Table 6.x.2a CD'!A134 -> Engineering | E134: 000s
A135: =A$3 -> 1997-2002
A136: Employment by Gender | B136: FT | C136: PT | D136: SE | E136: Total
A137: Male employment | B137: =(MalesFT!$N$120-MalesFT!$I$120)/1000 -> -102.502 | C137: =(MalesPT!$N$120-MalesPT!$I$120)/1000 -> 2.055 | D137: =(MalesSE!$N$120-MalesSE!$I$120)/1000 -> -2.714 | E137: =(Males!$N$120-Males!$I$120)/1000 -> -103.161
A138: Female employment | B138: =(FemalesFT!$N$120-FemalesFT!$I$120)/1000 -> -25.003 | C138: =(FemalesPT!$N$120-FemalesPT!$I$120)/1000 -> 4.155 | D138: =(FemalesSE!$N$120-FemalesSE!$I$120)/1000 -> -0.984 | E138: =(Females!$N$120-Females!$I$120)/1000 -> -21.832
A139: Total employment | B139: =(FT!$N$120-FT!$I$120)/1000 -> -127.505 | C139: =(PT!$N$120-PT!$I$120)/1000 -> 6.21 | D139: =(SE!$N$120-SE!$I$120)/1000 -> -3.698 | E139: =(All!$N$120-All!$I$120)/1000 -> -124.993
A141: =A$9 -> 2002-2007
A142: Employment by Gender | B142: FT | C142: PT | D142: SE | E142: Total
A143: Male employment | B143: =(MalesFT!$S$120-MalesFT!$N$120)/1000 -> -81.311 | C143: =(MalesPT!$S$120-MalesPT!$N$120)/1000 -> -2.035 | D143: =(MalesSE!$S$120-MalesSE!$N$120)/1000 -> -0.15 | E143: =(Males!$S$120-Males!$N$120)/1000 -> -83.496
A144: Female employment | B144: =(FemalesFT!$S$120-FemalesFT!$N$120)/1000 -> -38.69 | C144: =(FemalesPT!$S$120-FemalesPT!$N$120)/1000 -> -2.828 | D144: =(FemalesSE!$S$120-FemalesSE!$N$120)/1000 -> 0.885 | E144: =(Females!$S$120-Females!$N$120)/1000 -> -40.633
A145: Total employment | B145: =(FT!$S$120-FT!$N$120)/1000 -> -120.001 | C145: =(PT!$S$120-PT!$N$120)/1000 -> -4.863 | D145: =(SE!$S$120-SE!$N$120)/1000 -> 0.735 | E145: =(All!$S$120-All!$N$120)/1000 -> -124.129
A147: =A$15 -> 2007-2012
A148: Employment by Gender | B148: FT | C148: PT | D148: SE | E148: Total
A149: Male employment | B149: =(MalesFT!$X$120-MalesFT!$S$120)/1000 -> -37.628 | C149: =(MalesPT!$X$120-MalesPT!$S$120)/1000 -> 1.018 | D149: =(MalesSE!$X$120-MalesSE!$S$120)/1000 -> -11.203 | E149: =(Males!$X$120-Males!$S$120)/1000 -> -47.813
A150: Female employment | B150: =(FemalesFT!$X$120-FemalesFT!$S$120)/1000 -> -11.111 | C150: =(FemalesPT!$X$120-FemalesPT!$S$120)/1000 -> -4.371 | D150: =(FemalesSE!$X$120-FemalesSE!$S$120)/1000 -> -2.418 | E150: =(Females!$X$120-Females!$S$120)/1000 -> -17.9
A151: Total employment | B151: =(FT!$X$120-FT!$S$120)/1000 -> -48.739 | C151: =(PT!$X$120-PT!$S$120)/1000 -> -3.353 | D151: =(SE!$X$120-SE!$S$120)/1000 -> -13.621 | E151: =(All!$X$120-All!$S$120)/1000 -> -65.713
A153: =A$21 -> 2012-2017
A154: Employment by Gender | B154: FT | C154: PT | D154: SE | E154: Total
A155: Male employment | B155: =(MalesFT!$AC$120-MalesFT!$X$120)/1000 -> -26.45 | C155: =(MalesPT!$AC$120-MalesPT!$X$120)/1000 -> 2.066 | D155: =(MalesSE!$AC$120-MalesSE!$X$120)/1000 -> 0.021 | E155: =(Males!$AC$120-Males!$X$120)/1000 -> -24.363
A156: Female employment | B156: =(FemalesFT!$AC$120-FemalesFT!$X$120)/1000 -> -2.226 | C156: =(FemalesPT!$AC$120-FemalesPT!$X$120)/1000 -> 1.142 | D156: =(FemalesSE!$AC$120-FemalesSE!$X$120)/1000 -> 0.183 | E156: =(Females!$AC$120-Females!$X$120)/1000 -> -0.901
A157: Total employment | B157: =(FT!$AC$120-FT!$X$120)/1000 -> -28.676 | C157: =(PT!$AC$120-PT!$X$120)/1000 -> 3.208 | D157: =(SE!$AC$120-SE!$X$120)/1000 -> 0.204 | E157: =(All!$AC$120-All!$X$120)/1000 -> -25.264
A159: =A$27 -> 2017-2022
A160: Employment by Gender | B160: FT | C160: PT | D160: SE | E160: Total
A161: Male employment | B161: =(MalesFT!$AH$120-MalesFT!$AC$120)/1000 -> -20.217 | C161: =(MalesPT!$AH$120-MalesPT!$AC$120)/1000 -> 2.578 | D161: =(MalesSE!$AH$120-MalesSE!$AC$120)/1000 -> 0.287 | E161: =(Males!$AH$120-Males!$AC$120)/1000 -> -17.352
A162: Female employment | B162: =(FemalesFT!$AH$120-FemalesFT!$AC$120)/1000 -> -1.128 | C162: =(FemalesPT!$AH$120-FemalesPT!$AC$120)/1000 -> 1.912 | D162: =(FemalesSE!$AH$120-FemalesSE!$AC$120)/1000 -> 0.229 | E162: =(Females!$AH$120-Females!$AC$120)/1000 -> 1.013
A163: Total employment | B163: =(FT!$AH$120-FT!$AC$120)/1000 -> -21.345 | C163: =(PT!$AH$120-PT!$AC$120)/1000 -> 4.49 | D163: =(SE!$AH$120-SE!$AC$120)/1000 -> 0.516 | E163: =(All!$AH$120-All!$AC$120)/1000 -> -16.339
A166: Table 6.x.2c | B166: Employment changes
A167: ='Table 6.x.2a CD'!A167 -> Rest of manufacturing | E167: 000s
A168: =A$3 -> 1997-2002
A169: Employment by Gender | B169: FT | C169: PT | D169: SE | E169: Total
A170: Male employment | B170: =(MalesFT!$N$148-MalesFT!$I$148)/1000 -> -315.644 | C170: =(MalesPT!$N$148-MalesPT!$I$148)/1000 -> 27.65 | D170: =(MalesSE!$N$148-MalesSE!$I$148)/1000 -> -13.326 | E170: =(Males!$N$148-Males!$I$148)/1000 -> -301.32
A171: Female employment | B171: =(FemalesFT!$N$148-FemalesFT!$I$148)/1000 -> -141.717 | C171: =(FemalesPT!$N$148-FemalesPT!$I$148)/1000 -> -15.586 | D171: =(FemalesSE!$N$148-FemalesSE!$I$148)/1000 -> -8.848 | E171: =(Females!$N$148-Females!$I$148)/1000 -> -166.151
A172: Total employment | B172: =(FT!$N$148-FT!$I$148)/1000 -> -457.361 | C172: =(PT!$N$148-PT!$I$148)/1000 -> 12.064 | D172: =(SE!$N$148-SE!$I$148)/1000 -> -22.174 | E172: =(All!$N$148-All!$I$148)/1000 -> -467.471
A174: =A$9 -> 2002-2007
A175: Employment by Gender | B175: FT | C175: PT | D175: SE | E175: Total
A176: Male employment | B176: =(MalesFT!$S$148-MalesFT!$N$148)/1000 -> -271.254 | C176: =(MalesPT!$S$148-MalesPT!$N$148)/1000 -> -30.158 | D176: =(MalesSE!$S$148-MalesSE!$N$148)/1000 -> -9.285 | E176: =(Males!$S$148-Males!$N$148)/1000 -> -310.697
A177: Female employment | B177: =(FemalesFT!$S$148-FemalesFT!$N$148)/1000 -> -130.502 | C177: =(FemalesPT!$S$148-FemalesPT!$N$148)/1000 -> -37.463 | D177: =(FemalesSE!$S$148-FemalesSE!$N$148)/1000 -> -1.254 | E177: =(Females!$S$148-Females!$N$148)/1000 -> -169.219
A178: Total employment | B178: =(FT!$S$148-FT!$N$148)/1000 -> -401.756 | C178: =(PT!$S$148-PT!$N$148)/1000 -> -67.621 | D178: =(SE!$S$148-SE!$N$148)/1000 -> -10.539 | E178: =(All!$S$148-All!$N$148)/1000 -> -479.916
A180: =A$15 -> 2007-2012
A181: Employment by Gender | B181: FT | C181: PT | D181: SE | E181: Total
A182: Male employment | B182: =(MalesFT!$X$148-MalesFT!$S$148)/1000 -> -148.672 | C182: =(MalesPT!$X$148-MalesPT!$S$148)/1000 -> -2.565 | D182: =(MalesSE!$X$148-MalesSE!$S$148)/1000 -> -11.147 | E182: =(Males!$X$148-Males!$S$148)/1000 -> -162.384
A183: Female employment | B183: =(FemalesFT!$X$148-FemalesFT!$S$148)/1000 -> -66.676 | C183: =(FemalesPT!$X$148-FemalesPT!$S$148)/1000 -> -29.504 | D183: =(FemalesSE!$X$148-FemalesSE!$S$148)/1000 -> 8.127 | E183: =(Females!$X$148-Females!$S$148)/1000 -> -88.053
A184: Total employment | B184: =(FT!$X$148-FT!$S$148)/1000 -> -215.348 | C184: =(PT!$X$148-PT!$S$148)/1000 -> -32.069 | D184: =(SE!$X$148-SE!$S$148)/1000 -> -3.02 | E184: =(All!$X$148-All!$S$148)/1000 -> -250.437
A186: =A$21 -> 2012-2017
A187: Employment by Gender | B187: FT | C187: PT | D187: SE | E187: Total
A188: Male employment | B188: =(MalesFT!$AC$148-MalesFT!$X$148)/1000 -> -67.706 | C188: =(MalesPT!$AC$148-MalesPT!$X$148)/1000 -> 3.738 | D188: =(MalesSE!$AC$148-MalesSE!$X$148)/1000 -> -0.623 | E188: =(Males!$AC$148-Males!$X$148)/1000 -> -64.591
A189: Female employment | B189: =(FemalesFT!$AC$148-FemalesFT!$X$148)/1000 -> -3.615 | C189: =(FemalesPT!$AC$148-FemalesPT!$X$148)/1000 -> 1.812 | D189: =(FemalesSE!$AC$148-FemalesSE!$X$148)/1000 -> -6.065 | E189: =(Females!$AC$148-Females!$X$148)/1000 -> -7.868
A190: Total employment | B190: =(FT!$AC$148-FT!$X$148)/1000 -> -71.321 | C190: =(PT!$AC$148-PT!$X$148)/1000 -> 5.55 | D190: =(SE!$AC$148-SE!$X$148)/1000 -> -6.688 | E190: =(All!$AC$148-All!$X$148)/1000 -> -72.459
A192: =A$27 -> 2017-2022
A193: Employment by Gender | B193: FT | C193: PT | D193: SE | E193: Total
A194: Male employment | B194: =(MalesFT!$AH$148-MalesFT!$AC$148)/1000 -> -85.871 | C194: =(MalesPT!$AH$148-MalesPT!$AC$148)/1000 -> 3.328 | D194: =(MalesSE!$AH$148-MalesSE!$AC$148)/1000 -> -2.858 | E194: =(Males!$AH$148-Males!$AC$148)/1000 -> -85.401
A195: Female employment | B195: =(FemalesFT!$AH$148-FemalesFT!$AC$148)/1000 -> 0.336 | C195: =(FemalesPT!$AH$148-FemalesPT!$AC$148)/1000 -> 2.232 | D195: =(FemalesSE!$AH$148-FemalesSE!$AC$148)/1000 -> -3.823 | E195: =(Females!$AH$148-Females!$AC$148)/1000 -> -1.255
A196: Total employment | B196: =(FT!$AH$148-FT!$AC$148)/1000 -> -85.535 | C196: =(PT!$AH$148-PT!$AC$148)/1000 -> 5.56 | D196: =(SE!$AH$148-SE!$AC$148)/1000 -> -6.681 | E196: =(All!$AH$148-All!$AC$148)/1000 -> -86.656
A199: Table 6.x.2c | B199: Employment changes
A200: ='Table 6.x.2a CD'!A200 -> Electricity and gas | E200: 000s
A201: =A$3 -> 1997-2002
A202: Employment by Gender | B202: FT | C202: PT | D202: SE | E202: Total
A203: Male employment | B203: =(MalesFT!$N$176-MalesFT!$I$176)/1000 -> -13.631 | C203: =(MalesPT!$N$176-MalesPT!$I$176)/1000 -> 0.553 | D203: =(MalesSE!$N$176-MalesSE!$I$176)/1000 -> 0.56 | E203: =(Males!$N$176-Males!$I$176)/1000 -> -12.518
A204: Female employment | B204: =(FemalesFT!$N$176-FemalesFT!$I$176)/1000 -> 2.373 | C204: =(FemalesPT!$N$176-FemalesPT!$I$176)/1000 -> 0.956 | D204: =(FemalesSE!$N$176-FemalesSE!$I$176)/1000 -> 0.456 | E204: =(Females!$N$176-Females!$I$176)/1000 -> 3.785
A205: Total employment | B205: =(FT!$N$176-FT!$I$176)/1000 -> -11.258 | C205: =(PT!$N$176-PT!$I$176)/1000 -> 1.509 | D205: =(SE!$N$176-SE!$I$176)/1000 -> 1.016 | E205: =(All!$N$176-All!$I$176)/1000 -> -8.733
A207: =A$9 -> 2002-2007
A208: Employment by Gender | B208: FT | C208: PT | D208: SE | E208: Total
A209: Male employment | B209: =(MalesFT!$S$176-MalesFT!$N$176)/1000 -> -6.761 | C209: =(MalesPT!$S$176-MalesPT!$N$176)/1000 -> 0.011 | D209: =(MalesSE!$S$176-MalesSE!$N$176)/1000 -> -1.404 | E209: =(Males!$S$176-Males!$N$176)/1000 -> -8.154
A210: Female employment | B210: =(FemalesFT!$S$176-FemalesFT!$N$176)/1000 -> -6.431 | C210: =(FemalesPT!$S$176-FemalesPT!$N$176)/1000 -> 1.112 | D210: =(FemalesSE!$S$176-FemalesSE!$N$176)/1000 -> -0.648 | E210: =(Females!$S$176-Females!$N$176)/1000 -> -5.967
A211: Total employment | B211: =(FT!$S$176-FT!$N$176)/1000 -> -13.192 | C211: =(PT!$S$176-PT!$N$176)/1000 -> 1.123 | D211: =(SE!$S$176-SE!$N$176)/1000 -> -2.052 | E211: =(All!$S$176-All!$N$176)/1000 -> -14.121
A213: =A$15 -> 2007-2012
A214: Employment by Gender | B214: FT | C214: PT | D214: SE | E214: Total
A215: Male employment | B215: =(MalesFT!$X$176-MalesFT!$S$176)/1000 -> 17.7 | C215: =(MalesPT!$X$176-MalesPT!$S$176)/1000 -> 0.993 | D215: =(MalesSE!$X$176-MalesSE!$S$176)/1000 -> 3.876 | E215: =(Males!$X$176-Males!$S$176)/1000 -> 22.569
A216: Female employment | B216: =(FemalesFT!$X$176-FemalesFT!$S$176)/1000 -> 5.185 | C216: =(FemalesPT!$X$176-FemalesPT!$S$176)/1000 -> 3.098 | D216: =(FemalesSE!$X$176-FemalesSE!$S$176)/1000 -> 0.132 | E216: =(Females!$X$176-Females!$S$176)/1000 -> 8.415
A217: Total employment | B217: =(FT!$X$176-FT!$S$176)/1000 -> 22.885 | C217: =(PT!$X$176-PT!$S$176)/1000 -> 4.091 | D217: =(SE!$X$176-SE!$S$176)/1000 -> 4.008 | E217: =(All!$X$176-All!$S$176)/1000 -> 30.984
A219: =A$21 -> 2012-2017
A220: Employment by Gender | B220: FT | C220: PT | D220: SE | E220: Total
A221: Male employment | B221: =(MalesFT!$AC$176-MalesFT!$X$176)/1000 -> 12.565 | C221: =(MalesPT!$AC$176-MalesPT!$X$176)/1000 -> 0.054 | D221: =(MalesSE!$AC$176-MalesSE!$X$176)/1000 -> 0.529 | E221: =(Males!$AC$176-Males!$X$176)/1000 -> 13.148
A222: Female employment | B222: =(FemalesFT!$AC$176-FemalesFT!$X$176)/1000 -> -0.082 | C222: =(FemalesPT!$AC$176-FemalesPT!$X$176)/1000 -> 0.826 | D222: =(FemalesSE!$AC$176-FemalesSE!$X$176)/1000 -> 0.054 | E222: =(Females!$AC$176-Females!$X$176)/1000 -> 0.798
A223: Total employment | B223: =(FT!$AC$176-FT!$X$176)/1000 -> 12.483 | C223: =(PT!$AC$176-PT!$X$176)/1000 -> 0.88 | D223: =(SE!$AC$176-SE!$X$176)/1000 -> 0.583 | E223: =(All!$AC$176-All!$X$176)/1000 -> 13.946
A225: =A$27 -> 2017-2022
A226: Employment by Gender | B226: FT | C226: PT | D226: SE | E226: Total
A227: Male employment | B227: =(MalesFT!$AH$176-MalesFT!$AC$176)/1000 -> 6.77 | C227: =(MalesPT!$AH$176-MalesPT!$AC$176)/1000 -> -0.165 | D227: =(MalesSE!$AH$176-MalesSE!$AC$176)/1000 -> 0.147 | E227: =(Males!$AH$176-Males!$AC$176)/1000 -> 6.752
A228: Female employment | B228: =(FemalesFT!$AH$176-FemalesFT!$AC$176)/1000 -> -2.638 | C228: =(FemalesPT!$AH$176-FemalesPT!$AC$176)/1000 -> 0.197 | D228: =(FemalesSE!$AH$176-FemalesSE!$AC$176)/1000 -> 0.024 | E228: =(Females!$AH$176-Females!$AC$176)/1000 -> -2.417
A229: Total employment | B229: =(FT!$AH$176-FT!$AC$176)/1000 -> 4.132 | C229: =(PT!$AH$176-PT!$AC$176)/1000 -> 0.032 | D229: =(SE!$AH$176-SE!$AC$176)/1000 -> 0.171 | E229: =(All!$AH$176-All!$AC$176)/1000 -> 4.335
A232: Table 6.x.2c | B232: Employment changes
A233: ='Table 6.x.2a CD'!A233 -> Water and sewerage | E233: 000s
A234: =A$3 -> 1997-2002
A235: Employment by Gender | B235: FT | C235: PT | D235: SE | E235: Total
A236: Male employment | B236: =(MalesFT!$N$204-MalesFT!$I$204)/1000 -> -10.005 | C236: =(MalesPT!$N$204-MalesPT!$I$204)/1000 -> 4.28 | D236: =(MalesSE!$N$204-MalesSE!$I$204)/1000 -> -2.428 | E236: =(Males!$N$204-Males!$I$204)/1000 -> -8.153
A237: Female employment | B237: =(FemalesFT!$N$204-FemalesFT!$I$204)/1000 -> -0.951 | C237: =(FemalesPT!$N$204-FemalesPT!$I$204)/1000 -> 15.085 | D237: =(FemalesSE!$N$204-FemalesSE!$I$204)/1000 -> -0.667 | E237: =(Females!$N$204-Females!$I$204)/1000 -> 13.467
A238: Total employment | B238: =(FT!$N$204-FT!$I$204)/1000 -> -10.956 | C238: =(PT!$N$204-PT!$I$204)/1000 -> 19.365 | D238: =(SE!$N$204-SE!$I$204)/1000 -> -3.095 | E238: =(All!$N$204-All!$I$204)/1000 -> 5.314
A240: =A$9 -> 2002-2007
A241: Employment by Gender | B241: FT | C241: PT | D241: SE | E241: Total
A242: Male employment | B242: =(MalesFT!$S$204-MalesFT!$N$204)/1000 -> 26.594 | C242: =(MalesPT!$S$204-MalesPT!$N$204)/1000 -> -5.768 | D242: =(MalesSE!$S$204-MalesSE!$N$204)/1000 -> 2.144 | E242: =(Males!$S$204-Males!$N$204)/1000 -> 22.97
A243: Female employment | B243: =(FemalesFT!$S$204-FemalesFT!$N$204)/1000 -> -7.01 | C243: =(FemalesPT!$S$204-FemalesPT!$N$204)/1000 -> -20.903 | D243: =(FemalesSE!$S$204-FemalesSE!$N$204)/1000 -> 0.923 | E243: =(Females!$S$204-Females!$N$204)/1000 -> -26.99
... 265 more rows

Sheet Figure 6.x.7
N2: Graph titles - do not remove:-
N3: Employment levels by gender and status,
N4: =CONCATENATE(N3,'Table 6.x.2a CD'!A3,"-",'Table 6.x.2a CD'!A27) -> Employment levels by gender and status, 2002-2022
N6: =CONCATENATE($N$4,CHAR(13),names!$A$3) -> Employment levels by gender and status, 2002-2022 All industries
N28: =CONCATENATE($N$4,CHAR(13),names!$A$4) -> Employment levels by gender and status, 2002-2022 Agriculture
N50: =CONCATENATE($N$4,CHAR(13),names!$A$5) -> Employment levels by gender and status, 2002-2022 Mining and quarrying
N72: =CONCATENATE($N$4,CHAR(13),names!$A$6) -> Employment levels by gender and status, 2002-2022 Food drink and tobacco
N94: =CONCATENATE($N$4,CHAR(13),names!$A$7) -> Employment levels by gender and status, 2002-2022 Engineering
N116: =CONCATENATE($N$4,CHAR(13),names!$A$8) -> Employment levels by gender and status, 2002-2022 Rest of manufacturing
N138: =CONCATENATE($N$4,CHAR(13),names!$A$9) -> Employment levels by gender and status, 2002-2022 Electricity and gas
N160: =CONCATENATE($N$4,CHAR(13),names!$A$10) -> Employment levels by gender and status, 2002-2022 Water and sewerage
N182: =CONCATENATE($N$4,CHAR(13),names!$A$11) -> Employment levels by gender and status, 2002-2022 Construction
N204: =CONCATENATE($N$4,CHAR(13),names!$A$12) -> Employment levels by gender and status, 2002-2022 Wholesale and retail trade
N226: =CONCATENATE($N$4,CHAR(13),names!$A$13) -> Employment levels by gender and status, 2002-2022 Transport and storage
N248: =CONCATENATE($N$4,CHAR(13),names!$A$14) -> Employment levels by gender and status, 2002-2022 Accommodation and food
N270: =CONCATENATE($N$4,CHAR(13),names!$A$15) -> Employment levels by gender and status, 2002-2022 Media
N292: =CONCATENATE($N$4,CHAR(13),names!$A$16) -> Employment levels by gender and status, 2002-2022 Information technology
N314: =CONCATENATE($N$4,CHAR(13),names!$A$17) -> Employment levels by gender and status, 2002-2022 Finance and insurance
N336: =CONCATENATE($N$4,CHAR(13),names!$A$18) -> Employment levels by gender and status, 2002-2022 Real estate
N358: =CONCATENATE($N$4,CHAR(13),names!$A$19) -> Employment levels by gender and status, 2002-2022 Professional services
N380: =CONCATENATE($N$4,CHAR(13),names!$A$20) -> Employment levels by gender and status, 2002-2022 Support services
N402: =CONCATENATE($N$4,CHAR(13),names!$A$21) -> Employment levels by gender and status, 2002-2022 Public admin. and defence
N424: =CONCATENATE($N$4,CHAR(13),names!$A$22) -> Employment levels by gender and status, 2002-2022 Education
N446: =CONCATENATE($N$4,CHAR(13),names!$A$23) -> Employment levels by gender and status, 2002-2022 Health and social work
N468: =CONCATENATE($N$4,CHAR(13),names!$A$24) -> Employment levels by gender and status, 2002-2022 Arts and entertainment
N489: =CONCATENATE($N$4,CHAR(13),names!$A$25) -> Employment levels by gender and status, 2002-2022 Other services

Sheet Figure 6.x.8
C7: Do NOT remove.
C8: ="Employment shares by gender and status, "&'Table 6.x.2b CD'!A3&"-"&'Table 6.x.2b CD'!A27 -> Employment shares by gender and status, 2002-2022

Sheet Figure 6.x.9
C7: Do NOT remove
C8: =CONCATENATE("Employment changes by gender and status, ",All!I7,"-",'Table 6.x.2b CD'!A27) -> Employment changes by gender and status, 1997-2022

Sheet Figure 6.x.10
P1: ="Occupational Composition, "&P2&", "&Q2&"-"&U2 -> Occupational Composition, All industries, 2002-2022
P2: =names!A3 -> All industries | Q2: =All!N7 -> 2002 | R2: =All!S7 -> 2007 | S2: =All!X7 -> 2012 | T2: =All!AC7 -> 2017 | U2: =All!AH7 -> 2022
P3: =names!B4 -> Managers, directors and senior officials | Q3: =(All!N9+All!N10)/1000 -> 2710.074315 | R3: =(All!S9+All!S10)/1000 -> 3012.831987 | S3: =(All!X9+All!X10)/1000 -> 3303.377616 | T3: =(All!AC9+All!AC10)/1000 -> 3571.415726 | U3: =(All!AH9+All!AH10)/1000 -> 3889.446197
P4: =names!B5 -> Professional occupations | Q4: =(All!N11+All!N12+All!N13+All!N14)/1000 -> 4996.515288 | R4: =(All!S11+All!S12+All!S13+All!S14)/1000 -> 5697.741616 | S4: =(All!X11+All!X12+All!X13+All!X14)/1000 -> 6269.72287 | T4: =(All!AC11+All!AC12+All!AC13+All!AC14)/1000 -> 6916.931048 | U4: =(All!AH11+All!AH12+All!AH13+All!AH14)/1000 -> 7444.459092
P5: =names!B6 -> Associate professional and technical | Q5: =(All!N15+All!N16+All!N17+All!N18+All!N19)/1000 -> 3704.134329 | R5: =(All!S15+All!S16+All!S17+All!S18+All!S19)/1000 -> 4096.060104 | S5: =(All!X15+All!X16+All!X17+All!X18+All!X19)/1000 -> 4181.640675 | T5: =(All!AC15+All!AC16+All!AC17+All!AC18+All!AC19)/1000 -> 4452.432366 | U5: =(All!AH15+All!AH16+All!AH17+All!AH18+All!AH19)/1000 -> 4764.480444
P6: =names!B7 -> Administrative and secretarial | Q6: =(All!N20+All!N21)/1000 -> 4208.478503 | R6: =(All!S20+All!S21)/1000 -> 4120.604301 | S6: =(All!X20+All!X21)/1000 -> 3755.776497 | T6: =(All!AC20+All!AC21)/1000 -> 3490.289253 | U6: =(All!AH20+All!AH21)/1000 -> 3269.670585
P7: =names!B8 -> Skilled trades occupations | Q7: =(All!N22+All!N23+All!N24+All!N25)/1000 -> 3746.595523 | R7: =(All!S22+All!S23+All!S24+All!S25)/1000 -> 3714.1825 | S7: =(All!X22+All!X23+All!X24+All!X25)/1000 -> 3522.39955 | T7: =(All!AC22+All!AC23+All!AC24+All!AC25)/1000 -> 3327.257302 | U7: =(All!AH22+All!AH23+All!AH24+All!AH25)/1000 -> 3216.287549
P8: =names!B9 -> Caring, leisure and other service | Q8: =(All!N26+All!N27)/1000 -> 2271.27721 | R8: =(All!S26+All!S27)/1000 -> 2561.084421 | S8: =(All!X26+All!X27)/1000 -> 2858.773224 | T8: =(All!AC26+All!AC27)/1000 -> 3188.589967 | U8: =(All!AH26+All!AH27)/1000 -> 3507.975082
P9: =names!B10 -> Sales and customer service | Q9: =(All!N28+All!N29)/1000 -> 2579.254696 | R9: =(All!S28+All!S29)/1000 -> 2686.684935 | S9: =(All!X28+All!X29)/1000 -> 2697.596216 | T9: =(All!AC28+All!AC29)/1000 -> 2621.507128 | U9: =(All!AH28+All!AH29)/1000 -> 2633.393197
P10: =names!B11 -> Process, plant and machine operatives | Q10: =(All!N30+All!N31)/1000 -> 2166.591314 | R10: =(All!S30+All!S31)/1000 -> 2108.662781 | S10: =(All!X30+All!X31)/1000 -> 1989.073923 | T10: =(All!AC30+All!AC31)/1000 -> 1858.771704 | U10: =(All!AH30+All!AH31)/1000 -> 1774.858096
P11: =names!B12 -> Elementary occupations | Q11: =(All!N32+All!N33)/1000 -> 3586.068822 | R11: =(All!S32+All!S33)/1000 -> 3629.120354 | S11: =(All!X32+All!X33)/1000 -> 3347.627429 | T11: =(All!AC32+All!AC33)/1000 -> 3202.384509 | U11: =(All!AH32+All!AH33)/1000 -> 3280.228756
P29: ="Occupational Composition, "&P30&", "&Q30&"-"&U30 -> Occupational Composition, Agriculture, 2002-2022
P30: =names!A4 -> Agriculture | Q30: =Q$2 -> 2002 | R30: =R$2 -> 2007 | S30: =S$2 -> 2012 | T30: =T$2 -> 2017 | U30: =U$2 -> 2022
P31: =P$3 -> Managers, directors and senior officials | Q31: =(All!N37+All!N38)/1000 -> 29.324888 | R31: =(All!S37+All!S38)/1000 -> 25.76729 | S31: =(All!X37+All!X38)/1000 -> 32.239909 | T31: =(All!AC37+All!AC38)/1000 -> 28.177121 | U31: =(All!AH37+All!AH38)/1000 -> 28.003295
P32: =P$4 -> Professional occupations | Q32: =(All!N39+All!N40+All!N41+All!N42)/1000 -> 17.423104 | R32: =(All!S39+All!S40+All!S41+All!S42)/1000 -> 16.838594 | S32: =(All!X39+All!X40+All!X41+All!X42)/1000 -> 17.937656 | T32: =(All!AC39+All!AC40+All!AC41+All!AC42)/1000 -> 18.153481 | U32: =(All!AH39+All!AH40+All!AH41+All!AH42)/1000 -> 20.527431
P33: =P$5 -> Associate professional and technical | Q33: =(All!N43+All!N44+All!N45+All!N46+All!N47)/1000 -> 10.026508 | R33: =(All!S43+All!S44+All!S45+All!S46+All!S47)/1000 -> 10.775084 | S33: =(All!X43+All!X44+All!X45+All!X46+All!X47)/1000 -> 12.720397 | T33: =(All!AC43+All!AC44+All!AC45+All!AC46+All!AC47)/1000 -> 12.304071 | U33: =(All!AH43+All!AH44+All!AH45+All!AH46+All!AH47)/1000 -> 13.494913
P34: =P$6 -> Administrative and secretarial | Q34: =(All!N48+All!N49)/1000 -> 19.383488 | R34: =(All!S48+All!S49)/1000 -> 19.550084 | S34: =(All!X48+All!X49)/1000 -> 20.692249 | T34: =(All!AC48+All!AC49)/1000 -> 17.263633 | U34: =(All!AH48+All!AH49)/1000 -> 16.582394
P35: =P$7 -> Skilled trades occupations | Q35: =(All!N50+All!N51+All!N52+All!N53)/1000 -> 166.963968 | R35: =(All!S50+All!S51+All!S52+All!S53)/1000 -> 198.338963 | S35: =(All!X50+All!X51+All!X52+All!X53)/1000 -> 245.254686 | T35: =(All!AC50+All!AC51+All!AC52+All!AC53)/1000 -> 201.771544 | U35: =(All!AH50+All!AH51+All!AH52+All!AH53)/1000 -> 192.892532
P36: =P$8 -> Caring, leisure and other service | Q36: =(All!N54+All!N55)/1000 -> 18.001695 | R36: =(All!S54+All!S55)/1000 -> 14.871372 | S36: =(All!X54+All!X55)/1000 -> 15.844893 | T36: =(All!AC54+All!AC55)/1000 -> 16.516972 | U36: =(All!AH54+All!AH55)/1000 -> 18.223471
P37: =P$9 -> Sales and customer service | Q37: =(All!N56+All!N57)/1000 -> 4.866925 | R37: =(All!S56+All!S57)/1000 -> 4.707298 | S37: =(All!X56+All!X57)/1000 -> 4.939385 | T37: =(All!AC56+All!AC57)/1000 -> 4.148836 | U37: =(All!AH56+All!AH57)/1000 -> 4.096936
P38: =P$10 -> Process, plant and machine operatives | Q38: =(All!N58+All!N59)/1000 -> 21.957702 | R38: =(All!S58+All!S59)/1000 -> 22.037971 | S38: =(All!X58+All!X59)/1000 -> 17.336905 | T38: =(All!AC58+All!AC59)/1000 -> 13.480784 | U38: =(All!AH58+All!AH59)/1000 -> 11.891547
P39: =P$11 -> Elementary occupations | Q39: =(All!N60+All!N61)/1000 -> 77.749724 | R39: =(All!S60+All!S61)/1000 -> 63.965345 | S39: =(All!X60+All!X61)/1000 -> 60.847921 | T39: =(All!AC60+All!AC61)/1000 -> 48.302556 | U39: =(All!AH60+All!AH61)/1000 -> 44.408479
P57: ="Occupational Composition, "&P58&", "&Q58&"-"&U58 -> Occupational Composition, Mining and quarrying, 2002-2022
P58: =names!A5 -> Mining and quarrying | Q58: =Q$2 -> 2002 | R58: =R$2 -> 2007 | S58: =S$2 -> 2012 | T58: =T$2 -> 2017 | U58: =U$2 -> 2022
P59: =P$3 -> Managers, directors and senior officials | Q59: =(All!N65+All!N66)/1000 -> 5.493658 | R59: =(All!S65+All!S66)/1000 -> 7.109124 | S59: =(All!X65+All!X66)/1000 -> 8.406779 | T59: =(All!AC65+All!AC66)/1000 -> 8.173513 | U59: =(All!AH65+All!AH66)/1000 -> 8.40091
P60: =P$4 -> Professional occupations | Q60: =(All!N67+All!N68+All!N69+All!N70)/1000 -> 11.536201 | R60: =(All!S67+All!S68+All!S69+All!S70)/1000 -> 12.68902 | S60: =(All!X67+All!X68+All!X69+All!X70)/1000 -> 14.882349 | T60: =(All!AC67+All!AC68+All!AC69+All!AC70)/1000 -> 14.148162 | U60: =(All!AH67+All!AH68+All!AH69+All!AH70)/1000 -> 14.278586
P61: =P$5 -> Associate professional and technical | Q61: =(All!N71+All!N72+All!N73+All!N74+All!N75)/1000 -> 10.079887 | R61: =(All!S71+All!S72+All!S73+All!S74+All!S75)/1000 -> 9.439497 | S61: =(All!X71+All!X72+All!X73+All!X74+All!X75)/1000 -> 10.399493 | T61: =(All!AC71+All!AC72+All!AC73+All!AC74+All!AC75)/1000 -> 9.599831 | U61: =(All!AH71+All!AH72+All!AH73+All!AH74+All!AH75)/1000 -> 9.565553
P62: =P$6 -> Administrative and secretarial | Q62: =(All!N76+All!N77)/1000 -> 6.264244 | R62: =(All!S76+All!S77)/1000 -> 6.210934 | S62: =(All!X76+All!X77)/1000 -> 5.923285 | T62: =(All!AC76+All!AC77)/1000 -> 5.097711 | U62: =(All!AH76+All!AH77)/1000 -> 4.57533
P63: =P$7 -> Skilled trades occupations | Q63: =(All!N78+All!N79+All!N80+All!N81)/1000 -> 12.57808 | R63: =(All!S78+All!S79+All!S80+All!S81)/1000 -> 12.027461 | S63: =(All!X78+All!X79+All!X80+All!X81)/1000 -> 13.438113 | T63: =(All!AC78+All!AC79+All!AC80+All!AC81)/1000 -> 11.459963 | U63: =(All!AH78+All!AH79+All!AH80+All!AH81)/1000 -> 10.392691
P64: =P$8 -> Caring, leisure and other service | Q64: =(All!N82+All!N83)/1000 -> 1.108859 | R64: =(All!S82+All!S83)/1000 -> 0.857302 | S64: =(All!X82+All!X83)/1000 -> 1.162123 | T64: =(All!AC82+All!AC83)/1000 -> 1.252093 | U64: =(All!AH82+All!AH83)/1000 -> 1.326468
P65: =P$9 -> Sales and customer service | Q65: =(All!N84+All!N85)/1000 -> 1.427575 | R65: =(All!S84+All!S85)/1000 -> 1.555772 | S65: =(All!X84+All!X85)/1000 -> 1.688997 | T65: =(All!AC84+All!AC85)/1000 -> 1.514578 | U65: =(All!AH84+All!AH85)/1000 -> 1.48726
P66: =P$10 -> Process, plant and machine operatives | Q66: =(All!N86+All!N87)/1000 -> 18.352655 | R66: =(All!S86+All!S87)/1000 -> 16.057369 | S66: =(All!X86+All!X87)/1000 -> 14.473385 | T66: =(All!AC86+All!AC87)/1000 -> 12.414537 | U66: =(All!AH86+All!AH87)/1000 -> 11.344128
P67: =P$11 -> Elementary occupations | Q67: =(All!N88+All!N89)/1000 -> 2.402842 | R67: =(All!S88+All!S89)/1000 -> 2.373522 | S67: =(All!X88+All!X89)/1000 -> 2.802477 | T67: =(All!AC88+All!AC89)/1000 -> 2.81461 | U67: =(All!AH88+All!AH89)/1000 -> 2.813073
P84: ="Occupational Composition, "&P85&", "&Q85&"-"&U85 -> Occupational Composition, Food drink and tobacco, 2002-2022
P85: =names!A6 -> Food drink and tobacco | Q85: =Q$2 -> 2002 | R85: =R$2 -> 2007 | S85: =S$2 -> 2012 | T85: =T$2 -> 2017 | U85: =U$2 -> 2022
P86: =P$3 -> Managers, directors and senior officials | Q86: =(All!N93+All!N94)/1000 -> 33.267028 | R86: =(All!S93+All!S94)/1000 -> 39.854101 | S86: =(All!X93+All!X94)/1000 -> 34.64148 | T86: =(All!AC93+All!AC94)/1000 -> 39.342784 | U86: =(All!AH93+All!AH94)/1000 -> 42.079838
P87: =P$4 -> Professional occupations | Q87: =(All!N95+All!N96+All!N97+All!N98)/1000 -> 28.948774 | R87: =(All!S95+All!S96+All!S97+All!S98)/1000 -> 31.73025 | S87: =(All!X95+All!X96+All!X97+All!X98)/1000 -> 24.667352 | T87: =(All!AC95+All!AC96+All!AC97+All!AC98)/1000 -> 28.351868 | U87: =(All!AH95+All!AH96+All!AH97+All!AH98)/1000 -> 30.046848
P88: =P$5 -> Associate professional and technical | Q88: =(All!N99+All!N100+All!N101+All!N102+All!N103)/1000 -> 43.811863 | R88: =(All!S99+All!S100+All!S101+All!S102+All!S103)/1000 -> 36.721252 | S88: =(All!X99+All!X100+All!X101+All!X102+All!X103)/1000 -> 43.238162 | T88: =(All!AC99+All!AC100+All!AC101+All!AC102+All!AC103)/1000 -> 47.0829 | U88: =(All!AH99+All!AH100+All!AH101+All!AH102+All!AH103)/1000 -> 48.418865
P89: =P$6 -> Administrative and secretarial | Q89: =(All!N104+All!N105)/1000 -> 33.804199 | R89: =(All!S104+All!S105)/1000 -> 29.854795 | S89: =(All!X104+All!X105)/1000 -> 30.719052 | T89: =(All!AC104+All!AC105)/1000 -> 31.711259 | U89: =(All!AH104+All!AH105)/1000 -> 30.166558
P90: =P$7 -> Skilled trades occupations | Q90: =(All!N106+All!N107+All!N108+All!N109)/1000 -> 80.82717 | R90: =(All!S106+All!S107+All!S108+All!S109)/1000 -> 70.160691 | S90: =(All!X106+All!X107+All!X108+All!X109)/1000 -> 59.959008 | T90: =(All!AC106+All!AC107+All!AC108+All!AC109)/1000 -> 52.408915 | U90: =(All!AH106+All!AH107+All!AH108+All!AH109)/1000 -> 44.984114
P91: =P$8 -> Caring, leisure and other service | Q91: =(All!N110+All!N111)/1000 -> 3.114048 | R91: =(All!S110+All!S111)/1000 -> 2.967233 | S91: =(All!X110+All!X111)/1000 -> 3.09012 | T91: =(All!AC110+All!AC111)/1000 -> 3.726344 | U91: =(All!AH110+All!AH111)/1000 -> 4.048879
P92: =P$9 -> Sales and customer service | Q92: =(All!N112+All!N113)/1000 -> 15.400881 | R92: =(All!S112+All!S113)/1000 -> 13.286703 | S92: =(All!X112+All!X113)/1000 -> 16.466746 | T92: =(All!AC112+All!AC113)/1000 -> 17.37744 | U92: =(All!AH112+All!AH113)/1000 -> 17.435405
P93: =P$10 -> Process, plant and machine operatives | Q93: =(All!N114+All!N115)/1000 -> 167.700323 | R93: =(All!S114+All!S115)/1000 -> 150.590114 | S93: =(All!X114+All!X115)/1000 -> 130.105256 | T93: =(All!AC114+All!AC115)/1000 -> 117.029861 | U93: =(All!AH114+All!AH115)/1000 -> 99.449869
P94: =P$11 -> Elementary occupations | Q94: =(All!N116+All!N117)/1000 -> 69.851713 | R94: =(All!S116+All!S117)/1000 -> 58.361862 | S94: =(All!X116+All!X117)/1000 -> 72.824826 | T94: =(All!AC116+All!AC117)/1000 -> 72.763627 | U94: =(All!AH116+All!AH117)/1000 -> 72.114623
P112: ="Occupational Composition, "&P113&", "&Q113&"-"&U113 -> Occupational Composition, Engineering, 2002-2022
P113: =names!A7 -> Engineering | Q113: =Q$2 -> 2002 | R113: =R$2 -> 2007 | S113: =S$2 -> 2012 | T113: =T$2 -> 2017 | U113: =U$2 -> 2022
P114: =P$3 -> Managers, directors and senior officials | Q114: =(All!N121+All!N122)/1000 -> 65.782403 | R114: =(All!S121+All!S122)/1000 -> 58.064843 | S114: =(All!X121+All!X122)/1000 -> 58.055484 | T114: =(All!AC121+All!AC122)/1000 -> 58.485231 | U114: =(All!AH121+All!AH122)/1000 -> 59.956852
P115: =P$4 -> Professional occupations | Q115: =(All!N123+All!N124+All!N125+All!N126)/1000 -> 98.089727 | R115: =(All!S123+All!S124+All!S125+All!S126)/1000 -> 87.438573 | S115: =(All!X123+All!X124+All!X125+All!X126)/1000 -> 82.830956 | T115: =(All!AC123+All!AC124+All!AC125+All!AC126)/1000 -> 84.268926 | U115: =(All!AH123+All!AH124+All!AH125+All!AH126)/1000 -> 84.740932
P116: =P$5 -> Associate professional and technical | Q116: =(All!N127+All!N128+All!N129+All!N130+All!N131)/1000 -> 83.005674 | R116: =(All!S127+All!S128+All!S129+All!S130+All!S131)/1000 -> 69.823862 | S116: =(All!X127+All!X128+All!X129+All!X130+All!X131)/1000 -> 59.141493 | T116: =(All!AC127+All!AC128+All!AC129+All!AC130+All!AC131)/1000 -> 58.495486 | U116: =(All!AH127+All!AH128+All!AH129+All!AH130+All!AH131)/1000 -> 58.720869
P117: =P$6 -> Administrative and secretarial | Q117: =(All!N132+All!N133)/1000 -> 54.769598 | R117: =(All!S132+All!S133)/1000 -> 40.296041 | S117: =(All!X132+All!X133)/1000 -> 32.550454 | T117: =(All!AC132+All!AC133)/1000 -> 30.58186 | U117: =(All!AH132+All!AH133)/1000 -> 29.318866
P118: =P$7 -> Skilled trades occupations | Q118: =(All!N134+All!N135+All!N136+All!N137)/1000 -> 164.808241 | R118: =(All!S134+All!S135+All!S136+All!S137)/1000 -> 124.519213 | S118: =(All!X134+All!X135+All!X136+All!X137)/1000 -> 107.651425 | T118: =(All!AC134+All!AC135+All!AC136+All!AC137)/1000 -> 94.640791 | U118: =(All!AH134+All!AH135+All!AH136+All!AH137)/1000 -> 85.133455
P119: =P$8 -> Caring, leisure and other service | Q119: =(All!N138+All!N139)/1000 -> 4.883004 | R119: =(All!S138+All!S139)/1000 -> 4.49767 | S119: =(All!X138+All!X139)/1000 -> 3.563194 | T119: =(All!AC138+All!AC139)/1000 -> 4.050687 | U119: =(All!AH138+All!AH139)/1000 -> 4.481117
P120: =P$9 -> Sales and customer service | Q120: =(All!N140+All!N141)/1000 -> 13.429116 | R120: =(All!S140+All!S141)/1000 -> 11.867552 | S120: =(All!X140+All!X141)/1000 -> 12.844623 | T120: =(All!AC140+All!AC141)/1000 -> 12.863554 | U120: =(All!AH140+All!AH141)/1000 -> 13.362067
P121: =P$10 -> Process, plant and machine operatives | Q121: =(All!N142+All!N143)/1000 -> 107.800639 | R121: =(All!S142+All!S143)/1000 -> 75.995682 | S121: =(All!X142+All!X143)/1000 -> 54.237633 | T121: =(All!AC142+All!AC143)/1000 -> 44.498382 | U121: =(All!AH142+All!AH143)/1000 -> 36.601777
P122: =P$11 -> Elementary occupations | Q122: =(All!N144+All!N145)/1000 -> 28.019595 | R122: =(All!S144+All!S145)/1000 -> 23.955564 | S122: =(All!X144+All!X145)/1000 -> 19.870737 | T122: =(All!AC144+All!AC145)/1000 -> 17.597087 | U122: =(All!AH144+All!AH145)/1000 -> 16.827064
P140: ="Occupational Composition, "&P141&", "&Q141&"-"&U141 -> Occupational Composition, Rest of manufacturing, 2002-2022
P141: =names!A8 -> Rest of manufacturing | Q141: =Q$2 -> 2002 | R141: =R$2 -> 2007 | S141: =S$2 -> 2012 | T141: =T$2 -> 2017 | U141: =U$2 -> 2022
P142: =P$3 -> Managers, directors and senior officials | Q142: =(All!N149+All!N150)/1000 -> 240.557356 | R142: =(All!S149+All!S150)/1000 -> 212.877371 | S142: =(All!X149+All!X150)/1000 -> 196.927137 | T142: =(All!AC149+All!AC150)/1000 -> 205.630205 | U142: =(All!AH149+All!AH150)/1000 -> 211.550739
P143: =P$4 -> Professional occupations | Q143: =(All!N151+All!N152+All!N153+All!N154)/1000 -> 255.717339 | R143: =(All!S151+All!S152+All!S153+All!S154)/1000 -> 247.542431 | S143: =(All!X151+All!X152+All!X153+All!X154)/1000 -> 241.044177 | T143: =(All!AC151+All!AC152+All!AC153+All!AC154)/1000 -> 259.131533 | U143: =(All!AH151+All!AH152+All!AH153+All!AH154)/1000 -> 265.417257
P144: =P$5 -> Associate professional and technical | Q144: =(All!N155+All!N156+All!N157+All!N158+All!N159)/1000 -> 293.742753 | R144: =(All!S155+All!S156+All!S157+All!S158+All!S159)/1000 -> 246.334962 | S144: =(All!X155+All!X156+All!X157+All!X158+All!X159)/1000 -> 211.177063 | T144: =(All!AC155+All!AC156+All!AC157+All!AC158+All!AC159)/1000 -> 217.087208 | U144: =(All!AH155+All!AH156+All!AH157+All!AH158+All!AH159)/1000 -> 219.441188
P145: =P$6 -> Administrative and secretarial | Q145: =(All!N160+All!N161)/1000 -> 224.103259 | R145: =(All!S160+All!S161)/1000 -> 172.488631 | S145: =(All!X160+All!X161)/1000 -> 138.013603 | T145: =(All!AC160+All!AC161)/1000 -> 130.793289 | U145: =(All!AH160+All!AH161)/1000 -> 123.525744
P146: =P$7 -> Skilled trades occupations | Q146: =(All!N162+All!N163+All!N164+All!N165)/1000 -> 701.906076 | R146: =(All!S162+All!S163+All!S164+All!S165)/1000 -> 565.209974 | S146: =(All!X162+All!X163+All!X164+All!X165)/1000 -> 507.050773 | T146: =(All!AC162+All!AC163+All!AC164+All!AC165)/1000 -> 465.935312 | U146: =(All!AH162+All!AH163+All!AH164+All!AH165)/1000 -> 417.019864
P147: =P$8 -> Caring, leisure and other service | Q147: =(All!N166+All!N167)/1000 -> 21.049608 | R147: =(All!S166+All!S167)/1000 -> 18.923372 | S147: =(All!X166+All!X167)/1000 -> 16.908511 | T147: =(All!AC166+All!AC167)/1000 -> 20.036138 | U147: =(All!AH166+All!AH167)/1000 -> 21.906193
P148: =P$9 -> Sales and customer service | Q148: =(All!N168+All!N169)/1000 -> 63.974037 | R148: =(All!S168+All!S169)/1000 -> 51.731197 | S148: =(All!X168+All!X169)/1000 -> 50.810434 | T148: =(All!AC168+All!AC169)/1000 -> 49.011553 | U148: =(All!AH168+All!AH169)/1000 -> 49.035241
P149: =P$10 -> Process, plant and machine operatives | Q149: =(All!N170+All!N171)/1000 -> 547.558487 | R149: =(All!S170+All!S171)/1000 -> 399.197582 | S149: =(All!X170+All!X171)/1000 -> 316.204052 | T149: =(All!AC170+All!AC171)/1000 -> 270.963732 | U149: =(All!AH170+All!AH171)/1000 -> 230.549489
P150: =P$11 -> Elementary occupations | Q150: =(All!N172+All!N173)/1000 -> 180.929083 | R150: =(All!S172+All!S173)/1000 -> 135.316479 | S150: =(All!X172+All!X173)/1000 -> 121.049247 | T150: =(All!AC172+All!AC173)/1000 -> 108.13703 | U150: =(All!AH172+All!AH173)/1000 -> 101.624285
P168: ="Occupational Composition, "&P169&", "&Q169&"-"&U169 -> Occupational Composition, Electricity and gas, 2002-2022
P169: =names!A9 -> Electricity and gas | Q169: =Q$2 -> 2002 | R169: =R$2 -> 2007 | S169: =S$2 -> 2012 | T169: =T$2 -> 2017 | U169: =U$2 -> 2022
P170: =P$3 -> Managers, directors and senior officials | Q170: =(All!N177+All!N178)/1000 -> 7.837649 | R170: =(All!S177+All!S178)/1000 -> 8.636512 | S170: =(All!X177+All!X178)/1000 -> 12.580852 | T170: =(All!AC177+All!AC178)/1000 -> 15.084683 | U170: =(All!AH177+All!AH178)/1000 -> 16.564067
P171: =P$4 -> Professional occupations | Q171: =(All!N179+All!N180+All!N181+All!N182)/1000 -> 17.644612 | R171: =(All!S179+All!S180+All!S181+All!S182)/1000 -> 18.226271 | S171: =(All!X179+All!X180+All!X181+All!X182)/1000 -> 24.36663 | T171: =(All!AC179+All!AC180+All!AC181+All!AC182)/1000 -> 29.783169 | U171: =(All!AH179+All!AH180+All!AH181+All!AH182)/1000 -> 32.540617
P172: =P$5 -> Associate professional and technical | Q172: =(All!N183+All!N184+All!N185+All!N186+All!N187)/1000 -> 13.142798 | R172: =(All!S183+All!S184+All!S185+All!S186+All!S187)/1000 -> 11.164023 | S172: =(All!X183+All!X184+All!X185+All!X186+All!X187)/1000 -> 16.925351 | T172: =(All!AC183+All!AC184+All!AC185+All!AC186+All!AC187)/1000 -> 19.69749 | U172: =(All!AH183+All!AH184+All!AH185+All!AH186+All!AH187)/1000 -> 20.968729
P173: =P$6 -> Administrative and secretarial | Q173: =(All!N188+All!N189)/1000 -> 12.994398 | R173: =(All!S188+All!S189)/1000 -> 9.917259 | S173: =(All!X188+All!X189)/1000 -> 12.919239 | T173: =(All!AC188+All!AC189)/1000 -> 12.594839 | U173: =(All!AH188+All!AH189)/1000 -> 11.340903
P174: =P$7 -> Skilled trades occupations | Q174: =(All!N190+All!N191+All!N192+All!N193)/1000 -> 22.596542 | R174: =(All!S190+All!S191+All!S192+All!S193)/1000 -> 18.412758 | S174: =(All!X190+All!X191+All!X192+All!X193)/1000 -> 24.011492 | T174: =(All!AC190+All!AC191+All!AC192+All!AC193)/1000 -> 25.665235 | U174: =(All!AH190+All!AH191+All!AH192+All!AH193)/1000 -> 25.588844
P175: =P$8 -> Caring, leisure and other service | Q175: =(All!N194+All!N195)/1000 -> 1.977739 | R175: =(All!S194+All!S195)/1000 -> 1.665815 | S175: =(All!X194+All!X195)/1000 -> 2.321009 | T175: =(All!AC194+All!AC195)/1000 -> 2.732884 | U175: =(All!AH194+All!AH195)/1000 -> 2.837474
P176: =P$9 -> Sales and customer service | Q176: =(All!N196+All!N197)/1000 -> 14.905299 | R176: =(All!S196+All!S197)/1000 -> 11.912411 | S176: =(All!X196+All!X197)/1000 -> 14.82916 | T176: =(All!AC196+All!AC197)/1000 -> 16.021852 | U176: =(All!AH196+All!AH197)/1000 -> 16.32955
P177: =P$10 -> Process, plant and machine operatives | Q177: =(All!N198+All!N199)/1000 -> 5.786239 | R177: =(All!S198+All!S199)/1000 -> 3.455301 | S177: =(All!X198+All!X199)/1000 -> 6.057512 | T177: =(All!AC198+All!AC199)/1000 -> 6.344344 | U177: =(All!AH198+All!AH199)/1000 -> 6.104981
P178: =P$11 -> Elementary occupations | Q178: =(All!N200+All!N201)/1000 -> 2.446724 | R178: =(All!S200+All!S201)/1000 -> 1.82065 | S178: =(All!X200+All!X201)/1000 -> 2.183755 | T178: =(All!AC200+All!AC201)/1000 -> 2.216504 | U178: =(All!AH200+All!AH201)/1000 -> 2.200836
P196: ="Occupational Composition, "&P197&", "&Q197&"-"&U197 -> Occupational Composition, Water and sewerage, 2002-2022
P197: =names!A10 -> Water and sewerage | Q197: =Q$2 -> 2002 | R197: =R$2 -> 2007 | S197: =S$2 -> 2012 | T197: =T$2 -> 2017 | U197: =U$2 -> 2022
P198: =P$3 -> Managers, directors and senior officials | Q198: =(All!N205+All!N206)/1000 -> 11.423162 | R198: =(All!S205+All!S206)/1000 -> 14.005753 | S198: =(All!X205+All!X206)/1000 -> 23.294417 | T198: =(All!AC205+All!AC206)/1000 -> 26.553057 | U198: =(All!AH205+All!AH206)/1000 -> 29.771936
P199: =P$4 -> Professional occupations | Q199: =(All!N207+All!N208+All!N209+All!N210)/1000 -> 13.75641 | R199: =(All!S207+All!S208+All!S209+All!S210)/1000 -> 15.318981 | S199: =(All!X207+All!X208+All!X209+All!X210)/1000 -> 19.181611 | T199: =(All!AC207+All!AC208+All!AC209+All!AC210)/1000 -> 21.76001 | U199: =(All!AH207+All!AH208+All!AH209+All!AH210)/1000 -> 23.787484
P200: =P$5 -> Associate professional and technical | Q200: =(All!N211+All!N212+All!N213+All!N214+All!N215)/1000 -> 22.97146 | R200: =(All!S211+All!S212+All!S213+All!S214+All!S215)/1000 -> 17.987172 | S200: =(All!X211+All!X212+All!X213+All!X214+All!X215)/1000 -> 25.050912 | T200: =(All!AC211+All!AC212+All!AC213+All!AC214+All!AC215)/1000 -> 27.358504 | U200: =(All!AH211+All!AH212+All!AH213+All!AH214+All!AH215)/1000 -> 29.528466
P201: =P$6 -> Administrative and secretarial | Q201: =(All!N216+All!N217)/1000 -> 18.848818 | R201: =(All!S216+All!S217)/1000 -> 11.486896 | S201: =(All!X216+All!X217)/1000 -> 16.369047 | T201: =(All!AC216+All!AC217)/1000 -> 15.823215 | U201: =(All!AH216+All!AH217)/1000 -> 15.294721
P202: =P$7 -> Skilled trades occupations | Q202: =(All!N218+All!N219+All!N220+All!N221)/1000 -> 12.649453 | R202: =(All!S218+All!S219+All!S220+All!S221)/1000 -> 16.476765 | S202: =(All!X218+All!X219+All!X220+All!X221)/1000 -> 23.476508 | T202: =(All!AC218+All!AC219+All!AC220+All!AC221)/1000 -> 24.520156 | U202: =(All!AH218+All!AH219+All!AH220+All!AH221)/1000 -> 25.709888
P203: =P$8 -> Caring, leisure and other service | Q203: =(All!N222+All!N223)/1000 -> 3.318785 | R203: =(All!S222+All!S223)/1000 -> 2.650367 | S203: =(All!X222+All!X223)/1000 -> 3.606039 | T203: =(All!AC222+All!AC223)/1000 -> 4.355809 | U203: =(All!AH222+All!AH223)/1000 -> 5.022489
P204: =P$9 -> Sales and customer service | Q204: =(All!N224+All!N225)/1000 -> 8.172625 | R204: =(All!S224+All!S225)/1000 -> 4.909098 | S204: =(All!X224+All!X225)/1000 -> 6.053023 | T204: =(All!AC224+All!AC225)/1000 -> 6.321273 | U204: =(All!AH224+All!AH225)/1000 -> 6.838057
P205: =P$10 -> Process, plant and machine operatives | Q205: =(All!N226+All!N227)/1000 -> 36.457339 | R205: =(All!S226+All!S227)/1000 -> 43.376648 | S205: =(All!X226+All!X227)/1000 -> 47.575903 | T205: =(All!AC226+All!AC227)/1000 -> 48.638638 | U205: =(All!AH226+All!AH227)/1000 -> 50.163628
P206: =P$11 -> Elementary occupations | Q206: =(All!N228+All!N229)/1000 -> 35.873945 | R206: =(All!S228+All!S229)/1000 -> 33.24032 | S206: =(All!X228+All!X229)/1000 -> 36.730541 | T206: =(All!AC228+All!AC229)/1000 -> 37.037335 | U206: =(All!AH228+All!AH229)/1000 -> 38.525331
P224: ="Occupational Composition, "&P225&", "&Q225&"-"&U225 -> Occupational Composition, Construction, 2002-2022
P225: =names!A11 -> Construction | Q225: =Q$2 -> 2002 | R225: =R$2 -> 2007 | S225: =S$2 -> 2012 | T225: =T$2 -> 2017 | U225: =U$2 -> 2022
P226: =P$3 -> Managers, directors and senior officials | Q226: =(All!N233+All!N234)/1000 -> 129.988091 | R226: =(All!S233+All!S234)/1000 -> 173.791381 | S226: =(All!X233+All!X234)/1000 -> 173.467079 | T226: =(All!AC233+All!AC234)/1000 -> 205.862618 | U226: =(All!AH233+All!AH234)/1000 -> 241.823092
P227: =P$4 -> Professional occupations | Q227: =(All!N235+All!N236+All!N237+All!N238)/1000 -> 149.854317 | R227: =(All!S235+All!S236+All!S237+All!S238)/1000 -> 195.338267 | S227: =(All!X235+All!X236+All!X237+All!X238)/1000 -> 184.828495 | T227: =(All!AC235+All!AC236+All!AC237+All!AC238)/1000 -> 222.168333 | U227: =(All!AH235+All!AH236+All!AH237+All!AH238)/1000 -> 257.292133
P228: =P$5 -> Associate professional and technical | Q228: =(All!N239+All!N240+All!N241+All!N242+All!N243)/1000 -> 114.236681 | R228: =(All!S239+All!S240+All!S241+All!S242+All!S243)/1000 -> 137.103334 | S228: =(All!X239+All!X240+All!X241+All!X242+All!X243)/1000 -> 126.131185 | T228: =(All!AC239+All!AC240+All!AC241+All!AC242+All!AC243)/1000 -> 147.824518 | U228: =(All!AH239+All!AH240+All!AH241+All!AH242+All!AH243)/1000 -> 170.534763
P229: =P$6 -> Administrative and secretarial | Q229: =(All!N244+All!N245)/1000 -> 182.941295 | R229: =(All!S244+All!S245)/1000 -> 179.453541 | S229: =(All!X244+All!X245)/1000 -> 150.356749 | T229: =(All!AC244+All!AC245)/1000 -> 150.834349 | U229: =(All!AH244+All!AH245)/1000 -> 151.508156
P230: =P$7 -> Skilled trades occupations | Q230: =(All!N246+All!N247+All!N248+All!N249)/1000 -> 1066.262955 | R230: =(All!S246+All!S247+All!S248+All!S249)/1000 -> 1243.539202 | S230: =(All!X246+All!X247+All!X248+All!X249)/1000 -> 1081.300307 | T230: =(All!AC246+All!AC247+All!AC248+All!AC249)/1000 -> 1124.023961 | U230: =(All!AH246+All!AH247+All!AH248+All!AH249)/1000 -> 1179.523809
P231: =P$8 -> Caring, leisure and other service | Q231: =(All!N250+All!N251)/1000 -> 2.335237 | R231: =(All!S250+All!S251)/1000 -> 3.476165 | S231: =(All!X250+All!X251)/1000 -> 4.167652 | T231: =(All!AC250+All!AC251)/1000 -> 5.185046 | U231: =(All!AH250+All!AH251)/1000 -> 5.989245
P232: =P$9 -> Sales and customer service | Q232: =(All!N252+All!N253)/1000 -> 24.268157 | R232: =(All!S252+All!S253)/1000 -> 30.41949 | S232: =(All!X252+All!X253)/1000 -> 31.496994 | T232: =(All!AC252+All!AC253)/1000 -> 35.236155 | U232: =(All!AH252+All!AH253)/1000 -> 39.980588
P233: =P$10 -> Process, plant and machine operatives | Q233: =(All!N254+All!N255)/1000 -> 180.069141 | R233: =(All!S254+All!S255)/1000 -> 190.175116 | S233: =(All!X254+All!X255)/1000 -> 159.102885 | T233: =(All!AC254+All!AC255)/1000 -> 161.996807 | U233: =(All!AH254+All!AH255)/1000 -> 164.366958
P234: =P$11 -> Elementary occupations | Q234: =(All!N256+All!N257)/1000 -> 136.325124 | R234: =(All!S256+All!S257)/1000 -> 152.733504 | S234: =(All!X256+All!X257)/1000 -> 98.924651 | T234: =(All!AC256+All!AC257)/1000 -> 97.763213 | U234: =(All!AH256+All!AH257)/1000 -> 101.167254
... 127 more rows

Sheet Figure 6.x.11
P1: ="Occupational employment, "&CHAR(13)&P2 -> Occupational employment, All industries
P2: =names!A3 -> All industries | Q2: =All!D7 -> 1992 | R2: =All!E7 -> 1993 | S2: =All!F7 -> 1994 | T2: =All!G7 -> 1995 | U2: =All!H7 -> 1996 | V2: =All!I7 -> 1997 | W2: =All!J7 -> 1998 | X2: =All!K7 -> 1999 | Y2: =All!L7 -> 2000 | Z2: =All!M7 -> 2001 | AA2: =All!N7 -> 2002 | AB2: =All!O7 -> 2003 | AC2: =All!P7 -> 2004 | AD2: =All!Q7 -> 2005 | AE2: =All!R7 -> 2006 | AF2: =All!S7 -> 2007 | AG2: =All!T7 -> 2008 | AH2: =All!U7 -> 2009 | AI2: =All!V7 -> 2010 | AJ2: =All!W7 -> 2011 | AK2: =All!X7 -> 2012 | AL2: =All!Y7 -> 2013 | AM2: =All!Z7 -> 2014 | AN2: =All!AA7 -> 2015 | AO2: =All!AB7 -> 2016 | AP2: =All!AC7 -> 2017 | AQ2: =All!AD7 -> 2018 | AR2: =All!AE7 -> 2019 | AS2: =All!AF7 -> 2020 | AT2: =All!AG7 -> 2021 | AU2: =All!AH7 -> 2022
P3: =names!B4 -> Managers, directors and senior officials | Q3: =(All!D9+All!D10)/1000 -> 2178.682219 | R3: =(All!E9+All!E10)/1000 -> 2177.063023 | S3: =(All!F9+All!F10)/1000 -> 2201.393198 | T3: =(All!G9+All!G10)/1000 -> 2265.339848 | U3: =(All!H9+All!H10)/1000 -> 2220.25616 | V3: =(All!I9+All!I10)/1000 -> 2319.978742 | W3: =(All!J9+All!J10)/1000 -> 2379.808222 | X3: =(All!K9+All!K10)/1000 -> 2454.725051 | Y3: =(All!L9+All!L10)/1000 -> 2530.802723 | Z3: =(All!M9+All!M10)/1000 -> 2613.274024 | AA3: =(All!N9+All!N10)/1000 -> 2710.074315 | AB3: =(All!O9+All!O10)/1000 -> 2776.310282 | AC3: =(All!P9+All!P10)/1000 -> 2840.582896 | AD3: =(All!Q9+All!Q10)/1000 -> 2871.964138 | AE3: =(All!R9+All!R10)/1000 -> 2913.27115 | AF3: =(All!S9+All!S10)/1000 -> 3012.831987 | AG3: =(All!T9+All!T10)/1000 -> 3113.469753 | AH3: =(All!U9+All!U10)/1000 -> 3104.034732 | AI3: =(All!V9+All!V10)/1000 -> 3079.443173 | AJ3: =(All!W9+All!W10)/1000 -> 3130.365292 | AK3: =(All!X9+All!X10)/1000 -> 3303.377616 | AL3: =(All!Y9+All!Y10)/1000 -> 3352.547183 | AM3: =(All!Z9+All!Z10)/1000 -> 3406.573093 | AN3: =(All!AA9+All!AA10)/1000 -> 3458.922777 | AO3: =(All!AB9+All!AB10)/1000 -> 3512.026422 | AP3: =(All!AC9+All!AC10)/1000 -> 3571.415726 | AQ3: =(All!AD9+All!AD10)/1000 -> 3632.800182 | AR3: =(All!AE9+All!AE10)/1000 -> 3698.811781 | AS3: =(All!AF9+All!AF10)/1000 -> 3765.189176 | AT3: =(All!AG9+All!AG10)/1000 -> 3827.322457 | AU3: =(All!AH9+All!AH10)/1000 -> 3889.446197
P4: =names!B5 -> Professional occupations | Q4: =(All!D11+All!D12+All!D13+All!D14)/1000 -> 3958.260321 | R4: =(All!E11+All!E12+All!E13+All!E14)/1000 -> 3961.802017 | S4: =(All!F11+All!F12+All!F13+All!F14)/1000 -> 4049.239014 | T4: =(All!G11+All!G12+All!G13+All!G14)/1000 -> 4164.980718 | U4: =(All!H11+All!H12+All!H13+All!H14)/1000 -> 4255.719955 | V4: =(All!I11+All!I12+All!I13+All!I14)/1000 -> 4364.552928 | W4: =(All!J11+All!J12+All!J13+All!J14)/1000 -> 4455.141042 | X4: =(All!K11+All!K12+All!K13+All!K14)/1000 -> 4628.706574 | Y4: =(All!L11+All!L12+All!L13+All!L14)/1000 -> 4781.965947 | Z4: =(All!M11+All!M12+All!M13+All!M14)/1000 -> 4915.654895 | AA4: =(All!N11+All!N12+All!N13+All!N14)/1000 -> 4996.515288 | AB4: =(All!O11+All!O12+All!O13+All!O14)/1000 -> 5185.621288 | AC4: =(All!P11+All!P12+All!P13+All!P14)/1000 -> 5332.754758 | AD4: =(All!Q11+All!Q12+All!Q13+All!Q14)/1000 -> 5461.725613 | AE4: =(All!R11+All!R12+All!R13+All!R14)/1000 -> 5626.206208 | AF4: =(All!S11+All!S12+All!S13+All!S14)/1000 -> 5697.741616 | AG4: =(All!T11+All!T12+All!T13+All!T14)/1000 -> 5824.377663 | AH4: =(All!U11+All!U12+All!U13+All!U14)/1000 -> 5983.79754 | AI4: =(All!V11+All!V12+All!V13+All!V14)/1000 -> 5983.836508 | AJ4: =(All!W11+All!W12+All!W13+All!W14)/1000 -> 6041.099508 | AK4: =(All!X11+All!X12+All!X13+All!X14)/1000 -> 6269.72287 | AL4: =(All!Y11+All!Y12+All!Y13+All!Y14)/1000 -> 6515.941485 | AM4: =(All!Z11+All!Z12+All!Z13+All!Z14)/1000 -> 6639.106063 | AN4: =(All!AA11+All!AA12+All!AA13+All!AA14)/1000 -> 6756.571253 | AO4: =(All!AB11+All!AB12+All!AB13+All!AB14)/1000 -> 6828.189376 | AP4: =(All!AC11+All!AC12+All!AC13+All!AC14)/1000 -> 6916.931048 | AQ4: =(All!AD11+All!AD12+All!AD13+All!AD14)/1000 -> 7020.465745 | AR4: =(All!AE11+All!AE12+All!AE13+All!AE14)/1000 -> 7112.638588 | AS4: =(All!AF11+All!AF12+All!AF13+All!AF14)/1000 -> 7208.351509 | AT4: =(All!AG11+All!AG12+All!AG13+All!AG14)/1000 -> 7324.593872 | AU4: =(All!AH11+All!AH12+All!AH13+All!AH14)/1000 -> 7444.459092
P5: =names!B6 -> Associate professional and technical | Q5: =(All!D15+All!D16+All!D17+All!D18+All!D19)/1000 -> 2981.124227 | R5: =(All!E15+All!E16+All!E17+All!E18+All!E19)/1000 -> 2973.429141 | S5: =(All!F15+All!F16+All!F17+All!F18+All!F19)/1000 -> 3060.431433 | T5: =(All!G15+All!G16+All!G17+All!G18+All!G19)/1000 -> 3173.271724 | U5: =(All!H15+All!H16+All!H17+All!H18+All!H19)/1000 -> 3189.236712 | V5: =(All!I15+All!I16+All!I17+All!I18+All!I19)/1000 -> 3311.419546 | W5: =(All!J15+All!J16+All!J17+All!J18+All!J19)/1000 -> 3384.244491 | X5: =(All!K15+All!K16+All!K17+All!K18+All!K19)/1000 -> 3483.054586 | Y5: =(All!L15+All!L16+All!L17+All!L18+All!L19)/1000 -> 3574.016123 | Z5: =(All!M15+All!M16+All!M17+All!M18+All!M19)/1000 -> 3664.123943 | AA5: =(All!N15+All!N16+All!N17+All!N18+All!N19)/1000 -> 3704.134329 | AB5: =(All!O15+All!O16+All!O17+All!O18+All!O19)/1000 -> 3724.605343 | AC5: =(All!P15+All!P16+All!P17+All!P18+All!P19)/1000 -> 3814.976592 | AD5: =(All!Q15+All!Q16+All!Q17+All!Q18+All!Q19)/1000 -> 3908.36309 | AE5: =(All!R15+All!R16+All!R17+All!R18+All!R19)/1000 -> 3955.781764 | AF5: =(All!S15+All!S16+All!S17+All!S18+All!S19)/1000 -> 4096.060104 | AG5: =(All!T15+All!T16+All!T17+All!T18+All!T19)/1000 -> 4188.3163 | AH5: =(All!U15+All!U16+All!U17+All!U18+All!U19)/1000 -> 4092.960747 | AI5: =(All!V15+All!V16+All!V17+All!V18+All!V19)/1000 -> 4004.416769 | AJ5: =(All!W15+All!W16+All!W17+All!W18+All!W19)/1000 -> 4039.170354 | AK5: =(All!X15+All!X16+All!X17+All!X18+All!X19)/1000 -> 4181.640675 | AL5: =(All!Y15+All!Y16+All!Y17+All!Y18+All!Y19)/1000 -> 4286.176031 | AM5: =(All!Z15+All!Z16+All!Z17+All!Z18+All!Z19)/1000 -> 4314.36511 | AN5: =(All!AA15+All!AA16+All!AA17+All!AA18+All!AA19)/1000 -> 4357.090227 | AO5: =(All!AB15+All!AB16+All!AB17+All!AB18+All!AB19)/1000 -> 4392.442397 | AP5: =(All!AC15+All!AC16+All!AC17+All!AC18+All!AC19)/1000 -> 4452.432366 | AQ5: =(All!AD15+All!AD16+All!AD17+All!AD18+All!AD19)/1000 -> 4518.422464 | AR5: =(All!AE15+All!AE16+All!AE17+All!AE18+All!AE19)/1000 -> 4580.151505 | AS5: =(All!AF15+All!AF16+All!AF17+All!AF18+All!AF19)/1000 -> 4638.537859 | AT5: =(All!AG15+All!AG16+All!AG17+All!AG18+All!AG19)/1000 -> 4701.258144 | AU5: =(All!AH15+All!AH16+All!AH17+All!AH18+All!AH19)/1000 -> 4764.480444
P6: =names!B7 -> Administrative and secretarial | Q6: =(All!D20+All!D21)/1000 -> 4418.722765 | R6: =(All!E20+All!E21)/1000 -> 4316.944362 | S6: =(All!F20+All!F21)/1000 -> 4272.515788 | T6: =(All!G20+All!G21)/1000 -> 4277.971916 | U6: =(All!H20+All!H21)/1000 -> 4200.076959 | V6: =(All!I20+All!I21)/1000 -> 4169.179433 | W6: =(All!J20+All!J21)/1000 -> 4140.000207 | X6: =(All!K20+All!K21)/1000 -> 4196.01274 | Y6: =(All!L20+All!L21)/1000 -> 4231.696053 | Z6: =(All!M20+All!M21)/1000 -> 4202.64402 | AA6: =(All!N20+All!N21)/1000 -> 4208.478503 | AB6: =(All!O20+All!O21)/1000 -> 4172.261922 | AC6: =(All!P20+All!P21)/1000 -> 4184.530645 | AD6: =(All!Q20+All!Q21)/1000 -> 4149.532891 | AE6: =(All!R20+All!R21)/1000 -> 4137.782338 | AF6: =(All!S20+All!S21)/1000 -> 4120.604301 | AG6: =(All!T20+All!T21)/1000 -> 4001.189122 | AH6: =(All!U20+All!U21)/1000 -> 3858.832588 | AI6: =(All!V20+All!V21)/1000 -> 3856.857438 | AJ6: =(All!W20+All!W21)/1000 -> 3764.074291 | AK6: =(All!X20+All!X21)/1000 -> 3755.776497 | AL6: =(All!Y20+All!Y21)/1000 -> 3730.467566 | AM6: =(All!Z20+All!Z21)/1000 -> 3660.858513 | AN6: =(All!AA20+All!AA21)/1000 -> 3599.706168 | AO6: =(All!AB20+All!AB21)/1000 -> 3535.224829 | AP6: =(All!AC20+All!AC21)/1000 -> 3490.289253 | AQ6: =(All!AD20+All!AD21)/1000 -> 3444.85118 | AR6: =(All!AE20+All!AE21)/1000 -> 3402.754915 | AS6: =(All!AF20+All!AF21)/1000 -> 3356.800522 | AT6: =(All!AG20+All!AG21)/1000 -> 3314.152204 | AU6: =(All!AH20+All!AH21)/1000 -> 3269.670585
P7: =names!B8 -> Skilled trades occupations | Q7: =(All!D22+All!D23+All!D24+All!D25)/1000 -> 4065.280108 | R7: =(All!E22+All!E23+All!E24+All!E25)/1000 -> 3906.837005 | S7: =(All!F22+All!F23+All!F24+All!F25)/1000 -> 3845.221277 | T7: =(All!G22+All!G23+All!G24+All!G25)/1000 -> 3827.623817 | U7: =(All!H22+All!H23+All!H24+All!H25)/1000 -> 3836.22378 | V7: =(All!I22+All!I23+All!I24+All!I25)/1000 -> 3826.028723 | W7: =(All!J22+All!J23+All!J24+All!J25)/1000 -> 3807.449483 | X7: =(All!K22+All!K23+All!K24+All!K25)/1000 -> 3799.75132 | Y7: =(All!L22+All!L23+All!L24+All!L25)/1000 -> 3772.702581 | Z7: =(All!M22+All!M23+All!M24+All!M25)/1000 -> 3765.00234 | AA7: =(All!N22+All!N23+All!N24+All!N25)/1000 -> 3746.595523 | AB7: =(All!O22+All!O23+All!O24+All!O25)/1000 -> 3735.85263 | AC7: =(All!P22+All!P23+All!P24+All!P25)/1000 -> 3743.373776 | AD7: =(All!Q22+All!Q23+All!Q24+All!Q25)/1000 -> 3708.960928 | AE7: =(All!R22+All!R23+All!R24+All!R25)/1000 -> 3646.153403 | AF7: =(All!S22+All!S23+All!S24+All!S25)/1000 -> 3714.1825 | AG7: =(All!T22+All!T23+All!T24+All!T25)/1000 -> 3705.995023 | AH7: =(All!U22+All!U23+All!U24+All!U25)/1000 -> 3510.613919 | AI7: =(All!V22+All!V23+All!V24+All!V25)/1000 -> 3480.967906 | AJ7: =(All!W22+All!W23+All!W24+All!W25)/1000 -> 3482.717341 | AK7: =(All!X22+All!X23+All!X24+All!X25)/1000 -> 3522.39955 | AL7: =(All!Y22+All!Y23+All!Y24+All!Y25)/1000 -> 3400.745948 | AM7: =(All!Z22+All!Z23+All!Z24+All!Z25)/1000 -> 3382.37927 | AN7: =(All!AA22+All!AA23+All!AA24+All!AA25)/1000 -> 3360.546273 | AO7: =(All!AB22+All!AB23+All!AB24+All!AB25)/1000 -> 3346.796603 | AP7: =(All!AC22+All!AC23+All!AC24+All!AC25)/1000 -> 3327.257302 | AQ7: =(All!AD22+All!AD23+All!AD24+All!AD25)/1000 -> 3308.524807 | AR7: =(All!AE22+All!AE23+All!AE24+All!AE25)/1000 -> 3303.151675 | AS7: =(All!AF22+All!AF23+All!AF24+All!AF25)/1000 -> 3294.478483 | AT7: =(All!AG22+All!AG23+All!AG24+All!AG25)/1000 -> 3255.281298 | AU7: =(All!AH22+All!AH23+All!AH24+All!AH25)/1000 -> 3216.287549
P8: =names!B9 -> Caring, leisure and other service | Q8: =(All!D26+All!D27)/1000 -> 1534.394831 | R8: =(All!E26+All!E27)/1000 -> 1582.616708 | S8: =(All!F26+All!F27)/1000 -> 1643.136222 | T8: =(All!G26+All!G27)/1000 -> 1722.068496 | U8: =(All!H26+All!H27)/1000 -> 1779.080387 | V8: =(All!I26+All!I27)/1000 -> 1860.24619 | W8: =(All!J26+All!J27)/1000 -> 1923.339658 | X8: =(All!K26+All!K27)/1000 -> 1995.526607 | Y8: =(All!L26+All!L27)/1000 -> 2111.011226 | Z8: =(All!M26+All!M27)/1000 -> 2181.013676 | AA8: =(All!N26+All!N27)/1000 -> 2271.27721 | AB8: =(All!O26+All!O27)/1000 -> 2322.878901 | AC8: =(All!P26+All!P27)/1000 -> 2352.01168 | AD8: =(All!Q26+All!Q27)/1000 -> 2468.878879 | AE8: =(All!R26+All!R27)/1000 -> 2550.849338 | AF8: =(All!S26+All!S27)/1000 -> 2561.084421 | AG8: =(All!T26+All!T27)/1000 -> 2627.820858 | AH8: =(All!U26+All!U27)/1000 -> 2672.436432 | AI8: =(All!V26+All!V27)/1000 -> 2778.739591 | AJ8: =(All!W26+All!W27)/1000 -> 2813.660515 | AK8: =(All!X26+All!X27)/1000 -> 2858.773224 | AL8: =(All!Y26+All!Y27)/1000 -> 3009.025076 | AM8: =(All!Z26+All!Z27)/1000 -> 3062.431459 | AN8: =(All!AA26+All!AA27)/1000 -> 3113.054585 | AO8: =(All!AB26+All!AB27)/1000 -> 3142.471402 | AP8: =(All!AC26+All!AC27)/1000 -> 3188.589967 | AQ8: =(All!AD26+All!AD27)/1000 -> 3260.615131 | AR8: =(All!AE26+All!AE27)/1000 -> 3319.067165 | AS8: =(All!AF26+All!AF27)/1000 -> 3370.713272 | AT8: =(All!AG26+All!AG27)/1000 -> 3438.148878 | AU8: =(All!AH26+All!AH27)/1000 -> 3507.975082
P9: =names!B10 -> Sales and customer service | Q9: =(All!D28+All!D29)/1000 -> 2221.724357 | R9: =(All!E28+All!E29)/1000 -> 2214.604991 | S9: =(All!F28+All!F29)/1000 -> 2262.868777 | T9: =(All!G28+All!G29)/1000 -> 2292.302933 | U9: =(All!H28+All!H29)/1000 -> 2430.767026 | V9: =(All!I28+All!I29)/1000 -> 2502.444262 | W9: =(All!J28+All!J29)/1000 -> 2514.941725 | X9: =(All!K28+All!K29)/1000 -> 2465.421561 | Y9: =(All!L28+All!L29)/1000 -> 2494.611631 | Z9: =(All!M28+All!M29)/1000 -> 2546.411484 | AA9: =(All!N28+All!N29)/1000 -> 2579.254696 | AB9: =(All!O28+All!O29)/1000 -> 2603.296252 | AC9: =(All!P28+All!P29)/1000 -> 2639.345875 | AD9: =(All!Q28+All!Q29)/1000 -> 2642.57804 | AE9: =(All!R28+All!R29)/1000 -> 2709.961695 | AF9: =(All!S28+All!S29)/1000 -> 2686.684935 | AG9: =(All!T28+All!T29)/1000 -> 2675.215226 | AH9: =(All!U28+All!U29)/1000 -> 2706.767225 | AI9: =(All!V28+All!V29)/1000 -> 2703.70334 | AJ9: =(All!W28+All!W29)/1000 -> 2663.349965 | AK9: =(All!X28+All!X29)/1000 -> 2697.596216 | AL9: =(All!Y28+All!Y29)/1000 -> 2682.799047 | AM9: =(All!Z28+All!Z29)/1000 -> 2645.794686 | AN9: =(All!AA28+All!AA29)/1000 -> 2609.232507 | AO9: =(All!AB28+All!AB29)/1000 -> 2615.026955 | AP9: =(All!AC28+All!AC29)/1000 -> 2621.507128 | AQ9: =(All!AD28+All!AD29)/1000 -> 2627.835913 | AR9: =(All!AE28+All!AE29)/1000 -> 2638.510786 | AS9: =(All!AF28+All!AF29)/1000 -> 2650.975517 | AT9: =(All!AG28+All!AG29)/1000 -> 2645.004587 | AU9: =(All!AH28+All!AH29)/1000 -> 2633.393197
P10: =names!B11 -> Process, plant and machine operatives | Q10: =(All!D30+All!D31)/1000 -> 2406.05657 | R10: =(All!E30+All!E31)/1000 -> 2321.591492 | S10: =(All!F30+All!F31)/1000 -> 2308.851297 | T10: =(All!G30+All!G31)/1000 -> 2339.88172 | U10: =(All!H30+All!H31)/1000 -> 2347.096678 | V10: =(All!I30+All!I31)/1000 -> 2411.258906 | W10: =(All!J30+All!J31)/1000 -> 2380.883983 | X10: =(All!K30+All!K31)/1000 -> 2349.541257 | Y10: =(All!L30+All!L31)/1000 -> 2289.76246 | Z10: =(All!M30+All!M31)/1000 -> 2269.90119 | AA10: =(All!N30+All!N31)/1000 -> 2166.591314 | AB10: =(All!O30+All!O31)/1000 -> 2146.861499 | AC10: =(All!P30+All!P31)/1000 -> 2108.511396 | AD10: =(All!Q30+All!Q31)/1000 -> 2130.411003 | AE10: =(All!R30+All!R31)/1000 -> 2135.107601 | AF10: =(All!S30+All!S31)/1000 -> 2108.662781 | AG10: =(All!T30+All!T31)/1000 -> 2072.988306 | AH10: =(All!U30+All!U31)/1000 -> 1995.247875 | AI10: =(All!V30+All!V31)/1000 -> 1961.537314 | AJ10: =(All!W30+All!W31)/1000 -> 1965.578923 | AK10: =(All!X30+All!X31)/1000 -> 1989.073923 | AL10: =(All!Y30+All!Y31)/1000 -> 1956.696652 | AM10: =(All!Z30+All!Z31)/1000 -> 1924.15972 | AN10: =(All!AA30+All!AA31)/1000 -> 1890.278782 | AO10: =(All!AB30+All!AB31)/1000 -> 1873.439371 | AP10: =(All!AC30+All!AC31)/1000 -> 1858.771704 | AQ10: =(All!AD30+All!AD31)/1000 -> 1845.213155 | AR10: =(All!AE30+All!AE31)/1000 -> 1833.039531 | AS10: =(All!AF30+All!AF31)/1000 -> 1821.996523 | AT10: =(All!AG30+All!AG31)/1000 -> 1798.964241 | AU10: =(All!AH30+All!AH31)/1000 -> 1774.858096
P11: =names!B12 -> Elementary occupations | Q11: =(All!D32+All!D33)/1000 -> 3393.127603 | R11: =(All!E32+All!E33)/1000 -> 3318.957264 | S11: =(All!F32+All!F33)/1000 -> 3289.061993 | T11: =(All!G32+All!G33)/1000 -> 3320.951827 | U11: =(All!H32+All!H33)/1000 -> 3445.527341 | V11: =(All!I32+All!I33)/1000 -> 3479.85527 | W11: =(All!J32+All!J33)/1000 -> 3483.141191 | X11: =(All!K32+All!K33)/1000 -> 3473.259304 | Y11: =(All!L32+All!L33)/1000 -> 3511.374252 | Z11: =(All!M32+All!M33)/1000 -> 3521.975427 | AA11: =(All!N32+All!N33)/1000 -> 3586.068822 | AB11: =(All!O32+All!O33)/1000 -> 3599.281881 | AC11: =(All!P32+All!P33)/1000 -> 3574.827383 | AD11: =(All!Q32+All!Q33)/1000 -> 3623.572419 | AE11: =(All!R32+All!R33)/1000 -> 3697.865503 | AF11: =(All!S32+All!S33)/1000 -> 3629.120354 | AG11: =(All!T32+All!T33)/1000 -> 3690.604746 | AH11: =(All!U32+All!U33)/1000 -> 3401.265942 | AI11: =(All!V32+All!V33)/1000 -> 3284.44996 | AJ11: =(All!W32+All!W33)/1000 -> 3242.95781 | AK11: =(All!X32+All!X33)/1000 -> 3347.627429 | AL11: =(All!Y32+All!Y33)/1000 -> 3227.807012 | AM11: =(All!Z32+All!Z33)/1000 -> 3210.218086 | AN11: =(All!AA32+All!AA33)/1000 -> 3192.984427 | AO11: =(All!AB32+All!AB33)/1000 -> 3199.151644 | AP11: =(All!AC32+All!AC33)/1000 -> 3202.384509 | AQ11: =(All!AD32+All!AD33)/1000 -> 3206.31742 | AR11: =(All!AE32+All!AE33)/1000 -> 3223.292056 | AS11: =(All!AF32+All!AF33)/1000 -> 3241.967137 | AT11: =(All!AG32+All!AG33)/1000 -> 3261.322321 | AU11: =(All!AH32+All!AH33)/1000 -> 3280.228756
P37: ="Occupational employment, "&CHAR(13)&P38 -> Occupational employment, Agriculture
P38: =names!A4 -> Agriculture | Q38: =Q2 -> 1992 | R38: 1993 | S38: 1994 | T38: 1995 | U38: 1996 | V38: 1997 | W38: 1998 | X38: 1999 | Y38: 2000 | Z38: 2001 | AA38: 2002 | AB38: 2003 | AC38: 2004 | AD38: 2005 | AE38: 2006 | AF38: 2007 | AG38: 2008 | AH38: 2009 | AI38: 2010 | AJ38: 2011 | AK38: 2012 | AL38: 2013 | AM38: 2014 | AN38: 2015 | AO38: 2016 | AP38: 2017 | AQ38: 2018 | AR38: 2019 | AS38: 2020 | AT38: 2021 | AU38: 2022
P39: =P3 -> Managers, directors and senior officials | Q39: =(All!D37+All!D38)/1000 -> 55.468131 | R39: =(All!E37+All!E38)/1000 -> 53.805577 | S39: =(All!F37+All!F38)/1000 -> 50.217132 | T39: =(All!G37+All!G38)/1000 -> 45.629536 | U39: =(All!H37+All!H38)/1000 -> 43.988481 | V39: =(All!I37+All!I38)/1000 -> 45.774448 | W39: =(All!J37+All!J38)/1000 -> 41.582582 | X39: =(All!K37+All!K38)/1000 -> 34.852268 | Y39: =(All!L37+All!L38)/1000 -> 33.196614 | Z39: =(All!M37+All!M38)/1000 -> 27.673029 | AA39: =(All!N37+All!N38)/1000 -> 29.324888 | AB39: =(All!O37+All!O38)/1000 -> 27.577328 | AC39: =(All!P37+All!P38)/1000 -> 26.126731 | AD39: =(All!Q37+All!Q38)/1000 -> 28.342754 | AE39: =(All!R37+All!R38)/1000 -> 27.135451 | AF39: =(All!S37+All!S38)/1000 -> 25.76729 | AG39: =(All!T37+All!T38)/1000 -> 28.20269 | AH39: =(All!U37+All!U38)/1000 -> 26.880318 | AI39: =(All!V37+All!V38)/1000 -> 30.531367 | AJ39: =(All!W37+All!W38)/1000 -> 29.161084 | AK39: =(All!X37+All!X38)/1000 -> 32.239909 | AL39: =(All!Y37+All!Y38)/1000 -> 28.57809 | AM39: =(All!Z37+All!Z38)/1000 -> 28.64945 | AN39: =(All!AA37+All!AA38)/1000 -> 28.353207 | AO39: =(All!AB37+All!AB38)/1000 -> 28.229675 | AP39: =(All!AC37+All!AC38)/1000 -> 28.177121 | AQ39: =(All!AD37+All!AD38)/1000 -> 27.908326 | AR39: =(All!AE37+All!AE38)/1000 -> 27.90387 | AS39: =(All!AF37+All!AF38)/1000 -> 27.940556 | AT39: =(All!AG37+All!AG38)/1000 -> 27.936537 | AU39: =(All!AH37+All!AH38)/1000 -> 28.003295
P40: Professional occupations | Q40: =(All!D39+All!D40+All!D41+All!D42)/1000 -> 23.444994 | R40: =(All!E39+All!E40+All!E41+All!E42)/1000 -> 23.055003 | S40: =(All!F39+All!F40+All!F41+All!F42)/1000 -> 22.088519 | T40: =(All!G39+All!G40+All!G41+All!G42)/1000 -> 20.684718 | U40: =(All!H39+All!H40+All!H41+All!H42)/1000 -> 19.332712 | V40: =(All!I39+All!I40+All!I41+All!I42)/1000 -> 20.520062 | W40: =(All!J39+All!J40+All!J41+All!J42)/1000 -> 20.078811 | X40: =(All!K39+All!K40+All!K41+All!K42)/1000 -> 17.538606 | Y40: =(All!L39+All!L40+All!L41+All!L42)/1000 -> 17.760398 | Z40: =(All!M39+All!M40+All!M41+All!M42)/1000 -> 15.973558 | AA40: =(All!N39+All!N40+All!N41+All!N42)/1000 -> 17.423104 | AB40: =(All!O39+All!O40+All!O41+All!O42)/1000 -> 14.259062 | AC40: =(All!P39+All!P40+All!P41+All!P42)/1000 -> 15.282169 | AD40: =(All!Q39+All!Q40+All!Q41+All!Q42)/1000 -> 15.753876 | AE40: =(All!R39+All!R40+All!R41+All!R42)/1000 -> 17.376774 | AF40: =(All!S39+All!S40+All!S41+All!S42)/1000 -> 16.838594 | AG40: =(All!T39+All!T40+All!T41+All!T42)/1000 -> 18.443992 | AH40: =(All!U39+All!U40+All!U41+All!U42)/1000 -> 17.627938 | AI40: =(All!V39+All!V40+All!V41+All!V42)/1000 -> 15.584734 | AJ40: =(All!W39+All!W40+All!W41+All!W42)/1000 -> 15.732661 | AK40: =(All!X39+All!X40+All!X41+All!X42)/1000 -> 17.937656 | AL40: =(All!Y39+All!Y40+All!Y41+All!Y42)/1000 -> 16.493566 | AM40: =(All!Z39+All!Z40+All!Z41+All!Z42)/1000 -> 16.964224 | AN40: =(All!AA39+All!AA40+All!AA41+All!AA42)/1000 -> 17.32198 | AO40: =(All!AB39+All!AB40+All!AB41+All!AB42)/1000 -> 17.713677 | AP40: =(All!AC39+All!AC40+All!AC41+All!AC42)/1000 -> 18.153481 | AQ40: =(All!AD39+All!AD40+All!AD41+All!AD42)/1000 -> 18.516531 | AR40: =(All!AE39+All!AE40+All!AE41+All!AE42)/1000 -> 18.985481 | AS40: =(All!AF39+All!AF40+All!AF41+All!AF42)/1000 -> 19.514437 | AT40: =(All!AG39+All!AG40+All!AG41+All!AG42)/1000 -> 20.022256 | AU40: =(All!AH39+All!AH40+All!AH41+All!AH42)/1000 -> 20.527431
P41: Associate professional and technical | Q41: =(All!D43+All!D44+All!D45+All!D46+All!D47)/1000 -> 13.150418 | R41: =(All!E43+All!E44+All!E45+All!E46+All!E47)/1000 -> 13.016389 | S41: =(All!F43+All!F44+All!F45+All!F46+All!F47)/1000 -> 12.460443 | T41: =(All!G43+All!G44+All!G45+All!G46+All!G47)/1000 -> 11.702558 | U41: =(All!H43+All!H44+All!H45+All!H46+All!H47)/1000 -> 11.004051 | V41: =(All!I43+All!I44+All!I45+All!I46+All!I47)/1000 -> 12.096228 | W41: =(All!J43+All!J44+All!J45+All!J46+All!J47)/1000 -> 12.2611 | X41: =(All!K43+All!K44+All!K45+All!K46+All!K47)/1000 -> 10.66898 | Y41: =(All!L43+All!L44+All!L45+All!L46+All!L47)/1000 -> 10.87509 | Z41: =(All!M43+All!M44+All!M45+All!M46+All!M47)/1000 -> 9.810892 | AA41: =(All!N43+All!N44+All!N45+All!N46+All!N47)/1000 -> 10.026508 | AB41: =(All!O43+All!O44+All!O45+All!O46+All!O47)/1000 -> 8.61845 | AC41: =(All!P43+All!P44+All!P45+All!P46+All!P47)/1000 -> 9.098962 | AD41: =(All!Q43+All!Q44+All!Q45+All!Q46+All!Q47)/1000 -> 9.969984 | AE41: =(All!R43+All!R44+All!R45+All!R46+All!R47)/1000 -> 11.178231 | AF41: =(All!S43+All!S44+All!S45+All!S46+All!S47)/1000 -> 10.775084 | AG41: =(All!T43+All!T44+All!T45+All!T46+All!T47)/1000 -> 11.011627 | AH41: =(All!U43+All!U44+All!U45+All!U46+All!U47)/1000 -> 11.329689 | AI41: =(All!V43+All!V44+All!V45+All!V46+All!V47)/1000 -> 11.348401 | AJ41: =(All!W43+All!W44+All!W45+All!W46+All!W47)/1000 -> 11.296421 | AK41: =(All!X43+All!X44+All!X45+All!X46+All!X47)/1000 -> 12.720397 | AL41: =(All!Y43+All!Y44+All!Y45+All!Y46+All!Y47)/1000 -> 11.503182 | AM41: =(All!Z43+All!Z44+All!Z45+All!Z46+All!Z47)/1000 -> 11.733758 | AN41: =(All!AA43+All!AA44+All!AA45+All!AA46+All!AA47)/1000 -> 11.891526 | AO41: =(All!AB43+All!AB44+All!AB45+All!AB46+All!AB47)/1000 -> 12.072674 | AP41: =(All!AC43+All!AC44+All!AC45+All!AC46+All!AC47)/1000 -> 12.304071 | AQ41: =(All!AD43+All!AD44+All!AD45+All!AD46+All!AD47)/1000 -> 12.457156 | AR41: =(All!AE43+All!AE44+All!AE45+All!AE46+All!AE47)/1000 -> 12.695961 | AS41: =(All!AF43+All!AF44+All!AF45+All!AF46+All!AF47)/1000 -> 12.964521 | AT41: =(All!AG43+All!AG44+All!AG45+All!AG46+All!AG47)/1000 -> 13.22727 | AU41: =(All!AH43+All!AH44+All!AH45+All!AH46+All!AH47)/1000 -> 13.494913
P42: Administrative and secretarial | Q42: =(All!D48+All!D49)/1000 -> 33.670114 | R42: =(All!E48+All!E49)/1000 -> 32.512717 | S42: =(All!F48+All!F49)/1000 -> 28.961287 | T42: =(All!G48+All!G49)/1000 -> 26.401743 | U42: =(All!H48+All!H49)/1000 -> 24.077417 | V42: =(All!I48+All!I49)/1000 -> 24.483566 | W42: =(All!J48+All!J49)/1000 -> 25.632943 | X42: =(All!K48+All!K49)/1000 -> 20.988972 | Y42: =(All!L48+All!L49)/1000 -> 19.762951 | Z42: =(All!M48+All!M49)/1000 -> 19.433213 | AA42: =(All!N48+All!N49)/1000 -> 19.383488 | AB42: =(All!O48+All!O49)/1000 -> 18.279109 | AC42: =(All!P48+All!P49)/1000 -> 17.98926 | AD42: =(All!Q48+All!Q49)/1000 -> 21.25779 | AE42: =(All!R48+All!R49)/1000 -> 19.850382 | AF42: =(All!S48+All!S49)/1000 -> 19.550084 | AG42: =(All!T48+All!T49)/1000 -> 20.161175 | AH42: =(All!U48+All!U49)/1000 -> 17.47439 | AI42: =(All!V48+All!V49)/1000 -> 19.220218 | AJ42: =(All!W48+All!W49)/1000 -> 19.499317 | AK42: =(All!X48+All!X49)/1000 -> 20.692249 | AL42: =(All!Y48+All!Y49)/1000 -> 17.847381 | AM42: =(All!Z48+All!Z49)/1000 -> 17.768536 | AN42: =(All!AA48+All!AA49)/1000 -> 17.559018 | AO42: =(All!AB48+All!AB49)/1000 -> 17.38895 | AP42: =(All!AC48+All!AC49)/1000 -> 17.263633 | AQ42: =(All!AD48+All!AD49)/1000 -> 16.985632 | AR42: =(All!AE48+All!AE49)/1000 -> 16.843257 | AS42: =(All!AF48+All!AF49)/1000 -> 16.734244 | AT42: =(All!AG48+All!AG49)/1000 -> 16.647537 | AU42: =(All!AH48+All!AH49)/1000 -> 16.582394
P43: Skilled trades occupations | Q43: =(All!D50+All!D51+All!D52+All!D53)/1000 -> 243.622717 | R43: =(All!E50+All!E51+All!E52+All!E53)/1000 -> 241.49427 | S43: =(All!F50+All!F51+All!F52+All!F53)/1000 -> 236.718867 | T43: =(All!G50+All!G51+All!G52+All!G53)/1000 -> 226.044077 | U43: =(All!H50+All!H51+All!H52+All!H53)/1000 -> 229.449844 | V43: =(All!I50+All!I51+All!I52+All!I53)/1000 -> 238.478244 | W43: =(All!J50+All!J51+All!J52+All!J53)/1000 -> 226.776882 | X43: =(All!K50+All!K51+All!K52+All!K53)/1000 -> 203.076376 | Y43: =(All!L50+All!L51+All!L52+All!L53)/1000 -> 187.118734 | Z43: =(All!M50+All!M51+All!M52+All!M53)/1000 -> 166.330784 | AA43: =(All!N50+All!N51+All!N52+All!N53)/1000 -> 166.963968 | AB43: =(All!O50+All!O51+All!O52+All!O53)/1000 -> 171.850823 | AC43: =(All!P50+All!P51+All!P52+All!P53)/1000 -> 180.607363 | AD43: =(All!Q50+All!Q51+All!Q52+All!Q53)/1000 -> 195.911648 | AE43: =(All!R50+All!R51+All!R52+All!R53)/1000 -> 195.446742 | AF43: =(All!S50+All!S51+All!S52+All!S53)/1000 -> 198.338963 | AG43: =(All!T50+All!T51+All!T52+All!T53)/1000 -> 215.995906 | AH43: =(All!U50+All!U51+All!U52+All!U53)/1000 -> 216.755226 | AI43: =(All!V50+All!V51+All!V52+All!V53)/1000 -> 235.785953 | AJ43: =(All!W50+All!W51+All!W52+All!W53)/1000 -> 234.078592 | AK43: =(All!X50+All!X51+All!X52+All!X53)/1000 -> 245.254686 | AL43: =(All!Y50+All!Y51+All!Y52+All!Y53)/1000 -> 200.994501 | AM43: =(All!Z50+All!Z51+All!Z52+All!Z53)/1000 -> 201.87002 | AN43: =(All!AA50+All!AA51+All!AA52+All!AA53)/1000 -> 202.233825 | AO43: =(All!AB50+All!AB51+All!AB52+All!AB53)/1000 -> 201.886212 | AP43: =(All!AC50+All!AC51+All!AC52+All!AC53)/1000 -> 201.771544 | AQ43: =(All!AD50+All!AD51+All!AD52+All!AD53)/1000 -> 199.0411 | AR43: =(All!AE50+All!AE51+All!AE52+All!AE53)/1000 -> 197.453984 | AS43: =(All!AF50+All!AF51+All!AF52+All!AF53)/1000 -> 195.525495 | AT43: =(All!AG50+All!AG51+All!AG52+All!AG53)/1000 -> 193.776556 | AU43: =(All!AH50+All!AH51+All!AH52+All!AH53)/1000 -> 192.892532
P44: Caring, leisure and other service | Q44: =(All!D54+All!D55)/1000 -> 20.540428 | R44: =(All!E54+All!E55)/1000 -> 21.488013 | S44: =(All!F54+All!F55)/1000 -> 19.497722 | T44: =(All!G54+All!G55)/1000 -> 18.104717 | U44: =(All!H54+All!H55)/1000 -> 18.621199 | V44: =(All!I54+All!I55)/1000 -> 19.791636 | W44: =(All!J54+All!J55)/1000 -> 22.675164 | X44: =(All!K54+All!K55)/1000 -> 19.92433 | Y44: =(All!L54+All!L55)/1000 -> 17.802171 | Z44: =(All!M54+All!M55)/1000 -> 17.910457 | AA44: =(All!N54+All!N55)/1000 -> 18.001695 | AB44: =(All!O54+All!O55)/1000 -> 15.937878 | AC44: =(All!P54+All!P55)/1000 -> 14.819993 | AD44: =(All!Q54+All!Q55)/1000 -> 18.018288 | AE44: =(All!R54+All!R55)/1000 -> 16.651797 | AF44: =(All!S54+All!S55)/1000 -> 14.871372 | AG44: =(All!T54+All!T55)/1000 -> 16.04002 | AH44: =(All!U54+All!U55)/1000 -> 12.303051 | AI44: =(All!V54+All!V55)/1000 -> 15.161898 | AJ44: =(All!W54+All!W55)/1000 -> 14.203934 | AK44: =(All!X54+All!X55)/1000 -> 15.844893 | AL44: =(All!Y54+All!Y55)/1000 -> 14.744882 | AM44: =(All!Z54+All!Z55)/1000 -> 15.398179 | AN44: =(All!AA54+All!AA55)/1000 -> 16.037647 | AO44: =(All!AB54+All!AB55)/1000 -> 16.262465 | AP44: =(All!AC54+All!AC55)/1000 -> 16.516972 | AQ44: =(All!AD54+All!AD55)/1000 -> 16.765192 | AR44: =(All!AE54+All!AE55)/1000 -> 16.996561 | AS44: =(All!AF54+All!AF55)/1000 -> 17.167774 | AT44: =(All!AG54+All!AG55)/1000 -> 17.689771 | AU44: =(All!AH54+All!AH55)/1000 -> 18.223471
P45: Sales and customer service | Q45: =(All!D56+All!D57)/1000 -> 6.072572 | R45: =(All!E56+All!E57)/1000 -> 6.002193 | S45: =(All!F56+All!F57)/1000 -> 5.596011 | T45: =(All!G56+All!G57)/1000 -> 5.115219 | U45: =(All!H56+All!H57)/1000 -> 5.258783 | V45: =(All!I56+All!I57)/1000 -> 5.726475 | W45: =(All!J56+All!J57)/1000 -> 5.919551 | X45: =(All!K56+All!K57)/1000 -> 5.197114 | Y45: =(All!L56+All!L57)/1000 -> 4.993332 | Z45: =(All!M56+All!M57)/1000 -> 4.954401 | AA45: =(All!N56+All!N57)/1000 -> 4.866925 | AB45: =(All!O56+All!O57)/1000 -> 4.133442 | AC45: =(All!P56+All!P57)/1000 -> 4.247616 | AD45: =(All!Q56+All!Q57)/1000 -> 5.199003 | AE45: =(All!R56+All!R57)/1000 -> 4.643851 | AF45: =(All!S56+All!S57)/1000 -> 4.707298 | AG45: =(All!T56+All!T57)/1000 -> 5.09051 | AH45: =(All!U56+All!U57)/1000 -> 4.691834 | AI45: =(All!V56+All!V57)/1000 -> 4.760155 | AJ45: =(All!W56+All!W57)/1000 -> 4.656069 | AK45: =(All!X56+All!X57)/1000 -> 4.939385 | AL45: =(All!Y56+All!Y57)/1000 -> 4.274074 | AM45: =(All!Z56+All!Z57)/1000 -> 4.214851 | AN45: =(All!AA56+All!AA57)/1000 -> 4.151106 | AO45: =(All!AB56+All!AB57)/1000 -> 4.147005 | AP45: =(All!AC56+All!AC57)/1000 -> 4.148836 | AQ45: =(All!AD56+All!AD57)/1000 -> 4.110509 | AR45: =(All!AE56+All!AE57)/1000 -> 4.114011 | AS45: =(All!AF56+All!AF57)/1000 -> 4.128476 | AT45: =(All!AG56+All!AG57)/1000 -> 4.114122 | AU45: =(All!AH56+All!AH57)/1000 -> 4.096936
P46: Process, plant and machine operatives | Q46: =(All!D58+All!D59)/1000 -> 30.3168 | R46: =(All!E58+All!E59)/1000 -> 30.523504 | S46: =(All!F58+All!F59)/1000 -> 29.298638 | T46: =(All!G58+All!G59)/1000 -> 27.331154 | U46: =(All!H58+All!H59)/1000 -> 27.641743 | V46: =(All!I58+All!I59)/1000 -> 31.054797 | W46: =(All!J58+All!J59)/1000 -> 28.365066 | X46: =(All!K58+All!K59)/1000 -> 26.031667 | Y46: =(All!L58+All!L59)/1000 -> 24.91853 | Z46: =(All!M58+All!M59)/1000 -> 21.766885 | AA46: =(All!N58+All!N59)/1000 -> 21.957702 | AB46: =(All!O58+All!O59)/1000 -> 16.077464 | AC46: =(All!P58+All!P59)/1000 -> 21.569666 | AD46: =(All!Q58+All!Q59)/1000 -> 22.02109 | AE46: =(All!R58+All!R59)/1000 -> 19.037789 | AF46: =(All!S58+All!S59)/1000 -> 22.037971 | AG46: =(All!T58+All!T59)/1000 -> 19.941104 | AH46: =(All!U58+All!U59)/1000 -> 19.812924 | AI46: =(All!V58+All!V59)/1000 -> 19.020985 | AJ46: =(All!W58+All!W59)/1000 -> 16.719171 | AK46: =(All!X58+All!X59)/1000 -> 17.336905 | AL46: =(All!Y58+All!Y59)/1000 -> 15.09715 | AM46: =(All!Z58+All!Z59)/1000 -> 14.614877 | AN46: =(All!AA58+All!AA59)/1000 -> 14.113958 | AO46: =(All!AB58+All!AB59)/1000 -> 13.768276 | AP46: =(All!AC58+All!AC59)/1000 -> 13.480784 | AQ46: =(All!AD58+All!AD59)/1000 -> 13.092152 | AR46: =(All!AE58+All!AE59)/1000 -> 12.825817 | AS46: =(All!AF58+All!AF59)/1000 -> 12.57349 | AT46: =(All!AG58+All!AG59)/1000 -> 12.224076 | AU46: =(All!AH58+All!AH59)/1000 -> 11.891547
P47: Elementary occupations | Q47: =(All!D60+All!D61)/1000 -> 106.675826 | R47: =(All!E60+All!E61)/1000 -> 104.548331 | S47: =(All!F60+All!F61)/1000 -> 101.30738 | T47: =(All!G60+All!G61)/1000 -> 96.728278 | U47: =(All!H60+All!H61)/1000 -> 93.02377 | V47: =(All!I60+All!I61)/1000 -> 103.906542 | W47: =(All!J60+All!J61)/1000 -> 96.5409 | X47: =(All!K60+All!K61)/1000 -> 88.647685 | Y47: =(All!L60+All!L61)/1000 -> 83.05418 | Z47: =(All!M60+All!M61)/1000 -> 79.05478 | AA47: =(All!N60+All!N61)/1000 -> 77.749724 | AB47: =(All!O60+All!O61)/1000 -> 72.505445 | AC47: =(All!P60+All!P61)/1000 -> 70.53724 | AD47: =(All!Q60+All!Q61)/1000 -> 73.575565 | AE47: =(All!R60+All!R61)/1000 -> 69.363982 | AF47: =(All!S60+All!S61)/1000 -> 63.965345 | AG47: =(All!T60+All!T61)/1000 -> 66.244976 | AH47: =(All!U60+All!U61)/1000 -> 61.19263 | AI47: =(All!V60+All!V61)/1000 -> 63.407289 | AJ47: =(All!W60+All!W61)/1000 -> 56.525752 | AK47: =(All!X60+All!X61)/1000 -> 60.847921 | AL47: =(All!Y60+All!Y61)/1000 -> 52.041174 | AM47: =(All!Z60+All!Z61)/1000 -> 51.172107 | AN47: =(All!AA60+All!AA61)/1000 -> 50.092733 | AO47: =(All!AB60+All!AB61)/1000 -> 49.134066 | AP47: =(All!AC60+All!AC61)/1000 -> 48.302556 | AQ47: =(All!AD60+All!AD61)/1000 -> 47.023402 | AR47: =(All!AE60+All!AE61)/1000 -> 46.208059 | AS47: =(All!AF60+All!AF61)/1000 -> 45.388004 | AT47: =(All!AG60+All!AG61)/1000 -> 44.882878 | AU47: =(All!AH60+All!AH61)/1000 -> 44.408479
P72: ="Occupational employment, "&CHAR(13)&P73 -> Occupational employment, Mining and quarrying
P73: =names!A5 -> Mining and quarrying | Q73: =Q38 -> 1992 | R73: 1993 | S73: 1994 | T73: 1995 | U73: 1996 | V73: 1997 | W73: 1998 | X73: 1999 | Y73: 2000 | Z73: 2001 | AA73: 2002 | AB73: 2003 | AC73: 2004 | AD73: 2005 | AE73: 2006 | AF73: 2007 | AG73: 2008 | AH73: 2009 | AI73: 2010 | AJ73: 2011 | AK73: 2012 | AL73: 2013 | AM73: 2014 | AN73: 2015 | AO73: 2016 | AP73: 2017 | AQ73: 2018 | AR73: 2019 | AS73: 2020 | AT73: 2021 | AU73: 2022
P74: =P39 -> Managers, directors and senior officials | Q74: =(All!D65+All!D66)/1000 -> 7.721646 | R74: =(All!E65+All!E66)/1000 -> 6.067055 | S74: =(All!F65+All!F66)/1000 -> 5.190182 | T74: =(All!G65+All!G66)/1000 -> 5.310402 | U74: =(All!H65+All!H66)/1000 -> 6.072265 | V74: =(All!I65+All!I66)/1000 -> 6.003944 | W74: =(All!J65+All!J66)/1000 -> 5.611757 | X74: =(All!K65+All!K66)/1000 -> 5.525146 | Y74: =(All!L65+All!L66)/1000 -> 6.425405 | Z74: =(All!M65+All!M66)/1000 -> 6.227423 | AA74: =(All!N65+All!N66)/1000 -> 5.493658 | AB74: =(All!O65+All!O66)/1000 -> 5.259772 | AC74: =(All!P65+All!P66)/1000 -> 5.090356 | AD74: =(All!Q65+All!Q66)/1000 -> 5.653493 | AE74: =(All!R65+All!R66)/1000 -> 6.138328 | AF74: =(All!S65+All!S66)/1000 -> 7.109124 | AG74: =(All!T65+All!T66)/1000 -> 7.204024 | AH74: =(All!U65+All!U66)/1000 -> 6.520405 | AI74: =(All!V65+All!V66)/1000 -> 6.478203 | AJ74: =(All!W65+All!W66)/1000 -> 6.942794 | AK74: =(All!X65+All!X66)/1000 -> 8.406779 | AL74: =(All!Y65+All!Y66)/1000 -> 7.886629 | AM74: =(All!Z65+All!Z66)/1000 -> 7.851351 | AN74: =(All!AA65+All!AA66)/1000 -> 7.916564 | AO74: =(All!AB65+All!AB66)/1000 -> 8.042325 | AP74: =(All!AC65+All!AC66)/1000 -> 8.173513 | AQ74: =(All!AD65+All!AD66)/1000 -> 8.214945 | AR74: =(All!AE65+All!AE66)/1000 -> 8.262595 | AS74: =(All!AF65+All!AF66)/1000 -> 8.308783 | AT74: =(All!AG65+All!AG66)/1000 -> 8.350818 | AU74: =(All!AH65+All!AH66)/1000 -> 8.40091
P75: Professional occupations | Q75: =(All!D67+All!D68+All!D69+All!D70)/1000 -> 17.855094 | R75: =(All!E67+All!E68+All!E69+All!E70)/1000 -> 13.382858 | S75: =(All!F67+All!F68+All!F69+All!F70)/1000 -> 11.292157 | T75: =(All!G67+All!G68+All!G69+All!G70)/1000 -> 11.405536 | U75: =(All!H67+All!H68+All!H69+All!H70)/1000 -> 12.32571 | V75: =(All!I67+All!I68+All!I69+All!I70)/1000 -> 12.119785 | W75: =(All!J67+All!J68+All!J69+All!J70)/1000 -> 11.687319 | X75: =(All!K67+All!K68+All!K69+All!K70)/1000 -> 11.427574 | Y75: =(All!L67+All!L68+All!L69+All!L70)/1000 -> 12.426136 | Z75: =(All!M67+All!M68+All!M69+All!M70)/1000 -> 11.947978 | AA75: =(All!N67+All!N68+All!N69+All!N70)/1000 -> 11.536201 | AB75: =(All!O67+All!O68+All!O69+All!O70)/1000 -> 10.1124 | AC75: =(All!P67+All!P68+All!P69+All!P70)/1000 -> 9.511987 | AD75: =(All!Q67+All!Q68+All!Q69+All!Q70)/1000 -> 9.826153 | AE75: =(All!R67+All!R68+All!R69+All!R70)/1000 -> 11.72617 | AF75: =(All!S67+All!S68+All!S69+All!S70)/1000 -> 12.68902 | AG75: =(All!T67+All!T68+All!T69+All!T70)/1000 -> 12.432682 | AH75: =(All!U67+All!U68+All!U69+All!U70)/1000 -> 12.422673 | AI75: =(All!V67+All!V68+All!V69+All!V70)/1000 -> 12.445428 | AJ75: =(All!W67+All!W68+All!W69+All!W70)/1000 -> 12.527015 | AK75: =(All!X67+All!X68+All!X69+All!X70)/1000 -> 14.882349 | AL75: =(All!Y67+All!Y68+All!Y69+All!Y70)/1000 -> 13.929126 | AM75: =(All!Z67+All!Z68+All!Z69+All!Z70)/1000 -> 13.771485 | AN75: =(All!AA67+All!AA68+All!AA69+All!AA70)/1000 -> 13.817501 | AO75: =(All!AB67+All!AB68+All!AB69+All!AB70)/1000 -> 13.983991 | AP75: =(All!AC67+All!AC68+All!AC69+All!AC70)/1000 -> 14.148162 | AQ75: =(All!AD67+All!AD68+All!AD69+All!AD70)/1000 -> 14.178783 | AR75: =(All!AE67+All!AE68+All!AE69+All!AE70)/1000 -> 14.20704 | AS75: =(All!AF67+All!AF68+All!AF69+All!AF70)/1000 -> 14.238493 | AT75: =(All!AG67+All!AG68+All!AG69+All!AG70)/1000 -> 14.246905 | AU75: =(All!AH67+All!AH68+All!AH69+All!AH70)/1000 -> 14.278586
P76: Associate professional and technical | Q76: =(All!D71+All!D72+All!D73+All!D74+All!D75)/1000 -> 16.433282 | R76: =(All!E71+All!E72+All!E73+All!E74+All!E75)/1000 -> 12.229544 | S76: =(All!F71+All!F72+All!F73+All!F74+All!F75)/1000 -> 10.105867 | T76: =(All!G71+All!G72+All!G73+All!G74+All!G75)/1000 -> 10.051738 | U76: =(All!H71+All!H72+All!H73+All!H74+All!H75)/1000 -> 11.227408 | V76: =(All!I71+All!I72+All!I73+All!I74+All!I75)/1000 -> 11.411979 | W76: =(All!J71+All!J72+All!J73+All!J74+All!J75)/1000 -> 10.951291 | X76: =(All!K71+All!K72+All!K73+All!K74+All!K75)/1000 -> 10.82584 | Y76: =(All!L71+All!L72+All!L73+All!L74+All!L75)/1000 -> 11.111445 | Z76: =(All!M71+All!M72+All!M73+All!M74+All!M75)/1000 -> 10.785838 | AA76: =(All!N71+All!N72+All!N73+All!N74+All!N75)/1000 -> 10.079887 | AB76: =(All!O71+All!O72+All!O73+All!O74+All!O75)/1000 -> 8.769301 | AC76: =(All!P71+All!P72+All!P73+All!P74+All!P75)/1000 -> 8.292696 | AD76: =(All!Q71+All!Q72+All!Q73+All!Q74+All!Q75)/1000 -> 8.303852 | AE76: =(All!R71+All!R72+All!R73+All!R74+All!R75)/1000 -> 8.95655 | AF76: =(All!S71+All!S72+All!S73+All!S74+All!S75)/1000 -> 9.439497 | AG76: =(All!T71+All!T72+All!T73+All!T74+All!T75)/1000 -> 9.602032 | AH76: =(All!U71+All!U72+All!U73+All!U74+All!U75)/1000 -> 8.272506 | AI76: =(All!V71+All!V72+All!V73+All!V74+All!V75)/1000 -> 8.139034 | AJ76: =(All!W71+All!W72+All!W73+All!W74+All!W75)/1000 -> 8.077296 | AK76: =(All!X71+All!X72+All!X73+All!X74+All!X75)/1000 -> 10.399493 | AL76: =(All!Y71+All!Y72+All!Y73+All!Y74+All!Y75)/1000 -> 9.631633 | AM76: =(All!Z71+All!Z72+All!Z73+All!Z74+All!Z75)/1000 -> 9.456889 | AN76: =(All!AA71+All!AA72+All!AA73+All!AA74+All!AA75)/1000 -> 9.439733 | AO76: =(All!AB71+All!AB72+All!AB73+All!AB74+All!AB75)/1000 -> 9.509139 | AP76: =(All!AC71+All!AC72+All!AC73+All!AC74+All!AC75)/1000 -> 9.599831 | AQ76: =(All!AD71+All!AD72+All!AD73+All!AD74+All!AD75)/1000 -> 9.581273 | AR76: =(All!AE71+All!AE72+All!AE73+All!AE74+All!AE75)/1000 -> 9.558779 | AS76: =(All!AF71+All!AF72+All!AF73+All!AF74+All!AF75)/1000 -> 9.544185 | AT76: =(All!AG71+All!AG72+All!AG73+All!AG74+All!AG75)/1000 -> 9.550198 | AU76: =(All!AH71+All!AH72+All!AH73+All!AH74+All!AH75)/1000 -> 9.565553
P77: Administrative and secretarial | Q77: =(All!D76+All!D77)/1000 -> 8.107096 | R77: =(All!E76+All!E77)/1000 -> 5.875417 | S77: =(All!F76+All!F77)/1000 -> 4.870831 | T77: =(All!G76+All!G77)/1000 -> 4.278182 | U77: =(All!H76+All!H77)/1000 -> 5.515371 | V77: =(All!I76+All!I77)/1000 -> 6.137548 | W77: =(All!J76+All!J77)/1000 -> 5.917143 | X77: =(All!K76+All!K77)/1000 -> 5.922354 | Y77: =(All!L76+All!L77)/1000 -> 6.742435 | Z77: =(All!M76+All!M77)/1000 -> 6.5419 | AA77: =(All!N76+All!N77)/1000 -> 6.264244 | AB77: =(All!O76+All!O77)/1000 -> 4.888609 | AC77: =(All!P76+All!P77)/1000 -> 4.881067 | AD77: =(All!Q76+All!Q77)/1000 -> 4.97625 | AE77: =(All!R76+All!R77)/1000 -> 5.727366 | AF77: =(All!S76+All!S77)/1000 -> 6.210934 | AG77: =(All!T76+All!T77)/1000 -> 5.568897 | AH77: =(All!U76+All!U77)/1000 -> 5.923267 | AI77: =(All!V76+All!V77)/1000 -> 5.219423 | AJ77: =(All!W76+All!W77)/1000 -> 5.207996 | AK77: =(All!X76+All!X77)/1000 -> 5.923285 | AL77: =(All!Y76+All!Y77)/1000 -> 5.412179 | AM77: =(All!Z76+All!Z77)/1000 -> 5.221727 | AN77: =(All!AA76+All!AA77)/1000 -> 5.123489 | AO77: =(All!AB76+All!AB77)/1000 -> 5.107578 | AP77: =(All!AC76+All!AC77)/1000 -> 5.097711 | AQ77: =(All!AD76+All!AD77)/1000 -> 4.990045 | AR77: =(All!AE76+All!AE77)/1000 -> 4.877979 | AS77: =(All!AF76+All!AF77)/1000 -> 4.776587 | AT77: =(All!AG76+All!AG77)/1000 -> 4.673575 | AU77: =(All!AH76+All!AH77)/1000 -> 4.57533
P78: Skilled trades occupations | Q78: =(All!D78+All!D79+All!D80+All!D81)/1000 -> 30.414328 | R78: =(All!E78+All!E79+All!E80+All!E81)/1000 -> 20.259499 | S78: =(All!F78+All!F79+All!F80+All!F81)/1000 -> 13.074684 | T78: =(All!G78+All!G79+All!G80+All!G81)/1000 -> 11.231722 | U78: =(All!H78+All!H79+All!H80+All!H81)/1000 -> 14.895891 | V78: =(All!I78+All!I79+All!I80+All!I81)/1000 -> 15.347294 | W78: =(All!J78+All!J79+All!J80+All!J81)/1000 -> 14.006434 | X78: =(All!K78+All!K79+All!K80+All!K81)/1000 -> 14.365517 | Y78: =(All!L78+All!L79+All!L80+All!L81)/1000 -> 14.198059 | Z78: =(All!M78+All!M79+All!M80+All!M81)/1000 -> 13.845702 | AA78: =(All!N78+All!N79+All!N80+All!N81)/1000 -> 12.57808 | AB78: =(All!O78+All!O79+All!O80+All!O81)/1000 -> 11.919726 | AC78: =(All!P78+All!P79+All!P80+All!P81)/1000 -> 10.984322 | AD78: =(All!Q78+All!Q79+All!Q80+All!Q81)/1000 -> 10.843255 | AE78: =(All!R78+All!R79+All!R80+All!R81)/1000 -> 11.33572 | AF78: =(All!S78+All!S79+All!S80+All!S81)/1000 -> 12.027461 | AG78: =(All!T78+All!T79+All!T80+All!T81)/1000 -> 12.423508 | AH78: =(All!U78+All!U79+All!U80+All!U81)/1000 -> 11.208391 | AI78: =(All!V78+All!V79+All!V80+All!V81)/1000 -> 11.228211 | AJ78: =(All!W78+All!W79+All!W80+All!W81)/1000 -> 11.367274 | AK78: =(All!X78+All!X79+All!X80+All!X81)/1000 -> 13.438113 | AL78: =(All!Y78+All!Y79+All!Y80+All!Y81)/1000 -> 12.174275 | AM78: =(All!Z78+All!Z79+All!Z80+All!Z81)/1000 -> 11.882392 | AN78: =(All!AA78+All!AA79+All!AA80+All!AA81)/1000 -> 11.728285 | AO78: =(All!AB78+All!AB79+All!AB80+All!AB81)/1000 -> 11.569521 | AP78: =(All!AC78+All!AC79+All!AC80+All!AC81)/1000 -> 11.459963 | AQ78: =(All!AD78+All!AD79+All!AD80+All!AD81)/1000 -> 11.235558 | AR78: =(All!AE78+All!AE79+All!AE80+All!AE81)/1000 -> 11.053076 | AS78: =(All!AF78+All!AF79+All!AF80+All!AF81)/1000 -> 10.863573 | AT78: =(All!AG78+All!AG79+All!AG80+All!AG81)/1000 -> 10.618708 | AU78: =(All!AH78+All!AH79+All!AH80+All!AH81)/1000 -> 10.392691
P79: Caring, leisure and other service | Q79: =(All!D82+All!D83)/1000 -> 0.72568 | R79: =(All!E82+All!E83)/1000 -> 0.71026 | S79: =(All!F82+All!F83)/1000 -> 0.646628 | T79: =(All!G82+All!G83)/1000 -> 0.77517 | U79: =(All!H82+All!H83)/1000 -> 0.769176 | V79: =(All!I82+All!I83)/1000 -> 0.822473 | W79: =(All!J82+All!J83)/1000 -> 0.910928 | X79: =(All!K82+All!K83)/1000 -> 0.94295 | Y79: =(All!L82+All!L83)/1000 -> 1.066393 | Z79: =(All!M82+All!M83)/1000 -> 0.968464 | AA79: =(All!N82+All!N83)/1000 -> 1.108859 | AB79: =(All!O82+All!O83)/1000 -> 0.940575 | AC79: =(All!P82+All!P83)/1000 -> 1.153746 | AD79: =(All!Q82+All!Q83)/1000 -> 1.016091 | AE79: =(All!R82+All!R83)/1000 -> 0.798286 | AF79: =(All!S82+All!S83)/1000 -> 0.857302 | AG79: =(All!T82+All!T83)/1000 -> 1.06521 | AH79: =(All!U82+All!U83)/1000 -> 0.768371 | AI79: =(All!V82+All!V83)/1000 -> 0.794333 | AJ79: =(All!W82+All!W83)/1000 -> 0.895383 | AK79: =(All!X82+All!X83)/1000 -> 1.162123 | AL79: =(All!Y82+All!Y83)/1000 -> 1.149497 | AM79: =(All!Z82+All!Z83)/1000 -> 1.180472 | AN79: =(All!AA82+All!AA83)/1000 -> 1.222775 | AO79: =(All!AB82+All!AB83)/1000 -> 1.22896 | AP79: =(All!AC82+All!AC83)/1000 -> 1.252093 | AQ79: =(All!AD82+All!AD83)/1000 -> 1.265584 | AR79: =(All!AE82+All!AE83)/1000 -> 1.269627 | AS79: =(All!AF82+All!AF83)/1000 -> 1.276352 | AT79: =(All!AG82+All!AG83)/1000 -> 1.300665 | AU79: =(All!AH82+All!AH83)/1000 -> 1.326468
P80: Sales and customer service | Q80: =(All!D84+All!D85)/1000 -> 1.245593 | R80: =(All!E84+All!E85)/1000 -> 1.055105 | S80: =(All!F84+All!F85)/1000 -> 0.942238 | T80: =(All!G84+All!G85)/1000 -> 0.945421 | U80: =(All!H84+All!H85)/1000 -> 1.12327 | V80: =(All!I84+All!I85)/1000 -> 1.23919 | W80: =(All!J84+All!J85)/1000 -> 1.239633 | X80: =(All!K84+All!K85)/1000 -> 1.302806 | Y80: =(All!L84+All!L85)/1000 -> 1.453121 | Z80: =(All!M84+All!M85)/1000 -> 1.53388 | AA80: =(All!N84+All!N85)/1000 -> 1.427575 | AB80: =(All!O84+All!O85)/1000 -> 1.328903 | AC80: =(All!P84+All!P85)/1000 -> 1.276393 | AD80: =(All!Q84+All!Q85)/1000 -> 1.300918 | AE80: =(All!R84+All!R85)/1000 -> 1.459105 | AF80: =(All!S84+All!S85)/1000 -> 1.555772 | AG80: =(All!T84+All!T85)/1000 -> 1.594731 | AH80: =(All!U84+All!U85)/1000 -> 1.454714 | AI80: =(All!V84+All!V85)/1000 -> 1.345514 | AJ80: =(All!W84+All!W85)/1000 -> 1.430852 | AK80: =(All!X84+All!X85)/1000 -> 1.688997 | AL80: =(All!Y84+All!Y85)/1000 -> 1.554311 | AM80: =(All!Z84+All!Z85)/1000 -> 1.520688 | AN80: =(All!AA84+All!AA85)/1000 -> 1.508622 | AO80: =(All!AB84+All!AB85)/1000 -> 1.513103 | AP80: =(All!AC84+All!AC85)/1000 -> 1.514578 | AQ80: =(All!AD84+All!AD85)/1000 -> 1.505726 | AR80: =(All!AE84+All!AE85)/1000 -> 1.499989 | AS80: =(All!AF84+All!AF85)/1000 -> 1.49657 | AT80: =(All!AG84+All!AG85)/1000 -> 1.492031 | AU80: =(All!AH84+All!AH85)/1000 -> 1.48726
P81: Process, plant and machine operatives | Q81: =(All!D86+All!D87)/1000 -> 33.24502 | R81: =(All!E86+All!E87)/1000 -> 23.812001 | S81: =(All!F86+All!F87)/1000 -> 19.46761 | T81: =(All!G86+All!G87)/1000 -> 19.832485 | U81: =(All!H86+All!H87)/1000 -> 24.231425 | V81: =(All!I86+All!I87)/1000 -> 24.158056 | W81: =(All!J86+All!J87)/1000 -> 22.96554 | X81: =(All!K86+All!K87)/1000 -> 22.035845 | Y81: =(All!L86+All!L87)/1000 -> 21.81777 | Z81: =(All!M86+All!M87)/1000 -> 20.479165 | AA81: =(All!N86+All!N87)/1000 -> 18.352655 | AB81: =(All!O86+All!O87)/1000 -> 16.75628 | AC81: =(All!P86+All!P87)/1000 -> 15.105032 | AD81: =(All!Q86+All!Q87)/1000 -> 15.404511 | AE81: =(All!R86+All!R87)/1000 -> 15.257631 | AF81: =(All!S86+All!S87)/1000 -> 16.057369 | AG81: =(All!T86+All!T87)/1000 -> 15.149455 | AH81: =(All!U86+All!U87)/1000 -> 13.806901 | AI81: =(All!V86+All!V87)/1000 -> 12.95014 | AJ81: =(All!W86+All!W87)/1000 -> 12.950318 | AK81: =(All!X86+All!X87)/1000 -> 14.473385 | AL81: =(All!Y86+All!Y87)/1000 -> 13.312152 | AM81: =(All!Z86+All!Z87)/1000 -> 12.918293 | AN81: =(All!AA86+All!AA87)/1000 -> 12.676373 | AO81: =(All!AB86+All!AB87)/1000 -> 12.503007 | AP81: =(All!AC86+All!AC87)/1000 -> 12.414537 | AQ81: =(All!AD86+All!AD87)/1000 -> 12.204933 | AR81: =(All!AE86+All!AE87)/1000 -> 12.010967 | AS81: =(All!AF86+All!AF87)/1000 -> 11.812908 | AT81: =(All!AG86+All!AG87)/1000 -> 11.56905 | AU81: =(All!AH86+All!AH87)/1000 -> 11.344128
P82: Elementary occupations | Q82: =(All!D88+All!D89)/1000 -> 3.437261 | R82: =(All!E88+All!E89)/1000 -> 2.988261 | S82: =(All!F88+All!F89)/1000 -> 2.503802 | T82: =(All!G88+All!G89)/1000 -> 2.552346 | U82: =(All!H88+All!H89)/1000 -> 2.961484 | V82: =(All!I88+All!I89)/1000 -> 2.87673 | W82: =(All!J88+All!J89)/1000 -> 2.758954 | X82: =(All!K88+All!K89)/1000 -> 2.722967 | Y82: =(All!L88+All!L89)/1000 -> 2.917239 | Z82: =(All!M88+All!M89)/1000 -> 2.795648 | AA82: =(All!N88+All!N89)/1000 -> 2.402842 | AB82: =(All!O88+All!O89)/1000 -> 2.274433 | AC82: =(All!P88+All!P89)/1000 -> 1.9354 | AD82: =(All!Q88+All!Q89)/1000 -> 1.969477 | AE82: =(All!R88+All!R89)/1000 -> 1.861843 | AF82: =(All!S88+All!S89)/1000 -> 2.373522 | AG82: =(All!T88+All!T89)/1000 -> 2.29346 | AH82: =(All!U88+All!U89)/1000 -> 1.770771 | AI82: =(All!V88+All!V89)/1000 -> 1.537713 | AJ82: =(All!W88+All!W89)/1000 -> 1.731071 | AK82: =(All!X88+All!X89)/1000 -> 2.802477 | AL82: =(All!Y88+All!Y89)/1000 -> 2.632197 | AM82: =(All!Z88+All!Z89)/1000 -> 2.677702 | AN82: =(All!AA88+All!AA89)/1000 -> 2.851659 | AO82: =(All!AB88+All!AB89)/1000 -> 2.836374 | AP82: =(All!AC88+All!AC89)/1000 -> 2.81461 | AQ82: =(All!AD88+All!AD89)/1000 -> 2.784152 | AR82: =(All!AE88+All!AE89)/1000 -> 2.757945 | AS82: =(All!AF88+All!AF89)/1000 -> 2.731551 | AT82: =(All!AG88+All!AG89)/1000 -> 2.770048 | AU82: =(All!AH88+All!AH89)/1000 -> 2.813073
P107: ="Occupational employment, "&CHAR(13)&P108 -> Occupational employment, Food drink and tobacco
P108: =names!A6 -> Food drink and tobacco | Q108: =Q73 -> 1992 | R108: 1993 | S108: 1994 | T108: 1995 | U108: 1996 | V108: 1997 | W108: 1998 | X108: 1999 | Y108: 2000 | Z108: 2001 | AA108: 2002 | AB108: 2003 | AC108: 2004 | AD108: 2005 | AE108: 2006 | AF108: 2007 | AG108: 2008 | AH108: 2009 | AI108: 2010 | AJ108: 2011 | AK108: 2012 | AL108: 2013 | AM108: 2014 | AN108: 2015 | AO108: 2016 | AP108: 2017 | AQ108: 2018 | AR108: 2019 | AS108: 2020 | AT108: 2021 | AU108: 2022
P109: =P74 -> Managers, directors and senior officials | Q109: =(All!D93+All!D94)/1000 -> 26.100213 | R109: =(All!E93+All!E94)/1000 -> 26.197375 | S109: =(All!F93+All!F94)/1000 -> 26.290842 | T109: =(All!G93+All!G94)/1000 -> 26.238265 | U109: =(All!H93+All!H94)/1000 -> 27.646267 | V109: =(All!I93+All!I94)/1000 -> 29.393746 | W109: =(All!J93+All!J94)/1000 -> 32.12059 | X109: =(All!K93+All!K94)/1000 -> 33.904695 | Y109: =(All!L93+All!L94)/1000 -> 34.824122 | Z109: =(All!M93+All!M94)/1000 -> 34.303593 | AA109: =(All!N93+All!N94)/1000 -> 33.267028 | AB109: =(All!O93+All!O94)/1000 -> 36.69681 | AC109: =(All!P93+All!P94)/1000 -> 39.230605 | AD109: =(All!Q93+All!Q94)/1000 -> 41.760922 | AE109: =(All!R93+All!R94)/1000 -> 42.435533 | AF109: =(All!S93+All!S94)/1000 -> 39.854101 | AG109: =(All!T93+All!T94)/1000 -> 38.947034 | AH109: =(All!U93+All!U94)/1000 -> 45.208943 | AI109: =(All!V93+All!V94)/1000 -> 32.143197 | AJ109: =(All!W93+All!W94)/1000 -> 31.902612 | AK109: =(All!X93+All!X94)/1000 -> 34.64148 | AL109: =(All!Y93+All!Y94)/1000 -> 36.148431 | AM109: =(All!Z93+All!Z94)/1000 -> 36.860348 | AN109: =(All!AA93+All!AA94)/1000 -> 37.533765 | AO109: =(All!AB93+All!AB94)/1000 -> 38.469591 | AP109: =(All!AC93+All!AC94)/1000 -> 39.342784 | AQ109: =(All!AD93+All!AD94)/1000 -> 39.958956 | AR109: =(All!AE93+All!AE94)/1000 -> 40.47203 | AS109: =(All!AF93+All!AF94)/1000 -> 41.072509 | AT109: =(All!AG93+All!AG94)/1000 -> 41.554532 | AU109: =(All!AH93+All!AH94)/1000 -> 42.079838
P110: Professional occupations | Q110: =(All!D95+All!D96+All!D97+All!D98)/1000 -> 23.344117 | R110: =(All!E95+All!E96+All!E97+All!E98)/1000 -> 23.007481 | S110: =(All!F95+All!F96+All!F97+All!F98)/1000 -> 23.061609 | T110: =(All!G95+All!G96+All!G97+All!G98)/1000 -> 23.094186 | U110: =(All!H95+All!H96+All!H97+All!H98)/1000 -> 24.293913 | V110: =(All!I95+All!I96+All!I97+All!I98)/1000 -> 25.33756 | W110: =(All!J95+All!J96+All!J97+All!J98)/1000 -> 27.19177 | X110: =(All!K95+All!K96+All!K97+All!K98)/1000 -> 27.98954 | Y110: =(All!L95+All!L96+All!L97+All!L98)/1000 -> 28.304073 | Z110: =(All!M95+All!M96+All!M97+All!M98)/1000 -> 27.539901 | AA110: =(All!N95+All!N96+All!N97+All!N98)/1000 -> 28.948774 | AB110: =(All!O95+All!O96+All!O97+All!O98)/1000 -> 28.363216 | AC110: =(All!P95+All!P96+All!P97+All!P98)/1000 -> 31.168878 | AD110: =(All!Q95+All!Q96+All!Q97+All!Q98)/1000 -> 30.221711 | AE110: =(All!R95+All!R96+All!R97+All!R98)/1000 -> 30.687321 | AF110: =(All!S95+All!S96+All!S97+All!S98)/1000 -> 31.73025 | AG110: =(All!T95+All!T96+All!T97+All!T98)/1000 -> 33.05716 | AH110: =(All!U95+All!U96+All!U97+All!U98)/1000 -> 29.904 | AI110: =(All!V95+All!V96+All!V97+All!V98)/1000 -> 23.297234 | AJ110: =(All!W95+All!W96+All!W97+All!W98)/1000 -> 22.456259 | AK110: =(All!X95+All!X96+All!X97+All!X98)/1000 -> 24.667352 | AL110: =(All!Y95+All!Y96+All!Y97+All!Y98)/1000 -> 26.016735 | AM110: =(All!Z95+All!Z96+All!Z97+All!Z98)/1000 -> 26.590834 | AN110: =(All!AA95+All!AA96+All!AA97+All!AA98)/1000 -> 27.167457 | AO110: =(All!AB95+All!AB96+All!AB97+All!AB98)/1000 -> 27.790221 | AP110: =(All!AC95+All!AC96+All!AC97+All!AC98)/1000 -> 28.351868 | AQ110: =(All!AD95+All!AD96+All!AD97+All!AD98)/1000 -> 28.746638 | AR110: =(All!AE95+All!AE96+All!AE97+All!AE98)/1000 -> 29.025757 | AS110: =(All!AF95+All!AF96+All!AF97+All!AF98)/1000 -> 29.336359 | AT110: =(All!AG95+All!AG96+All!AG97+All!AG98)/1000 -> 29.665686 | AU110: =(All!AH95+All!AH96+All!AH97+All!AH98)/1000 -> 30.046848
P111: Associate professional and technical | Q111: =(All!D99+All!D100+All!D101+All!D102+All!D103)/1000 -> 37.603975 | R111: =(All!E99+All!E100+All!E101+All!E102+All!E103)/1000 -> 37.058866 | S111: =(All!F99+All!F100+All!F101+All!F102+All!F103)/1000 -> 36.981872 | T111: =(All!G99+All!G100+All!G101+All!G102+All!G103)/1000 -> 37.335913 | U111: =(All!H99+All!H100+All!H101+All!H102+All!H103)/1000 -> 37.981083 | V111: =(All!I99+All!I100+All!I101+All!I102+All!I103)/1000 -> 40.35301 | W111: =(All!J99+All!J100+All!J101+All!J102+All!J103)/1000 -> 42.379213 | X111: =(All!K99+All!K100+All!K101+All!K102+All!K103)/1000 -> 42.784296 | Y111: =(All!L99+All!L100+All!L101+All!L102+All!L103)/1000 -> 42.888215 | Z111: =(All!M99+All!M100+All!M101+All!M102+All!M103)/1000 -> 41.400592 | AA111: =(All!N99+All!N100+All!N101+All!N102+All!N103)/1000 -> 43.811863 | AB111: =(All!O99+All!O100+All!O101+All!O102+All!O103)/1000 -> 41.180437 | AC111: =(All!P99+All!P100+All!P101+All!P102+All!P103)/1000 -> 44.067263 | AD111: =(All!Q99+All!Q100+All!Q101+All!Q102+All!Q103)/1000 -> 36.141967 | AE111: =(All!R99+All!R100+All!R101+All!R102+All!R103)/1000 -> 37.415284 | AF111: =(All!S99+All!S100+All!S101+All!S102+All!S103)/1000 -> 36.721252 | AG111: =(All!T99+All!T100+All!T101+All!T102+All!T103)/1000 -> 36.820279 | AH111: =(All!U99+All!U100+All!U101+All!U102+All!U103)/1000 -> 37.614699 | AI111: =(All!V99+All!V100+All!V101+All!V102+All!V103)/1000 -> 41.172929 | AJ111: =(All!W99+All!W100+All!W101+All!W102+All!W103)/1000 -> 40.50992 | AK111: =(All!X99+All!X100+All!X101+All!X102+All!X103)/1000 -> 43.238162 | AL111: =(All!Y99+All!Y100+All!Y101+All!Y102+All!Y103)/1000 -> 44.874956 | AM111: =(All!Z99+All!Z100+All!Z101+All!Z102+All!Z103)/1000 -> 45.24771 | AN111: =(All!AA99+All!AA100+All!AA101+All!AA102+All!AA103)/1000 -> 45.64906 | AO111: =(All!AB99+All!AB100+All!AB101+All!AB102+All!AB103)/1000 -> 46.385719 | AP111: =(All!AC99+All!AC100+All!AC101+All!AC102+All!AC103)/1000 -> 47.0829 | AQ111: =(All!AD99+All!AD100+All!AD101+All!AD102+All!AD103)/1000 -> 47.417101 | AR111: =(All!AE99+All!AE100+All!AE101+All!AE102+All!AE103)/1000 -> 47.568762 | AS111: =(All!AF99+All!AF100+All!AF101+All!AF102+All!AF103)/1000 -> 47.848283 | AT111: =(All!AG99+All!AG100+All!AG101+All!AG102+All!AG103)/1000 -> 48.100447 | AU111: =(All!AH99+All!AH100+All!AH101+All!AH102+All!AH103)/1000 -> 48.418865
P112: Administrative and secretarial | Q112: =(All!D104+All!D105)/1000 -> 49.11813 | R112: =(All!E104+All!E105)/1000 -> 47.446427 | S112: =(All!F104+All!F105)/1000 -> 46.190847 | T112: =(All!G104+All!G105)/1000 -> 46.052359 | U112: =(All!H104+All!H105)/1000 -> 44.729837 | V112: =(All!I104+All!I105)/1000 -> 49.635086 | W112: =(All!J104+All!J105)/1000 -> 48.288512 | X112: =(All!K104+All!K105)/1000 -> 42.709598 | Y112: =(All!L104+All!L105)/1000 -> 41.67892 | Z112: =(All!M104+All!M105)/1000 -> 40.606966 | AA112: =(All!N104+All!N105)/1000 -> 33.804199 | AB112: =(All!O104+All!O105)/1000 -> 35.49139 | AC112: =(All!P104+All!P105)/1000 -> 34.024064 | AD112: =(All!Q104+All!Q105)/1000 -> 32.224364 | AE112: =(All!R104+All!R105)/1000 -> 30.030007 | AF112: =(All!S104+All!S105)/1000 -> 29.854795 | AG112: =(All!T104+All!T105)/1000 -> 28.078597 | AH112: =(All!U104+All!U105)/1000 -> 29.857187 | AI112: =(All!V104+All!V105)/1000 -> 29.483552 | AJ112: =(All!W104+All!W105)/1000 -> 28.599969 | AK112: =(All!X104+All!X105)/1000 -> 30.719052 | AL112: =(All!Y104+All!Y105)/1000 -> 31.822183 | AM112: =(All!Z104+All!Z105)/1000 -> 31.951983 | AN112: =(All!AA104+All!AA105)/1000 -> 31.987688 | AO112: =(All!AB104+All!AB105)/1000 -> 31.862486 | AP112: =(All!AC104+All!AC105)/1000 -> 31.711259 | AQ112: =(All!AD104+All!AD105)/1000 -> 31.323045 | AR112: =(All!AE104+All!AE105)/1000 -> 30.787273 | AS112: =(All!AF104+All!AF105)/1000 -> 30.345579 | AT112: =(All!AG104+All!AG105)/1000 -> 30.234017 | AU112: =(All!AH104+All!AH105)/1000 -> 30.166558
P113: Skilled trades occupations | Q113: =(All!D106+All!D107+All!D108+All!D109)/1000 -> 84.659541 | R113: =(All!E106+All!E107+All!E108+All!E109)/1000 -> 81.771946 | S113: =(All!F106+All!F107+All!F108+All!F109)/1000 -> 78.588166 | T113: =(All!G106+All!G107+All!G108+All!G109)/1000 -> 75.957619 | U113: =(All!H106+All!H107+All!H108+All!H109)/1000 -> 77.491333 | V113: =(All!I106+All!I107+All!I108+All!I109)/1000 -> 79.605971 | W113: =(All!J106+All!J107+All!J108+All!J109)/1000 -> 82.960979 | X113: =(All!K106+All!K107+All!K108+All!K109)/1000 -> 85.511234 | Y113: =(All!L106+All!L107+All!L108+All!L109)/1000 -> 84.82013 | Z113: =(All!M106+All!M107+All!M108+All!M109)/1000 -> 82.03049 | AA113: =(All!N106+All!N107+All!N108+All!N109)/1000 -> 80.82717 | AB113: =(All!O106+All!O107+All!O108+All!O109)/1000 -> 80.634772 | AC113: =(All!P106+All!P107+All!P108+All!P109)/1000 -> 73.155921 | AD113: =(All!Q106+All!Q107+All!Q108+All!Q109)/1000 -> 67.72961 | AE113: =(All!R106+All!R107+All!R108+All!R109)/1000 -> 58.107979 | AF113: =(All!S106+All!S107+All!S108+All!S109)/1000 -> 70.160691 | AG113: =(All!T106+All!T107+All!T108+All!T109)/1000 -> 69.281276 | AH113: =(All!U106+All!U107+All!U108+All!U109)/1000 -> 57.250078 | AI113: =(All!V106+All!V107+All!V108+All!V109)/1000 -> 60.0579 | AJ113: =(All!W106+All!W107+All!W108+All!W109)/1000 -> 56.437801 | AK113: =(All!X106+All!X107+All!X108+All!X109)/1000 -> 59.959008 | AL113: =(All!Y106+All!Y107+All!Y108+All!Y109)/1000 -> 58.329412 | AM113: =(All!Z106+All!Z107+All!Z108+All!Z109)/1000 -> 56.495496 | AN113: =(All!AA106+All!AA107+All!AA108+All!AA109)/1000 -> 54.510682 | AO113: =(All!AB106+All!AB107+All!AB108+All!AB109)/1000 -> 53.557433 | AP113: =(All!AC106+All!AC107+All!AC108+All!AC109)/1000 -> 52.408915 | AQ113: =(All!AD106+All!AD107+All!AD108+All!AD109)/1000 -> 50.931733 | AR113: =(All!AE106+All!AE107+All!AE108+All!AE109)/1000 -> 49.599845 | AS113: =(All!AF106+All!AF107+All!AF108+All!AF109)/1000 -> 48.313874 | AT113: =(All!AG106+All!AG107+All!AG108+All!AG109)/1000 -> 46.59559 | AU113: =(All!AH106+All!AH107+All!AH108+All!AH109)/1000 -> 44.984114
P114: Caring, leisure and other service | Q114: =(All!D110+All!D111)/1000 -> 2.760223 | R114: =(All!E110+All!E111)/1000 -> 2.752622 | S114: =(All!F110+All!F111)/1000 -> 2.710565 | T114: =(All!G110+All!G111)/1000 -> 2.684076 | U114: =(All!H110+All!H111)/1000 -> 2.649654 | V114: =(All!I110+All!I111)/1000 -> 3.138195 | W114: =(All!J110+All!J111)/1000 -> 3.068379 | X114: =(All!K110+All!K111)/1000 -> 3.017193 | Y114: =(All!L110+All!L111)/1000 -> 2.948642 | Z114: =(All!M110+All!M111)/1000 -> 3.07778 | AA114: =(All!N110+All!N111)/1000 -> 3.114048 | AB114: =(All!O110+All!O111)/1000 -> 2.848887 | AC114: =(All!P110+All!P111)/1000 -> 2.829335 | AD114: =(All!Q110+All!Q111)/1000 -> 2.888554 | AE114: =(All!R110+All!R111)/1000 -> 2.825875 | AF114: =(All!S110+All!S111)/1000 -> 2.967233 | AG114: =(All!T110+All!T111)/1000 -> 2.887251 | AH114: =(All!U110+All!U111)/1000 -> 2.894373 | AI114: =(All!V110+All!V111)/1000 -> 2.881835 | AJ114: =(All!W110+All!W111)/1000 -> 2.826847 | AK114: =(All!X110+All!X111)/1000 -> 3.09012 | AL114: =(All!Y110+All!Y111)/1000 -> 3.318939 | AM114: =(All!Z110+All!Z111)/1000 -> 3.446998 | AN114: =(All!AA110+All!AA111)/1000 -> 3.574279 | AO114: =(All!AB110+All!AB111)/1000 -> 3.656251 | AP114: =(All!AC110+All!AC111)/1000 -> 3.726344 | AQ114: =(All!AD110+All!AD111)/1000 -> 3.798789 | AR114: =(All!AE110+All!AE111)/1000 -> 3.842112 | AS114: =(All!AF110+All!AF111)/1000 -> 3.881604 | AT114: =(All!AG110+All!AG111)/1000 -> 3.960763 | AU114: =(All!AH110+All!AH111)/1000 -> 4.048879
P115: Sales and customer service | Q115: =(All!D112+All!D113)/1000 -> 15.970585 | R115: =(All!E112+All!E113)/1000 -> 15.857963 | S115: =(All!F112+All!F113)/1000 -> 15.873882 | T115: =(All!G112+All!G113)/1000 -> 16.356433 | U115: =(All!H112+All!H113)/1000 -> 16.973639 | V115: =(All!I112+All!I113)/1000 -> 19.650723 | W115: =(All!J112+All!J113)/1000 -> 19.151791 | X115: =(All!K112+All!K113)/1000 -> 17.555449 | Y115: =(All!L112+All!L113)/1000 -> 17.69427 | Z115: =(All!M112+All!M113)/1000 -> 17.201555 | AA115: =(All!N112+All!N113)/1000 -> 15.400881 | AB115: =(All!O112+All!O113)/1000 -> 17.144958 | AC115: =(All!P112+All!P113)/1000 -> 15.70625 | AD115: =(All!Q112+All!Q113)/1000 -> 14.749387 | AE115: =(All!R112+All!R113)/1000 -> 13.298342 | AF115: =(All!S112+All!S113)/1000 -> 13.286703 | AG115: =(All!T112+All!T113)/1000 -> 12.788061 | AH115: =(All!U112+All!U113)/1000 -> 13.642027 | AI115: =(All!V112+All!V113)/1000 -> 15.921518 | AJ115: =(All!W112+All!W113)/1000 -> 15.500821 | AK115: =(All!X112+All!X113)/1000 -> 16.466746 | AL115: =(All!Y112+All!Y113)/1000 -> 17.005575 | AM115: =(All!Z112+All!Z113)/1000 -> 17.094292 | AN115: =(All!AA112+All!AA113)/1000 -> 17.055915 | AO115: =(All!AB112+All!AB113)/1000 -> 17.245165 | AP115: =(All!AC112+All!AC113)/1000 -> 17.37744 | AQ115: =(All!AD112+All!AD113)/1000 -> 17.372655 | AR115: =(All!AE112+All!AE113)/1000 -> 17.343681 | AS115: =(All!AF112+All!AF113)/1000 -> 17.366652 | AT115: =(All!AG112+All!AG113)/1000 -> 17.404378 | AU115: =(All!AH112+All!AH113)/1000 -> 17.435405
P116: Process, plant and machine operatives | Q116: =(All!D114+All!D115)/1000 -> 186.312578 | R116: =(All!E114+All!E115)/1000 -> 179.843732 | S116: =(All!F114+All!F115)/1000 -> 175.731738 | T116: =(All!G114+All!G115)/1000 -> 174.161226 | U116: =(All!H114+All!H115)/1000 -> 174.308968 | V116: =(All!I114+All!I115)/1000 -> 184.234552 | W116: =(All!J114+All!J115)/1000 -> 184.197323 | X116: =(All!K114+All!K115)/1000 -> 186.245266 | Y116: =(All!L114+All!L115)/1000 -> 180.753815 | Z116: =(All!M114+All!M115)/1000 -> 176.17192 | AA116: =(All!N114+All!N115)/1000 -> 167.700323 | AB116: =(All!O114+All!O115)/1000 -> 160.841049 | AC116: =(All!P114+All!P115)/1000 -> 158.241619 | AD116: =(All!Q114+All!Q115)/1000 -> 149.997165 | AE116: =(All!R114+All!R115)/1000 -> 149.276417 | AF116: =(All!S114+All!S115)/1000 -> 150.590114 | AG116: =(All!T114+All!T115)/1000 -> 139.197373 | AH116: =(All!U114+All!U115)/1000 -> 117.129985 | AI116: =(All!V114+All!V115)/1000 -> 133.457452 | AJ116: =(All!W114+All!W115)/1000 -> 127.224863 | AK116: =(All!X114+All!X115)/1000 -> 130.105256 | AL116: =(All!Y114+All!Y115)/1000 -> 128.885671 | AM116: =(All!Z114+All!Z115)/1000 -> 125.274475 | AN116: =(All!AA114+All!AA115)/1000 -> 121.237909 | AO116: =(All!AB114+All!AB115)/1000 -> 119.334081 | AP116: =(All!AC114+All!AC115)/1000 -> 117.029861 | AQ116: =(All!AD114+All!AD115)/1000 -> 113.840354 | AR116: =(All!AE114+All!AE115)/1000 -> 110.496834 | AS116: =(All!AF114+All!AF115)/1000 -> 107.374265 | AT116: =(All!AG114+All!AG115)/1000 -> 103.276273 | AU116: =(All!AH114+All!AH115)/1000 -> 99.449869
P117: Elementary occupations | Q117: =(All!D116+All!D117)/1000 -> 84.884637 | R117: =(All!E116+All!E117)/1000 -> 80.484587 | S117: =(All!F116+All!F117)/1000 -> 77.208479 | T117: =(All!G116+All!G117)/1000 -> 75.723922 | U117: =(All!H116+All!H117)/1000 -> 73.249307 | V117: =(All!I116+All!I117)/1000 -> 78.494158 | W117: =(All!J116+All!J117)/1000 -> 75.882445 | X117: =(All!K116+All!K117)/1000 -> 73.669731 | Y117: =(All!L116+All!L117)/1000 -> 72.544814 | Z117: =(All!M116+All!M117)/1000 -> 68.938202 | AA117: =(All!N116+All!N117)/1000 -> 69.851713 | AB117: =(All!O116+All!O117)/1000 -> 64.425481 | AC117: =(All!P116+All!P117)/1000 -> 59.351065 | AD117: =(All!Q116+All!Q117)/1000 -> 67.999318 | AE117: =(All!R116+All!R117)/1000 -> 67.113242 | AF117: =(All!S116+All!S117)/1000 -> 58.361862 | AG117: =(All!T116+All!T117)/1000 -> 58.479969 | AH117: =(All!U116+All!U117)/1000 -> 66.319709 | AI117: =(All!V116+All!V117)/1000 -> 71.643383 | AJ117: =(All!W116+All!W117)/1000 -> 69.383907 | AK117: =(All!X116+All!X117)/1000 -> 72.824826 | AL117: =(All!Y116+All!Y117)/1000 -> 72.540095 | AM117: =(All!Z116+All!Z117)/1000 -> 72.130864 | AN117: =(All!AA116+All!AA117)/1000 -> 71.626244 | AO117: =(All!AB116+All!AB117)/1000 -> 72.344054 | AP117: =(All!AC116+All!AC117)/1000 -> 72.763627 | AQ117: =(All!AD116+All!AD117)/1000 -> 72.535731 | AR117: =(All!AE116+All!AE117)/1000 -> 72.301704 | AS117: =(All!AF116+All!AF117)/1000 -> 72.192876 | AT117: =(All!AG116+All!AG117)/1000 -> 72.109315 | AU117: =(All!AH116+All!AH117)/1000 -> 72.114623
P142: ="Occupational employment, "&CHAR(13)&P143 -> Occupational employment, Engineering
P143: =names!A7 -> Engineering | Q143: =Q108 -> 1992 | R143: 1993 | S143: 1994 | T143: 1995 | U143: 1996 | V143: 1997 | W143: 1998 | X143: 1999 | Y143: 2000 | Z143: 2001 | AA143: 2002 | AB143: 2003 | AC143: 2004 | AD143: 2005 | AE143: 2006 | AF143: 2007 | AG143: 2008 | AH143: 2009 | AI143: 2010 | AJ143: 2011 | AK143: 2012 | AL143: 2013 | AM143: 2014 | AN143: 2015 | AO143: 2016 | AP143: 2017 | AQ143: 2018 | AR143: 2019 | AS143: 2020 | AT143: 2021 | AU143: 2022
P144: =P109 -> Managers, directors and senior officials | Q144: =(All!D121+All!D122)/1000 -> 61.551739 | R144: =(All!E121+All!E122)/1000 -> 58.361518 | S144: =(All!F121+All!F122)/1000 -> 60.676658 | T144: =(All!G121+All!G122)/1000 -> 66.344773 | U144: =(All!H121+All!H122)/1000 -> 69.187803 | V144: =(All!I121+All!I122)/1000 -> 71.305066 | W144: =(All!J121+All!J122)/1000 -> 72.864649 | X144: =(All!K121+All!K122)/1000 -> 69.271847 | Y144: =(All!L121+All!L122)/1000 -> 70.207073 | Z144: =(All!M121+All!M122)/1000 -> 68.737943 | AA144: =(All!N121+All!N122)/1000 -> 65.782403 | AB144: =(All!O121+All!O122)/1000 -> 62.296746 | AC144: =(All!P121+All!P122)/1000 -> 58.034103 | AD144: =(All!Q121+All!Q122)/1000 -> 56.967354 | AE144: =(All!R121+All!R122)/1000 -> 56.926354 | AF144: =(All!S121+All!S122)/1000 -> 58.064843 | AG144: =(All!T121+All!T122)/1000 -> 58.606307 | AH144: =(All!U121+All!U122)/1000 -> 47.936289 | AI144: =(All!V121+All!V122)/1000 -> 52.441766 | AJ144: =(All!W121+All!W122)/1000 -> 56.997657 | AK144: =(All!X121+All!X122)/1000 -> 58.055484 | AL144: =(All!Y121+All!Y122)/1000 -> 56.734757 | AM144: =(All!Z121+All!Z122)/1000 -> 57.298615 | AN144: =(All!AA121+All!AA122)/1000 -> 57.819677 | AO144: =(All!AB121+All!AB122)/1000 -> 58.151251 | AP144: =(All!AC121+All!AC122)/1000 -> 58.485231 | AQ144: =(All!AD121+All!AD122)/1000 -> 58.831761 | AR144: =(All!AE121+All!AE122)/1000 -> 59.078303 | AS144: =(All!AF121+All!AF122)/1000 -> 59.308212 | AT144: =(All!AG121+All!AG122)/1000 -> 59.656399 | AU144: =(All!AH121+All!AH122)/1000 -> 59.956852
P145: Professional occupations | Q145: =(All!D123+All!D124+All!D125+All!D126)/1000 -> 90.642017 | R145: =(All!E123+All!E124+All!E125+All!E126)/1000 -> 85.838103 | S145: =(All!F123+All!F124+All!F125+All!F126)/1000 -> 89.04504 | T145: =(All!G123+All!G124+All!G125+All!G126)/1000 -> 97.463898 | U145: =(All!H123+All!H124+All!H125+All!H126)/1000 -> 102.687386 | V145: =(All!I123+All!I124+All!I125+All!I126)/1000 -> 105.279366 | W145: =(All!J123+All!J124+All!J125+All!J126)/1000 -> 108.931182 | X145: =(All!K123+All!K124+All!K125+All!K126)/1000 -> 102.472726 | Y145: =(All!L123+All!L124+All!L125+All!L126)/1000 -> 102.648901 | Z145: =(All!M123+All!M124+All!M125+All!M126)/1000 -> 99.70002 | AA145: =(All!N123+All!N124+All!N125+All!N126)/1000 -> 98.089727 | AB145: =(All!O123+All!O124+All!O125+All!O126)/1000 -> 91.834658 | AC145: =(All!P123+All!P124+All!P125+All!P126)/1000 -> 88.968655 | AD145: =(All!Q123+All!Q124+All!Q125+All!Q126)/1000 -> 88.303565 | AE145: =(All!R123+All!R124+All!R125+All!R126)/1000 -> 89.520833 | AF145: =(All!S123+All!S124+All!S125+All!S126)/1000 -> 87.438573 | AG145: =(All!T123+All!T124+All!T125+All!T126)/1000 -> 83.347745 | AH145: =(All!U123+All!U124+All!U125+All!U126)/1000 -> 69.751553 | AI145: =(All!V123+All!V124+All!V125+All!V126)/1000 -> 76.14103 | AJ145: =(All!W123+All!W124+All!W125+All!W126)/1000 -> 82.209784 | AK145: =(All!X123+All!X124+All!X125+All!X126)/1000 -> 82.830956 | AL145: =(All!Y123+All!Y124+All!Y125+All!Y126)/1000 -> 81.47705 | AM145: =(All!Z123+All!Z124+All!Z125+All!Z126)/1000 -> 82.37932 | AN145: =(All!AA123+All!AA124+All!AA125+All!AA126)/1000 -> 83.429456 | AO145: =(All!AB123+All!AB124+All!AB125+All!AB126)/1000 -> 83.940807 | AP145: =(All!AC123+All!AC124+All!AC125+All!AC126)/1000 -> 84.268926 | AQ145: =(All!AD123+All!AD124+All!AD125+All!AD126)/1000 -> 84.51064 | AR145: =(All!AE123+All!AE124+All!AE125+All!AE126)/1000 -> 84.478675 | AS145: =(All!AF123+All!AF124+All!AF125+All!AF126)/1000 -> 84.370126 | AT145: =(All!AG123+All!AG124+All!AG125+All!AG126)/1000 -> 84.590502 | AU145: =(All!AH123+All!AH124+All!AH125+All!AH126)/1000 -> 84.740932
P146: Associate professional and technical | Q146: =(All!D127+All!D128+All!D129+All!D130+All!D131)/1000 -> 84.528865 | R146: =(All!E127+All!E128+All!E129+All!E130+All!E131)/1000 -> 80.199016 | S146: =(All!F127+All!F128+All!F129+All!F130+All!F131)/1000 -> 83.559477 | T146: =(All!G127+All!G128+All!G129+All!G130+All!G131)/1000 -> 91.193209 | U146: =(All!H127+All!H128+All!H129+All!H130+All!H131)/1000 -> 95.135425 | V146: =(All!I127+All!I128+All!I129+All!I130+All!I131)/1000 -> 97.637376 | W146: =(All!J127+All!J128+All!J129+All!J130+All!J131)/1000 -> 100.572101 | X146: =(All!K127+All!K128+All!K129+All!K130+All!K131)/1000 -> 94.635819 | Y146: =(All!L127+All!L128+All!L129+All!L130+All!L131)/1000 -> 94.062101 | Z146: =(All!M127+All!M128+All!M129+All!M130+All!M131)/1000 -> 90.449198 | AA146: =(All!N127+All!N128+All!N129+All!N130+All!N131)/1000 -> 83.005674 | AB146: =(All!O127+All!O128+All!O129+All!O130+All!O131)/1000 -> 77.707737 | AC146: =(All!P127+All!P128+All!P129+All!P130+All!P131)/1000 -> 69.726055 | AD146: =(All!Q127+All!Q128+All!Q129+All!Q130+All!Q131)/1000 -> 66.553572 | AE146: =(All!R127+All!R128+All!R129+All!R130+All!R131)/1000 -> 62.983378 | AF146: =(All!S127+All!S128+All!S129+All!S130+All!S131)/1000 -> 69.823862 | AG146: =(All!T127+All!T128+All!T129+All!T130+All!T131)/1000 -> 61.936751 | AH146: =(All!U127+All!U128+All!U129+All!U130+All!U131)/1000 -> 52.887752 | AI146: =(All!V127+All!V128+All!V129+All!V130+All!V131)/1000 -> 53.890307 | AJ146: =(All!W127+All!W128+All!W129+All!W130+All!W131)/1000 -> 58.008574 | AK146: =(All!X127+All!X128+All!X129+All!X130+All!X131)/1000 -> 59.141493 | AL146: =(All!Y127+All!Y128+All!Y129+All!Y130+All!Y131)/1000 -> 57.701948 | AM146: =(All!Z127+All!Z128+All!Z129+All!Z130+All!Z131)/1000 -> 57.941598 | AN146: =(All!AA127+All!AA128+All!AA129+All!AA130+All!AA131)/1000 -> 58.265999 | AO146: =(All!AB127+All!AB128+All!AB129+All!AB130+All!AB131)/1000 -> 58.384354 | AP146: =(All!AC127+All!AC128+All!AC129+All!AC130+All!AC131)/1000 -> 58.495486 | AQ146: =(All!AD127+All!AD128+All!AD129+All!AD130+All!AD131)/1000 -> 58.573977 | AR146: =(All!AE127+All!AE128+All!AE129+All!AE130+All!AE131)/1000 -> 58.496485 | AS146: =(All!AF127+All!AF128+All!AF129+All!AF130+All!AF131)/1000 -> 58.392286 | AT146: =(All!AG127+All!AG128+All!AG129+All!AG130+All!AG131)/1000 -> 58.572634 | AU146: =(All!AH127+All!AH128+All!AH129+All!AH130+All!AH131)/1000 -> 58.720869
P147: Administrative and secretarial | Q147: =(All!D132+All!D133)/1000 -> 64.48742 | R147: =(All!E132+All!E133)/1000 -> 59.604169 | S147: =(All!F132+All!F133)/1000 -> 60.211683 | T147: =(All!G132+All!G133)/1000 -> 63.177264 | U147: =(All!H132+All!H133)/1000 -> 62.71147 | V147: =(All!I132+All!I133)/1000 -> 62.203604 | W147: =(All!J132+All!J133)/1000 -> 65.915253 | X147: =(All!K132+All!K133)/1000 -> 62.57141 | Y147: =(All!L132+All!L133)/1000 -> 61.401924 | Z147: =(All!M132+All!M133)/1000 -> 56.685372 | AA147: =(All!N132+All!N133)/1000 -> 54.769598 | AB147: =(All!O132+All!O133)/1000 -> 47.302775 | AC147: =(All!P132+All!P133)/1000 -> 42.161736 | AD147: =(All!Q132+All!Q133)/1000 -> 39.04642 | AE147: =(All!R132+All!R133)/1000 -> 40.139086 | AF147: =(All!S132+All!S133)/1000 -> 40.296041 | AG147: =(All!T132+All!T133)/1000 -> 35.935415 | AH147: =(All!U132+All!U133)/1000 -> 28.869983 | AI147: =(All!V132+All!V133)/1000 -> 29.636217 | AJ147: =(All!W132+All!W133)/1000 -> 32.017179 | AK147: =(All!X132+All!X133)/1000 -> 32.550454 | AL147: =(All!Y132+All!Y133)/1000 -> 31.518505 | AM147: =(All!Z132+All!Z133)/1000 -> 31.368977 | AN147: =(All!AA132+All!AA133)/1000 -> 31.167501 | AO147: =(All!AB132+All!AB133)/1000 -> 30.871295 | AP147: =(All!AC132+All!AC133)/1000 -> 30.58186 | AQ147: =(All!AD132+All!AD133)/1000 -> 30.294741 | AR147: =(All!AE132+All!AE133)/1000 -> 29.966466 | AS147: =(All!AF132+All!AF133)/1000 -> 29.626739 | AT147: =(All!AG132+All!AG133)/1000 -> 29.475432 | AU147: =(All!AH132+All!AH133)/1000 -> 29.318866
P148: Skilled trades occupations | Q148: =(All!D134+All!D135+All!D136+All!D137)/1000 -> 211.754384 | R148: =(All!E134+All!E135+All!E136+All!E137)/1000 -> 195.465975 | S148: =(All!F134+All!F135+All!F136+All!F137)/1000 -> 195.453725 | T148: =(All!G134+All!G135+All!G136+All!G137)/1000 -> 204.288345 | U148: =(All!H134+All!H135+All!H136+All!H137)/1000 -> 209.224035 | V148: =(All!I134+All!I135+All!I136+All!I137)/1000 -> 208.548626 | W148: =(All!J134+All!J135+All!J136+All!J137)/1000 -> 206.181212 | X148: =(All!K134+All!K135+All!K136+All!K137)/1000 -> 193.948538 | Y148: =(All!L134+All!L135+All!L136+All!L137)/1000 -> 187.372535 | Z148: =(All!M134+All!M135+All!M136+All!M137)/1000 -> 179.809099 | AA148: =(All!N134+All!N135+All!N136+All!N137)/1000 -> 164.808241 | AB148: =(All!O134+All!O135+All!O136+All!O137)/1000 -> 149.818295 | AC148: =(All!P134+All!P135+All!P136+All!P137)/1000 -> 143.399109 | AD148: =(All!Q134+All!Q135+All!Q136+All!Q137)/1000 -> 130.615425 | AE148: =(All!R134+All!R135+All!R136+All!R137)/1000 -> 118.564445 | AF148: =(All!S134+All!S135+All!S136+All!S137)/1000 -> 124.519213 | AG148: =(All!T134+All!T135+All!T136+All!T137)/1000 -> 120.169141 | AH148: =(All!U134+All!U135+All!U136+All!U137)/1000 -> 100.559078 | AI148: =(All!V134+All!V135+All!V136+All!V137)/1000 -> 99.285155 | AJ148: =(All!W134+All!W135+All!W136+All!W137)/1000 -> 108.141235 | AK148: =(All!X134+All!X135+All!X136+All!X137)/1000 -> 107.651425 | AL148: =(All!Y134+All!Y135+All!Y136+All!Y137)/1000 -> 102.334624 | AM148: =(All!Z134+All!Z135+All!Z136+All!Z137)/1000 -> 100.816799 | AN148: =(All!AA134+All!AA135+All!AA136+All!AA137)/1000 -> 98.600039 | AO148: =(All!AB134+All!AB135+All!AB136+All!AB137)/1000 -> 96.61282 | AP148: =(All!AC134+All!AC135+All!AC136+All!AC137)/1000 -> 94.640791 | AQ148: =(All!AD134+All!AD135+All!AD136+All!AD137)/1000 -> 92.901788 | AR148: =(All!AE134+All!AE135+All!AE136+All!AE137)/1000 -> 91.33827 | AS148: =(All!AF134+All!AF135+All!AF136+All!AF137)/1000 -> 89.794295 | AT148: =(All!AG134+All!AG135+All!AG136+All!AG137)/1000 -> 87.461094 | AU148: =(All!AH134+All!AH135+All!AH136+All!AH137)/1000 -> 85.133455
P149: Caring, leisure and other service | Q149: =(All!D138+All!D139)/1000 -> 3.821929 | R149: =(All!E138+All!E139)/1000 -> 3.633656 | S149: =(All!F138+All!F139)/1000 -> 3.754863 | T149: =(All!G138+All!G139)/1000 -> 4.031117 | U149: =(All!H138+All!H139)/1000 -> 4.140206 | V149: =(All!I138+All!I139)/1000 -> 4.303299 | W149: =(All!J138+All!J139)/1000 -> 5.003795 | X149: =(All!K138+All!K139)/1000 -> 5.176339 | Y149: =(All!L138+All!L139)/1000 -> 4.834622 | Z149: =(All!M138+All!M139)/1000 -> 5.0033 | AA149: =(All!N138+All!N139)/1000 -> 4.883004 | AB149: =(All!O138+All!O139)/1000 -> 4.229858 | AC149: =(All!P138+All!P139)/1000 -> 4.101122 | AD149: =(All!Q138+All!Q139)/1000 -> 4.29098 | AE149: =(All!R138+All!R139)/1000 -> 4.214907 | AF149: =(All!S138+All!S139)/1000 -> 4.49767 | AG149: =(All!T138+All!T139)/1000 -> 4.44995 | AH149: =(All!U138+All!U139)/1000 -> 3.395502 | AI149: =(All!V138+All!V139)/1000 -> 3.161747 | AJ149: =(All!W138+All!W139)/1000 -> 3.445708 | AK149: =(All!X138+All!X139)/1000 -> 3.563194 | AL149: =(All!Y138+All!Y139)/1000 -> 3.646837 | AM149: =(All!Z138+All!Z139)/1000 -> 3.777038 | AN149: =(All!AA138+All!AA139)/1000 -> 3.919107 | AO149: =(All!AB138+All!AB139)/1000 -> 3.987868 | AP149: =(All!AC138+All!AC139)/1000 -> 4.050687 | AQ149: =(All!AD138+All!AD139)/1000 -> 4.144215 | AR149: =(All!AE138+All!AE139)/1000 -> 4.220827 | AS149: =(All!AF138+All!AF139)/1000 -> 4.286052 | AT149: =(All!AG138+All!AG139)/1000 -> 4.381603 | AU149: =(All!AH138+All!AH139)/1000 -> 4.481117
P150: Sales and customer service | Q150: =(All!D140+All!D141)/1000 -> 10.900689 | R150: =(All!E140+All!E141)/1000 -> 10.579056 | S150: =(All!F140+All!F141)/1000 -> 11.170018 | T150: =(All!G140+All!G141)/1000 -> 12.203271 | U150: =(All!H140+All!H141)/1000 -> 12.904893 | V150: =(All!I140+All!I141)/1000 -> 13.41411 | W150: =(All!J140+All!J141)/1000 -> 14.416682 | X150: =(All!K140+All!K141)/1000 -> 14.105795 | Y150: =(All!L140+All!L141)/1000 -> 14.213155 | Z150: =(All!M140+All!M141)/1000 -> 13.608042 | AA150: =(All!N140+All!N141)/1000 -> 13.429116 | AB150: =(All!O140+All!O141)/1000 -> 12.155547 | AC150: =(All!P140+All!P141)/1000 -> 12.428831 | AD150: =(All!Q140+All!Q141)/1000 -> 12.51034 | AE150: =(All!R140+All!R141)/1000 -> 12.538309 | AF150: =(All!S140+All!S141)/1000 -> 11.867552 | AG150: =(All!T140+All!T141)/1000 -> 12.351399 | AH150: =(All!U140+All!U141)/1000 -> 9.586669 | AI150: =(All!V140+All!V141)/1000 -> 11.618828 | AJ150: =(All!W140+All!W141)/1000 -> 12.506522 | AK150: =(All!X140+All!X141)/1000 -> 12.844623 | AL150: =(All!Y140+All!Y141)/1000 -> 12.47086 | AM150: =(All!Z140+All!Z141)/1000 -> 12.544314 | AN150: =(All!AA140+All!AA141)/1000 -> 12.601681 | AO150: =(All!AB140+All!AB141)/1000 -> 12.742451 | AP150: =(All!AC140+All!AC141)/1000 -> 12.863554 | AQ150: =(All!AD140+All!AD141)/1000 -> 12.972158 | AR150: =(All!AE140+All!AE141)/1000 -> 13.047646 | AS150: =(All!AF140+All!AF141)/1000 -> 13.124389 | AT150: =(All!AG140+All!AG141)/1000 -> 13.253006 | AU150: =(All!AH140+All!AH141)/1000 -> 13.362067
P151: Process, plant and machine operatives | Q151: =(All!D142+All!D143)/1000 -> 148.712902 | R151: =(All!E142+All!E143)/1000 -> 137.452483 | S151: =(All!F142+All!F143)/1000 -> 138.98867 | T151: =(All!G142+All!G143)/1000 -> 146.101388 | U151: =(All!H142+All!H143)/1000 -> 149.39483 | V151: =(All!I142+All!I143)/1000 -> 148.559922 | W151: =(All!J142+All!J143)/1000 -> 147.274221 | X151: =(All!K142+All!K143)/1000 -> 138.322155 | Y151: =(All!L142+All!L143)/1000 -> 134.833356 | Z151: =(All!M142+All!M143)/1000 -> 126.602653 | AA151: =(All!N142+All!N143)/1000 -> 107.800639 | AB151: =(All!O142+All!O143)/1000 -> 90.949798 | AC151: =(All!P142+All!P143)/1000 -> 83.636053 | AD151: =(All!Q142+All!Q143)/1000 -> 86.83226 | AE151: =(All!R142+All!R143)/1000 -> 76.091988 | AF151: =(All!S142+All!S143)/1000 -> 75.995682 | AG151: =(All!T142+All!T143)/1000 -> 67.023458 | AH151: =(All!U142+All!U143)/1000 -> 49.497429 | AI151: =(All!V142+All!V143)/1000 -> 49.275755 | AJ151: =(All!W142+All!W143)/1000 -> 53.715686 | AK151: =(All!X142+All!X143)/1000 -> 54.237633 | AL151: =(All!Y142+All!Y143)/1000 -> 50.801102 | AM151: =(All!Z142+All!Z143)/1000 -> 49.45489 | AN151: =(All!AA142+All!AA143)/1000 -> 47.685131 | AO151: =(All!AB142+All!AB143)/1000 -> 46.138862 | AP151: =(All!AC142+All!AC143)/1000 -> 44.498382 | AQ151: =(All!AD142+All!AD143)/1000 -> 42.929798 | AR151: =(All!AE142+All!AE143)/1000 -> 41.400414 | AS151: =(All!AF142+All!AF143)/1000 -> 39.910689 | AT151: =(All!AG142+All!AG143)/1000 -> 38.234235 | AU151: =(All!AH142+All!AH143)/1000 -> 36.601777
P152: Elementary occupations | Q152: =(All!D144+All!D145)/1000 -> 36.629054 | R152: =(All!E144+All!E145)/1000 -> 33.679021 | S152: =(All!F144+All!F145)/1000 -> 33.445865 | T152: =(All!G144+All!G145)/1000 -> 34.558735 | U152: =(All!H144+All!H145)/1000 -> 34.587952 | V152: =(All!I144+All!I145)/1000 -> 34.329632 | W152: =(All!J144+All!J145)/1000 -> 35.101903 | X152: =(All!K144+All!K145)/1000 -> 33.688369 | Y152: =(All!L144+All!L145)/1000 -> 31.864332 | Z152: =(All!M144+All!M145)/1000 -> 30.898372 | AA152: =(All!N144+All!N145)/1000 -> 28.019595 | AB152: =(All!O144+All!O145)/1000 -> 26.810585 | AC152: =(All!P144+All!P145)/1000 -> 25.386338 | AD152: =(All!Q144+All!Q145)/1000 -> 22.135084 | AE152: =(All!R144+All!R145)/1000 -> 21.338698 | AF152: =(All!S144+All!S145)/1000 -> 23.955564 | AG152: =(All!T144+All!T145)/1000 -> 22.851831 | AH152: =(All!U144+All!U145)/1000 -> 17.864744 | AI152: =(All!V144+All!V145)/1000 -> 17.650192 | AJ152: =(All!W144+All!W145)/1000 -> 19.031655 | AK152: =(All!X144+All!X145)/1000 -> 19.870737 | AL152: =(All!Y144+All!Y145)/1000 -> 18.531315 | AM152: =(All!Z144+All!Z145)/1000 -> 18.315451 | AN152: =(All!AA144+All!AA145)/1000 -> 18.026408 | AO152: =(All!AB144+All!AB145)/1000 -> 17.831293 | AP152: =(All!AC144+All!AC145)/1000 -> 17.597087 | AQ152: =(All!AD144+All!AD145)/1000 -> 17.36992 | AR152: =(All!AE144+All!AE145)/1000 -> 17.178913 | AS152: =(All!AF144+All!AF145)/1000 -> 16.999213 | AT152: =(All!AG144+All!AG145)/1000 -> 16.918094 | AU152: =(All!AH144+All!AH145)/1000 -> 16.827064
P177: ="Occupational employment, "&CHAR(13)&P178 -> Occupational employment, Rest of manufacturing
P178: =names!A8 -> Rest of manufacturing | Q178: =Q143 -> 1992 | R178: 1993 | S178: 1994 | T178: 1995 | U178: 1996 | V178: 1997 | W178: 1998 | X178: 1999 | Y178: 2000 | Z178: 2001 | AA178: 2002 | AB178: 2003 | AC178: 2004 | AD178: 2005 | AE178: 2006 | AF178: 2007 | AG178: 2008 | AH178: 2009 | AI178: 2010 | AJ178: 2011 | AK178: 2012 | AL178: 2013 | AM178: 2014 | AN178: 2015 | AO178: 2016 | AP178: 2017 | AQ178: 2018 | AR178: 2019 | AS178: 2020 | AT178: 2021 | AU178: 2022
P179: =P144 -> Managers, directors and senior officials | Q179: =(All!D149+All!D150)/1000 -> 211.977401 | R179: =(All!E149+All!E150)/1000 -> 208.350398 | S179: =(All!F149+All!F150)/1000 -> 214.246763 | T179: =(All!G149+All!G150)/1000 -> 222.98227 | U179: =(All!H149+All!H150)/1000 -> 229.8252 | V179: =(All!I149+All!I150)/1000 -> 234.255637 | W179: =(All!J149+All!J150)/1000 -> 242.257061 | X179: =(All!K149+All!K150)/1000 -> 241.180731 | Y179: =(All!L149+All!L150)/1000 -> 241.353683 | Z179: =(All!M149+All!M150)/1000 -> 234.870671 | AA179: =(All!N149+All!N150)/1000 -> 240.557356 | AB179: =(All!O149+All!O150)/1000 -> 229.364884 | AC179: =(All!P149+All!P150)/1000 -> 223.459008 | AD179: =(All!Q149+All!Q150)/1000 -> 211.674499 | AE179: =(All!R149+All!R150)/1000 -> 222.890534 | AF179: =(All!S149+All!S150)/1000 -> 212.877371 | AG179: =(All!T149+All!T150)/1000 -> 211.94292 | AH179: =(All!U149+All!U150)/1000 -> 205.192744 | AI179: =(All!V149+All!V150)/1000 -> 187.186618 | AJ179: =(All!W149+All!W150)/1000 -> 187.485054 | AK179: =(All!X149+All!X150)/1000 -> 196.927137 | AL179: =(All!Y149+All!Y150)/1000 -> 197.630762 | AM179: =(All!Z149+All!Z150)/1000 -> 200.172499 | AN179: =(All!AA149+All!AA150)/1000 -> 202.215905 | AO179: =(All!AB149+All!AB150)/1000 -> 204.051752 | AP179: =(All!AC149+All!AC150)/1000 -> 205.630205 | AQ179: =(All!AD149+All!AD150)/1000 -> 206.980127 | AR179: =(All!AE149+All!AE150)/1000 -> 207.985145 | AS179: =(All!AF149+All!AF150)/1000 -> 208.898715 | AT179: =(All!AG149+All!AG150)/1000 -> 210.159247 | AU179: =(All!AH149+All!AH150)/1000 -> 211.550739
P180: Professional occupations | Q180: =(All!D151+All!D152+All!D153+All!D154)/1000 -> 243.304779 | R180: =(All!E151+All!E152+All!E153+All!E154)/1000 -> 235.66072 | S180: =(All!F151+All!F152+All!F153+All!F154)/1000 -> 240.422262 | T180: =(All!G151+All!G152+All!G153+All!G154)/1000 -> 252.079605 | U180: =(All!H151+All!H152+All!H153+All!H154)/1000 -> 267.08264 | V180: =(All!I151+All!I152+All!I153+All!I154)/1000 -> 272.680461 | W180: =(All!J151+All!J152+All!J153+All!J154)/1000 -> 282.091009 | X180: =(All!K151+All!K152+All!K153+All!K154)/1000 -> 271.152154 | Y180: =(All!L151+All!L152+All!L153+All!L154)/1000 -> 269.132912 | Z180: =(All!M151+All!M152+All!M153+All!M154)/1000 -> 261.839893 | AA180: =(All!N151+All!N152+All!N153+All!N154)/1000 -> 255.717339 | AB180: =(All!O151+All!O152+All!O153+All!O154)/1000 -> 252.549448 | AC180: =(All!P151+All!P152+All!P153+All!P154)/1000 -> 245.095657 | AD180: =(All!Q151+All!Q152+All!Q153+All!Q154)/1000 -> 240.736518 | AE180: =(All!R151+All!R152+All!R153+All!R154)/1000 -> 248.802368 | AF180: =(All!S151+All!S152+All!S153+All!S154)/1000 -> 247.542431 | AG180: =(All!T151+All!T152+All!T153+All!T154)/1000 -> 246.256895 | AH180: =(All!U151+All!U152+All!U153+All!U154)/1000 -> 221.332252 | AI180: =(All!V151+All!V152+All!V153+All!V154)/1000 -> 229.641613 | AJ180: =(All!W151+All!W152+All!W153+All!W154)/1000 -> 226.489421 | AK180: =(All!X151+All!X152+All!X153+All!X154)/1000 -> 241.044177 | AL180: =(All!Y151+All!Y152+All!Y153+All!Y154)/1000 -> 248.829521 | AM180: =(All!Z151+All!Z152+All!Z153+All!Z154)/1000 -> 252.007511 | AN180: =(All!AA151+All!AA152+All!AA153+All!AA154)/1000 -> 254.794127 | AO180: =(All!AB151+All!AB152+All!AB153+All!AB154)/1000 -> 257.362244 | AP180: =(All!AC151+All!AC152+All!AC153+All!AC154)/1000 -> 259.131533 | AQ180: =(All!AD151+All!AD152+All!AD153+All!AD154)/1000 -> 260.700144 | AR180: =(All!AE151+All!AE152+All!AE153+All!AE154)/1000 -> 261.554767 | AS180: =(All!AF151+All!AF152+All!AF153+All!AF154)/1000 -> 262.515878 | AT180: =(All!AG151+All!AG152+All!AG153+All!AG154)/1000 -> 263.908508 | AU180: =(All!AH151+All!AH152+All!AH153+All!AH154)/1000 -> 265.417257
P181: Associate professional and technical | Q181: =(All!D155+All!D156+All!D157+All!D158+All!D159)/1000 -> 283.705201 | R181: =(All!E155+All!E156+All!E157+All!E158+All!E159)/1000 -> 279.560123 | S181: =(All!F155+All!F156+All!F157+All!F158+All!F159)/1000 -> 287.554391 | T181: =(All!G155+All!G156+All!G157+All!G158+All!G159)/1000 -> 300.541717 | U181: =(All!H155+All!H156+All!H157+All!H158+All!H159)/1000 -> 311.446054 | V181: =(All!I155+All!I156+All!I157+All!I158+All!I159)/1000 -> 320.131394 | W181: =(All!J155+All!J156+All!J157+All!J158+All!J159)/1000 -> 328.284545 | X181: =(All!K155+All!K156+All!K157+All!K158+All!K159)/1000 -> 317.626652 | Y181: =(All!L155+All!L156+All!L157+All!L158+All!L159)/1000 -> 313.958486 | Z181: =(All!M155+All!M156+All!M157+All!M158+All!M159)/1000 -> 304.54101 | AA181: =(All!N155+All!N156+All!N157+All!N158+All!N159)/1000 -> 293.742753 | AB181: =(All!O155+All!O156+All!O157+All!O158+All!O159)/1000 -> 275.67675 | AC181: =(All!P155+All!P156+All!P157+All!P158+All!P159)/1000 -> 270.962797 | AD181: =(All!Q155+All!Q156+All!Q157+All!Q158+All!Q159)/1000 -> 251.318314 | AE181: =(All!R155+All!R156+All!R157+All!R158+All!R159)/1000 -> 247.268038 | AF181: =(All!S155+All!S156+All!S157+All!S158+All!S159)/1000 -> 246.334962 | AG181: =(All!T155+All!T156+All!T157+All!T158+All!T159)/1000 -> 233.870698 | AH181: =(All!U155+All!U156+All!U157+All!U158+All!U159)/1000 -> 221.36035 | AI181: =(All!V155+All!V156+All!V157+All!V158+All!V159)/1000 -> 201.795249 | AJ181: =(All!W155+All!W156+All!W157+All!W158+All!W159)/1000 -> 200.691202 | AK181: =(All!X155+All!X156+All!X157+All!X158+All!X159)/1000 -> 211.177063 | AL181: =(All!Y155+All!Y156+All!Y157+All!Y158+All!Y159)/1000 -> 212.78835 | AM181: =(All!Z155+All!Z156+All!Z157+All!Z158+All!Z159)/1000 -> 213.980695 | AN181: =(All!AA155+All!AA156+All!AA157+All!AA158+All!AA159)/1000 -> 215.143801 | AO181: =(All!AB155+All!AB156+All!AB157+All!AB158+All!AB159)/1000 -> 216.163459 | AP181: =(All!AC155+All!AC156+All!AC157+All!AC158+All!AC159)/1000 -> 217.087208 | AQ181: =(All!AD155+All!AD156+All!AD157+All!AD158+All!AD159)/1000 -> 217.606378 | AR181: =(All!AE155+All!AE156+All!AE157+All!AE158+All!AE159)/1000 -> 217.595533 | AS181: =(All!AF155+All!AF156+All!AF157+All!AF158+All!AF159)/1000 -> 217.519547 | AT181: =(All!AG155+All!AG156+All!AG157+All!AG158+All!AG159)/1000 -> 218.380015 | AU181: =(All!AH155+All!AH156+All!AH157+All!AH158+All!AH159)/1000 -> 219.441188
P182: Administrative and secretarial | Q182: =(All!D160+All!D161)/1000 -> 259.222359 | R182: =(All!E160+All!E161)/1000 -> 248.285021 | S182: =(All!F160+All!F161)/1000 -> 248.024798 | T182: =(All!G160+All!G161)/1000 -> 248.593036 | U182: =(All!H160+All!H161)/1000 -> 248.595617 | V182: =(All!I160+All!I161)/1000 -> 246.90356 | W182: =(All!J160+All!J161)/1000 -> 251.404075 | X182: =(All!K160+All!K161)/1000 -> 247.878648 | Y182: =(All!L160+All!L161)/1000 -> 238.661448 | Z182: =(All!M160+All!M161)/1000 -> 229.106287 | AA182: =(All!N160+All!N161)/1000 -> 224.103259 | AB182: =(All!O160+All!O161)/1000 -> 210.880574 | AC182: =(All!P160+All!P161)/1000 -> 195.923573 | AD182: =(All!Q160+All!Q161)/1000 -> 181.405252 | AE182: =(All!R160+All!R161)/1000 -> 174.879944 | AF182: =(All!S160+All!S161)/1000 -> 172.488631 | AG182: =(All!T160+All!T161)/1000 -> 159.29761 | AH182: =(All!U160+All!U161)/1000 -> 154.088437 | AI182: =(All!V160+All!V161)/1000 -> 138.580305 | AJ182: =(All!W160+All!W161)/1000 -> 133.601334 | AK182: =(All!X160+All!X161)/1000 -> 138.013603 | AL182: =(All!Y160+All!Y161)/1000 -> 136.74107 | AM182: =(All!Z160+All!Z161)/1000 -> 135.335357 | AN182: =(All!AA160+All!AA161)/1000 -> 133.719882 | AO182: =(All!AB160+All!AB161)/1000 -> 132.218865 | AP182: =(All!AC160+All!AC161)/1000 -> 130.793289 | AQ182: =(All!AD160+All!AD161)/1000 -> 129.147029 | AR182: =(All!AE160+All!AE161)/1000 -> 127.471272 | AS182: =(All!AF160+All!AF161)/1000 -> 125.66698 | AT182: =(All!AG160+All!AG161)/1000 -> 124.530869 | AU182: =(All!AH160+All!AH161)/1000 -> 123.525744
P183: Skilled trades occupations | Q183: =(All!D162+All!D163+All!D164+All!D165)/1000 -> 923.907011 | R183: =(All!E162+All!E163+All!E164+All!E165)/1000 -> 877.51617 | S183: =(All!F162+All!F163+All!F164+All!F165)/1000 -> 871.410611 | T183: =(All!G162+All!G163+All!G164+All!G165)/1000 -> 870.164249 | U183: =(All!H162+All!H163+All!H164+All!H165)/1000 -> 880.789035 | V183: =(All!I162+All!I163+All!I164+All!I165)/1000 -> 873.988754 | W183: =(All!J162+All!J163+All!J164+All!J165)/1000 -> 870.565416 | X183: =(All!K162+All!K163+All!K164+All!K165)/1000 -> 828.391655 | Y183: =(All!L162+All!L163+All!L164+All!L165)/1000 -> 791.806127 | Z183: =(All!M162+All!M163+All!M164+All!M165)/1000 -> 758.050633 | AA183: =(All!N162+All!N163+All!N164+All!N165)/1000 -> 701.906076 | AB183: =(All!O162+All!O163+All!O164+All!O165)/1000 -> 688.910921 | AC183: =(All!P162+All!P163+All!P164+All!P165)/1000 -> 651.346788 | AD183: =(All!Q162+All!Q163+All!Q164+All!Q165)/1000 -> 604.600302 | AE183: =(All!R162+All!R163+All!R164+All!R165)/1000 -> 582.68682 | AF183: =(All!S162+All!S163+All!S164+All!S165)/1000 -> 565.209974 | AG183: =(All!T162+All!T163+All!T164+All!T165)/1000 -> 570.347431 | AH183: =(All!U162+All!U163+All!U164+All!U165)/1000 -> 530.652715 | AI183: =(All!V162+All!V163+All!V164+All!V165)/1000 -> 494.552793 | AJ183: =(All!W162+All!W163+All!W164+All!W165)/1000 -> 492.909005 | AK183: =(All!X162+All!X163+All!X164+All!X165)/1000 -> 507.050773 | AL183: =(All!Y162+All!Y163+All!Y164+All!Y165)/1000 -> 500.310825 | AM183: =(All!Z162+All!Z163+All!Z164+All!Z165)/1000 -> 493.429284 | AN183: =(All!AA162+All!AA163+All!AA164+All!AA165)/1000 -> 483.608528 | AO183: =(All!AB162+All!AB163+All!AB164+All!AB165)/1000 -> 475.153769 | AP183: =(All!AC162+All!AC163+All!AC164+All!AC165)/1000 -> 465.935312 | AQ183: =(All!AD162+All!AD163+All!AD164+All!AD165)/1000 -> 456.502189 | AR183: =(All!AE162+All!AE163+All!AE164+All!AE165)/1000 -> 448.035757 | AS183: =(All!AF162+All!AF163+All!AF164+All!AF165)/1000 -> 438.910782 | AT183: =(All!AG162+All!AG163+All!AG164+All!AG165)/1000 -> 427.66325 | AU183: =(All!AH162+All!AH163+All!AH164+All!AH165)/1000 -> 417.019864
P184: Caring, leisure and other service | Q184: =(All!D166+All!D167)/1000 -> 20.803239 | R184: =(All!E166+All!E167)/1000 -> 20.658497 | S184: =(All!F166+All!F167)/1000 -> 20.972368 | T184: =(All!G166+All!G167)/1000 -> 21.533626 | U184: =(All!H166+All!H167)/1000 -> 22.231838 | V184: =(All!I166+All!I167)/1000 -> 22.838271 | W184: =(All!J166+All!J167)/1000 -> 24.011034 | X184: =(All!K166+All!K167)/1000 -> 22.931565 | Y184: =(All!L166+All!L167)/1000 -> 21.316695 | Z184: =(All!M166+All!M167)/1000 -> 21.71567 | AA184: =(All!N166+All!N167)/1000 -> 21.049608 | AB184: =(All!O166+All!O167)/1000 -> 19.461205 | AC184: =(All!P166+All!P167)/1000 -> 19.179409 | AD184: =(All!Q166+All!Q167)/1000 -> 18.170355 | AE184: =(All!R166+All!R167)/1000 -> 18.049156 | AF184: =(All!S166+All!S167)/1000 -> 18.923372 | AG184: =(All!T166+All!T167)/1000 -> 18.438781 | AH184: =(All!U166+All!U167)/1000 -> 16.400532 | AI184: =(All!V166+All!V167)/1000 -> 15.088094 | AJ184: =(All!W166+All!W167)/1000 -> 14.890045 | AK184: =(All!X166+All!X167)/1000 -> 16.908511 | AL184: =(All!Y166+All!Y167)/1000 -> 17.697127 | AM184: =(All!Z166+All!Z167)/1000 -> 18.296964 | AN184: =(All!AA166+All!AA167)/1000 -> 19.016041 | AO184: =(All!AB166+All!AB167)/1000 -> 19.718609 | AP184: =(All!AC166+All!AC167)/1000 -> 20.036138 | AQ184: =(All!AD166+All!AD167)/1000 -> 20.403071 | AR184: =(All!AE166+All!AE167)/1000 -> 20.716946 | AS184: =(All!AF166+All!AF167)/1000 -> 20.874572 | AT184: =(All!AG166+All!AG167)/1000 -> 21.379167 | AU184: =(All!AH166+All!AH167)/1000 -> 21.906193
P185: Sales and customer service | Q185: =(All!D168+All!D169)/1000 -> 60.155676 | R185: =(All!E168+All!E169)/1000 -> 59.473655 | S185: =(All!F168+All!F169)/1000 -> 61.451113 | T185: =(All!G168+All!G169)/1000 -> 63.471182 | U185: =(All!H168+All!H169)/1000 -> 67.189648 | V185: =(All!I168+All!I169)/1000 -> 69.041749 | W185: =(All!J168+All!J169)/1000 -> 71.640267 | X185: =(All!K168+All!K169)/1000 -> 69.480067 | Y185: =(All!L168+All!L169)/1000 -> 67.856094 | Z185: =(All!M168+All!M169)/1000 -> 66.357505 | AA185: =(All!N168+All!N169)/1000 -> 63.974037 | AB185: =(All!O168+All!O169)/1000 -> 59.084646 | AC185: =(All!P168+All!P169)/1000 -> 56.215605 | AD185: =(All!Q168+All!Q169)/1000 -> 56.008549 | AE185: =(All!R168+All!R169)/1000 -> 52.321093 | AF185: =(All!S168+All!S169)/1000 -> 51.731197 | AG185: =(All!T168+All!T169)/1000 -> 53.354297 | AH185: =(All!U168+All!U169)/1000 -> 42.017171 | AI185: =(All!V168+All!V169)/1000 -> 50.378371 | AJ185: =(All!W168+All!W169)/1000 -> 49.273117 | AK185: =(All!X168+All!X169)/1000 -> 50.810434 | AL185: =(All!Y168+All!Y169)/1000 -> 49.562936 | AM185: =(All!Z168+All!Z169)/1000 -> 49.233897 | AN185: =(All!AA168+All!AA169)/1000 -> 48.823682 | AO185: =(All!AB168+All!AB169)/1000 -> 49.011825 | AP185: =(All!AC168+All!AC169)/1000 -> 49.011553 | AQ185: =(All!AD168+All!AD169)/1000 -> 48.966239 | AR185: =(All!AE168+All!AE169)/1000 -> 49.039901 | AS185: =(All!AF168+All!AF169)/1000 -> 49.030648 | AT185: =(All!AG168+All!AG169)/1000 -> 49.031267 | AU185: =(All!AH168+All!AH169)/1000 -> 49.035241
P186: Process, plant and machine operatives | Q186: =(All!D170+All!D171)/1000 -> 764.442082 | R186: =(All!E170+All!E171)/1000 -> 736.934096 | S186: =(All!F170+All!F171)/1000 -> 736.605524 | T186: =(All!G170+All!G171)/1000 -> 746.862902 | U186: =(All!H170+All!H171)/1000 -> 747.645367 | V186: =(All!I170+All!I171)/1000 -> 745.204087 | W186: =(All!J170+All!J171)/1000 -> 725.171447 | X186: =(All!K170+All!K171)/1000 -> 674.157998 | Y186: =(All!L170+All!L171)/1000 -> 634.510311 | Z186: =(All!M170+All!M171)/1000 -> 590.614546 | AA186: =(All!N170+All!N171)/1000 -> 547.558487 | AB186: =(All!O170+All!O171)/1000 -> 508.789756 | AC186: =(All!P170+All!P171)/1000 -> 475.155228 | AD186: =(All!Q170+All!Q171)/1000 -> 457.371269 | AE186: =(All!R170+All!R171)/1000 -> 418.175482 | AF186: =(All!S170+All!S171)/1000 -> 399.197582 | AG186: =(All!T170+All!T171)/1000 -> 372.43193 | AH186: =(All!U170+All!U171)/1000 -> 346.983321 | AI186: =(All!V170+All!V171)/1000 -> 323.514493 | AJ186: =(All!W170+All!W171)/1000 -> 313.979627 | AK186: =(All!X170+All!X171)/1000 -> 316.204052 | AL186: =(All!Y170+All!Y171)/1000 -> 304.215067 | AM186: =(All!Z170+All!Z171)/1000 -> 296.809091 | AN186: =(All!AA170+All!AA171)/1000 -> 286.702758 | AO186: =(All!AB170+All!AB171)/1000 -> 278.823826 | AP186: =(All!AC170+All!AC171)/1000 -> 270.963732 | AQ186: =(All!AD170+All!AD171)/1000 -> 262.951332 | AR186: =(All!AE170+All!AE171)/1000 -> 254.704803 | AS186: =(All!AF170+All!AF171)/1000 -> 247.022051 | AT186: =(All!AG170+All!AG171)/1000 -> 238.399399 | AU186: =(All!AH170+All!AH171)/1000 -> 230.549489
P187: Elementary occupations | Q187: =(All!D172+All!D173)/1000 -> 229.513252 | R187: =(All!E172+All!E173)/1000 -> 220.634321 | S187: =(All!F172+All!F173)/1000 -> 218.756169 | T187: =(All!G172+All!G173)/1000 -> 217.890414 | U187: =(All!H172+All!H173)/1000 -> 215.016602 | V187: =(All!I172+All!I173)/1000 -> 211.965086 | W187: =(All!J172+All!J173)/1000 -> 209.358146 | X187: =(All!K172+All!K173)/1000 -> 200.35453 | Y187: =(All!L172+All!L173)/1000 -> 191.392242 | Z187: =(All!M172+All!M173)/1000 -> 181.615786 | AA187: =(All!N172+All!N173)/1000 -> 180.929083 | AB187: =(All!O172+All!O173)/1000 -> 161.725817 | AC187: =(All!P172+All!P173)/1000 -> 164.838935 | AD187: =(All!Q172+All!Q173)/1000 -> 147.907944 | AE187: =(All!R172+All!R173)/1000 -> 148.021565 | AF187: =(All!S172+All!S173)/1000 -> 135.316479 | AG187: =(All!T172+All!T173)/1000 -> 131.284439 | AH187: =(All!U172+All!U173)/1000 -> 124.647479 | AI187: =(All!V172+All!V173)/1000 -> 118.539465 | AJ187: =(All!W172+All!W173)/1000 -> 117.287194 | AK187: =(All!X172+All!X173)/1000 -> 121.049247 | AL187: =(All!Y172+All!Y173)/1000 -> 115.107342 | AM187: =(All!Z172+All!Z173)/1000 -> 113.238702 | AN187: =(All!AA172+All!AA173)/1000 -> 111.001274 | AO187: =(All!AB172+All!AB173)/1000 -> 109.695651 | AP187: =(All!AC172+All!AC173)/1000 -> 108.13703 | AQ187: =(All!AD172+All!AD173)/1000 -> 106.429491 | AR187: =(All!AE172+All!AE173)/1000 -> 104.799875 | AS187: =(All!AF172+All!AF173)/1000 -> 103.217829 | AT187: =(All!AG172+All!AG173)/1000 -> 102.366279 | AU187: =(All!AH172+All!AH173)/1000 -> 101.624285
P212: ="Occupational employment, "&CHAR(13)&P213 -> Occupational employment, Electricity and gas
P213: =names!A9 -> Electricity and gas | Q213: =Q178 -> 1992 | R213: 1993 | S213: 1994 | T213: 1995 | U213: 1996 | V213: 1997 | W213: 1998 | X213: 1999 | Y213: 2000 | Z213: 2001 | AA213: 2002 | AB213: 2003 | AC213: 2004 | AD213: 2005 | AE213: 2006 | AF213: 2007 | AG213: 2008 | AH213: 2009 | AI213: 2010 | AJ213: 2011 | AK213: 2012 | AL213: 2013 | AM213: 2014 | AN213: 2015 | AO213: 2016 | AP213: 2017 | AQ213: 2018 | AR213: 2019 | AS213: 2020 | AT213: 2021 | AU213: 2022
P214: =P179 -> Managers, directors and senior officials | Q214: =(All!D177+All!D178)/1000 -> 10.845889 | R214: =(All!E177+All!E178)/1000 -> 9.699799 | S214: =(All!F177+All!F178)/1000 -> 9.129818 | T214: =(All!G177+All!G178)/1000 -> 8.130419 | U214: =(All!H177+All!H178)/1000 -> 7.080474 | V214: =(All!I177+All!I178)/1000 -> 7.500523 | W214: =(All!J177+All!J178)/1000 -> 7.435454 | X214: =(All!K177+All!K178)/1000 -> 6.980568 | Y214: =(All!L177+All!L178)/1000 -> 6.673129 | Z214: =(All!M177+All!M178)/1000 -> 7.306523 | AA214: =(All!N177+All!N178)/1000 -> 7.837649 | AB214: =(All!O177+All!O178)/1000 -> 8.658052 | AC214: =(All!P177+All!P178)/1000 -> 6.317426 | AD214: =(All!Q177+All!Q178)/1000 -> 7.395398 | AE214: =(All!R177+All!R178)/1000 -> 6.854316 | AF214: =(All!S177+All!S178)/1000 -> 8.636512 | AG214: =(All!T177+All!T178)/1000 -> 9.366535 | AH214: =(All!U177+All!U178)/1000 -> 11.442682 | AI214: =(All!V177+All!V178)/1000 -> 13.930266 | AJ214: =(All!W177+All!W178)/1000 -> 12.715832 | AK214: =(All!X177+All!X178)/1000 -> 12.580852 | AL214: =(All!Y177+All!Y178)/1000 -> 13.104369 | AM214: =(All!Z177+All!Z178)/1000 -> 13.637204 | AN214: =(All!AA177+All!AA178)/1000 -> 14.166485 | AO214: =(All!AB177+All!AB178)/1000 -> 14.659916 | AP214: =(All!AC177+All!AC178)/1000 -> 15.084683 | AQ214: =(All!AD177+All!AD178)/1000 -> 15.413872 | AR214: =(All!AE177+All!AE178)/1000 -> 15.728461 | AS214: =(All!AF177+All!AF178)/1000 -> 16.043359 | AT214: =(All!AG177+All!AG178)/1000 -> 16.299979 | AU214: =(All!AH177+All!AH178)/1000 -> 16.564067
P215: Professional occupations | Q215: =(All!D179+All!D180+All!D181+All!D182)/1000 -> 26.083488 | R215: =(All!E179+All!E180+All!E181+All!E182)/1000 -> 23.284843 | S215: =(All!F179+All!F180+All!F181+All!F182)/1000 -> 22.089007 | T215: =(All!G179+All!G180+All!G181+All!G182)/1000 -> 19.885731 | U215: =(All!H179+All!H180+All!H181+All!H182)/1000 -> 17.559533 | V215: =(All!I179+All!I180+All!I181+All!I182)/1000 -> 18.086807 | W215: =(All!J179+All!J180+All!J181+All!J182)/1000 -> 17.775337 | X215: =(All!K179+All!K180+All!K181+All!K182)/1000 -> 17.043389 | Y215: =(All!L179+All!L180+All!L181+All!L182)/1000 -> 15.44635 | Z215: =(All!M179+All!M180+All!M181+All!M182)/1000 -> 16.675537 | AA215: =(All!N179+All!N180+All!N181+All!N182)/1000 -> 17.644612 | AB215: =(All!O179+All!O180+All!O181+All!O182)/1000 -> 15.906243 | AC215: =(All!P179+All!P180+All!P181+All!P182)/1000 -> 14.344509 | AD215: =(All!Q179+All!Q180+All!Q181+All!Q182)/1000 -> 13.531947 | AE215: =(All!R179+All!R180+All!R181+All!R182)/1000 -> 14.09468 | AF215: =(All!S179+All!S180+All!S181+All!S182)/1000 -> 18.226271 | AG215: =(All!T179+All!T180+All!T181+All!T182)/1000 -> 17.26906 | AH215: =(All!U179+All!U180+All!U181+All!U182)/1000 -> 23.329362 | AI215: =(All!V179+All!V180+All!V181+All!V182)/1000 -> 27.532886 | AJ215: =(All!W179+All!W180+All!W181+All!W182)/1000 -> 24.968748 | AK215: =(All!X179+All!X180+All!X181+All!X182)/1000 -> 24.36663 | AL215: =(All!Y179+All!Y180+All!Y181+All!Y182)/1000 -> 25.750145 | AM215: =(All!Z179+All!Z180+All!Z181+All!Z182)/1000 -> 26.83147 | AN215: =(All!AA179+All!AA180+All!AA181+All!AA182)/1000 -> 27.962933 | AO215: =(All!AB179+All!AB180+All!AB181+All!AB182)/1000 -> 28.949259 | AP215: =(All!AC179+All!AC180+All!AC181+All!AC182)/1000 -> 29.783169 | AQ215: =(All!AD179+All!AD180+All!AD181+All!AD182)/1000 -> 30.405821 | AR215: =(All!AE179+All!AE180+All!AE181+All!AE182)/1000 -> 30.956128 | AS215: =(All!AF179+All!AF180+All!AF181+All!AF182)/1000 -> 31.51089 | AT215: =(All!AG179+All!AG180+All!AG181+All!AG182)/1000 -> 32.013242 | AU215: =(All!AH179+All!AH180+All!AH181+All!AH182)/1000 -> 32.540617
P216: Associate professional and technical | Q216: =(All!D183+All!D184+All!D185+All!D186+All!D187)/1000 -> 23.041795 | R216: =(All!E183+All!E184+All!E185+All!E186+All!E187)/1000 -> 20.70919 | S216: =(All!F183+All!F184+All!F185+All!F186+All!F187)/1000 -> 19.483324 | T216: =(All!G183+All!G184+All!G185+All!G186+All!G187)/1000 -> 17.109764 | U216: =(All!H183+All!H184+All!H185+All!H186+All!H187)/1000 -> 14.796499 | V216: =(All!I183+All!I184+All!I185+All!I186+All!I187)/1000 -> 15.450598 | W216: =(All!J183+All!J184+All!J185+All!J186+All!J187)/1000 -> 15.037107 | X216: =(All!K183+All!K184+All!K185+All!K186+All!K187)/1000 -> 14.167855 | Y216: =(All!L183+All!L184+All!L185+All!L186+All!L187)/1000 -> 13.308192 | Z216: =(All!M183+All!M184+All!M185+All!M186+All!M187)/1000 -> 14.201673 | AA216: =(All!N183+All!N184+All!N185+All!N186+All!N187)/1000 -> 13.142798 | AB216: =(All!O183+All!O184+All!O185+All!O186+All!O187)/1000 -> 13.258238 | AC216: =(All!P183+All!P184+All!P185+All!P186+All!P187)/1000 -> 11.492359 | AD216: =(All!Q183+All!Q184+All!Q185+All!Q186+All!Q187)/1000 -> 10.713758 | AE216: =(All!R183+All!R184+All!R185+All!R186+All!R187)/1000 -> 10.571178 | AF216: =(All!S183+All!S184+All!S185+All!S186+All!S187)/1000 -> 11.164023 | AG216: =(All!T183+All!T184+All!T185+All!T186+All!T187)/1000 -> 12.762922 | AH216: =(All!U183+All!U184+All!U185+All!U186+All!U187)/1000 -> 16.155849 | AI216: =(All!V183+All!V184+All!V185+All!V186+All!V187)/1000 -> 19.010775 | AJ216: =(All!W183+All!W184+All!W185+All!W186+All!W187)/1000 -> 17.256763 | AK216: =(All!X183+All!X184+All!X185+All!X186+All!X187)/1000 -> 16.925351 | AL216: =(All!Y183+All!Y184+All!Y185+All!Y186+All!Y187)/1000 -> 17.611928 | AM216: =(All!Z183+All!Z184+All!Z185+All!Z186+All!Z187)/1000 -> 18.148055 | AN216: =(All!AA183+All!AA184+All!AA185+All!AA186+All!AA187)/1000 -> 18.724068 | AO216: =(All!AB183+All!AB184+All!AB185+All!AB186+All!AB187)/1000 -> 19.254821 | AP216: =(All!AC183+All!AC184+All!AC185+All!AC186+All!AC187)/1000 -> 19.69749 | AQ216: =(All!AD183+All!AD184+All!AD185+All!AD186+All!AD187)/1000 -> 19.986053 | AR216: =(All!AE183+All!AE184+All!AE185+All!AE186+All!AE187)/1000 -> 20.241455 | AS216: =(All!AF183+All!AF184+All!AF185+All!AF186+All!AF187)/1000 -> 20.491278 | AT216: =(All!AG183+All!AG184+All!AG185+All!AG186+All!AG187)/1000 -> 20.720612 | AU216: =(All!AH183+All!AH184+All!AH185+All!AH186+All!AH187)/1000 -> 20.968729
P217: Administrative and secretarial | Q217: =(All!D188+All!D189)/1000 -> 21.989201 | R217: =(All!E188+All!E189)/1000 -> 20.368573 | S217: =(All!F188+All!F189)/1000 -> 18.458808 | T217: =(All!G188+All!G189)/1000 -> 15.225674 | U217: =(All!H188+All!H189)/1000 -> 12.755845 | V217: =(All!I188+All!I189)/1000 -> 13.010358 | W217: =(All!J188+All!J189)/1000 -> 12.663516 | X217: =(All!K188+All!K189)/1000 -> 12.821079 | Y217: =(All!L188+All!L189)/1000 -> 11.99322 | Z217: =(All!M188+All!M189)/1000 -> 13.372952 | AA217: =(All!N188+All!N189)/1000 -> 12.994398 | AB217: =(All!O188+All!O189)/1000 -> 12.701124 | AC217: =(All!P188+All!P189)/1000 -> 11.793344 | AD217: =(All!Q188+All!Q189)/1000 -> 8.792784 | AE217: =(All!R188+All!R189)/1000 -> 10.553693 | AF217: =(All!S188+All!S189)/1000 -> 9.917259 | AG217: =(All!T188+All!T189)/1000 -> 9.30892 | AH217: =(All!U188+All!U189)/1000 -> 11.050945 | AI217: =(All!V188+All!V189)/1000 -> 15.482087 | AJ217: =(All!W188+All!W189)/1000 -> 13.36343 | AK217: =(All!X188+All!X189)/1000 -> 12.919239 | AL217: =(All!Y188+All!Y189)/1000 -> 12.936193 | AM217: =(All!Z188+All!Z189)/1000 -> 12.899934 | AN217: =(All!AA188+All!AA189)/1000 -> 12.865869 | AO217: =(All!AB188+All!AB189)/1000 -> 12.756845 | AP217: =(All!AC188+All!AC189)/1000 -> 12.594839 | AQ217: =(All!AD188+All!AD189)/1000 -> 12.359996 | AR217: =(All!AE188+All!AE189)/1000 -> 12.103981 | AS217: =(All!AF188+All!AF189)/1000 -> 11.847943 | AT217: =(All!AG188+All!AG189)/1000 -> 11.588066 | AU217: =(All!AH188+All!AH189)/1000 -> 11.340903
P218: Skilled trades occupations | Q218: =(All!D190+All!D191+All!D192+All!D193)/1000 -> 45.772347 | R218: =(All!E190+All!E191+All!E192+All!E193)/1000 -> 39.544049 | S218: =(All!F190+All!F191+All!F192+All!F193)/1000 -> 35.469045 | T218: =(All!G190+All!G191+All!G192+All!G193)/1000 -> 30.813826 | U218: =(All!H190+All!H191+All!H192+All!H193)/1000 -> 26.84122 | V218: =(All!I190+All!I191+All!I192+All!I193)/1000 -> 26.861019 | W218: =(All!J190+All!J191+All!J192+All!J193)/1000 -> 25.430899 | X218: =(All!K190+All!K191+All!K192+All!K193)/1000 -> 24.164641 | Y218: =(All!L190+All!L191+All!L192+All!L193)/1000 -> 22.500152 | Z218: =(All!M190+All!M191+All!M192+All!M193)/1000 -> 23.032335 | AA218: =(All!N190+All!N191+All!N192+All!N193)/1000 -> 22.596542 | AB218: =(All!O190+All!O191+All!O192+All!O193)/1000 -> 19.145887 | AC218: =(All!P190+All!P191+All!P192+All!P193)/1000 -> 18.067368 | AD218: =(All!Q190+All!Q191+All!Q192+All!Q193)/1000 -> 14.160886 | AE218: =(All!R190+All!R191+All!R192+All!R193)/1000 -> 15.680104 | AF218: =(All!S190+All!S191+All!S192+All!S193)/1000 -> 18.412758 | AG218: =(All!T190+All!T191+All!T192+All!T193)/1000 -> 18.485283 | AH218: =(All!U190+All!U191+All!U192+All!U193)/1000 -> 25.447482 | AI218: =(All!V190+All!V191+All!V192+All!V193)/1000 -> 27.012468 | AJ218: =(All!W190+All!W191+All!W192+All!W193)/1000 -> 25.357118 | AK218: =(All!X190+All!X191+All!X192+All!X193)/1000 -> 24.011492 | AL218: =(All!Y190+All!Y191+All!Y192+All!Y193)/1000 -> 24.409541 | AM218: =(All!Z190+All!Z191+All!Z192+All!Z193)/1000 -> 24.837492 | AN218: =(All!AA190+All!AA191+All!AA192+All!AA193)/1000 -> 25.115059 | AO218: =(All!AB190+All!AB191+All!AB192+All!AB193)/1000 -> 25.469041 | AP218: =(All!AC190+All!AC191+All!AC192+All!AC193)/1000 -> 25.665235 | AQ218: =(All!AD190+All!AD191+All!AD192+All!AD193)/1000 -> 25.758211 | AR218: =(All!AE190+All!AE191+All!AE192+All!AE193)/1000 -> 25.938971 | AS218: =(All!AF190+All!AF191+All!AF192+All!AF193)/1000 -> 26.099924 | AT218: =(All!AG190+All!AG191+All!AG192+All!AG193)/1000 -> 25.839233 | AU218: =(All!AH190+All!AH191+All!AH192+All!AH193)/1000 -> 25.588844
P219: Caring, leisure and other service | Q219: =(All!D194+All!D195)/1000 -> 2.36593 | R219: =(All!E194+All!E195)/1000 -> 2.237379 | S219: =(All!F194+All!F195)/1000 -> 2.114038 | T219: =(All!G194+All!G195)/1000 -> 1.829831 | U219: =(All!H194+All!H195)/1000 -> 1.567526 | V219: =(All!I194+All!I195)/1000 -> 1.657191 | W219: =(All!J194+All!J195)/1000 -> 1.735182 | X219: =(All!K194+All!K195)/1000 -> 1.720845 | Y219: =(All!L194+All!L195)/1000 -> 1.728053 | Z219: =(All!M194+All!M195)/1000 -> 1.939474 | AA219: =(All!N194+All!N195)/1000 -> 1.977739 | AB219: =(All!O194+All!O195)/1000 -> 1.68579 | AC219: =(All!P194+All!P195)/1000 -> 1.898507 | AD219: =(All!Q194+All!Q195)/1000 -> 1.535677 | AE219: =(All!R194+All!R195)/1000 -> 1.534446 | AF219: =(All!S194+All!S195)/1000 -> 1.665815 | AG219: =(All!T194+All!T195)/1000 -> 1.593641 | AH219: =(All!U194+All!U195)/1000 -> 2.091238 | AI219: =(All!V194+All!V195)/1000 -> 2.511711 | AJ219: =(All!W194+All!W195)/1000 -> 2.32437 | AK219: =(All!X194+All!X195)/1000 -> 2.321009 | AL219: =(All!Y194+All!Y195)/1000 -> 2.447451 | AM219: =(All!Z194+All!Z195)/1000 -> 2.541287 | AN219: =(All!AA194+All!AA195)/1000 -> 2.636799 | AO219: =(All!AB194+All!AB195)/1000 -> 2.697818 | AP219: =(All!AC194+All!AC195)/1000 -> 2.732884 | AQ219: =(All!AD194+All!AD195)/1000 -> 2.767972 | AR219: =(All!AE194+All!AE195)/1000 -> 2.785909 | AS219: =(All!AF194+All!AF195)/1000 -> 2.792623 | AT219: =(All!AG194+All!AG195)/1000 -> 2.813169 | AU219: =(All!AH194+All!AH195)/1000 -> 2.837474
P220: Sales and customer service | Q220: =(All!D196+All!D197)/1000 -> 19.546704 | R220: =(All!E196+All!E197)/1000 -> 18.805715 | S220: =(All!F196+All!F197)/1000 -> 18.062154 | T220: =(All!G196+All!G197)/1000 -> 15.418146 | U220: =(All!H196+All!H197)/1000 -> 14.05004 | V220: =(All!I196+All!I197)/1000 -> 14.930933 | W220: =(All!J196+All!J197)/1000 -> 15.071267 | X220: =(All!K196+All!K197)/1000 -> 15.03406 | Y220: =(All!L196+All!L197)/1000 -> 14.896964 | Z220: =(All!M196+All!M197)/1000 -> 16.632283 | AA220: =(All!N196+All!N197)/1000 -> 14.905299 | AB220: =(All!O196+All!O197)/1000 -> 14.662007 | AC220: =(All!P196+All!P197)/1000 -> 14.116554 | AD220: =(All!Q196+All!Q197)/1000 -> 11.018715 | AE220: =(All!R196+All!R197)/1000 -> 12.266275 | AF220: =(All!S196+All!S197)/1000 -> 11.912411 | AG220: =(All!T196+All!T197)/1000 -> 11.886708 | AH220: =(All!U196+All!U197)/1000 -> 13.797786 | AI220: =(All!V196+All!V197)/1000 -> 18.090861 | AJ220: =(All!W196+All!W197)/1000 -> 15.58064 | AK220: =(All!X196+All!X197)/1000 -> 14.82916 | AL220: =(All!Y196+All!Y197)/1000 -> 15.051797 | AM220: =(All!Z196+All!Z197)/1000 -> 15.257825 | AN220: =(All!AA196+All!AA197)/1000 -> 15.471354 | AO220: =(All!AB196+All!AB197)/1000 -> 15.788413 | AP220: =(All!AC196+All!AC197)/1000 -> 16.021852 | AQ220: =(All!AD196+All!AD197)/1000 -> 16.120575 | AR220: =(All!AE196+All!AE197)/1000 -> 16.213982 | AS220: =(All!AF196+All!AF197)/1000 -> 16.299084 | AT220: =(All!AG196+All!AG197)/1000 -> 16.314317 | AU220: =(All!AH196+All!AH197)/1000 -> 16.32955
P221: Process, plant and machine operatives | Q221: =(All!D198+All!D199)/1000 -> 11.879342 | R221: =(All!E198+All!E199)/1000 -> 10.431904 | S221: =(All!F198+All!F199)/1000 -> 9.494453 | T221: =(All!G198+All!G199)/1000 -> 8.635638 | U221: =(All!H198+All!H199)/1000 -> 7.37065 | V221: =(All!I198+All!I199)/1000 -> 7.515859 | W221: =(All!J198+All!J199)/1000 -> 7.011406 | X221: =(All!K198+All!K199)/1000 -> 6.382164 | Y221: =(All!L198+All!L199)/1000 -> 5.933305 | Z221: =(All!M198+All!M199)/1000 -> 6.079246 | AA221: =(All!N198+All!N199)/1000 -> 5.786239 | AB221: =(All!O198+All!O199)/1000 -> 5.049687 | AC221: =(All!P198+All!P199)/1000 -> 3.017472 | AD221: =(All!Q198+All!Q199)/1000 -> 3.430754 | AE221: =(All!R198+All!R199)/1000 -> 4.221424 | AF221: =(All!S198+All!S199)/1000 -> 3.455301 | AG221: =(All!T198+All!T199)/1000 -> 3.363397 | AH221: =(All!U198+All!U199)/1000 -> 5.332762 | AI221: =(All!V198+All!V199)/1000 -> 7.202127 | AJ221: =(All!W198+All!W199)/1000 -> 6.478292 | AK221: =(All!X198+All!X199)/1000 -> 6.057512 | AL221: =(All!Y198+All!Y199)/1000 -> 6.140726 | AM221: =(All!Z198+All!Z199)/1000 -> 6.22808 | AN221: =(All!AA198+All!AA199)/1000 -> 6.286642 | AO221: =(All!AB198+All!AB199)/1000 -> 6.337272 | AP221: =(All!AC198+All!AC199)/1000 -> 6.344344 | AQ221: =(All!AD198+All!AD199)/1000 -> 6.320546 | AR221: =(All!AE198+All!AE199)/1000 -> 6.29484 | AS221: =(All!AF198+All!AF199)/1000 -> 6.263637 | AT221: =(All!AG198+All!AG199)/1000 -> 6.184621 | AU221: =(All!AH198+All!AH199)/1000 -> 6.104981
P222: Elementary occupations | Q222: =(All!D200+All!D201)/1000 -> 5.100304 | R222: =(All!E200+All!E201)/1000 -> 4.512549 | S222: =(All!F200+All!F201)/1000 -> 4.12835 | T222: =(All!G200+All!G201)/1000 -> 3.583972 | U222: =(All!H200+All!H201)/1000 -> 3.001215 | V222: =(All!I200+All!I201)/1000 -> 3.051713 | W222: =(All!J200+All!J201)/1000 -> 2.940832 | X222: =(All!K200+All!K201)/1000 -> 2.758401 | Y222: =(All!L200+All!L201)/1000 -> 2.582636 | Z222: =(All!M200+All!M201)/1000 -> 2.854976 | AA222: =(All!N200+All!N201)/1000 -> 2.446724 | AB222: =(All!O200+All!O201)/1000 -> 2.295974 | AC222: =(All!P200+All!P201)/1000 -> 2.22946 | AD222: =(All!Q200+All!Q201)/1000 -> 1.619082 | AE222: =(All!R200+All!R201)/1000 -> 1.427882 | AF222: =(All!S200+All!S201)/1000 -> 1.82065 | AG222: =(All!T200+All!T201)/1000 -> 2.283534 | AH222: =(All!U200+All!U201)/1000 -> 2.573893 | AI222: =(All!V200+All!V201)/1000 -> 2.51582 | AJ222: =(All!W200+All!W201)/1000 -> 2.214806 | AK222: =(All!X200+All!X201)/1000 -> 2.183755 | AL222: =(All!Y200+All!Y201)/1000 -> 2.14885 | AM222: =(All!Z200+All!Z201)/1000 -> 2.166655 | AN222: =(All!AA200+All!AA201)/1000 -> 2.177793 | AO222: =(All!AB200+All!AB201)/1000 -> 2.205616 | AP222: =(All!AC200+All!AC201)/1000 -> 2.216504 | AQ222: =(All!AD200+All!AD201)/1000 -> 2.209952 | AR222: =(All!AE200+All!AE201)/1000 -> 2.205274 | AS222: =(All!AF200+All!AF201)/1000 -> 2.19826 | AT222: =(All!AG200+All!AG201)/1000 -> 2.198759 | AU222: =(All!AH200+All!AH201)/1000 -> 2.200836
P247: ="Occupational employment, "&CHAR(13)&P248 -> Occupational employment, Water and sewerage
P248: =names!A10 -> Water and sewerage | Q248: =Q213 -> 1992 | R248: 1993 | S248: 1994 | T248: 1995 | U248: 1996 | V248: 1997 | W248: 1998 | X248: 1999 | Y248: 2000 | Z248: 2001 | AA248: 2002 | AB248: 2003 | AC248: 2004 | AD248: 2005 | AE248: 2006 | AF248: 2007 | AG248: 2008 | AH248: 2009 | AI248: 2010 | AJ248: 2011 | AK248: 2012 | AL248: 2013 | AM248: 2014 | AN248: 2015 | AO248: 2016 | AP248: 2017 | AQ248: 2018 | AR248: 2019 | AS248: 2020 | AT248: 2021 | AU248: 2022
P249: =P214 -> Managers, directors and senior officials | Q249: =(All!D205+All!D206)/1000 -> 9.717959 | R249: =(All!E205+All!E206)/1000 -> 10.201648 | S249: =(All!F205+All!F206)/1000 -> 10.196796 | T249: =(All!G205+All!G206)/1000 -> 10.124437 | U249: =(All!H205+All!H206)/1000 -> 10.864036 | V249: =(All!I205+All!I206)/1000 -> 11.651906 | W249: =(All!J205+All!J206)/1000 -> 11.461458 | X249: =(All!K205+All!K206)/1000 -> 11.656243 | Y249: =(All!L205+All!L206)/1000 -> 12.31919 | Z249: =(All!M205+All!M206)/1000 -> 12.319937 | AA249: =(All!N205+All!N206)/1000 -> 11.423162 | AB249: =(All!O205+All!O206)/1000 -> 12.248102 | AC249: =(All!P205+All!P206)/1000 -> 13.685303 | AD249: =(All!Q205+All!Q206)/1000 -> 14.778793 | AE249: =(All!R205+All!R206)/1000 -> 12.437885 | AF249: =(All!S205+All!S206)/1000 -> 14.005753 | AG249: =(All!T205+All!T206)/1000 -> 15.648739 | AH249: =(All!U205+All!U206)/1000 -> 17.36556 | AI249: =(All!V205+All!V206)/1000 -> 19.868355 | AJ249: =(All!W205+All!W206)/1000 -> 21.710485 | AK249: =(All!X205+All!X206)/1000 -> 23.294417 | AL249: =(All!Y205+All!Y206)/1000 -> 24.239629 | AM249: =(All!Z205+All!Z206)/1000 -> 24.836757 | AN249: =(All!AA205+All!AA206)/1000 -> 25.475794 | AO249: =(All!AB205+All!AB206)/1000 -> 25.957981 | AP249: =(All!AC205+All!AC206)/1000 -> 26.553057 | AQ249: =(All!AD205+All!AD206)/1000 -> 27.141306 | AR249: =(All!AE205+All!AE206)/1000 -> 27.768482 | AS249: =(All!AF205+All!AF206)/1000 -> 28.380791 | AT249: =(All!AG205+All!AG206)/1000 -> 29.088408 | AU249: =(All!AH205+All!AH206)/1000 -> 29.771936
P250: Professional occupations | Q250: =(All!D207+All!D208+All!D209+All!D210)/1000 -> 15.764254 | R250: =(All!E207+All!E208+All!E209+All!E210)/1000 -> 16.126966 | S250: =(All!F207+All!F208+All!F209+All!F210)/1000 -> 15.832293 | T250: =(All!G207+All!G208+All!G209+All!G210)/1000 -> 15.700009 | U250: =(All!H207+All!H208+All!H209+All!H210)/1000 -> 16.864527 | V250: =(All!I207+All!I208+All!I209+All!I210)/1000 -> 16.813608 | W250: =(All!J207+All!J208+All!J209+All!J210)/1000 -> 17.506109 | X250: =(All!K207+All!K208+All!K209+All!K210)/1000 -> 16.458775 | Y250: =(All!L207+All!L208+All!L209+All!L210)/1000 -> 16.608148 | Z250: =(All!M207+All!M208+All!M209+All!M210)/1000 -> 17.038175 | AA250: =(All!N207+All!N208+All!N209+All!N210)/1000 -> 13.75641 | AB250: =(All!O207+All!O208+All!O209+All!O210)/1000 -> 15.138259 | AC250: =(All!P207+All!P208+All!P209+All!P210)/1000 -> 14.576753 | AD250: =(All!Q207+All!Q208+All!Q209+All!Q210)/1000 -> 13.487049 | AE250: =(All!R207+All!R208+All!R209+All!R210)/1000 -> 17.232475 | AF250: =(All!S207+All!S208+All!S209+All!S210)/1000 -> 15.318981 | AG250: =(All!T207+All!T208+All!T209+All!T210)/1000 -> 15.031914 | AH250: =(All!U207+All!U208+All!U209+All!U210)/1000 -> 18.396666 | AI250: =(All!V207+All!V208+All!V209+All!V210)/1000 -> 17.013516 | AJ250: =(All!W207+All!W208+All!W209+All!W210)/1000 -> 17.496836 | AK250: =(All!X207+All!X208+All!X209+All!X210)/1000 -> 19.181611 | AL250: =(All!Y207+All!Y208+All!Y209+All!Y210)/1000 -> 20.136503 | AM250: =(All!Z207+All!Z208+All!Z209+All!Z210)/1000 -> 20.641134 | AN250: =(All!AA207+All!AA208+All!AA209+All!AA210)/1000 -> 21.138499 | AO250: =(All!AB207+All!AB208+All!AB209+All!AB210)/1000 -> 21.431796 | AP250: =(All!AC207+All!AC208+All!AC209+All!AC210)/1000 -> 21.76001 | AQ250: =(All!AD207+All!AD208+All!AD209+All!AD210)/1000 -> 22.139051 | AR250: =(All!AE207+All!AE208+All!AE209+All!AE210)/1000 -> 22.487421 | AS250: =(All!AF207+All!AF208+All!AF209+All!AF210)/1000 -> 22.841145 | AT250: =(All!AG207+All!AG208+All!AG209+All!AG210)/1000 -> 23.325915 | AU250: =(All!AH207+All!AH208+All!AH209+All!AH210)/1000 -> 23.787484
... 102 more rows

Sheet Figure 7.1
AT1: Share of all occupations, 1992-2022 | DA1: Data is written here by the initial setup process (module DataQ) and the appropriate occupation copied to BL116 when an occupation is selected
AT2: Replacement demand, 2012-2022 | AZ2: When an occupation is selected, data for that occupation is written here.
F3: Click on an occupation from the list and the charts will be customised for that occupation | AT3: Qualification shares, 2012 | BB3: Chart data | CJ3: Employment by broad ind sector for current occupation | DA3: Emp x qualification for occupation 1 for every industry
AT4: Employment by gender and status, 2012 | BB4: Shares of total employment for selected occupation for every sector | CJ4: (obviously not reproduced for every industry - that wouldn't make sense) | DA4: 2012 | DB4: =LEFT(names!$D$4,4) -> QCF8 | DC4: =LEFT(names!$D$5,4) -> QCF7 | DD4: =LEFT(names!$D$6,4) -> QCF6 | DE4: =LEFT(names!$D$7,4) -> QCF5 | DF4: =LEFT(names!$D$8,4) -> QCF4 | DG4: =LEFT(names!$D$9,4) -> QCF3 | DH4: =LEFT(names!$D$10,4) -> QCF2 | DI4: =LEFT(names!$D$11,4) -> QCF1 | DJ4: =LEFT(names!$D$12,7) -> No Qual
BB5: 1992 | BC5: 1993 | BD5: 1994 | BE5: 1995 | BF5: 1996 | BG5: 1997 | BH5: 1998 | BI5: 1999 | BJ5: 2000 | BK5: 2001 | BL5: 2002 | BM5: 2003 | BN5: 2004 | BO5: 2005 | BP5: 2006 | BQ5: 2007 | BR5: 2008 | BS5: 2009 | BT5: 2010 | BU5: 2011 | BV5: 2012 | BW5: 2013 | BX5: 2014 | BY5: 2015 | BZ5: 2016 | CA5: 2017 | CB5: 2018 | CC5: 2019 | CD5: 2020 | CE5: 2021 | CF5: 2022 | CJ5: Industries, 2012 | DA5: =names!$A$3 -> All industries | DB5: 29377.45078 | DC5: 256131.0452 | DD5: 636839.3554 | DE5: 138538.0233 | DF5: 191880.2316 | DG5: 382134.557 | DH5: 345171.0777 | DI5: 227005.2802 | DJ5: 48040.26571
AZ6: =names!$A$3 -> All industries | BA6: Males | BB6: 84.27267278 | BC6: 83.27631437 | BD6: 82.5208928 | BE6: 81.81896784 | BF6: 80.90853509 | BG6: 80.23076975 | BH6: 79.07731738 | BI6: 77.70311945 | BJ6: 77.18254596 | BK6: 76.18663601 | BL6: 76.63299537 | BM6: 75.02362312 | BN6: 74.77948804 | BO6: 74.52266445 | BP6: 73.3937129 | BQ6: 73.77156532 | BR6: 73.72346837 | BS6: 72.78808978 | BT6: 72.21064693 | BU6: 71.65367894 | BV6: 71.22149938 | BW6: 70.77060136 | BX6: 70.34721754 | BY6: 69.96360933 | BZ6: 69.57048746 | CA6: 69.16559163 | CB6: 68.74996954 | CC6: 68.33231022 | CD6: 67.92836756 | CE6: 68.33231022 | CF6: 67.92836756 | CJ6: Primary sector & utilities | CK6: 12042.821 | DA6: =names!$A$4 -> Agriculture | DB6: 119.3467159 | DC6: 359.3004824 | DD6: 1444.894641 | DE6: 70.4331944 | DF6: 905.9716398 | DG6: 1079.348067 | DH6: 804.4216607 | DI6: 413.0821488 | DJ6: 86.07780845
BA7: Females | BB7: 15.72732722 | BC7: 16.72368563 | BD7: 17.47910727 | BE7: 18.18103223 | BF7: 19.09146498 | BG7: 19.76923032 | BH7: 20.92268262 | BI7: 22.29688055 | BJ7: 22.81745411 | BK7: 23.81336405 | BL7: 23.36700463 | BM7: 24.97637693 | BN7: 25.22051201 | BO7: 25.4773356 | BP7: 26.60628715 | BQ7: 26.22843468 | BR7: 26.27653163 | BS7: 27.21191022 | BT7: 27.78935307 | BU7: 28.34632106 | BV7: 28.77850067 | BW7: 29.22939869 | BX7: 29.65278251 | BY7: 30.03639072 | BZ7: 30.42951258 | CA7: 30.83440837 | CB7: 31.25003046 | CC7: 31.66768978 | CD7: 32.07163248 | CE7: 31.66768978 | CF7: 32.07163248 | CJ7: Manufacturing | CK7: 952326.64 | DA7: =names!$A$5 -> Mining and quarrying | DB7: 0 | DC7: 1788.810672 | DD7: 1483.800742 | DE7: 520.2202274 | DF7: 401.7539641 | DG7: 997.3572092 | DH7: 1415.797287 | DI7: 398.8061156 | DJ7: 88.32980049
AZ8: =names!$A$4 -> Agriculture | BA8: Males | BB8: 85.61114222 | BC8: 84.55401604 | BD8: 85.96880622 | BE8: 87.18635081 | BF8: 87.21338146 | BG8: 86.30131749 | BH8: 81.62303236 | BI8: 84.02085256 | BJ8: 81.73542499 | BK8: 82.52592824 | BL8: 82.20955844 | BM8: 80.18853405 | BN8: 78.1286708 | BO8: 76.23467918 | BP8: 83.40831542 | BQ8: 81.25765251 | BR8: 77.54177634 | BS8: 84.77047932 | BT8: 72.17124636 | BU8: 71.56894572 | BV8: 71.04451266 | BW8: 70.62650821 | BX8: 70.20422903 | BY8: 69.61831158 | BZ8: 69.28525022 | CA8: 68.99074425 | CB8: 68.7183475 | CC8: 68.47553094 | CD8: 68.2347732 | CE8: 68.47553094 | CF8: 68.2347732 | CJ8: Construction | CK8: 36108.381 | DA8: =names!$A$6 -> Food drink and tobacco | DB8: 0 | DC8: 2609.897412 | DD8: 9978.508205 | DE8: 2601.45286 | DF8: 2859.986586 | DG8: 4798.668502 | DH8: 5281.514666 | DI8: 2413.302373 | DJ8: 518.8116185
BA9: Females | BB9: 14.38886746 | BC9: 15.44598396 | BD9: 14.03119378 | BE9: 12.81364919 | BF9: 12.78661854 | BG9: 13.69868251 | BH9: 18.37696764 | BI9: 15.97914744 | BJ9: 18.26458629 | BK9: 17.47408433 | BL9: 17.79044156 | BM9: 19.81146595 | BN9: 21.8713292 | BO9: 23.76532082 | BP9: 16.59168458 | BQ9: 18.74234749 | BR9: 22.45822366 | BS9: 15.22952068 | BT9: 27.82875364 | BU9: 28.43107011 | BV9: 28.95548734 | BW9: 29.37349179 | BX9: 29.79577097 | BY9: 30.38167217 | BZ9: 30.71474978 | CA9: 31.00923964 | CB9: 31.2816525 | CC9: 31.52446906 | CD9: 31.76521079 | CE9: 31.52446906 | CF9: 31.76521079 | CJ9: Trade, accomod. &, transport | CK9: 344012.585 | DA9: =names!$A$7 -> Engineering | DB9: 714.2252735 | DC9: 5305.109841 | DD9: 14382.39086 | DE9: 2365.989004 | DF9: 7375.395967 | DG9: 9863.239525 | DH9: 7877.566137 | DI9: 3967.71671 | DJ9: 1001.111459
AZ10: =names!$A$5 -> Mining and quarrying | BA10: Males | BB10: 96.79092883 | BC10: 96.83809813 | BD10: 96.43824093 | BE10: 96.32596982 | BF10: 96.91787979 | BG10: 96.19998857 | BH10: 95.28286088 | BI10: 93.4464746 | BJ10: 93.41584672 | BK10: 92.15990562 | BL10: 91.77735599 | BM10: 93.4501535 | BN10: 92.90638475 | BO10: 91.68486395 | BP10: 91.67965059 | BQ10: 92.65392472 | BR10: 93.58129594 | BS10: 92.52458443 | BT10: 92.88452037 | BU10: 92.74310019 | BV10: 92.55685564 | BW10: 92.3780174 | BX10: 92.122503 | BY10: 91.60122088 | BZ10: 91.46459078 | CA10: 91.31999677 | CB10: 91.18193878 | CC10: 91.0378945 | CD10: 90.89768131 | CE10: 91.0378945 | CF10: 90.89768131 | CJ10: Business & other services | CK10: 666530.986 | DA10: =names!$A$8 -> Rest of manufacturing | DB10: 2611.309308 | DC10: 15755.30664 | DD10: 45111.71814 | DE10: 8958.615426 | DF10: 24244.35048 | DG10: 30226.91219 | DH10: 26264.22513 | DI10: 15568.93162 | DJ10: 3901.353884
BA11: Females | BB11: 3.209071169 | BC11: 3.161901865 | BD11: 3.561780006 | BE11: 3.674050291 | BF11: 3.082137905 | BG11: 3.800029758 | BH11: 4.717139116 | BI11: 6.553525404 | BJ11: 6.584170957 | BK11: 7.840094385 | BL11: 8.22264401 | BM11: 6.549868032 | BN11: 7.093615254 | BO11: 8.315136047 | BP11: 8.320331256 | BQ11: 7.34607528 | BR11: 6.418688524 | BS11: 7.475415571 | BT11: 7.115462249 | BU11: 7.256899814 | BV11: 7.44314436 | BW11: 7.6219826 | BX11: 7.877497004 | BY11: 8.398779116 | BZ11: 8.535392161 | CA11: 8.679986078 | CB11: 8.818061217 | CC11: 8.962122863 | CD11: 9.102318695 | CE11: 8.962122863 | CF11: 9.102318695 | CJ11: Non-market services | CK11: 64923.74 | DA11: =names!$A$9 -> Electricity and gas | DB11: 169.6387761 | DC11: 1759.72647 | DD11: 3602.610618 | DE11: 724.2669575 | DF11: 1754.930457 | DG11: 1945.423686 | DH11: 535.5334564 | DI11: 840.7719154 | DJ11: 68.55815659
AZ12: =names!$A$6 -> Food drink and tobacco | BA12: Males | BB12: 81.44024522 | BC12: 81.00520285 | BD12: 80.32148793 | BE12: 80.22632499 | BF12: 80.85113718 | BG12: 78.49492475 | BH12: 79.45767821 | BI12: 81.6604753 | BJ12: 82.01953038 | BK12: 80.78970845 | BL12: 86.44808646 | BM12: 82.86070416 | BN12: 79.92227946 | BO12: 78.36379291 | BP12: 81.48435149 | BQ12: 79.43374771 | BR12: 78.2397898 | BS12: 79.88941141 | BT12: 72.63096885 | BU12: 72.40798333 | BV12: 72.04924893 | BW12: 71.72709569 | BX12: 71.45414834 | BY12: 71.22155248 | BZ12: 70.92862863 | CA12: 70.65794152 | CB12: 70.36222357 | CC12: 70.07876693 | CD12: 69.81780651 | CE12: 70.07876693 | CF12: 69.81780651 | DA12: =names!$A$10 -> Water and sewerage | DB12: 114.8361523 | DC12: 2420.022044 | DD12: 5161.422969 | DE12: 170.1732651 | DF12: 1361.530441 | DG12: 0 | DH12: 1782.776756 | DI12: 1932.130685 | DJ12: 1041.268208
BA13: Females | BB13: 18.55975478 | BC13: 18.99479715 | BD13: 19.67851207 | BE13: 19.77367501 | BF13: 19.14886706 | BG13: 21.50507525 | BH13: 20.54232179 | BI13: 18.3395247 | BJ13: 17.98046962 | BK13: 19.21029155 | BL13: 13.55191714 | BM13: 17.13929584 | BN13: 20.07772054 | BO13: 21.63620709 | BP13: 18.51564851 | BQ13: 20.56625229 | BR13: 21.7602102 | BS13: 20.11058859 | BT13: 27.36903115 | BU13: 27.59201667 | BV13: 27.95075107 | BW13: 28.27290431 | BX13: 28.54585166 | BY13: 28.77844752 | BZ13: 29.07136823 | CA13: 29.34205542 | CB13: 29.63777643 | CC13: 29.92123599 | CD13: 30.18219349 | CE13: 29.92123599 | CF13: 30.18219349 | DA13: =names!$A$11 -> Construction | DB13: 452.6651259 | DC13: 13482.53317 | DD13: 27456.94898 | DE13: 8381.536297 | DF13: 21505.2665 | DG13: 36401.62064 | DH13: 26874.17561 | DI13: 15257.95073 | DJ13: 5546.825761
G14: Charts all refer to the selected occupation - current selection is :- | AZ14: =names!$A$7 -> Engineering | BA14: Males | BB14: 93.03444328 | BC14: 92.59839634 | BD14: 92.25295887 | BE14: 92.1958487 | BF14: 91.92671448 | BG14: 91.84531786 | BH14: 90.83199922 | BI14: 90.37378545 | BJ14: 89.98209206 | BK14: 90.06730191 | BL14: 89.45303618 | BM14: 89.9326645 | BN14: 89.5803232 | BO14: 89.48801144 | BP14: 88.94795597 | BQ14: 88.92753822 | BR14: 88.36548075 | BS14: 89.81177489 | BT14: 88.48141235 | BU14: 88.26521917 | BV14: 87.95657072 | BW14: 87.62312951 | BX14: 87.30543105 | BY14: 86.99637602 | BZ14: 86.68451107 | CA14: 86.38421349 | CB14: 86.07179698 | CC14: 85.79621208 | CD14: 85.49518794 | CE14: 85.79621208 | CF14: 85.49518794 | CJ14: Employment change by broad industrial sector | DA14: =names!$A$12 -> Wholesale and retail trade | DB14: 661.0694775 | DC14: 20297.22395 | DD14: 100938.6633 | DE14: 23235.29538 | DF14: 34833.70273 | DG14: 104531.1286 | DH14: 105773.2157 | DI14: 89689.50311 | DJ14: 15715.72856
BA15: Females | BB15: 6.965558507 | BC15: 7.401603664 | BD15: 7.747039315 | BE15: 7.804151297 | BF15: 8.073285521 | BG15: 8.154682138 | BH15: 9.168000783 | BI15: 9.626216079 | BJ15: 10.01790946 | BK15: 9.932698086 | BL15: 10.5469654 | BM15: 10.0673355 | BN15: 10.4196768 | BO15: 10.51198856 | BP15: 11.05204403 | BQ15: 11.07246178 | BR15: 11.63451925 | BS15: 10.18822711 | BT15: 11.51858765 | BU15: 11.73478083 | BV15: 12.04342928 | BW15: 12.37687049 | BX15: 12.69456895 | BY15: 13.0036219 | BZ15: 13.31549102 | CA15: 13.61578651 | CB15: 13.92820302 | CC15: 14.20379005 | CD15: 14.50481206 | CE15: 14.20379005 | CF15: 14.50481206 | CJ15: Industries, 2012 - 2022 | DA15: =names!$A$13 -> Transport and storage | DB15: 675.2232925 | DC15: 7402.277206 | DD15: 25438.16651 | DE15: 3069.354495 | DF15: 5901.339786 | DG15: 17276.84434 | DH15: 20279.41998 | DI15: 13704.51903 | DJ15: 3569.024694
B16: 11 Corporate managers and directors | AZ16: =names!$A$8 -> Rest of manufacturing | BA16: Males | BB16: 91.53733815 | BC16: 90.9302091 | BD16: 90.54853319 | BE16: 90.16451628 | BF16: 90.05279296 | BG16: 89.55343272 | BH16: 88.59963781 | BI16: 88.5789321 | BJ16: 88.62643841 | BK16: 88.0637277 | BL16: 87.97594307 | BM16: 87.18584584 | BN16: 87.0955283 | BO16: 86.48421142 | BP16: 87.30140943 | BQ16: 85.8668539 | BR16: 86.31108827 | BS16: 86.53488746 | BT16: 85.58940465 | BU16: 85.293681 | BV16: 84.97180142 | BW16: 84.6537987 | BX16: 84.36955977 | BY16: 84.0780895 | BZ16: 83.81248282 | CA16: 83.53780033 | CB16: 83.25114801 | CC16: 82.93900422 | CD16: 82.60550272 | CE16: 82.93900422 | CF16: 82.60550272 | CJ16: =CJ11 -> Non-market services | CK16: 18.863837 | DA16: =names!$A$14 -> Accommodation and food | DB16: 35.41407966 | DC16: 3864.078915 | DD16: 10008.06213 | DE16: 1111.762024 | DF16: 2667.611792 | DG16: 6558.047007 | DH16: 9204.084763 | DI16: 5236.390485 | DJ16: 855.9957036
BA17: Females | BB17: 8.462661848 | BC17: 9.069790365 | BD17: 9.451466284 | BE17: 9.835483723 | BF17: 9.94720704 | BG17: 10.44656728 | BH17: 11.40036219 | BI17: 11.4210679 | BJ17: 11.37356159 | BK17: 11.9362723 | BL17: 12.02405693 | BM17: 12.81415416 | BN17: 12.9044717 | BO17: 13.51578858 | BP17: 12.69859057 | BQ17: 14.1331461 | BR17: 13.68891173 | BS17: 13.46511254 | BT17: 14.41059535 | BU17: 14.706319 | BV17: 15.02819858 | BW17: 15.3462013 | BX17: 15.63044023 | BY17: 15.92190993 | BZ17: 16.18751718 | CA17: 16.46220022 | CB17: 16.74885144 | CC17: 17.06099523 | CD17: 17.39449728 | CE17: 17.06099523 | CF17: 17.39449728 | CJ17: =CJ10 -> Business & other services | CK17: 92.314818 | DA17: =names!$A$15 -> Media | DB17: 393.5963493 | DC17: 3397.174532 | DD17: 9676.297119 | DE17: 1232.007799 | DF17: 1506.439636 | DG17: 4095.228351 | DH17: 4005.664872 | DI17: 2794.131505 | DJ17: 361.1465696
J18: All industries | AZ18: =names!$A$9 -> Electricity and gas | BA18: Males | BB18: 89.83818205 | BC18: 88.69100278 | BD18: 88.02774974 | BE18: 88.99138332 | BF18: 88.47047367 | BG18: 87.44862367 | BH18: 85.69090738 | BI18: 83.01710984 | BJ18: 82.16461562 | BK18: 79.0296354 | BL18: 80.39826071 | BM18: 80.87132658 | BN18: 74.5419982 | BO18: 83.21861982 | BP18: 77.01282423 | BQ18: 81.15113278 | BR18: 83.25876861 | BS18: 80.27948975 | BT18: 81.41256338 | BU18: 81.10021631 | BV18: 80.79422994 | BW18: 80.50196302 | BX18: 80.31000672 | BY18: 80.13977732 | BZ18: 79.9636979 | CA18: 79.81177508 | CB18: 79.64770439 | CC18: 79.4991 | CD18: 79.34770452 | CE18: 79.4991 | CF18: 79.34770452 | CJ18: =CJ9 -> Trade, accomod. &, transport | CK18: 45.968075 | DA18: =names!$A$16 -> Information technology | DB18: 1143.0161 | DC18: 18837.96092 | DD18: 56279.64743 | DE18: 7892.686799 | DF18: 14871.70384 | DG18: 17958.07871 | DH18: 18516.94264 | DI18: 10066.35442 | DJ18: 785.4007374
BA19: Females | BB19: 10.16181795 | BC19: 11.30899722 | BD19: 11.97225026 | BE19: 11.00861668 | BF19: 11.52954298 | BG19: 12.55137633 | BH19: 14.30910865 | BI19: 16.98290746 | BJ19: 17.83538438 | BK19: 20.9703646 | BL19: 19.60173929 | BM19: 19.12867342 | BN19: 25.4580018 | BO19: 16.78138018 | BP19: 22.98717577 | BQ19: 18.84886722 | BR19: 16.74121949 | BS19: 19.72051025 | BT19: 18.58743662 | BU19: 18.89978369 | BV19: 19.20577006 | BW19: 19.49803698 | BX19: 19.68998347 | BY19: 19.86022268 | BZ19: 20.0363021 | CA19: 20.18823515 | CB19: 20.35229561 | CC19: 20.5009 | CD19: 20.65229548 | CE19: 20.5009 | CF19: 20.65229548 | CJ19: =CJ8 -> Construction | CK19: 8.671405 | DA19: =names!$A$17 -> Finance and insurance | DB19: 3124.978572 | DC19: 30232.31935 | DD19: 62997.98998 | DE19: 9905.602235 | DF19: 8320.354051 | DG19: 26653.67111 | DH19: 25425.07311 | DI19: 12434.87675 | DJ19: 798.1241923
AZ20: =names!$A$10 -> Water and sewerage | BA20: Males | BB20: 90.02120904 | BC20: 89.63059066 | BD20: 89.03881229 | BE20: 87.75225586 | BF20: 88.19459978 | BG20: 87.50287664 | BH20: 86.41346237 | BI20: 86.21091406 | BJ20: 85.58734004 | BK20: 82.67181598 | BL20: 80.26992581 | BM20: 84.14059739 | BN20: 85.54160763 | BO20: 86.23887766 | BP20: 85.58634201 | BQ20: 88.65072951 | BR20: 88.10970124 | BS20: 84.73762604 | BT20: 84.05467669 | BU20: 83.32633124 | BV20: 82.6787852 | BW20: 82.24368782 | BX20: 81.66516311 | BY20: 81.01391481 | BZ20: 80.11889243 | CA20: 79.05199581 | CB20: 77.80025756 | CC20: 76.48260762 | CD20: 75.64748516 | CE20: 76.48260762 | CF20: 75.64748516 | CJ20: =CJ7 -> Manufacturing | CK20: 165.06681 | DA20: =names!$A$18 -> Real estate | DB20: 182.1408152 | DC20: 6593.691609 | DD20: 13880.70687 | DE20: 1899.005229 | DF20: 7840.093478 | DG20: 9770.652799 | DH20: 4941.116795 | DI20: 5091.946409 | DJ20: 759.6515505
BA21: Females | BB21: 9.978807256 | BC21: 10.36940934 | BD21: 10.96118771 | BE21: 12.24772813 | BF21: 11.80540022 | BG21: 12.49712336 | BH21: 13.58653763 | BI21: 13.78908594 | BJ21: 14.41265996 | BK21: 17.32818402 | BL21: 19.73007419 | BM21: 15.85940261 | BN21: 14.45839237 | BO21: 13.76112234 | BP21: 14.41365799 | BQ21: 11.34928201 | BR21: 11.89029876 | BS21: 15.26236521 | BT21: 15.94532331 | BU21: 16.67366876 | BV21: 17.3212148 | BW21: 17.75631218 | BX21: 18.33483689 | BY21: 18.98608519 | BZ21: 19.88110757 | CA21: 20.94801198 | CB21: 22.19974244 | CC21: 23.51739973 | CD21: 24.35251484 | CE21: 23.51739973 | CF21: 24.35251484 | CJ21: =CJ6 -> Primary sector & utilities | CK21: -0.067098 | DA21: =names!$A$19 -> Professional services | DB21: 10561.09751 | DC21: 42609.3727 | DD21: 97877.3846 | DE21: 5815.749069 | DF21: 19862.9828 | DG21: 28713.12794 | DH21: 26084.93567 | DI21: 12446.37406 | DJ21: 2774.609352
AZ22: =names!$A$11 -> Construction | BA22: Males | BB22: 95.14541092 | BC22: 94.48102249 | BD22: 93.77148184 | BE22: 93.80763259 | BF22: 92.7400337 | BG22: 93.75126572 | BH22: 92.28727795 | BI22: 91.9633511 | BJ22: 91.82687739 | BK22: 91.14560937 | BL22: 90.69629405 | BM22: 88.80011611 | BN22: 89.46346888 | BO22: 88.47032985 | BP22: 88.40360788 | BQ22: 88.640802 | BR22: 88.31462157 | BS22: 90.00424871 | BT22: 88.00014336 | BU22: 87.66412408 | BV22: 87.3761805 | BW22: 86.98792684 | BX22: 86.61733909 | BY22: 86.27809285 | BZ22: 86.00690308 | CA22: 85.71607607 | CB22: 85.41028578 | CC22: 85.10658815 | CD22: 84.81679227 | CE22: 85.10658815 | CF22: 84.81679227 | DA22: =names!$A$20 -> Support services | DB22: 874.4345968 | DC22: 19270.6733 | DD22: 43662.40808 | DE22: 4987.535212 | DF22: 17115.91709 | DG22: 31494.44755 | DH22: 22967.33785 | DI22: 19931.04399 | DJ22: 5963.044892
BA23: Females | BB23: 4.854589081 | BC23: 5.518977509 | BD23: 6.228518164 | BE23: 6.192367409 | BF23: 7.259966298 | BG23: 6.248734282 | BH23: 7.712722954 | BI23: 8.036648896 | BJ23: 8.173121766 | BK23: 8.854391459 | BL23: 9.303705951 | BM23: 11.19988389 | BN23: 10.53653112 | BO23: 11.52967088 | BP23: 11.59639212 | BQ23: 11.35919865 | BR23: 11.68537905 | BS23: 9.995751288 | BT23: 11.99985599 | BU23: 12.33587527 | BV23: 12.6238195 | BW23: 13.01207316 | BX23: 13.38266091 | BY23: 13.72190772 | BZ23: 13.99309747 | CA23: 14.2839234 | CB23: 14.58971473 | CC23: 14.89341235 | CD23: 15.18320773 | CE23: 14.89341235 | CF23: 15.18320773 | DA23: =names!$A$21 -> Public admin. and defence | DB23: 1262.200115 | DC23: 20854.1857 | DD23: 24768.62888 | DE23: 10047.84772 | DF23: 5096.766404 | DG23: 11579.27591 | DH23: 9400.989123 | DI23: 3946.32886 | DJ23: 843.9859486
AZ24: =names!$A$12 -> Wholesale and retail trade | BA24: Males | BB24: 85.12815434 | BC24: 84.37396308 | BD24: 83.96308748 | BE24: 83.71383071 | BF24: 82.62610279 | BG24: 81.88839207 | BH24: 79.5438405 | BI24: 76.53678794 | BJ24: 76.50681772 | BK24: 74.8165948 | BL24: 75.86551933 | BM24: 75.64735659 | BN24: 74.47357892 | BO24: 73.96749852 | BP24: 72.63553679 | BQ24: 73.99759622 | BR24: 72.96950913 | BS24: 71.81929625 | BT24: 74.85267537 | BU24: 73.97536676 | BV24: 73.01309667 | BW24: 71.93167553 | BX24: 70.88069332 | BY24: 69.95541902 | BZ24: 69.3668026 | CA24: 68.75516959 | CB24: 68.12344113 | CC24: 67.50467033 | CD24: 66.93866829 | CE24: 67.50467033 | CF24: 66.93866829 | DA24: =names!$A$22 -> Education | DB24: 929.2617581 | DC24: 4069.87233 | DD24: 9354.188427 | DE24: 4956.235332 | DF24: 3180.558651 | DG24: 8725.368904 | DH24: 5110.37469 | DI24: 2855.319754 | DJ24: 508.4723978
BA25: Females | BB25: 14.87184566 | BC25: 15.62603692 | BD25: 16.03691252 | BE25: 16.28616929 | BF25: 17.37389721 | BG25: 18.11160793 | BH25: 20.45615921 | BI25: 23.46321233 | BJ25: 23.49318228 | BK25: 25.1834052 | BL25: 24.13448091 | BM25: 24.35264341 | BN25: 25.52642108 | BO25: 26.03250148 | BP25: 27.36446321 | BQ25: 26.00240378 | BR25: 27.03049087 | BS25: 28.18070375 | BT25: 25.14732463 | BU25: 26.02463301 | BV25: 26.98690333 | BW25: 28.06832447 | BX25: 29.11930668 | BY25: 30.04458077 | BZ25: 30.6331976 | CA25: 31.24483041 | CB25: 31.87655867 | CC25: 32.49532987 | CD25: 33.06133171 | CE25: 32.49532987 | CF25: 33.06133171 | CJ25: =TableQ!A3 -> QCF group | CK25: Base year level | DA25: =names!$A$23 -> Health and social work | DB25: 3617.988605 | DC25: 26566.563 | DD25: 52250.67906 | DE25: 36570.14291 | DF25: 5216.855974 | DG25: 18230.60171 | DH25: 11762.63719 | DI25: 2825.560101 | DJ25: 1855.252192
AZ26: =names!$A$13 -> Transport and storage | BA26: Males | BB26: 93.62819187 | BC26: 92.77584106 | BD26: 92.44533773 | BE26: 92.13494294 | BF26: 91.14609925 | BG26: 90.4787476 | BH26: 88.49977126 | BI26: 83.2225191 | BJ26: 82.30972644 | BK26: 82.83203316 | BL26: 81.80305084 | BM26: 80.68570618 | BN26: 81.10562194 | BO26: 80.42424226 | BP26: 80.2610255 | BQ26: 80.72687454 | BR26: 82.83786026 | BS26: 81.60465381 | BT26: 81.93445546 | BU26: 81.48947399 | BV26: 80.97248031 | BW26: 80.51394314 | BX26: 80.09352899 | BY26: 79.67831874 | BZ26: 79.11843743 | CA26: 78.57968966 | CB26: 78.02427555 | CC26: 77.42236092 | CD26: 76.83336527 | CE26: 77.42236092 | CF26: 76.83336527 | CK26: 2012 | DA26: =names!$A$24 -> Arts and entertainment | DB26: 325.6852833 | DC26: 3284.260547 | DD26: 11335.25841 | DE26: 1154.131093 | DF26: 1878.950854 | DG26: 6563.398706 | DH26: 4863.50511 | DI26: 2069.106629 | DJ26: 793.2450448
BA27: Females | BB27: 6.371808126 | BC27: 7.224158937 | BD27: 7.554662266 | BE27: 7.865057061 | BF27: 8.853900751 | BG27: 9.521250996 | BH27: 11.50022874 | BI27: 16.7774809 | BJ27: 17.69027494 | BK27: 17.16796556 | BL27: 18.19694916 | BM27: 19.31429382 | BN27: 18.89437806 | BO27: 19.57575774 | BP27: 19.73897569 | BQ27: 19.27312546 | BR27: 17.16213974 | BS27: 18.39534619 | BT27: 18.06554454 | BU27: 18.51052601 | BV27: 19.02751969 | BW27: 19.48605574 | BX27: 19.90647101 | BY27: 20.32168126 | BZ27: 20.88156257 | CA27: 21.42031034 | CB27: 21.97572445 | CC27: 22.57763908 | CD27: 23.16663473 | CE27: 22.57763908 | CF27: 23.16663473 | CJ27: =TableQ!A5 -> QCF 7-8 | CK27: 1878259.585 | DA27: =names!$A$25 -> Other services | DB27: 1409.322867 | DC27: 5370.684413 | DD27: 9748.979509 | DE27: 2867.980779 | DF27: 3177.768429 | DG27: 4672.115595 | DH27: 5999.769551 | DI27: 3121.132753 | DJ27: 204.2471813
AZ28: =names!$A$14 -> Accommodation and food | BA28: Males | BB28: 61.30943184 | BC28: 60.7394892 | BD28: 60.51998849 | BE28: 58.32487639 | BF28: 56.48703088 | BG28: 57.74361626 | BH28: 62.08879378 | BI28: 67.01008326 | BJ28: 63.98104105 | BK28: 66.78577148 | BL28: 65.50407821 | BM28: 56.84805679 | BN28: 48.12830323 | BO28: 64.08039627 | BP28: 59.22457618 | BQ28: 63.83424316 | BR28: 59.457427 | BS28: 59.96763818 | BT28: 66.05873089 | BU28: 65.50356792 | BV28: 64.86023286 | BW28: 64.05329958 | BX28: 63.24758008 | BY28: 62.30350397 | BZ28: 61.59525714 | CA28: 60.88631603 | CB28: 60.18426283 | CC28: 59.51141524 | CD28: 58.82155623 | CE28: 59.51141524 | CF28: 58.82155623 | CJ28: =TableQ!A6 -> QCF 4-6 | CK28: 7417568.277
BA29: Females | BB29: 38.69056816 | BC29: 39.2605108 | BD29: 39.48001151 | BE29: 41.67512361 | BF29: 43.51296912 | BG29: 42.2563789 | BH29: 37.91120169 | BI29: 32.98992078 | BJ29: 36.01895895 | BK29: 33.21422852 | BL29: 34.49592179 | BM29: 43.15194321 | BN29: 51.87169677 | BO29: 35.91960373 | BP29: 40.77542382 | BQ29: 36.16575961 | BR29: 40.54257036 | BS29: 40.03236182 | BT29: 33.94126911 | BU29: 34.49643208 | BV29: 35.13976714 | BW29: 35.94670042 | BX29: 36.75241992 | BY29: 37.69649603 | BZ29: 38.40474286 | CA29: 39.11368397 | CB29: 39.81573479 | CC29: 40.48858476 | CD29: 41.17844377 | CE29: 40.48858476 | CF29: 41.17844377 | CJ29: =TableQ!A7 -> QCF 3 | CK29: 5973784.73
AZ30: =names!$A$15 -> Media | BA30: Males | BB30: 69.69627715 | BC30: 69.41954126 | BD30: 69.24036084 | BE30: 68.93989393 | BF30: 66.80933751 | BG30: 66.56042593 | BH30: 66.49447657 | BI30: 71.52604761 | BJ30: 67.90460793 | BK30: 67.10485116 | BL30: 68.58251781 | BM30: 71.62513437 | BN30: 73.88888059 | BO30: 71.66386936 | BP30: 70.81129628 | BQ30: 68.62342656 | BR30: 65.24504186 | BS30: 67.06854185 | BT30: 69.19293516 | BU30: 68.80301642 | BV30: 68.3247965 | BW30: 67.80771941 | BX30: 67.11864617 | BY30: 66.41433657 | BZ30: 65.7079867 | CA30: 65.05892337 | CB30: 64.40704128 | CC30: 63.99229208 | CD30: 63.49981828 | CE30: 63.99229208 | CF30: 63.49981828 | CJ30: =TableQ!A8 -> QCF 2 | CK30: 6685148.396
BA31: Females | BB31: 30.30372285 | BC31: 30.58045874 | BD31: 30.75963916 | BE31: 31.06010607 | BF31: 33.19066249 | BG31: 33.43957407 | BH31: 33.50551815 | BI31: 28.47395239 | BJ31: 32.09539207 | BK31: 32.89515332 | BL31: 31.41748219 | BM31: 28.37486944 | BN31: 26.11111941 | BO31: 28.33613064 | BP31: 29.18870754 | BQ31: 31.37657344 | BR31: 34.75495814 | BS31: 32.9314621 | BT31: 30.80706484 | BU31: 31.19698358 | BV31: 31.6752035 | BW31: 32.19228059 | BX31: 32.88135383 | BY31: 33.58566343 | BZ31: 34.29201655 | CA31: 34.94107663 | CB31: 35.59295872 | CC31: 36.00770792 | CD31: 36.50017876 | CE31: 36.00770792 | CF31: 36.50017876 | CJ31: =TableQ!A9 -> QCF 1 | CK31: 5357778.981
AZ32: =names!$A$16 -> Information technology | BA32: Males | BB32: 91.83645732 | BC32: 91.46869603 | BD32: 90.79533373 | BE32: 90.78950488 | BF32: 90.66449277 | BG32: 90.72231585 | BH32: 86.88684825 | BI32: 80.73923812 | BJ32: 80.62077153 | BK32: 78.08151447 | BL32: 81.81087096 | BM32: 81.67200908 | BN32: 82.09452283 | BO32: 82.78872606 | BP32: 78.37013919 | BQ32: 79.79708761 | BR32: 81.1582737 | BS32: 80.02551311 | BT32: 79.0154872 | BU32: 78.87372382 | BV32: 78.72074097 | BW32: 78.58392638 | BX32: 78.46229401 | BY32: 78.37463039 | BZ32: 78.2581813 | CA32: 78.15055414 | CB32: 78.03254461 | CC32: 77.93456576 | CD32: 77.88344771 | CE32: 77.93456576 | CF32: 77.88344771 | CJ32: =TableQ!A10 -> No Qual | CK32: 3124402.429
BA33: Females | BB33: 8.16354268 | BC33: 8.531303966 | BD33: 9.204668283 | BE33: 9.210493232 | BF33: 9.335507225 | BG33: 9.277685682 | BH33: 13.11315175 | BI33: 19.26076188 | BJ33: 19.37922847 | BK33: 21.91848553 | BL33: 18.18913002 | BM33: 18.32799188 | BN33: 17.90547717 | BO33: 17.21127487 | BP33: 21.62986081 | BQ33: 20.20291239 | BR33: 18.8417263 | BS33: 19.97448689 | BT33: 20.9845128 | BU33: 21.12627709 | BV33: 21.27925993 | BW33: 21.41607273 | BX33: 21.53770599 | BY33: 21.62536961 | BZ33: 21.74181956 | CA33: 21.84944501 | CB33: 21.96745539 | CC33: 22.06543424 | CD33: 22.11655229 | CE33: 22.06543424 | CF33: 22.11655229 | DA33: Emp x qualification for occupation 2 for every industry
AZ34: =names!$A$17 -> Finance and insurance | BA34: Males | BB34: 77.22597262 | BC34: 76.57445287 | BD34: 75.91816029 | BE34: 74.83997295 | BF34: 74.33096099 | BG34: 73.84073012 | BH34: 75.94217184 | BI34: 75.23966454 | BJ34: 74.61874865 | BK34: 72.34223021 | BL34: 73.47651609 | BM34: 72.02926066 | BN34: 69.99885963 | BO34: 71.00973122 | BP34: 72.44748111 | BQ34: 70.57282825 | BR34: 71.01820073 | BS34: 71.36912139 | BT34: 69.33262796 | BU34: 69.01769303 | BV34: 68.64515191 | BW34: 68.2126719 | BX34: 67.82900929 | BY34: 67.44722761 | BZ34: 67.06213604 | CA34: 66.68816074 | CB34: 66.31592833 | CC34: 65.96946381 | CD34: 65.63327467 | CE34: 65.96946381 | CF34: 65.63327467 | DA34: 2012 | DB34: =DB4 -> QCF8 | DC34: =DC4 -> QCF7 | DD34: QCF6 | DE34: QCF5 | DF34: QCF4 | DG34: QCF3 | DH34: QCF2 | DI34: QCF1 | DJ34: No Qual
BA35: Females | BB35: 22.77402738 | BC35: 23.42554713 | BD35: 24.08183971 | BE35: 25.16002705 | BF35: 25.66903809 | BG35: 26.15926899 | BH35: 24.05782816 | BI35: 24.76033546 | BJ35: 25.38125135 | BK35: 27.65776979 | BL35: 26.52348317 | BM35: 27.97073865 | BN35: 30.00114037 | BO35: 28.99026878 | BP35: 27.55251889 | BQ35: 29.42717175 | BR35: 28.98179927 | BS35: 28.63087922 | BT35: 30.66737204 | BU35: 30.98230697 | BV35: 31.35484809 | BW35: 31.78732871 | BX35: 32.17099071 | BY35: 32.55277239 | BZ35: 32.93786396 | CA35: 33.31183926 | CB35: 33.68407167 | CC35: 34.03053563 | CD35: 34.36672588 | CE35: 34.03053563 | CF35: 34.36672588 | DA35: =names!$A$3 -> All industries | DB35: 10770.61849 | DC35: 94046.99291 | DD35: 218799.1258 | DE35: 76304.20726 | DF35: 78126.61012 | DG35: 201451.4263 | DH35: 216383.5527 | DI35: 143224.0745 | DJ35: 58323.28823
AZ36: =names!$A$18 -> Real estate | BA36: Males | BB36: 80.15074333 | BC36: 79.32089843 | BD36: 77.86983265 | BE36: 76.50426795 | BF36: 76.92072307 | BG36: 75.79521732 | BH36: 73.43453418 | BI36: 72.89740613 | BJ36: 72.83941562 | BK36: 71.02487891 | BL36: 74.81835918 | BM36: 72.41349341 | BN36: 71.96925916 | BO36: 72.55425579 | BP36: 72.9318379 | BQ36: 66.98099204 | BR36: 66.07700951 | BS36: 64.24091742 | BT36: 65.44102429 | BU36: 65.11202698 | BV36: 64.96943294 | BW36: 64.76916418 | BX36: 64.23449547 | BY36: 63.77172156 | BZ36: 62.82700003 | CA36: 62.02807266 | CB36: 61.34383137 | CC36: 60.64964908 | CD36: 60.19884508 | CE36: 60.64964908 | CF36: 60.19884508 | DA36: =names!$A$4 -> Agriculture | DB36: 129.0103185 | DC36: 1419.032245 | DD36: 3181.1343 | DE36: 1676.207765 | DF36: 1850.627131 | DG36: 4904.021211 | DH36: 4891.912874 | DI36: 2538.591127 | DJ36: 2704.676943
BA37: Females | BB37: 19.84924834 | BC37: 20.67910157 | BD37: 22.13016735 | BE37: 23.49573205 | BF37: 23.07927693 | BG37: 24.20478268 | BH37: 26.5654581 | BI37: 27.10259387 | BJ37: 27.16058438 | BK37: 28.97512109 | BL37: 25.18164082 | BM37: 27.58651271 | BN37: 28.03074084 | BO37: 27.44574421 | BP37: 27.0681621 | BQ37: 33.01901128 | BR37: 33.92299357 | BS37: 35.75908258 | BT37: 34.55897571 | BU37: 34.88797302 | BV37: 35.03056706 | BW37: 35.23083582 | BX37: 35.76550453 | BY37: 36.22827844 | BZ37: 37.17299997 | CA37: 37.97192734 | CB37: 38.65616863 | CC37: 39.35035092 | CD37: 39.80115492 | CE37: 39.35035092 | CF37: 39.80115492 | DA37: =names!$A$5 -> Mining and quarrying | DB37: 0 | DC37: 112.2542299 | DD37: 89.62556079 | DE37: 56.68625149 | DF37: 44.93036398 | DG37: 206.4708661 | DH37: 79.0500373 | DI37: 29.83344106 | DJ37: 172.902318
AZ38: =names!$A$19 -> Professional services | BA38: Males | BB38: 84.01427112 | BC38: 82.87057906 | BD38: 81.27223368 | BE38: 79.37260644 | BF38: 79.78034272 | BG38: 78.08621329 | BH38: 76.77573863 | BI38: 76.19274584 | BJ38: 74.39393252 | BK38: 75.55505549 | BL38: 76.55965713 | BM38: 73.81627886 | BN38: 74.81511314 | BO38: 72.31986212 | BP38: 71.45650814 | BQ38: 72.13384955 | BR38: 71.72071489 | BS38: 70.41733379 | BT38: 70.17219449 | BU38: 69.94753348 | BV38: 69.61994426 | BW38: 69.30174334 | BX38: 69.06356307 | BY38: 68.8635929 | BZ38: 68.75166191 | CA38: 68.63814379 | CB38: 68.52348011 | CC38: 68.41604681 | CD38: 68.26895158 | CE38: 68.41604681 | CF38: 68.26895158 | DA38: =names!$A$6 -> Food drink and tobacco | DB38: 0 | DC38: 351.6470431 | DD38: 1376.670034 | DE38: 748.6006015 | DF38: 327.0346446 | DG38: 510.3859623 | DH38: 1005.441122 | DI38: 358.0095063 | DJ38: 408.5004566
BA39: Females | BB39: 15.98572791 | BC39: 17.12942094 | BD39: 18.72776535 | BE39: 20.62739356 | BF39: 20.21965627 | BG39: 21.91378569 | BH39: 23.22426137 | BI39: 23.80725416 | BJ39: 25.60606748 | BK39: 24.44494373 | BL39: 23.44034287 | BM39: 26.18372114 | BN39: 25.18488751 | BO39: 27.68013788 | BP39: 28.54349186 | BQ39: 27.86615045 | BR39: 28.27928511 | BS39: 29.5826667 | BT39: 29.82780551 | BU39: 30.05246652 | BV39: 30.38005618 | BW39: 30.69825666 | BX39: 30.93643693 | BY39: 31.1364071 | BZ39: 31.24833809 | CA39: 31.36185621 | CB39: 31.47651989 | CC39: 31.58395319 | CD39: 31.73104842 | CE39: 31.58395319 | CF39: 31.73104842 | DA39: =names!$A$7 -> Engineering | DB39: 12.33182104 | DC39: 369.0260153 | DD39: 432.7918581 | DE39: 292.5349151 | DF39: 583.9303729 | DG39: 859.8034298 | DH39: 567.3090953 | DI39: 620.5588074 | DJ39: 143.7260496
AZ40: =names!$A$20 -> Support services | BA40: Males | BB40: 77.57942706 | BC40: 76.64603147 | BD40: 75.36860031 | BE40: 73.10595364 | BF40: 69.75905509 | BG40: 68.89563893 | BH40: 69.60815468 | BI40: 70.73527188 | BJ40: 69.74148882 | BK40: 70.2479296 | BL40: 72.01915787 | BM40: 69.01443485 | BN40: 72.31965122 | BO40: 73.77842527 | BP40: 69.72591708 | BQ40: 73.66144717 | BR40: 76.06971571 | BS40: 72.93055199 | BT40: 69.87860491 | BU40: 69.74561189 | BV40: 69.48875383 | BW40: 69.2041068 | BX40: 68.86155907 | BY40: 68.56423436 | BZ40: 68.15348929 | CA40: 67.75819604 | CB40: 67.32903324 | CC40: 66.95753313 | CD40: 66.56791136 | CE40: 66.95753313 | CF40: 66.56791136 | DA40: =names!$A$8 -> Rest of manufacturing | DB40: 684.1152279 | DC40: 1522.663407 | DD40: 6570.401776 | DE40: 1990.671484 | DF40: 3020.456325 | DG40: 6015.215631 | DH40: 1517.403837 | DI40: 2641.581971 | DJ40: 1025.529709
BA41: Females | BB41: 22.42057294 | BC41: 23.35396853 | BD41: 24.63139809 | BE41: 26.89404496 | BF41: 30.24094627 | BG41: 31.10436107 | BH41: 30.39184532 | BI41: 29.26472812 | BJ41: 30.25851118 | BK41: 29.7520704 | BL41: 27.98084286 | BM41: 30.98556515 | BN41: 27.68034878 | BO41: 26.22157473 | BP41: 30.27408222 | BQ41: 26.33855341 | BR41: 23.93028429 | BS41: 27.06944801 | BT41: 30.1213944 | BU41: 30.25438811 | BV41: 30.51124617 | BW41: 30.79589257 | BX41: 31.13844093 | BY41: 31.43576564 | BZ41: 31.84651071 | CA41: 32.24180396 | CB41: 32.67096676 | CC41: 33.04246687 | CD41: 33.43208864 | CE41: 33.04246687 | CF41: 33.43208864 | DA41: =names!$A$9 -> Electricity and gas | DB41: 7.557845413 | DC41: 208.9498978 | DD41: 235.3993305 | DE41: 52.02994384 | DF41: 337.5414524 | DG41: 179.6628831 | DH41: 236.7470732 | DI41: 440.2633694 | DJ41: 4.757689263
AZ42: =names!$A$21 -> Public admin. and defence | BA42: Males | BB42: 85.38471081 | BC42: 83.70029444 | BD42: 82.44761522 | BE42: 81.41635999 | BF42: 78.96513893 | BG42: 77.77612449 | BH42: 76.72519497 | BI42: 75.18196827 | BJ42: 75.19235102 | BK42: 74.42265833 | BL42: 73.57342792 | BM42: 71.45969301 | BN42: 70.49172773 | BO42: 69.45558838 | BP42: 66.01328737 | BQ42: 64.99521146 | BR42: 64.00582106 | BS42: 62.52236052 | BT42: 65.96130773 | BU42: 65.67621317 | BV42: 65.24485282 | BW42: 64.75850523 | BX42: 64.29943305 | BY42: 63.91487226 | BZ42: 63.53694996 | CA42: 63.17660382 | CB42: 62.81366722 | CC42: 62.47505155 | CD42: 62.13996906 | CE42: 62.47505155 | CF42: 62.13996906 | DA42: =names!$A$10 -> Water and sewerage | DB42: 1050.291011 | DC42: 2886.372493 | DD42: 417.027883 | DE42: 624.1646212 | DF42: 73.50192932 | DG42: 1438.035965 | DH42: 2143.329523 | DI42: 421.0533398 | DJ42: 1201.69169
BA43: Females | BB43: 14.61528919 | BC43: 16.29970556 | BD43: 17.55238478 | BE43: 18.58364001 | BF43: 21.03486263 | BG43: 22.22387551 | BH43: 23.27480503 | BI43: 24.81803173 | BJ43: 24.80764898 | BK43: 25.57734167 | BL43: 26.42657208 | BM43: 28.54030576 | BN43: 29.50827101 | BO43: 30.54441162 | BP43: 33.98671376 | BQ43: 35.0047874 | BR43: 35.99417785 | BS43: 37.47763948 | BT43: 34.03869227 | BU43: 34.3237879 | BV43: 34.75514609 | BW43: 35.24149477 | BX43: 35.70056695 | BY43: 36.08512774 | BZ43: 36.46305004 | CA43: 36.82339618 | CB43: 37.18633278 | CC43: 37.52494845 | CD43: 37.86003094 | CE43: 37.52494845 | CF43: 37.86003094 | DA43: =names!$A$11 -> Construction | DB43: 228.2315545 | DC43: 1836.031284 | DD43: 4174.229177 | DE43: 1678.542835 | DF43: 1063.492623 | DG43: 4019.918576 | DH43: 3905.401273 | DI43: 1247.968524 | DJ43: 1693.430596
AZ44: =names!$A$22 -> Education | BA44: Males | BB44: 73.13859446 | BC44: 71.45577631 | BD44: 69.60420479 | BE44: 68.00046916 | BF44: 65.76467164 | BG44: 64.79180603 | BH44: 60.86688396 | BI44: 66.45625172 | BJ44: 65.8797673 | BK44: 62.71435259 | BL44: 63.49251271 | BM44: 55.830188 | BN44: 52.8028951 | BO44: 57.88224126 | BP44: 52.20261438 | BQ44: 54.34755348 | BR44: 58.24409135 | BS44: 63.13451319 | BT44: 65.39094147 | BU44: 65.2251766 | BV44: 64.90583623 | BW44: 64.6302618 | BX44: 64.4073092 | BY44: 64.32761184 | BZ44: 64.12074291 | CA44: 63.93344806 | CB44: 63.75250832 | CC44: 63.61256691 | CD44: 63.46458682 | CE44: 63.61256691 | CF44: 63.46458682 | DA44: =names!$A$12 -> Wholesale and retail trade | DB44: 1257.418883 | DC44: 8588.268184 | DD44: 28368.02692 | DE44: 6847.970205 | DF44: 10287.48596 | DG44: 34427.10855 | DH44: 48230.47559 | DI44: 22906.59139 | DJ44: 13642.16523
BA45: Females | BB45: 26.8613978 | BC45: 28.5442161 | BD45: 30.39579521 | BE45: 31.99953084 | BF45: 34.23533538 | BG45: 35.20819397 | BH45: 39.13310892 | BI45: 33.54375427 | BJ45: 34.1202327 | BK45: 37.2856528 | BL45: 36.50748729 | BM45: 44.169812 | BN45: 47.1971049 | BO45: 42.11775874 | BP45: 47.79738224 | BQ45: 45.65244652 | BR45: 41.75590556 | BS45: 36.86548681 | BT45: 34.60905853 | BU45: 34.7748234 | BV45: 35.09416377 | BW45: 35.3697382 | BX45: 35.5926908 | BY45: 35.67239078 | BZ45: 35.87925709 | CA45: 36.06655194 | CB45: 36.2474943 | CC45: 36.3874357 | CD45: 36.53541318 | CE45: 36.3874357 | CF45: 36.53541318 | DA45: =names!$A$13 -> Transport and storage | DB45: 138.2697163 | DC45: 1002.170784 | DD45: 2282.036576 | DE45: 1140.86591 | DF45: 1624.723633 | DG45: 7943.226529 | DH45: 5300.174226 | DI45: 3329.210434 | DJ45: 1928.63322
AZ46: =names!$A$23 -> Health and social work | BA46: Males | BB46: 41.01954663 | BC46: 39.98891175 | BD46: 39.97727058 | BE46: 39.63035163 | BF46: 38.98636964 | BG46: 37.91297357 | BH46: 38.8725709 | BI46: 38.71501681 | BJ46: 39.01406794 | BK46: 39.83727256 | BL46: 36.0115279 | BM46: 32.42812052 | BN46: 36.66833897 | BO46: 44.14532846 | BP46: 37.7557763 | BQ46: 38.09931586 | BR46: 39.15029024 | BS46: 34.94747165 | BT46: 36.10764002 | BU46: 36.13481448 | BV46: 36.08268705 | BW46: 36.12736527 | BX46: 36.1875703 | BY46: 36.29686251 | BZ46: 36.20040963 | CA46: 36.20507599 | CB46: 36.22307821 | CC46: 36.28504052 | CD46: 36.37085205 | CE46: 36.28504052 | CF46: 36.37085205 | DA46: =names!$A$14 -> Accommodation and food | DB46: 1898.110611 | DC46: 14265.15762 | DD46: 50616.96367 | DE46: 18697.12413 | DF46: 18538.26278 | DG46: 51060.59656 | DH46: 72450.9011 | DI46: 55403.75076 | DJ46: 14454.96607
BA47: Females | BB47: 58.98045337 | BC47: 60.01108825 | BD47: 60.02272942 | BE47: 60.36964837 | BF47: 61.01363036 | BG47: 62.08702643 | BH47: 61.12743043 | BI47: 61.28498319 | BJ47: 60.98593206 | BK47: 60.16272854 | BL47: 63.9884721 | BM47: 67.57187948 | BN47: 63.33166103 | BO47: 55.85467231 | BP47: 62.2442237 | BQ47: 61.90068414 | BR47: 60.84970976 | BS47: 65.05252835 | BT47: 63.89236066 | BU47: 63.86518552 | BV47: 63.9173123 | BW47: 63.87263473 | BX47: 63.8124297 | BY47: 63.70313749 | BZ47: 63.79959037 | CA47: 63.79492401 | CB47: 63.77692179 | CC47: 63.71495948 | CD47: 63.62914734 | CE47: 63.71495948 | CF47: 63.62914734 | DA47: =names!$A$15 -> Media | DB47: 395.8693926 | DC47: 1413.482794 | DD47: 6943.815895 | DE47: 881.6151496 | DF47: 1929.960895 | DG47: 3957.48089 | DH47: 2387.536033 | DI47: 1553.775459 | DJ47: 887.339105
AZ48: =names!$A$24 -> Arts and entertainment | BA48: Males | BB48: 71.29933835 | BC48: 70.8651007 | BD48: 70.78864338 | BE48: 69.3076616 | BF48: 67.54869326 | BG48: 67.23242253 | BH48: 68.00839579 | BI48: 70.93051771 | BJ48: 71.43537034 | BK48: 69.45140668 | BL48: 72.5239411 | BM48: 69.43231416 | BN48: 67.18413295 | BO48: 69.97334195 | BP48: 71.51151164 | BQ48: 63.80357911 | BR48: 65.24351989 | BS48: 67.52724493 | BT48: 61.75116199 | BU48: 60.17183652 | BV48: 58.37865587 | BW48: 56.61828251 | BX48: 54.8968346 | BY48: 53.00705697 | BZ48: 51.41724412 | CA48: 49.9585897 | CB48: 48.53851903 | CC48: 47.03165834 | CD48: 45.6292556 | CE48: 47.03165834 | CF48: 45.6292556 | DA48: =names!$A$16 -> Information technology | DB48: 418.8175304 | DC48: 880.5970353 | DD48: 2550.151629 | DE48: 703.9640129 | DF48: 1187.999706 | DG48: 2744.697279 | DH48: 837.454966 | DI48: 630.3816738 | DJ48: 363.1694217
BA49: Females | BB49: 28.70066165 | BC49: 29.13491065 | BD49: 29.21135662 | BE49: 30.6923384 | BF49: 32.45130674 | BG49: 32.76757747 | BH49: 31.99160421 | BI49: 29.06948229 | BJ49: 28.56462966 | BK49: 30.54859332 | BL49: 27.4760589 | BM49: 30.56769095 | BN49: 32.81587148 | BO49: 30.02665805 | BP49: 28.48848836 | BQ49: 36.19642089 | BR49: 34.75648011 | BS49: 32.47275909 | BT49: 38.24883801 | BU49: 39.82816348 | BV49: 41.62134413 | BW49: 43.38171749 | BX49: 45.1031654 | BY49: 46.99294303 | BZ49: 48.58275588 | CA49: 50.04141294 | CB49: 51.46148353 | CC49: 52.96833918 | CD49: 54.370742 | CE49: 52.96833918 | CF49: 54.370742 | DA49: =names!$A$17 -> Finance and insurance | DB49: 231.7128642 | DC49: 1943.439636 | DD49: 2817.839763 | DE49: 903.2931317 | DF49: 842.1768694 | DG49: 2660.897721 | DH49: 1684.563636 | DI49: 1207.515237 | DJ49: 129.3480434
AZ50: =names!$A$25 -> Other services | BA50: Males | BB50: 71.90101443 | BC50: 71.52022651 | BD50: 71.63195188 | BE50: 71.12899068 | BF50: 70.36518214 | BG50: 69.56332685 | BH50: 70.55176225 | BI50: 73.04434408 | BJ50: 72.96726699 | BK50: 73.43070932 | BL50: 72.8921501 | BM50: 73.82365949 | BN50: 73.03535107 | BO50: 70.48295753 | BP50: 74.71491314 | BQ50: 72.67324452 | BR50: 69.7599308 | BS50: 66.84420488 | BT50: 66.69294324 | BU50: 65.33097684 | BV50: 63.73159775 | BW50: 62.10939238 | BX50: 60.65802263 | BY50: 59.30737422 | BZ50: 58.3682068 | CA50: 57.33993309 | CB50: 56.30095556 | CC50: 55.42095971 | CD50: 54.22685191 | CE50: 55.42095971 | CF50: 54.22685191 | DA50: =names!$A$18 -> Real estate | DB50: 545.9200503 | DC50: 10031.0468 | DD50: 14323.04031 | DE50: 5232.3599 | DF50: 5324.25478 | DG50: 12795.10173 | DH50: 7366.596053 | DI50: 6889.833386 | DJ50: 3382.855126
BA51: Females | BB51: 28.09898557 | BC51: 28.47977349 | BD51: 28.36804155 | BE51: 28.87100932 | BF51: 29.63481786 | BG51: 30.43666746 | BH51: 29.44823775 | BI51: 26.95565592 | BJ51: 27.03273301 | BK51: 26.56929068 | BL51: 27.1078499 | BM51: 26.17633704 | BN51: 26.96464893 | BO51: 29.51704247 | BP51: 25.28508686 | BQ51: 27.32675548 | BR51: 30.2400692 | BS51: 33.15579512 | BT51: 33.30705676 | BU51: 34.66902316 | BV51: 36.26840225 | BW51: 37.89061052 | BX51: 39.34197737 | BY51: 40.69262578 | BZ51: 41.63179585 | CA51: 42.66006691 | CB51: 43.69904444 | CC51: 44.57904273 | CD51: 45.77314809 | CE51: 44.57904273 | CF51: 45.77314809 | DA51: =names!$A$19 -> Professional services | DB51: 1910.03232 | DC51: 15487.3121 | DD51: 27629.35834 | DE51: 953.5174643 | DF51: 5385.945939 | DG51: 5825.258239 | DH51: 4722.820424 | DI51: 1576.250008 | DJ51: 979.0729512
DA52: =names!$A$20 -> Support services | DB52: 433.9871339 | DC52: 12558.64747 | DD52: 25327.46864 | DE52: 8756.957593 | DF52: 10834.8616 | DG52: 20514.67083 | DH52: 21455.29805 | DI52: 22103.24583 | DJ52: 7883.634614
DA53: =names!$A$21 -> Public admin. and defence | DB53: 306.2263757 | DC53: 3749.995897 | DD53: 5458.010308 | DE53: 2316.849097 | DF53: 1487.56064 | DG53: 4151.252906 | DH53: 1404.313252 | DI53: 311.0461571 | DJ53: 129.2343365
DA54: =names!$A$22 -> Education | DB54: 21.14393616 | DC54: 2840.452401 | DD54: 4937.137738 | DE54: 4357.892622 | DF54: 3222.892294 | DG54: 5014.466176 | DH54: 4955.445735 | DI54: 2773.842406 | DJ54: 1070.085641
DA55: =names!$A$23 -> Health and social work | DB55: 240.546525 | DC55: 3996.123842 | DD55: 9813.859357 | DE55: 8726.074432 | DF55: 2396.142764 | DG55: 9551.51544 | DH55: 1889.176802 | DI55: 2429.083642 | DJ55: 312.3263881
DA56: =names!$A$24 -> Arts and entertainment | DB56: 368.4846094 | DC56: 6379.071227 | DD56: 13783.64332 | DE56: 3439.659204 | DF56: 4373.655127 | DG56: 10173.89334 | DH56: 15026.33389 | DI56: 7325.803098 | DJ56: 4331.924738
DA57: =names!$A$25 -> Other services | DB57: 492.5407673 | DC57: 2205.250504 | DD57: 7470.493417 | DE57: 6226.625997 | DF57: 3389.172303 | DG57: 12497.74555 | DH57: 14325.86807 | DI57: 6485.884948 | DJ57: 1473.317893
BB59: Selected occupation as % of all occupations, separately for men and women
BB60: 1992 | BC60: 1993 | BD60: 1994 | BE60: 1995 | BF60: 1996 | BG60: 1997 | BH60: 1998 | BI60: 1999 | BJ60: 2000 | BK60: 2001 | BL60: 2002 | BM60: 2003 | BN60: 2004 | BO60: 2005 | BP60: 2006 | BQ60: 2007 | BR60: 2008 | BS60: 2009 | BT60: 2010 | BU60: 2011 | BV60: 2012 | BW60: 2013 | BX60: 2014 | BY60: 2015 | BZ60: 2016 | CA60: 2017 | CB60: 2018 | CC60: 2019 | CD60: 2020 | CE60: 2021 | CF60: 2022
AZ61: =names!$A$3 -> All industries | BA61: Males | BB61: 7.539115394 | BC61: 7.611604693 | BD61: 7.619693542 | BE61: 7.675710471 | BF61: 7.697782521 | BG61: 7.775482772 | BH61: 7.872591098 | BI61: 7.863378136 | BJ61: 8.074644843 | BK61: 8.168683585 | BL61: 8.572284682 | BM61: 8.479979108 | BN61: 8.61635402 | BO61: 8.786344685 | BP61: 8.581268794 | BQ61: 8.931649487 | BR61: 9.093185181 | BS61: 9.103173604 | BT61: 9.024293131 | BU61: 9.103499532 | BV61: 9.181781155 | BW61: 9.26073374 | BX61: 9.342535195 | BY61: 9.428548668 | BZ61: 9.491583631 | CA61: 9.55231562 | CB61: 9.611524737 | CC61: 9.670236996 | CD61: 9.72816541 | CE61: 9.670236996 | CF61: 9.72816541
BA62: Females | BB62: 1.587500801 | BC62: 1.686287302 | BD62: 1.776967007 | BE62: 1.879646264 | BF62: 1.96245367 | BG62: 2.105153934 | BH62: 2.326579549 | BI62: 2.582752892 | BJ62: 2.683602314 | BK62: 2.889024192 | BL62: 2.928491704 | BM62: 3.202843707 | BN62: 3.281028395 | BO62: 3.360820691 | BP62: 3.500565753 | BQ62: 3.595962363 | BR62: 3.723721095 | BS62: 3.848506868 | BT62: 3.908126251 | BU62: 4.022137177 | BV62: 4.152773528 | BW62: 4.289727583 | BX62: 4.428842193 | BY62: 4.561704031 | BZ62: 4.666900644 | CA62: 4.769108248 | CB62: 4.873825846 | CC62: 4.975978052 | CD62: 5.077307502 | CE62: 4.975978052 | CF62: 5.077307502
AZ63: =names!$A$4 -> Agriculture | BA63: Males | BB63: 2.12960966 | BC63: 2.100837556 | BD63: 2.048645299 | BE63: 2.059760895 | BF63: 1.960706167 | BG63: 1.999973566 | BH63: 2.078123131 | BI63: 2.204872154 | BJ63: 2.33672147 | BK63: 2.358407941 | BL63: 2.423533743 | BM63: 2.309003732 | BN63: 1.804401169 | BO63: 2.407131453 | BP63: 2.950669564 | BQ63: 2.612176674 | BR63: 2.339870144 | BS63: 2.454606563 | BT63: 1.329979963 | BU63: 1.307740896 | BV63: 1.298428493 | BW63: 1.29930901 | BX63: 1.299646537 | BY63: 1.300988037 | BZ63: 1.315380931 | CA63: 1.329383919 | CB63: 1.343735927 | CC63: 1.356542966 | CD63: 1.367023184 | CE63: 1.356542966 | CF63: 1.367023184 | DA63: Emp x qualification for occupation 3 for every industry
BA64: Females | BB64: 1.040402775 | BC64: 1.104565195 | BD64: 1.108402421 | BE64: 1.058292917 | BF64: 1.04334655 | BG64: 1.174448549 | BH64: 1.355799356 | BI64: 1.328739395 | BJ64: 1.606863951 | BK64: 1.447024163 | BL64: 1.616738387 | BM64: 1.762460078 | BN64: 1.710359423 | BO64: 1.945336832 | BP64: 1.732520301 | BQ64: 1.700566481 | BR64: 1.740069328 | BS64: 1.552275585 | BT64: 1.589840177 | BU64: 1.602834019 | BV64: 1.619947521 | BW64: 1.642074873 | BX64: 1.663204799 | BY64: 1.701696766 | BZ64: 1.737589438 | CA64: 1.770704088 | CB64: 1.803153091 | CC64: 1.831595058 | CD64: 1.857196339 | CE64: 1.831595058 | CF64: 1.857196339 | DA64: 2012 | DB64: =DB34 -> QCF8 | DC64: =DC34 -> QCF7 | DD64: QCF6 | DE64: QCF5 | DF64: QCF4 | DG64: QCF3 | DH64: QCF2 | DI64: QCF1 | DJ64: No Qual
AZ65: =names!$A$5 -> Mining and quarrying | BA65: Males | BB65: 4.921638423 | BC65: 5.771828181 | BD65: 6.859216737 | BE65: 7.530636338 | BF65: 7.342637083 | BG65: 7.102619189 | BH65: 7.12005409 | BI65: 7.169140301 | BJ65: 7.773814287 | BK65: 7.428962011 | BL65: 7.757616566 | BM65: 7.979390029 | BN65: 8.38527197 | BO65: 9.075395723 | BP65: 9.388387181 | BQ65: 9.816826808 | BR65: 10.26225618 | BS65: 10.08301307 | BT65: 10.75312374 | BU65: 10.85623659 | BV65: 11.00701308 | BW65: 11.17647144 | BX65: 11.33027767 | BY65: 11.48604002 | BZ65: 11.65009998 | CA65: 11.8046278 | CB65: 11.95986826 | CC65: 12.11219794 | CD65: 12.26735612 | CE65: 12.11219794 | CF65: 12.26735612 | DA65: =names!$A$3 -> All industries | DB65: 82909.36601 | DC65: 320600.4877 | DD65: 639587.9363 | DE65: 74622.09669 | DF65: 180708.8855 | DG65: 218276.6587 | DH65: 174008.289 | DI65: 98467.47859 | DJ65: 21704.43191
BA66: Females | BB66: 2.306196297 | BC66: 2.5332 | BD66: 2.956142485 | BE66: 3.136824034 | BF66: 3.28504338 | BG66: 3.100792464 | BH66: 3.257071458 | BI66: 3.714753004 | BJ66: 3.795495771 | BK66: 4.083226517 | BL66: 4.24224494 | BM66: 4.471865354 | BN66: 4.339378309 | BO66: 4.727079061 | BP66: 5.148208469 | BQ66: 5.182202813 | BR66: 5.229540564 | BS66: 5.44891375 | BT66: 5.240345711 | BU66: 5.355160321 | BV66: 5.489590702 | BW66: 5.6644171 | BX66: 5.894029089 | BY66: 6.348182402 | BZ66: 6.506373569 | CA66: 6.664949947 | CB66: 6.819164554 | CC66: 6.97472973 | CD66: 7.134436995 | CE66: 6.97472973 | CF66: 7.134436995 | DA66: =names!$A$4 -> Agriculture | DB66: 87.26738737 | DC66: 1172.052125 | DD66: 1363.61802 | DE66: 206.497162 | DF66: 1166.199252 | DG66: 158.4600813 | DH66: 819.121183 | DI66: 724.8896784 | DJ66: 499.8421189
AZ67: =names!$A$6 -> Food drink and tobacco | BA67: Males | BB67: 6.773169827 | BC67: 6.841243797 | BD67: 6.86558666 | BE67: 6.922455661 | BF67: 7.207741855 | BG67: 7.117346182 | BH67: 7.327303811 | BI67: 7.294652857 | BJ67: 7.403385109 | BK67: 7.492643981 | BL67: 7.662233713 | BM67: 8.576622376 | BN67: 8.93413307 | BO67: 9.768189866 | BP67: 9.888107784 | BQ67: 9.417654474 | BR67: 9.555030981 | BS67: 11.83740352 | BT67: 7.592038695 | BU67: 7.719152158 | BV67: 7.863845417 | BW67: 8.030848447 | BX67: 8.20012476 | BY67: 8.381274534 | BZ67: 8.535315882 | CA67: 8.690343119 | CB67: 8.842124932 | CC67: 8.993282772 | CD67: 9.146915363 | CE67: 8.993282772 | CF67: 9.146915363 | DA67: =names!$A$5 -> Mining and quarrying | DB67: 346.5478322 | DC67: 1901.776852 | DD67: 3632.294542 | DE67: 0 | DF67: 700.1364587 | DG67: 1503.27839 | DH67: 586.5066565 | DI67: 697.4903343 | DJ67: 160.166989
BA68: Females | BB68: 1.639934616 | BC68: 1.776005562 | BD68: 1.889835184 | BE68: 1.940978132 | BF68: 2.099031378 | BG68: 2.203598112 | BH68: 2.569656052 | BI68: 2.864972426 | BJ68: 2.99434715 | BK68: 3.278340069 | BL68: 2.305844231 | BM68: 3.491558181 | BN68: 4.430328407 | BO68: 5.199133449 | BP68: 4.424174899 | BQ68: 4.912118661 | BR68: 5.211481667 | BS68: 5.414193409 | BT68: 5.102635941 | BU68: 5.296508057 | BV68: 5.547196096 | BW68: 5.813437447 | BX68: 6.076169116 | BY68: 6.344338222 | BZ68: 6.623509398 | CA68: 6.904929004 | CB68: 7.202025046 | CC68: 7.50405525 | CD68: 7.810041573 | CE68: 7.50405525 | CF68: 7.810041573 | DA68: =names!$A$6 -> Food drink and tobacco | DB68: 28.87617719 | DC68: 1058.431246 | DD68: 2858.060279 | DE68: 937.3198991 | DF68: 3239.83741 | DG68: 4802.230061 | DH68: 1791.817798 | DI68: 878.5131465 | DJ68: 128.6074573
AZ69: =names!$A$7 -> Engineering | BA69: Males | BB69: 9.674271159 | BC69: 9.841940171 | BD69: 10.00507334 | BE69: 10.26192233 | BF69: 10.42892459 | BG69: 10.61023497 | BH69: 10.72506112 | BI69: 10.77522024 | BJ69: 11.12545459 | BK69: 11.33316791 | BL69: 11.86257721 | BM69: 12.3089333 | BN69: 11.9564677 | BO69: 12.085033 | BP69: 12.38328255 | BQ69: 12.57013436 | BR69: 13.49292808 | BS69: 13.47973308 | BT69: 14.06110529 | BU69: 14.2896712 | BV69: 14.51690963 | BW69: 14.72797877 | BX69: 14.92558418 | BY69: 15.14935797 | BZ69: 15.33740534 | CA69: 15.5052665 | CB69: 15.6707445 | CC69: 15.83329792 | CD69: 15.99129487 | CE69: 15.83329792 | CF69: 15.99129487 | DA69: =names!$A$7 -> Engineering | DB69: 1543.223324 | DC69: 6079.295848 | DD69: 19279.39874 | DE69: 494.8638518 | DF69: 11137.50118 | DG69: 12673.64353 | DH69: 5486.294053 | DI69: 3243.116098 | DJ69: 1266.254812
BA70: Females | BB70: 2.196784935 | BC70: 2.386899282 | BD70: 2.533986932 | BE70: 2.729927714 | BF70: 2.939927856 | BG70: 3.114892488 | BH70: 3.371231797 | BI70: 3.52424302 | BJ70: 3.744957012 | BK70: 3.913283496 | BL70: 4.310040085 | BM70: 4.628061959 | BN70: 4.836769378 | BO70: 5.069543646 | BP70: 5.495362063 | BQ70: 5.492270681 | BR70: 6.14284171 | BS70: 5.815489469 | BT70: 6.352726045 | BU70: 6.538922946 | BV70: 6.768136864 | BW70: 6.999727363 | BX70: 7.235863477 | BY70: 7.474307585 | BZ70: 7.697127245 | CA70: 7.945339769 | CB70: 8.201847783 | CC70: 8.442684596 | CD70: 8.699940975 | CE70: 8.442684596 | CF70: 8.699940975 | DA70: =names!$A$8 -> Rest of manufacturing | DB70: 8230.410178 | DC70: 20190.03665 | DD70: 53345.56169 | DE70: 7143.156045 | DF70: 28904.31488 | DG70: 26751.83403 | DH70: 18340.7952 | DI70: 10870.45641 | DJ70: 1294.127442
AZ71: =names!$A$8 -> Rest of manufacturing | BA71: Males | BB71: 7.997961305 | BC71: 8.185696943 | BD71: 8.251153387 | BE71: 8.33843842 | BF71: 8.465796724 | BG71: 8.575141444 | BH71: 8.71969521 | BI71: 8.985793639 | BJ71: 9.244585245 | BK71: 9.402451586 | BL71: 10.07243199 | BM71: 9.813824151 | BN71: 9.964319408 | BO71: 9.924002058 | BP71: 10.71504767 | BQ71: 10.46932116 | BR71: 10.57798815 | BS71: 10.8983434 | BT71: 10.19844294 | BU71: 10.35156113 | BV71: 10.51507643 | BW71: 10.70460962 | BX71: 10.89757483 | BY71: 11.09185064 | BZ71: 11.24959135 | CA71: 11.4051907 | CB71: 11.56393448 | CC71: 11.72291768 | CD71: 11.89057498 | CE71: 11.72291768 | CF71: 11.89057498 | DA71: =names!$A$9 -> Electricity and gas | DB71: 702.0936501 | DC71: 3279.38864 | DD71: 6049.901021 | DE71: 944.1091733 | DF71: 3500.864961 | DG71: 3103.880411 | DH71: 1341.638768 | DI71: 513.5545397 | DJ71: 4.318561448
BA72: Females | BB72: 1.826416896 | BC72: 1.990573446 | BD72: 2.153100274 | BE72: 2.337212603 | BF72: 2.475649029 | BG72: 2.672315312 | BH72: 3.02621467 | BI72: 3.269443803 | BJ72: 3.4561669 | BK72: 3.732702966 | BL72: 4.045187287 | BM72: 4.546075391 | BN72: 4.753364707 | BO72: 5.160336936 | BP72: 5.342145204 | BQ72: 5.745431892 | BR72: 5.872802058 | BS72: 6.24236688 | BT72: 6.420087826 | BU72: 6.652605723 | BV72: 6.916664527 | BW72: 7.21327427 | BX72: 7.514053104 | BY72: 7.813055863 | BZ72: 8.076036756 | CA72: 8.337802671 | CB72: 8.608131152 | CC72: 8.87640409 | CD72: 9.156714134 | CE72: 8.87640409 | CF72: 9.156714134 | DA72: =names!$A$10 -> Water and sewerage | DB72: 228.3408546 | DC72: 211.8790264 | DD72: 4068.219215 | DE72: 571.1493501 | DF72: 2598.308223 | DG72: 382.4125755 | DH72: 1103.363005 | DI72: 198.8795557 | DJ72: 628.2672473
AZ73: =names!$A$9 -> Electricity and gas | BA73: Males | BB73: 6.396473119 | BC73: 6.43737758 | BD73: 6.53485204 | BE73: 6.551166268 | BF73: 6.616553751 | BG73: 6.691420892 | BH73: 6.776554163 | BI73: 6.682028105 | BJ73: 6.821420268 | BK73: 6.879101265 | BL73: 7.801903725 | BM73: 9.827757386 | BN73: 7.328689994 | BO73: 10.61939485 | BP73: 8.675977347 | BQ73: 9.94543554 | BR73: 10.51071321 | BS73: 9.807251977 | BT73: 9.971033258 | BU73: 10.06403948 | BV73: 10.17499303 | BW73: 10.30573479 | BX73: 10.45586144 | BY73: 10.60204457 | BZ73: 10.73203429 | CA73: 10.85966902 | CB73: 10.98214902 | CC73: 11.1009139 | CD73: 11.22225896 | CE73: 11.1009139 | CF73: 11.22225896 | DA73: =names!$A$11 -> Construction | DB73: 1308.525963 | DC73: 13723.86361 | DD73: 27834.37905 | DE73: 4479.933222 | DF73: 15303.55797 | DG73: 28067.53252 | DH73: 18090.35336 | DI73: 5443.687103 | DJ73: 2675.935094
BA74: Females | BB74: 2.440624591 | BC74: 2.550508492 | BD74: 2.639328597 | BE74: 2.683582662 | BF74: 2.758344289 | BG74: 3.039795211 | BH74: 3.31919774 | BI74: 3.361016369 | BJ74: 3.586607465 | BK74: 3.926778604 | BL74: 4.304156535 | BM74: 4.537174425 | BN74: 4.589732899 | BO74: 5.018406429 | BP74: 5.335825897 | BQ74: 5.967872605 | BR74: 6.284261988 | BS74: 6.594471848 | BT74: 6.765405384 | BU74: 6.940543395 | BV74: 7.139476792 | BW74: 7.35514267 | BX74: 7.543238067 | BY74: 7.71554812 | BZ74: 7.885244483 | CA74: 8.044083962 | CB74: 8.202270338 | CC74: 8.352759832 | CD74: 8.505578157 | CE74: 8.352759832 | CF74: 8.505578157 | DA74: =names!$A$12 -> Wholesale and retail trade | DB74: 2121.01393 | DC74: 5823.479238 | DD74: 37170.95521 | DE74: 4409.438258 | DF74: 8941.392631 | DG74: 25006.85003 | DH74: 22825.32438 | DI74: 16891.17688 | DJ74: 5315.328925
AZ75: =names!$A$10 -> Water and sewerage | BA75: Males | BB75: 4.593389206 | BC75: 4.633870405 | BD75: 4.651598174 | BE75: 4.660151322 | BF75: 4.856490191 | BG75: 4.779486961 | BH75: 4.545666501 | BI75: 4.561751498 | BJ75: 4.778889257 | BK75: 4.886714352 | BL75: 4.845710462 | BM75: 5.205040065 | BN75: 5.054411627 | BO75: 5.024847562 | BP75: 5.322711107 | BQ75: 6.071583108 | BR75: 6.063294542 | BS75: 7.984162929 | BT75: 7.235003689 | BU75: 7.324103391 | BV75: 7.430610752 | BW75: 7.550797409 | BX75: 7.676030843 | BY75: 7.78616408 | BZ75: 7.858703272 | CA75: 7.922672634 | CB75: 7.979106796 | CC75: 8.050887551 | CD75: 8.11668302 | CE75: 8.050887551 | CF75: 8.11668302 | DA75: =names!$A$13 -> Transport and storage | DB75: 972.6161285 | DC75: 5220.594255 | DD75: 9600.491513 | DE75: 1216.056216 | DF75: 7488.531481 | DG75: 6066.719929 | DH75: 7693.777628 | DI75: 3708.525777 | DJ75: 830.3277256
BA76: Females | BB76: 1.554669848 | BC76: 1.660296464 | BD76: 1.815260337 | BE76: 1.98736298 | BF76: 1.937303113 | BG76: 2.042601057 | BH76: 2.256717471 | BI76: 2.286476132 | BJ76: 2.639650067 | BK76: 2.531890942 | BL76: 2.490933483 | BM76: 3.117390941 | BN76: 3.109591793 | BO76: 3.394978966 | BP76: 3.510776665 | BQ76: 3.979852947 | BR76: 4.07560451 | BS76: 4.166167515 | BT76: 4.256956002 | BU76: 4.37074871 | BV76: 4.534366981 | BW76: 4.707234153 | BX76: 4.875168575 | BY76: 5.027102559 | BZ76: 5.157485949 | CA76: 5.281414312 | CB76: 5.416098516 | CC76: 5.544528596 | CD76: 5.695542114 | CE76: 5.544528596 | CF76: 5.695542114 | DA76: =names!$A$14 -> Accommodation and food | DB76: 28.63893023 | DC76: 3034.757641 | DD76: 2667.257655 | DE76: 428.4576629 | DF76: 1911.297813 | DG76: 3667.402727 | DH76: 2668.756982 | DI76: 1113.413808 | DJ76: 657.8340658
